Workbook

Sheet Lotterien
L1: 0.95
B2: Cash4Life ⁴ | E2: 1 | F2: vs. | I2: SwissLotto | L2: 1 | P2: 1 | S2: 1 | W2: Bewertungsübersicht der Lotterien von Lottohelden ¹ | X2: Preis je Tipp | Y2: Wer- tung ² | Z2: Ø AQ Gesamt | AA2: Chancen je Tipp | AB2: Vertei- lung ³
B3: 5 aus 60 + 1 aus 4 | E3: =E2*2 -> 2 | I3: 6 aus 42 + 1 aus 6 | L3: =L2*2.5 -> 2.5 | P3: 2 aus 20 aus 70 | S3: =S2*1*P2 -> 1
B4: Richtige | C4: =IF(E2=1,"Chancen 1:","Ø Gewinne 1:") -> Chancen 1: | D4: Ø AQ | E4: (Ø) Gewinn | F4: =IFERROR(COUNTIF(E5:E13,"Freispiel"),"") -> 0 | G4: =IFERROR(SUMIF(E5:E13,"<>Freispiel",D5:D13),"") -> 0.4625722236 | I4: Richtige | J4: =IF(L2=1,"Chancen 1:","Ø Gewinne 1:") -> Chancen 1: | K4: (Ø) AQ | L4: (Ø) Gewinn | M4: =IFERROR(COUNTIF(L5:L13,"Freispiel"),"") -> 0 | N4: =IFERROR(SUMIF(L5:L13,"<>Freispiel",K5:K13),"") -> 0.6064777328 | P4: Richtige | Q4: =IF(S2=1,"Chancen 1:","Ø Gewinne 1:") -> Chancen 1: | R4: Ø AQ | S4: (Ø) Gewinn | T4: =IFERROR(COUNTIF(S5:S5,"Freispiel"),"") -> 0 | U4: =IFERROR(SUMIF(S5:S5,"<>Freispiel",R5:R5),"") -> 0.4720496894 | W4: =CONCATENATE("KENO Typ 03 (x",$P$9,")") -> KENO Typ 03 (x1) | X4: =$S$10/$S$9 -> 1 | Y4: =$U$14 -> 5.067592439 | Z4: =$R$14 -> 0.5067592254 | AA4: =IFERROR($O$14/$S$9,"") -> 0.1943734015 | AB4: =$T$14 -> 1.387534247 | AC4: 5.067592439
A5: =IF(C5="",0,1/C5) -> 4.577486967e-08 | B5: 5 + CB | C5: =IF(OR(E5<=0,AND(E5>1000000000,E5<>"Freispiel")),"",1/(HYPGEOMDIST(5,5,5,60)*HYPGEOMDIST(1,1,1,4))/E2) -> 21846048 | D5: =IF(OR(E5<=0,F4>1),"",IF(E5="Freispiel",G4/(1-(1/C5))/C5,IF(E5>1000000000,"",E5/C5/E3))) -> 0.1602120438 | E5: 7000000 | F5: =IFERROR(IF(D5<D15,D15/D5,D5/D15),"") -> 3.117153 | G5: =IFERROR(D5/IF((C5*E3)<1500,1500,C5*E3)^0.25*62.2333,"") -> 0.1226358009 | H5: =IF(J5="",0,1/J5) -> 3.17715337e-08 | I5: 6 + GZ | J5: =IF(OR(L5<=0,AND(L5>1000000000,L5<>"Freispiel")),"",1/(HYPGEOMDIST(6,6,6,42)*HYPGEOMDIST(1,1,1,6))/L2) -> 31474716 | K5: =IF(OR(L5<=0,M4>1),"",IF(L5="Freispiel",N4/(1-(1/J5))/J5,IF(L5>1000000000,"",L5/J5/L3))) -> 0.2314764646 | L5: =17303432.9584/L1 -> 18214139.96 | M5: =IFERROR(IF(K5<K15,K15/K5,K5/K15),"") -> 3.435061286 | N5: =IFERROR(K5/IF((J5*L3)<1500,1500,J5*L3)^0.25*62.2333,"") -> 0.1529516668 | O5: =IF(Q5="",0,1/Q5) -> 0.07867494824 | P5: 2 | Q5: =IF(OR(S5<=0,AND(S5>1000000000,S5<>"Freispiel")),"",1/HYPGEOMDIST(P5,2,20,70)/S2) -> 12.71052632 | R5: =IF(OR(S5<=0,T4>1),"",IF(S5="Freispiel",U4/(1-(1/Q5))/Q5,IF(S5>1000000000,"",S5/Q5/S3))) -> 0.4720496894 | S5: =6*P2 -> 6 | T5: =IFERROR(IF(R5<R7,R7/R5,R5/R7),"") -> 1 | U5: =IFERROR(R5/IF((Q5*S3)<1500,1500,Q5*S3)^0.25*62.2333,"") -> 4.720497067 | W5: =CONCATENATE("KENO Typ 05 (x",$P$26,")") -> KENO Typ 05 (x1) | X5: =$S$27/$S$26 -> 1 | Y5: =$U$32 -> 4.989790329 | Z5: =$R$32 -> 0.4989790146 | AA5: =IFERROR($O$32/$S$26,"") -> 0.1366811606 | AB5: =$T$32 -> 1.290989539 | AC5: 4.989790329
A6: 1.37324609e-07 | B6: 5 | C6: =IF(OR(E6<=0,AND(E6>1000000000,E6<>"Freispiel")),"",1/(HYPGEOMDIST(5,5,5,60)*HYPGEOMDIST(0,1,1,4))/E2) -> 7282016 | D6: =IF(OR(E6<=0,F4>1),"",IF(E6="Freispiel",G4/(1-(1/C6))/C6,IF(E6>1000000000,"",E6/C6/E3))) -> 0.01579233004 | E6: 230000 | F6: =IFERROR(IF(D6<D15,D15/D6,D6/D15),"") -> 3.254549114 | G6: =IFERROR(D6/IF((C6*E3)<1500,1500,C6*E3)^0.25*62.2333,"") -> 0.01590921079 | H6: 1.588576685e-07 | I6: 6 | J6: =IF(OR(L6<=0,AND(L6>1000000000,L6<>"Freispiel")),"",1/(HYPGEOMDIST(6,6,6,42)*HYPGEOMDIST(0,1,1,6))/L2) -> 6294943.2 | K6: =IF(OR(L6<=0,M4>1),"",IF(L6="Freispiel",N4/(1-(1/J6))/J6,IF(L6>1000000000,"",L6/J6/L3))) -> 0.06688743936 | L6: =1000000/L1 -> 1052631.579 | M6: =IFERROR(IF(K6<K15,K15/K6,K6/K15),"") -> 1.007459927 | N6: =IFERROR(K6/IF((J6*L3)<1500,1500,J6*L3)^0.25*62.2333,"") -> 0.06608980109 | O6: =IF(SUM(O5:O5)=0,"",SUM(O5:O5)) -> 0.07867494824 | P6: Gesamt | Q6: =IFERROR(1/O6,"") -> 12.71052632 | R6: =IF(SUM(R5:R5)=0,"",SUM(R5:R5)) -> 0.4720496894 | S6: =IFERROR(S3*R6,"") -> 0.4720496894 | T6: =IFERROR(AVERAGE(T5:T5),"") -> 1 | U6: =IF(SUM(U5:U5)=0,"",SUM(U5:U5)) -> 4.720497067 | W6: =CONCATENATE("KENO Typ 04 (x",$P$17,")") -> KENO Typ 04 (x1) | X6: =$S$18/$S$17 -> 1 | Y6: =$U$23 -> 4.944295874 | Z6: =$R$23 -> 0.4944295694 | AA6: =IFERROR($O$23/$S$17,"") -> 0.3212963316 | AB6: =$T$23 -> 1.427832245 | AC6: 4.944295874
A7: 1.258808916e-05 | B7: 4 + CB | C7: =IF(OR(E7<=0,AND(E7>1000000000,E7<>"Freispiel")),"",1/(HYPGEOMDIST(4,5,5,60)*HYPGEOMDIST(1,1,1,4))/E2) -> 79440.17455 | D7: =IF(OR(E7<=0,F4>1),"",IF(E7="Freispiel",G4/(1-(1/C7))/C7,IF(E7>1000000000,"",E7/C7/E3))) -> 0.01258808916 | E7: 2000 | F7: =IFERROR(IF(D7<D15,D15/D7,D7/D15),"") -> 4.082979798 | G7: =IFERROR(D7/IF((C7*E3)<1500,1500,C7*E3)^0.25*62.2333,"") -> 0.03923874373 | H7: 6.862651279e-06 | I7: 5 + GZ | J7: =IF(OR(L7<=0,AND(L7>1000000000,L7<>"Freispiel")),"",1/(HYPGEOMDIST(5,6,6,42)*HYPGEOMDIST(1,1,1,6))/L2) -> 145716.2778 | K7: =IF(OR(L7<=0,M4>1),"",IF(L7="Freispiel",N4/(1-(1/J7))/J7,IF(L7>1000000000,"",L7/J7/L3))) -> 0.02155602052 | L7: =7460.0248/L1 -> 7852.657684 | M7: =IFERROR(IF(K7<K15,K15/K7,K7/K15),"") -> 3.126106449 | N7: =IFERROR(K7/IF((J7*L3)<1500,1500,J7*L3)^0.25*62.2333,"") -> 0.05460462131 | R7: =AVERAGE(R5:R5) -> 0.4720496894 | W7: =$I$98 -> Urlaubsgeld + Geldregen ⁷ | X7: =$L$99/$L$98 -> 1 | Y7: =$N$104 -> 4.804357521 | Z7: =$K$104 -> 0.5333805455 | AA7: =IFERROR($H$104/$L$98,"") -> 0.008047793029 | AB7: =$M$104 -> 3.064798312 | AC7: 4.804357521
A8: 3.776426748e-05 | B8: 4 | C8: =IF(OR(E8<=0,AND(E8>1000000000,E8<>"Freispiel")),"",1/(HYPGEOMDIST(4,5,5,60)*HYPGEOMDIST(0,1,1,4))/E2) -> 26480.05818 | D8: =IF(OR(E8<=0,F4>1),"",IF(E8="Freispiel",G4/(1-(1/C8))/C8,IF(E8>1000000000,"",E8/C8/E3))) -> 0.009441066869 | E8: 500 | F8: =IFERROR(IF(D8<D15,D15/D8,D8/D15),"") -> 5.443973064 | G8: =IFERROR(D8/IF((C8*E3)<1500,1500,C8*E3)^0.25*62.2333,"") -> 0.03873081819 | H8: 3.431325639e-05 | I8: 5 | J8: =IF(OR(L8<=0,AND(L8>1000000000,L8<>"Freispiel")),"",1/(HYPGEOMDIST(5,6,6,42)*HYPGEOMDIST(0,1,1,6))/L2) -> 29143.25556 | K8: =IF(OR(L8<=0,M4>1),"",IF(L8="Freispiel",N4/(1-(1/J8))/J8,IF(L8>1000000000,"",L8/J8/L3))) -> 0.0144476869 | L8: =1000/L1 -> 1052.631579 | M8: =IFERROR(IF(K8<K15,K15/K8,K8/K15),"") -> 4.664166327 | N8: =IFERROR(K8/IF((J8*L3)<1500,1500,J8*L3)^0.25*62.2333,"") -> 0.05472699898 | W8: =CONCATENATE("KENO Typ 02 (x",$P$2,")") -> KENO Typ 02 (x1) | X8: =$S$3/$S$2 -> 1 | Y8: =$U$6 -> 4.720497067 | Z8: =$R$6 -> 0.4720496894 | AA8: =IFERROR($O$6/$S$2,"") -> 0.07867494824 | AB8: =$T$6 -> 1 | AC8: 4.720497067
A9: 0.0006797568146 | B9: 3 + CB | C9: =IF(OR(E9<=0,AND(E9>1000000000,E9<>"Freispiel")),"",1/(HYPGEOMDIST(3,5,5,60)*HYPGEOMDIST(1,1,1,4))/E2) -> 1471.114343 | D9: =IF(OR(E9<=0,F4>1),"",IF(E9="Freispiel",G4/(1-(1/C9))/C9,IF(E9>1000000000,"",E9/C9/E3))) -> 0.03398784073 | E9: 100 | F9: =IFERROR(IF(D9<D15,D15/D9,D9/D15),"") -> 1.51221474 | G9: =IFERROR(D9/IF((C9*E3)<1500,1500,C9*E3)^0.25*62.2333,"") -> 0.2871952804 | H9: 0.0003002409934 | I9: 4 + GZ | J9: =IF(OR(L9<=0,AND(L9>1000000000,L9<>"Freispiel")),"",1/(HYPGEOMDIST(4,6,6,42)*HYPGEOMDIST(1,1,1,6))/L2) -> 3330.657778 | K9: =IF(OR(L9<=0,M4>1),"",IF(L9="Freispiel",N4/(1-(1/J9))/J9,IF(L9>1000000000,"",L9/J9/L3))) -> 0.01702348178 | L9: =134.661056/L1 -> 141.74848 | M9: =IFERROR(IF(K9<K15,K15/K9,K9/K15),"") -> 3.958439033 | N9: =IFERROR(K9/IF((J9*L3)<1500,1500,J9*L3)^0.25*62.2333,"") -> 0.1109056613 | P9: 1 | S9: 1 | W9: =CONCATENATE("KENO Typ 06 (x",$P$35,")") -> KENO Typ 06 (x1) | X9: =$S$36/$S$35 -> 1 | Y9: =$U$42 -> 4.702467596 | Z9: =$R$42 -> 0.4974393473 | AA9: =IFERROR($O$42/$S$35,"") -> 0.2218881626 | AB9: =$T$42 -> 1.333699495 | AC9: 4.702467596
A10: 0.002039270444 | B10: 3 | C10: =IF(OR(E10<=0,AND(E10>1000000000,E10<>"Freispiel")),"",1/(HYPGEOMDIST(3,5,5,60)*HYPGEOMDIST(0,1,1,4))/E2) -> 490.3714478 | D10: =IF(OR(E10<=0,F4>1),"",IF(E10="Freispiel",G4/(1-(1/C10))/C10,IF(E10>1000000000,"",E10/C10/E3))) -> 0.02039270444 | E10: 20 | F10: =IFERROR(IF(D10<D15,D15/D10,D10/D15),"") -> 2.5203579 | G10: =IFERROR(D10/IF((C10*E3)<1500,1500,C10*E3)^0.25*62.2333,"") -> 0.2039270518 | H10: 0.001501204967 | I10: 4 | J10: =IF(OR(L10<=0,AND(L10>1000000000,L10<>"Freispiel")),"",1/(HYPGEOMDIST(4,6,6,42)*HYPGEOMDIST(0,1,1,6))/L2) -> 666.1315556 | K10: =IF(OR(L10<=0,M4>1),"",IF(L10="Freispiel",N4/(1-(1/J10))/J10,IF(L10>1000000000,"",L10/J10/L3))) -> 0.04419109312 | L10: =69.9130688/L1 -> 73.592704 | M10: =IFERROR(IF(K10<K15,K15/K10,K10/K15),"") -> 1.524886804 | N10: =IFERROR(K10/IF((J10*L3)<1500,1500,J10*L3)^0.25*62.2333,"") -> 0.4305093331 | P10: 3 aus 20 aus 70 | S10: =S9*1*P9 -> 1 | W10: =CONCATENATE("KENO Typ 07 (x",$P$45,")") -> KENO Typ 07 (x1) | X10: =$S$46/$S$45 -> 1 | Y10: =$U$52 -> 4.670875309 | Z10: =$R$52 -> 0.4956651071 | AA10: =IFERROR($O$52/$S$45,"") -> 0.09674037838 | AB10: =$T$52 -> 1.579853433 | AC10: 4.670875309
A11: 0.01200903706 | B11: 2 + CB | C11: =IF(OR(E11<=0,AND(E11>1000000000,E11<>"Freispiel")),"",1/(HYPGEOMDIST(2,5,5,60)*HYPGEOMDIST(1,1,1,4))/E2) -> 83.27062321 | D11: =IF(OR(E11<=0,F4>1),"",IF(E11="Freispiel",G4/(1-(1/C11))/C11,IF(E11>1000000000,"",E11/C11/E3))) -> 0.06004518529 | E11: 10 | F11: =IFERROR(IF(D11<D15,D15/D11,D11/D15),"") -> 1.168264414 | G11: =IFERROR(D11/IF((C11*E3)<1500,1500,C11*E3)^0.25*62.2333,"") -> 0.6004518748 | H11: 0.004536975012 | I11: 3 + GZ | J11: =IF(OR(L11<=0,AND(L11>1000000000,L11<>"Freispiel")),"",1/(HYPGEOMDIST(3,6,6,42)*HYPGEOMDIST(1,1,1,6))/L2) -> 220.4111765 | K11: =IF(OR(L11<=0,M4>1),"",IF(L11="Freispiel",N4/(1-(1/J11))/J11,IF(L11>1000000000,"",L11/J11/L3))) -> 0.04279190283 | L11: =22.4005574117647/L1 -> 23.57953412 | M11: =IFERROR(IF(K11<K15,K15/K11,K11/K15),"") -> 1.574746863 | N11: =IFERROR(K11/IF((J11*L3)<1500,1500,J11*L3)^0.25*62.2333,"") -> 0.427919044 | P11: Richtige | Q11: =IF(S9=1,"Chancen 1:","Ø Gewinne 1:") -> Chancen 1: | R11: Ø AQ | S11: (Ø) Gewinn | T11: =IFERROR(COUNTIF(S12:S13,"Freispiel"),"") -> 0 | U11: =IFERROR(SUMIF(S12:S13,"<>Freispiel",R12:R13),"") -> 0.5067592254 | W11: =$B$177 -> MiniLos ⁵ | X11: =$E$178/$E$177 -> 1 | Y11: =$G$186 -> 4.526880374 | Z11: =$D$186 -> 0.6116491 | AA11: =IFERROR($A$186/$E$177,"") -> 0.189999 | AB11: =$F$186 -> 1.251740908 | AC11: 4.526880374
A12: 0.03602711117 | B12: 2 | C12: =IF(OR(E12<=0,AND(E12>1000000000,E12<>"Freispiel")),"",1/(HYPGEOMDIST(2,5,5,60)*HYPGEOMDIST(0,1,1,4))/E2) -> 27.7568744 | D12: =IF(OR(E12<=0,F4>1),"",IF(E12="Freispiel",G4/(1-(1/C12))/C12,IF(E12>1000000000,"",E12/C12/E3))) -> 0.07205422235 | E12: 4 | F12: =IFERROR(IF(D12<D15,D15/D12,D12/D15),"") -> 1.401917296 | G12: =IFERROR(D12/IF((C12*E3)<1500,1500,C12*E3)^0.25*62.2333,"") -> 0.7205422498 | H12: 0.02268487506 | I12: 3 | J12: =IF(OR(L12<=0,AND(L12>1000000000,L12<>"Freispiel")),"",1/(HYPGEOMDIST(3,6,6,42)*HYPGEOMDIST(0,1,1,6))/L2) -> 44.08223529 | K12: =IF(OR(L12<=0,M4>1),"",IF(L12="Freispiel",N4/(1-(1/J12))/J12,IF(L12>1000000000,"",L12/J12/L3))) -> 0.0911805668 | L12: =9.54617759999999/L1 -> 10.048608 | M12: =IFERROR(IF(K12<K15,K15/K12,K12/K15),"") -> 1.353100134 | N12: =IFERROR(K12/IF((J12*L3)<1500,1500,J12*L3)^0.25*62.2333,"") -> 0.9118057013 | O12: =IF(Q12="",0,1/Q12) -> 0.02082572159 | P12: 3 | Q12: =IF(OR(S12<=0,AND(S12>1000000000,S12<>"Freispiel")),"",1/HYPGEOMDIST(P12,3,20,70)/S9) -> 48.01754386 | R12: =IF(OR(S12<=0,T11>1),"",IF(S12="Freispiel",U11/(1-(1/Q12))/Q12,IF(S12>1000000000,"",S12/Q12/S10))) -> 0.3332115455 | S12: =16*P9 -> 16 | T12: =IFERROR(IF(R12<R15,R15/R12,R12/R15),"") -> 1.315068493 | U12: =IFERROR(R12/IF((Q12*S10)<1500,1500,Q12*S10)^0.25*62.2333,"") -> 3.332115576 | W12: =CONCATENATE("KENO Typ 10 (x",$P$77,")") -> KENO Typ 10 (x1) | X12: =$S$78/$S$77 -> 1 | Y12: =$U$86 -> 4.378616317 | Z12: =$R$86 -> 0.4939974199 | AA12: =IFERROR($O$86/$S$77,"") -> 0.1354414834 | AB12: =$T$86 -> 2.202292567 | AC12: 4.378616317
A13: 0.07805874088 | B13: 1 + CB | C13: =IF(OR(E13<=0,AND(E13>1000000000,E13<>"Freispiel")),"",1/(HYPGEOMDIST(1,5,5,60)*HYPGEOMDIST(1,1,1,4))/E2) -> 12.81086511 | D13: =IF(OR(E13<=0,F4>1),"",IF(E13="Freispiel",G4/(1-(1/C13))/C13,IF(E13>1000000000,"",E13/C13/E3))) -> 0.07805874088 | E13: 2 | F13: =IFERROR(IF(D13<D15,D15/D13,D13/D15),"") -> 1.518743738 | G13: =IFERROR(D13/IF((C13*E3)<1500,1500,C13*E3)^0.25*62.2333,"") -> 0.7805874372 | H13: 0.07692307692 | I13: rePLAY | J13: =IF(OR(L13<=0,AND(L13>1000000000,L13<>"Freispiel")),"",13/L2) -> 13 | K13: =IF(OR(L13<=0,M4>1),"",IF(L13="Freispiel",N4/(1-(1/J13))/J13,IF(L13>1000000000,"",L13/J13/L3))) -> 0.07692307692 | L13: 2.5 | M13: =IFERROR(IF(K13<K15,K15/K13,K13/K15),"") -> 1.141522029 | N13: =IFERROR(K13/IF((J13*L3)<1500,1500,J13*L3)^0.25*62.2333,"") -> 0.7692307973 | O13: 0.1735476799 | P13: 2 | Q13: =IF(OR(S13<=0,AND(S13>1000000000,S13<>"Freispiel")),"",1/HYPGEOMDIST(P13,3,20,70)/S9) -> 5.762105263 | R13: =IF(OR(S13<=0,T11>1),"",IF(S13="Freispiel",U11/(1-(1/Q13))/Q13,IF(S13>1000000000,"",S13/Q13/S10))) -> 0.1735476799 | S13: =1*P9 -> 1 | T13: =IFERROR(IF(R13<R15,R15/R13,R13/R15),"") -> 1.46 | U13: =IFERROR(R13/IF((Q13*S10)<1500,1500,Q13*S10)^0.25*62.2333,"") -> 1.735476863 | W13: =$I$62 -> Zusatzlotterie plus 5 | X13: =$L$63/$L$62 -> 0.75 | Y13: =$N$70 -> 4.241520365 | Z13: =$K$70 -> 0.4866666667 | AA13: =IFERROR($H$70/$L$62,"") -> 0.1 | AB13: =$M$70 -> 1.758484018 | AC13: 4.241520365
A14: =IF(SUM(A5:A13)=0,"",SUM(A5:A13)) -> 0.1288644518 | B14: Gesamt | C14: =IFERROR(1/A14,"") -> 7.760091987 | D14: =IF(SUM(D5:D13)=0,"",SUM(D5:D13)) -> 0.4625722236 | E14: =IFERROR(E3*D14,"") -> 0.9251444472 | F14: =IFERROR(AVERAGE(F5:F13),"") -> 2.668905896 | G14: =IF(SUM(G5:G13)=0,"",SUM(G5:G13)) -> 2.809218468 | H14: =IF(SUM(H5:H13)=0,"",SUM(H5:H13)) -> 0.1059877395 | I14: Gesamt | J14: =IFERROR(1/H14,"") -> 9.435053571 | K14: =IF(SUM(K5:K13)=0,"",SUM(K5:K13)) -> 0.6064777328 | L14: =IFERROR(L3*K14,"") -> 1.516194332 | M14: =IFERROR(AVERAGE(M5:M13),"") -> 2.420609872 | N14: =IF(SUM(N5:N13)=0,"",SUM(N5:N13)) -> 2.978743625 | O14: =IF(SUM(O12:O13)=0,"",SUM(O12:O13)) -> 0.1943734015 | P14: Gesamt | Q14: =IFERROR(1/O14,"") -> 5.144736842 | R14: =IF(SUM(R12:R13)=0,"",SUM(R12:R13)) -> 0.5067592254 | S14: =IFERROR(S10*R14,"") -> 0.5067592254 | T14: =IFERROR(AVERAGE(T12:T13),"") -> 1.387534247 | U14: =IF(SUM(U12:U13)=0,"",SUM(U12:U13)) -> 5.067592439 | W14: =CONCATENATE("Oster-/Halloweenlotterie (1/",$I$143,") ⁵") -> Oster-/Halloweenlotterie (1/10) ⁵ | X14: =$L$144/$L$143 -> 12 | Y14: =$N$158 -> 4.154093737 | Z14: =$K$158 -> 0.5472979167 | AA14: =IFERROR($H$158/$L$143,"") -> 0.322999 | AB14: =$M$158 -> 15.29826981 | AC14: 4.154093737
D15: =AVERAGE(D5:D13) -> 0.05139691373 | K15: =AVERAGE(K5:K13) -> 0.06738641475 | R15: =AVERAGE(R12:R13) -> 0.2533796127 | W15: =$B$128 -> Hello Monday ⁸ | X15: =$E$129/$E$128 -> 2 | Y15: =$G$141 -> 4.134649901 | Z15: =$D$141 -> 0.493683609 | AA15: =IFERROR($A$141/$E$128,"") -> 0.4304803019 | AB15: =$F$141 -> 2.611911623 | AC15: 4.134649901
W16: =$I$88 -> MiniLotto ⁷ | X16: =$L$89/$L$88 -> 0.5 | Y16: =$N$95 -> 4.107016298 | Z16: =$K$95 -> 0.5154996398 | AA16: =IFERROR($H$95/$L$88,"") -> 0.09938777525 | AB16: =$M$95 -> 1.656366736 | AC16: 4.107016298
B17: Daily Million | E17: 1 | F17: vs. | I17: Zusatzlotterie Daily Million Plus | L17: 1 | P17: 1 | S17: 1 | W17: =$P$89 -> Extragehalt ⁷ | X17: =$S$90/$S$89 -> 0.5 | Y17: =$U$95 -> 4.105365975 | Z17: =$R$95 -> 0.4971991759 | AA17: =IFERROR($O$95/$S$89,"") -> 0.008047793029 | AB17: =$T$95 -> 1.571327955 | AC17: 4.105365975
B18: 6+1 aus 39 | E18: =E17*1 -> 1 | I18: 6+1 aus 39 | L18: =L17*0.5 -> 0.5 | P18: 4 aus 20 aus 70 | S18: =S17*1*P17 -> 1 | W18: =$B$98 -> TeleLotto | X18: =$E$99/$E$98 -> 0.5 | Y18: =$G$104 -> 4.02317264 | Z18: =$D$104 -> 0.6148500456 | AA18: =IFERROR($A$104/$E$98,"") -> 0.01386493014 | AB18: =$F$104 -> 1.588958658 | AC18: 4.02317264
B19: Richtige | C19: =IF(E17=1,"Chancen 1:","Ø Gewinne 1:") -> Chancen 1: | D19: Ø AQ | E19: (Ø) Gewinn | F19: =IFERROR(COUNTIF(E20:E26,"Freispiel"),"") -> 0 | G19: =IFERROR(SUMIF(E20:E26,"<>Freispiel",D20:D26),"") -> 0.5476575136 | I19: Richtige | J19: =IF(L17=1,"Chancen 1:","Ø Gewinne 1:") -> Chancen 1: | K19: Ø AQ | L19: (Ø) Gewinn | M19: =IFERROR(COUNTIF(L20:L26,"Freispiel"),"") -> 0 | N19: =IFERROR(SUMIF(L20:L26,"<>Freispiel",K20:K26),"") -> 0.5894643666 | P19: Richtige | Q19: =IF(S17=1,"Chancen 1:","Ø Gewinne 1:") -> Chancen 1: | R19: Ø AQ | S19: (Ø) Gewinn | T19: =IFERROR(COUNTIF(S20:S22,"Freispiel"),"") -> 0 | U19: =IFERROR(SUMIF(S20:S22,"<>Freispiel",R20:R22),"") -> 0.4944295694 | W19: =CONCATENATE("KENO Typ 08 (x",$P$55,")") -> KENO Typ 08 (x1) | X19: =$S$56/$S$55 -> 1 | Y19: =$U$63 -> 4.014506098 | Z19: =$R$63 -> 0.4893837093 | AA19: =IFERROR($O$63/$S$55,"") -> 0.2127085674 | AB19: =$T$63 -> 1.670703052 | AC19: 4.014506098
A20: =IF(C20="",0,1/C20) -> 3.065018545e-07 | B20: 6 | C20: =IF(OR(E20<=0,AND(E20>1000000000,E20<>"Freispiel")),"",1/HYPGEOMDIST(6,6,6,39)/E17) -> 3262623 | D20: =IF(OR(E20<=0,F19>1),"",IF(E20="Freispiel",G19/(1-(1/C20))/C20,IF(E20>1000000000,"",E20/C20/E18))) -> 0.3065018545 | E20: 1000000 | F20: =IFERROR(IF(D20<D28,D28/D20,D20/D28),"") -> 3.917618088 | G20: =IFERROR(D20/IF((C20*E18)<1500,1500,C20*E18)^0.25*62.2333,"") -> 0.4488117453 | H20: =IF(J20="",0,1/J20) -> 3.065018545e-07 | I20: 6 | J20: =IF(OR(L20<=0,AND(L20>1000000000,L20<>"Freispiel")),"",1/HYPGEOMDIST(6,6,6,39)/L17) -> 3262623 | K20: =IF(OR(L20<=0,M19>1),"",IF(L20="Freispiel",N19/(1-(1/J20))/J20,IF(L20>1000000000,"",L20/J20/L18))) -> 0.3065018545 | L20: 500000 | M20: =IFERROR(IF(K20<K28,K28/K20,K20/K28),"") -> 3.639767055 | N20: =IFERROR(K20/IF((J20*L18)<1500,1500,J20*L18)^0.25*62.2333,"") -> 0.5337301208 | O20: =IF(Q20="",0,1/Q20) -> 0.005284138315 | P20: 4 | Q20: =IF(OR(S20<=0,AND(S20>1000000000,S20<>"Freispiel")),"",1/HYPGEOMDIST(P20,4,20,70)/S17) -> 189.245614 | R20: =IF(OR(S20<=0,T19>1),"",IF(S20="Freispiel",U19/(1-(1/Q20))/Q20,IF(S20>1000000000,"",S20/Q20/S18))) -> 0.1162510429 | S20: =22*P17 -> 22 | T20: =IFERROR(IF(R20<R24,R24/R20,R20/R24),"") -> 1.417706477 | U20: =IFERROR(R20/IF((Q20*S18)<1500,1500,Q20*S18)^0.25*62.2333,"") -> 1.162510472 | W20: =$B$88 -> Zusatzlotterie LOTTO Plus | X20: =$E$89/$E$88 -> 0.5 | Y20: =$G$95 -> 3.87476816 | Z20: =$D$95 -> 0.5590566552 | AA20: =IFERROR($A$95/$E$88,"") -> 0.02383407857 | AB20: =$F$95 -> 1.455035507 | AC20: 3.87476816
A21: 1.839011127e-06 | B21: 5 + BZ | C21: =IF(OR(E21<=0,AND(E21>1000000000,E21<>"Freispiel")),"",1/(HYPGEOMDIST(5,6,6,39)*HYPGEOMDIST(1,1,1,33))/E17) -> 543770.5 | D21: =IF(OR(E21<=0,F19>1),"",IF(E21="Freispiel",G19/(1-(1/C21))/C21,IF(E21>1000000000,"",E21/C21/E18))) -> 0.01839011127 | E21: 10000 | F21: =IFERROR(IF(D21<D28,D28/D21,D21/D28),"") -> 4.254285714 | G21: =IFERROR(D21/IF((C21*E18)<1500,1500,C21*E18)^0.25*62.2333,"") -> 0.04214570052 | H21: 1.839011127e-06 | I21: 5 + BZ | J21: =IF(OR(L21<=0,AND(L21>1000000000,L21<>"Freispiel")),"",1/(HYPGEOMDIST(5,6,6,39)*HYPGEOMDIST(1,1,1,33))/L17) -> 543770.5 | K21: =IF(OR(L21<=0,M19>1),"",IF(L21="Freispiel",N19/(1-(1/J21))/J21,IF(L21>1000000000,"",L21/J21/L18))) -> 0.01839011127 | L21: 5000 | M21: =IFERROR(IF(K21<K28,K28/K21,K21/K28),"") -> 4.579047619 | N21: =IFERROR(K21/IF((J21*L18)<1500,1500,J21*L18)^0.25*62.2333,"") -> 0.05011996692 | O21: 0.06216633311 | P21: 3 | Q21: =IF(OR(S21<=0,AND(S21>1000000000,S21<>"Freispiel")),"",1/HYPGEOMDIST(P21,4,20,70)/S17) -> 16.08587719 | R21: =IF(OR(S21<=0,T19>1),"",IF(S21="Freispiel",U19/(1-(1/Q21))/Q21,IF(S21>1000000000,"",S21/Q21/S18))) -> 0.1243326662 | S21: =2*P17 -> 2 | T21: =IFERROR(IF(R21<R24,R24/R21,R21/R24),"") -> 1.325555556 | U21: =IFERROR(R21/IF((Q21*S18)<1500,1500,Q21*S18)^0.25*62.2333,"") -> 1.243326708 | W21: =CONCATENATE("Winter-/Frühlingslotterie (1/",$P$143,") ⁵") -> Winter-/Frühlingslotterie (1/10) ⁵ | X21: =$S$144/$S$143 -> 20 | Y21: =$U$154 -> 3.833592986 | Z21: =$R$154 -> 0.48565 | AA21: =IFERROR($O$154/$S$143,"") -> 0.34851 | AB21: =$T$154 -> 10.66786287 | AC21: 3.833592986
A22: 5.884835606e-05 | B22: 5 | C22: =IF(OR(E22<=0,AND(E22>1000000000,E22<>"Freispiel")),"",1/(HYPGEOMDIST(5,6,6,39)*HYPGEOMDIST(0,1,1,33))/E17) -> 16992.82812 | D22: =IF(OR(E22<=0,F19>1),"",IF(E22="Freispiel",G19/(1-(1/C22))/C22,IF(E22>1000000000,"",E22/C22/E18))) -> 0.02942417803 | E22: 500 | F22: =IFERROR(IF(D22<D28,D28/D22,D22/D28),"") -> 2.658928571 | G22: =IFERROR(D22/IF((C22*E18)<1500,1500,C22*E18)^0.25*62.2333,"") -> 0.1603838942 | H22: 5.884835606e-05 | I22: 5 | J22: =IF(OR(L22<=0,AND(L22>1000000000,L22<>"Freispiel")),"",1/(HYPGEOMDIST(5,6,6,39)*HYPGEOMDIST(0,1,1,33))/L17) -> 16992.82812 | K22: =IF(OR(L22<=0,M19>1),"",IF(L22="Freispiel",N19/(1-(1/J22))/J22,IF(L22>1000000000,"",L22/J22/L18))) -> 0.02942417803 | L22: 250 | M22: =IFERROR(IF(K22<K28,K28/K22,K22/K28),"") -> 2.861904762 | N22: =IFERROR(K22/IF((J22*L18)<1500,1500,J22*L18)^0.25*62.2333,"") -> 0.1907296681 | O22: 0.2538458602 | P22: 2 | Q22: =IF(OR(S22<=0,AND(S22>1000000000,S22<>"Freispiel")),"",1/HYPGEOMDIST(P22,4,20,70)/S17) -> 3.939398496 | R22: =IF(OR(S22<=0,T19>1),"",IF(S22="Freispiel",U19/(1-(1/Q22))/Q22,IF(S22>1000000000,"",S22/Q22/S18))) -> 0.2538458602 | S22: =1*P17 -> 1 | T22: =IFERROR(IF(R22<R24,R24/R22,R22/R24),"") -> 1.540234702 | U22: =IFERROR(R22/IF((Q22*S18)<1500,1500,Q22*S18)^0.25*62.2333,"") -> 2.538458695 | W22: =CONCATENATE("KENO Typ 09 (x",$P$66,")") -> KENO Typ 09 (x1) | X22: =$S$67/$S$66 -> 1 | Y22: =$U$74 -> 3.664787939 | Z22: =$R$74 -> 0.500453082 | AA22: =IFERROR($O$74/$S$66,"") -> 0.1066700441 | AB22: =$T$74 -> 1.866288735 | AC22: 3.664787939
A23: 0.0001471208902 | B23: 4 + BZ | C23: =IF(OR(E23<=0,AND(E23>1000000000,E23<>"Freispiel")),"",1/(HYPGEOMDIST(4,6,6,39)*HYPGEOMDIST(1,2,1,33))/E17) -> 6797.13125 | D23: =IF(OR(E23<=0,F19>1),"",IF(E23="Freispiel",G19/(1-(1/C23))/C23,IF(E23>1000000000,"",E23/C23/E18))) -> 0.01471208902 | E23: 100 | F23: =IFERROR(IF(D23<D28,D28/D23,D23/D28),"") -> 5.317857143 | G23: =IFERROR(D23/IF((C23*E18)<1500,1500,C23*E18)^0.25*62.2333,"") -> 0.100836035 | H23: 0.0001471208902 | I23: 4 + BZ | J23: =IF(OR(L23<=0,AND(L23>1000000000,L23<>"Freispiel")),"",1/(HYPGEOMDIST(4,6,6,39)*HYPGEOMDIST(1,2,1,33))/L17) -> 6797.13125 | K23: =IF(OR(L23<=0,M19>1),"",IF(L23="Freispiel",N19/(1-(1/J23))/J23,IF(L23>1000000000,"",L23/J23/L18))) -> 0.01471208902 | L23: 50 | M23: =IFERROR(IF(K23<K28,K28/K23,K23/K28),"") -> 5.723809524 | N23: =IFERROR(K23/IF((J23*L18)<1500,1500,J23*L18)^0.25*62.2333,"") -> 0.1199149303 | O23: =IF(SUM(O20:O22)=0,"",SUM(O20:O22)) -> 0.3212963316 | P23: Gesamt | Q23: =IFERROR(1/O23,"") -> 3.112391588 | R23: =IF(SUM(R20:R22)=0,"",SUM(R20:R22)) -> 0.4944295694 | S23: =IFERROR(S18*R23,"") -> 0.4944295694 | T23: =IFERROR(AVERAGE(T20:T22),"") -> 1.427832245 | U23: =IF(SUM(U20:U22)=0,"",SUM(U20:U22)) -> 4.944295874 | W23: =$B$198 -> 25 Fette Jahre ¹³ | X23: =$E$199/$E$198 -> 2 | Y23: =$G$209 -> 3.639192207 | Z23: =$D$209 -> 0.4800099506 | AA23: =IFERROR($A$209/$E$198,"") -> 0.19 | AB23: =$F$209 -> 2.218786926 | AC23: 3.639192207
A24: 0.002280373797 | B24: 4 | C24: =IF(OR(E24<=0,AND(E24>1000000000,E24<>"Freispiel")),"",1/(HYPGEOMDIST(4,6,6,39)*HYPGEOMDIST(0,2,1,33))/E17) -> 438.5245968 | D24: =IF(OR(E24<=0,F19>1),"",IF(E24="Freispiel",G19/(1-(1/C24))/C24,IF(E24>1000000000,"",E24/C24/E18))) -> 0.05700934494 | E24: 25 | F24: =IFERROR(IF(D24<D28,D28/D24,D24/D28),"") -> 1.37235023 | G24: =IFERROR(D24/IF((C24*E18)<1500,1500,C24*E18)^0.25*62.2333,"") -> 0.5700934702 | H24: 0.002280373797 | I24: 4 | J24: =IF(OR(L24<=0,AND(L24>1000000000,L24<>"Freispiel")),"",1/(HYPGEOMDIST(4,6,6,39)*HYPGEOMDIST(0,2,1,33))/L17) -> 438.5245968 | K24: =IF(OR(L24<=0,M19>1),"",IF(L24="Freispiel",N19/(1-(1/J24))/J24,IF(L24>1000000000,"",L24/J24/L18))) -> 0.06841121392 | L24: 15 | M24: =IFERROR(IF(K24<K28,K28/K24,K24/K28),"") -> 1.230926779 | N24: =IFERROR(K24/IF((J24*L18)<1500,1500,J24*L18)^0.25*62.2333,"") -> 0.6841121642 | R24: =AVERAGE(R20:R22) -> 0.1648098565 | W24: =CONCATENATE("WorldMillions (1/",$B$48,")") -> WorldMillions (1/1) | X24: =$E$49/$E$48 -> 10 | Y24: =$G$61 -> 3.56566212 | Z24: =$D$61 -> 0.4670714286 | AA24: =IFERROR($A$61/$E$48,"") -> 0.37 | AB24: =$F$61 -> 3.613678677 | AC24: 3.56566212
A25: 0.003040498397 | B25: 3 + BZ | C25: =IF(OR(E25<=0,AND(E25>1000000000,E25<>"Freispiel")),"",1/(HYPGEOMDIST(3,6,6,39)*HYPGEOMDIST(1,3,1,33))/E17) -> 328.8934476 | D25: =IF(OR(E25<=0,F19>1),"",IF(E25="Freispiel",G19/(1-(1/C25))/C25,IF(E25>1000000000,"",E25/C25/E18))) -> 0.03040498397 | E25: 10 | F25: =IFERROR(IF(D25<D28,D28/D25,D25/D28),"") -> 2.573156682 | G25: =IFERROR(D25/IF((C25*E18)<1500,1500,C25*E18)^0.25*62.2333,"") -> 0.3040498507 | H25: 0.003040498397 | I25: 3 + BZ | J25: =IF(OR(L25<=0,AND(L25>1000000000,L25<>"Freispiel")),"",1/(HYPGEOMDIST(3,6,6,39)*HYPGEOMDIST(1,3,1,33))/L17) -> 328.8934476 | K25: =IF(OR(L25<=0,M19>1),"",IF(L25="Freispiel",N19/(1-(1/J25))/J25,IF(L25>1000000000,"",L25/J25/L18))) -> 0.03040498397 | L25: 5 | M25: =IFERROR(IF(K25<K28,K28/K25,K25/K28),"") -> 2.769585253 | N25: =IFERROR(K25/IF((J25*L18)<1500,1500,J25*L18)^0.25*62.2333,"") -> 0.3040498507 | W25: =$B$116 -> Zusatzlotterie SUPER 6 | X25: =$E$117/$E$116 -> 1.25 | Y25: =$G$125 -> 3.28571185 | Z25: =$D$125 -> 0.4466672 | AA25: =IFERROR($A$125/$E$116,"") -> 0.1 | AB25: =$F$125 -> 1.647657181 | AC25: 3.28571185
A26: 0.03040498397 | B26: 3 | C26: =IF(OR(E26<=0,AND(E26>1000000000,E26<>"Freispiel")),"",1/(HYPGEOMDIST(3,6,6,39)*HYPGEOMDIST(0,3,1,33))/E17) -> 32.88934476 | D26: =IF(OR(E26<=0,F19>1),"",IF(E26="Freispiel",G19/(1-(1/C26))/C26,IF(E26>1000000000,"",E26/C26/E18))) -> 0.0912149519 | E26: 3 | F26: =IFERROR(IF(D26<D28,D28/D26,D26/D28),"") -> 1.165883143 | G26: =IFERROR(D26/IF((C26*E18)<1500,1500,C26*E18)^0.25*62.2333,"") -> 0.9121495522 | H26: 0.03040498397 | I26: 3 | J26: =IF(OR(L26<=0,AND(L26>1000000000,L26<>"Freispiel")),"",1/(HYPGEOMDIST(3,6,6,39)*HYPGEOMDIST(0,3,1,33))/L17) -> 32.88934476 | K26: =IF(OR(L26<=0,M19>1),"",IF(L26="Freispiel",N19/(1-(1/J26))/J26,IF(L26>1000000000,"",L26/J26/L18))) -> 0.1216199359 | L26: 2 | M26: =IFERROR(IF(K26<K28,K28/K26,K26/K28),"") -> 1.444259567 | N26: =IFERROR(K26/IF((J26*L18)<1500,1500,J26*L18)^0.25*62.2333,"") -> 1.216199403 | P26: 1 | S26: 1 | W26: =$I$73 -> LOTTO 6aus49 | X26: =$L$74/$L$73 -> 1.2 | Y26: =$N$85 -> 3.249736482 | Z26: =$K$85 -> 0.5 | AA26: =IFERROR($H$85/$L$73,"") -> 0.0318753479 | AB26: =$M$85 -> 1.900569959 | AC26: 3.249736482
A27: =IF(SUM(A20:A26)=0,"",SUM(A20:A26)) -> 0.03593397092 | B27: Gesamt | C27: =IFERROR(1/A27,"") -> 27.82881976 | D27: =IF(SUM(D20:D26)=0,"",SUM(D20:D26)) -> 0.5476575136 | E27: =IFERROR(E18*D27,"") -> 0.5476575136 | F27: =IFERROR(AVERAGE(F20:F26),"") -> 3.037154225 | G27: =IF(SUM(G20:G26)=0,"",SUM(G20:G26)) -> 2.538470248 | H27: =IF(SUM(H20:H26)=0,"",SUM(H20:H26)) -> 0.03593397092 | I27: Gesamt | J27: =IFERROR(1/H27,"") -> 27.82881976 | K27: =IF(SUM(K20:K26)=0,"",SUM(K20:K26)) -> 0.5894643666 | L27: =IFERROR(L18*K27,"") -> 0.2947321833 | M27: =IFERROR(AVERAGE(M20:M26),"") -> 3.178471509 | N27: =IF(SUM(N20:N26)=0,"",SUM(N20:N26)) -> 3.098856104 | P27: 5 aus 20 aus 70 | S27: =S26*1*P26 -> 1 | W27: =CONCATENATE("Dreikönigslotterie (1/",$I$161,") ¹⁰") -> Dreikönigslotterie (1/10) ¹⁰ | X27: =$L$162/$L$161 -> 34.99 | Y27: =$N$173 -> 3.24463323 | Z27: =$K$173 -> 0.4001143184 | AA27: =IFERROR($H$173/$L$161,"") -> 0.3792 | AB27: =$M$173 -> 25.68075094 | AC27: 3.24463323
D28: =AVERAGE(D20:D26) -> 0.07823678766 | K28: =AVERAGE(K20:K26) -> 0.08420919522 | P28: Richtige | Q28: =IF(S26=1,"Chancen 1:","Ø Gewinne 1:") -> Chancen 1: | R28: Ø AQ | S28: (Ø) Gewinn | T28: =IFERROR(COUNTIF(S29:S31,"Freispiel"),"") -> 0 | U28: =IFERROR(SUMIF(S29:S31,"<>Freispiel",R29:R31),"") -> 0.4989790146 | W28: =$I$17 -> Zusatzlotterie Daily Million Plus | X28: =$L$18/$L$17 -> 0.5 | Y28: =$N$27 -> 3.098856104 | Z28: =$K$27 -> 0.5894643666 | AA28: =IFERROR($H$27/$L$17,"") -> 0.03593397092 | AB28: =$M$27 -> 3.178471509 | AC28: 3.098856104
O29: =IF(Q29="",0,1/Q29) -> 0.001281003228 | P29: 5 | Q29: =IF(OR(S29<=0,AND(S29>1000000000,S29<>"Freispiel")),"",1/HYPGEOMDIST(P29,5,20,70)/S26) -> 780.6381579 | R29: =IF(OR(S29<=0,T28>1),"",IF(S29="Freispiel",U28/(1-(1/Q29))/Q29,IF(S29>1000000000,"",S29/Q29/S27))) -> 0.1281003228 | S29: =100*P26 -> 100 | T29: =IFERROR(IF(R29<R33,R33/R29,R29/R33),"") -> 1.298406863 | U29: =IFERROR(R29/IF((Q29*S27)<1500,1500,Q29*S27)^0.25*62.2333,"") -> 1.281003275 | W29: =CONCATENATE("GlücksSpirale (1/",$I$176,") ¹²") -> GlücksSpirale (1/5) ¹² | X29: =$L$177/$L$176 -> 1 | Y29: =$N$186 -> 3.011771724 | Z29: =$K$186 -> 0.3897216973 | AA29: =IFERROR($H$186/$L$176,"") -> 0.1099907801 | AB29: =$M$186 -> 2.248019664 | AC29: 3.011771724
B30: EuroJackpot | D30: 1 | E30: 1 | F30: vs. | I30: EuroMillions | K30: 1 | L30: 1 | O30: 0.02001567543 | P30: 4 | Q30: =IF(OR(S30<=0,AND(S30>1000000000,S30<>"Freispiel")),"",1/HYPGEOMDIST(P30,5,20,70)/S26) -> 49.96084211 | R30: =IF(OR(S30<=0,T28>1),"",IF(S30="Freispiel",U28/(1-(1/Q30))/Q30,IF(S30>1000000000,"",S30/Q30/S27))) -> 0.140109728 | S30: =7*P26 -> 7 | T30: =IFERROR(IF(R30<R33,R33/R30,R30/R33),"") -> 1.187114846 | U30: =IFERROR(R30/IF((Q30*S27)<1500,1500,Q30*S27)^0.25*62.2333,"") -> 1.401097332 | W30: =$I$2 -> SwissLotto | X30: =$L$3/$L$2 -> 2.5 | Y30: =$N$14 -> 2.978743625 | Z30: =$K$14 -> 0.6064777328 | AA30: =IFERROR($H$14/$L$2,"") -> 0.1059877395 | AB30: =$M$14 -> 2.420609872 | AC30: 2.978743625
B31: 5 aus 50 + 2 aus 12 | D31: =IF(D30=1,"Anteil","Anteile") -> Anteil | E31: =E30*2/D30 -> 2 | I31: 5 aus 50 + 2 aus 12 | K31: =IF(K30=1,"Anteil","Anteile") -> Anteil | L31: =L30*3/K30 -> 3 | O31: 0.1153844819 | P31: 3 | Q31: =IF(OR(S31<=0,AND(S31>1000000000,S31<>"Freispiel")),"",1/HYPGEOMDIST(P31,5,20,70)/S26) -> 8.666676692 | R31: =IF(OR(S31<=0,T28>1),"",IF(S31="Freispiel",U28/(1-(1/Q31))/Q31,IF(S31>1000000000,"",S31/Q31/S27))) -> 0.2307689638 | S31: =2*P26 -> 2 | T31: =IFERROR(IF(R31<R33,R33/R31,R31/R33),"") -> 1.387446909 | U31: =IFERROR(R31/IF((Q31*S27)<1500,1500,Q31*S27)^0.25*62.2333,"") -> 2.307689723 | W31: =$B$144 -> Deutsche Weihnachtslotterie ⁵ | X31: =$E$145/$E$144 -> 20 | Y31: =$G$158 -> 2.971455063 | Z31: =$D$158 -> 0.542205 | AA31: =IFERROR($A$158/$E$144,"") -> 0.31179 | AB31: =$F$158 -> 4.89210537 | AC31: 2.971455063
B32: Richtige | C32: =IF(E30=1,"Chancen 1:","Ø Gewinne 1:") -> Chancen 1: | D32: AQ | E32: Ø Gewinn | F32: =IFERROR(COUNTIF(E33:E44,"Freispiel"),"") -> 0 | G32: =IFERROR(SUMIF(E33:E44,"<>Freispiel",D33:D44),"") -> 0.5 | I32: Richtige | J32: =IF(L30=1,"Chancen 1:","Ø Gewinne 1:") -> Chancen 1: | K32: AQ | L32: Ø Gewinn | M32: =IFERROR(COUNTIF(L33:L45,"Freispiel"),"") -> 0 | N32: =IFERROR(SUMIF(L33:L45,"<>Freispiel",K33:K45),"") -> 0.3666666667 | O32: =IF(SUM(O29:O31)=0,"",SUM(O29:O31)) -> 0.1366811606 | P32: Gesamt | Q32: =IFERROR(1/O32,"") -> 7.316297255 | R32: =IF(SUM(R29:R31)=0,"",SUM(R29:R31)) -> 0.4989790146 | S32: =IFERROR(S27*R32,"") -> 0.4989790146 | T32: =IFERROR(AVERAGE(T29:T31),"") -> 1.290989539 | U32: =IF(SUM(U29:U31)=0,"",SUM(U29:U31)) -> 4.989790329 | W32: =$I$49 -> Zusatzlotterie Spiel 77 | X32: =$L$50/$L$49 -> 2.5 | Y32: =$N$59 -> 2.965619499 | Z32: =$K$59 -> 0.42398892 | AA32: =IFERROR($H$59/$L$49,"") -> 0.1 | AB32: =$M$59 -> 1.976160001 | AC32: 2.965619499
A33: =IF(C33="",0,1/C33) -> 7.151123842e-09 | B33: 5 + 2 | C33: =IF(OR(E33<=0,AND(E33>1000000000,E33<>"Freispiel")),"",1/(HYPGEOMDIST(5,5,5,50)*HYPGEOMDIST(2,2,2,12))/E30) -> 139838160 | D33: =IF(OR(E33<=0,F32>1),"",IF(E33="Freispiel",G32/(1-(1/C33))/C33,IF(E33>1000000000,"",E33/C33/E31))) -> 0.225 | E33: =62927172/D30 -> 62927172 | F33: =IFERROR(IF(D33<D46,D46/D33,D33/D46),"") -> 5.4 | G33: =IFERROR(D33/IF((C33*E31)<1500,1500,C33*E31)^0.25*62.2333,"") -> 0.108278299 | H33: =IF(J33="",0,1/J33) -> 7.151123842e-09 | I33: 5 + 2 | J33: =IF(OR(L33<=0,AND(L33>1000000000,L33<>"Freispiel")),"",1/(HYPGEOMDIST(5,5,5,50)*HYPGEOMDIST(2,2,2,12))/L30) -> 139838160 | K33: =IF(OR(L33<=0,M32>1),"",IF(L33="Freispiel",N32/(1-(1/J33))/J33,IF(L33>1000000000,"",L33/J33/L31))) -> 0.22 | L33: =92293185.6/K30 -> 92293185.6 | M33: =IFERROR(IF(K33<K47,K47/K33,K33/K47),"") -> 7.8 | N33: =IFERROR(K33/IF((J33*L31)<1500,1500,J33*L31)^0.25*62.2333,"") -> 0.09566625486 | R33: =AVERAGE(R29:R31) -> 0.1663263382 | W33: =$P$193 -> EuroDreams ¹³ | X33: =$S$194/$S$193 -> 2.5 | Y33: =$U$202 -> 2.936830208 | Z33: =$R$202 -> 0.4153223065 | AA33: =IFERROR($O$202/$S$193,"") -> 0.2146582673 | AB33: =$T$202 -> 7.649045023 | AC33: 2.936830208
A34: 1.430224768e-07 | B34: 5 + 1 | C34: =IF(OR(E34<=0,AND(E34>1000000000,E34<>"Freispiel")),"",1/(HYPGEOMDIST(5,5,5,50)*HYPGEOMDIST(1,2,2,12))/E30) -> 6991908 | D34: =IF(OR(E34<=0,F32>1),"",IF(E34="Freispiel",G32/(1-(1/C34))/C34,IF(E34>1000000000,"",E34/C34/E31))) -> 0.043 | E34: =601304.088/D30 -> 601304.088 | F34: =IFERROR(IF(D34<D46,D46/D34,D34/D46),"") -> 1.032 | G34: =IFERROR(D34/IF((C34*E31)<1500,1500,C34*E31)^0.25*62.2333,"") -> 0.04376076052 | H34: 1.430224768e-07 | I34: 5 + 1 | J34: =IF(OR(L34<=0,AND(L34>1000000000,L34<>"Freispiel")),"",1/(HYPGEOMDIST(5,5,5,50)*HYPGEOMDIST(1,2,2,12))/L30) -> 6991908 | K34: =IF(OR(L34<=0,M32>1),"",IF(L34="Freispiel",N32/(1-(1/J34))/J34,IF(L34>1000000000,"",L34/J34/L31))) -> 0.00957 | L34: =200737.67868/K30 -> 200737.6787 | M34: =IFERROR(IF(K34<K47,K47/K34,K34/K47),"") -> 2.947244327 | N34: =IFERROR(K34/IF((J34*L31)<1500,1500,J34*L31)^0.25*62.2333,"") -> 0.008800463143 | W34: =$P$205 -> SuperLotto ¹¹ | X34: =$S$206/$S$205 -> 1.5 | Y34: =$U$215 -> 2.886245099 | Z34: =$R$215 -> 0.3588689988 | AA34: =IFERROR($O$215/$S$205,"") -> 0.347137821 | AB34: =$T$215 -> 7.839010573 | AC34: 2.886245099
A35: 3.218005729e-07 | B35: 5 | C35: =IF(OR(E35<=0,AND(E35>1000000000,E35<>"Freispiel")),"",1/(HYPGEOMDIST(5,5,5,50)*HYPGEOMDIST(0,2,2,12))/E30) -> 3107514.667 | D35: =IF(OR(E35<=0,F32>1),"",IF(E35="Freispiel",G32/(1-(1/C35))/C35,IF(E35>1000000000,"",E35/C35/E31))) -> 0.02425 | E35: =150714.461333333/D30 -> 150714.4613 | F35: =IFERROR(IF(D35<D46,D46/D35,D35/D46),"") -> 1.718213058 | G35: =IFERROR(D35/IF((C35*E31)<1500,1500,C35*E31)^0.25*62.2333,"") -> 0.03022551977 | H35: 3.218005729e-07 | I35: 5 | J35: =IF(OR(L35<=0,AND(L35>1000000000,L35<>"Freispiel")),"",1/(HYPGEOMDIST(5,5,5,50)*HYPGEOMDIST(0,2,2,12))/L30) -> 3107514.667 | K35: =IF(OR(L35<=0,M32>1),"",IF(L35="Freispiel",N32/(1-(1/J35))/J35,IF(L35>1000000000,"",L35/J35/L31))) -> 0.002236666667 | L35: =20851.4234133333/K30 -> 20851.42341 | M35: =IFERROR(IF(K35<K47,K47/K35,K35/K47),"") -> 12.61034048 | N35: =IFERROR(K35/IF((J35*L31)<1500,1500,J35*L31)^0.25*62.2333,"") -> 0.002519071449 | P35: 1 | S35: 1 | W35: =$I$128 -> Vive la France ⁹ | X35: =$L$129/$L$128 -> 2.2 | Y35: =$N$140 -> 2.854188497 | Z35: =$K$140 -> 0.4216348745 | AA35: =IFERROR($H$140/$L$128,"") -> 0.1314824604 | AB35: =$M$140 -> 2.962723536 | AC35: 2.854188497
A36: 1.609002864e-06 | B36: 4 + 2 | C36: =IF(OR(E36<=0,AND(E36>1000000000,E36<>"Freispiel")),"",1/(HYPGEOMDIST(4,5,5,50)*HYPGEOMDIST(2,2,2,12))/E30) -> 621502.9333 | D36: =IF(OR(E36<=0,F32>1),"",IF(E36="Freispiel",G32/(1-(1/C36))/C36,IF(E36>1000000000,"",E36/C36/E31))) -> 0.004 | E36: =4972.02346666667/D30 -> 4972.023467 | F36: =IFERROR(IF(D36<D46,D46/D36,D36/D46),"") -> 10.41666667 | G36: =IFERROR(D36/IF((C36*E31)<1500,1500,C36*E31)^0.25*62.2333,"") -> 0.007455289756 | H36: 1.609002864e-06 | I36: 4 + 2 | J36: =IF(OR(L36<=0,AND(L36>1000000000,L36<>"Freispiel")),"",1/(HYPGEOMDIST(4,5,5,50)*HYPGEOMDIST(2,2,2,12))/L30) -> 621502.9333 | K36: =IF(OR(L36<=0,M32>1),"",IF(L36="Freispiel",N32/(1-(1/J36))/J36,IF(L36>1000000000,"",L36/J36/L31))) -> 0.0006966666667 | L36: =1298.94113066667/K30 -> 1298.941131 | M36: =IFERROR(IF(K36<K47,K47/K36,K36/K47),"") -> 40.48582996 | N36: =IFERROR(K36/IF((J36*L31)<1500,1500,J36*L31)^0.25*62.2333,"") -> 0.001173293738 | P36: 6 aus 20 aus 70 | S36: =S35*1*P35 -> 1 | W36: =$P$107 -> BlitzCash ⁷ | X36: =$S$108/$S$107 -> 2 | Y36: =$U$113 -> 2.849188842 | Z36: =$R$113 -> 0.4526729638 | AA36: =IFERROR($O$113/$S$107,"") -> 0.008047793029 | AB36: =$T$113 -> 1.7207342 | AC36: 2.849188842
A37: 3.218005729e-05 | B37: 4 + 1 | C37: =IF(OR(E37<=0,AND(E37>1000000000,E37<>"Freispiel")),"",1/(HYPGEOMDIST(4,5,5,50)*HYPGEOMDIST(1,2,2,12))/E30) -> 31075.14667 | D37: =IF(OR(E37<=0,F32>1),"",IF(E37="Freispiel",G32/(1-(1/C37))/C37,IF(E37>1000000000,"",E37/C37/E31))) -> 0.005 | E37: =310.751466666667/D30 -> 310.7514667 | F37: =IFERROR(IF(D37<D46,D46/D37,D37/D46),"") -> 8.333333333 | G37: =IFERROR(D37/IF((C37*E31)<1500,1500,C37*E31)^0.25*62.2333,"") -> 0.01970752287 | H37: 3.218005729e-05 | I37: 4 + 1 | J37: =IF(OR(L37<=0,AND(L37>1000000000,L37<>"Freispiel")),"",1/(HYPGEOMDIST(4,5,5,50)*HYPGEOMDIST(1,2,2,12))/L30) -> 31075.14667 | K37: =IF(OR(L37<=0,M32>1),"",IF(L37="Freispiel",N32/(1-(1/J37))/J37,IF(L37>1000000000,"",L37/J37/L31))) -> 0.001283333333 | L37: =119.639314666667/K30 -> 119.6393147 | M37: =IFERROR(IF(K37<K47,K47/K37,K37/K47),"") -> 21.97802198 | N37: =IFERROR(K37/IF((J37*L31)<1500,1500,J37*L31)^0.25*62.2333,"") -> 0.004570657669 | P37: Richtige | Q37: =IF(S35=1,"Chancen 1:","Ø Gewinne 1:") -> Chancen 1: | R37: Ø AQ | S37: (Ø) Gewinn | T37: =IFERROR(COUNTIF(S38:S41,"Freispiel"),"") -> 0 | U37: =IFERROR(SUMIF(S38:S41,"<>Freispiel",R38:R41),"") -> 0.4974393473 | W37: =$B$2 -> Cash4Life ⁴ | X37: =$E$3/$E$2 -> 2 | Y37: =$G$14 -> 2.809218468 | Z37: =$D$14 -> 0.4625722236 | AA37: =IFERROR($A$14/$E$2,"") -> 0.1288644518 | AB37: =$F$14 -> 2.668905896 | AC37: 2.809218468
A38: 7.079612604e-05 | B38: 3 + 2 | C38: =IF(OR(E38<=0,AND(E38>1000000000,E38<>"Freispiel")),"",1/(HYPGEOMDIST(3,5,5,50)*HYPGEOMDIST(2,2,2,12))/E30) -> 14125.06667 | D38: =IF(OR(E38<=0,F32>1),"",IF(E38="Freispiel",G32/(1-(1/C38))/C38,IF(E38>1000000000,"",E38/C38/E31))) -> 0.0055 | E38: =155.375733333333/D30 -> 155.3757333 | F38: =IFERROR(IF(D38<D46,D46/D38,D38/D46),"") -> 7.575757576 | G38: =IFERROR(D38/IF((C38*E31)<1500,1500,C38*E31)^0.25*62.2333,"") -> 0.02640160898 | H38: 7.079612604e-05 | I38: 3 + 2 | J38: =IF(OR(L38<=0,AND(L38>1000000000,L38<>"Freispiel")),"",1/(HYPGEOMDIST(3,5,5,50)*HYPGEOMDIST(2,2,2,12))/L30) -> 14125.06667 | K38: =IF(OR(L38<=0,M32>1),"",IF(L38="Freispiel",N32/(1-(1/J38))/J38,IF(L38>1000000000,"",L38/J38/L31))) -> 0.001356666667 | L38: =57.4890213333333/K30 -> 57.48902133 | M38: =IFERROR(IF(K38<K47,K47/K38,K38/K47),"") -> 20.79002079 | N38: =IFERROR(K38/IF((J38*L31)<1500,1500,J38*L31)^0.25*62.2333,"") -> 0.00588461487 | O38: =IF(Q38="",0,1/Q38) -> 0.0002956161295 | P38: 6 | Q38: =IF(OR(S38<=0,AND(S38>1000000000,S38<>"Freispiel")),"",1/HYPGEOMDIST(P38,6,20,70)/S35) -> 3382.765351 | R38: =IF(OR(S38<=0,T37>1),"",IF(S38="Freispiel",U37/(1-(1/Q38))/Q38,IF(S38>1000000000,"",S38/Q38/S36))) -> 0.1478080647 | S38: =500*P35 -> 500 | T38: =IFERROR(IF(R38<R43,R43/R38,R38/R43),"") -> 1.188551453 | U38: =IFERROR(R38/IF((Q38*S36)<1500,1500,Q38*S36)^0.25*62.2333,"") -> 1.206154643 | W38: =$I$116 -> Zusatzlotterie JOKER (Österreich) | X38: =$L$117/$L$116 -> 1.5 | Y38: =$N$125 -> 2.706010526 | Z38: =$K$125 -> 0.497408 | AA38: =IFERROR($H$125/$L$116,"") -> 0.1 | AB38: =$M$125 -> 1.65097631 | AC38: 2.706010526
A39: 7.24051289e-05 | B39: 4 | C39: =IF(OR(E39<=0,AND(E39>1000000000,E39<>"Freispiel")),"",1/(HYPGEOMDIST(4,5,5,50)*HYPGEOMDIST(0,2,2,12))/E30) -> 13811.1763 | D39: =IF(OR(E39<=0,F32>1),"",IF(E39="Freispiel",G32/(1-(1/C39))/C39,IF(E39>1000000000,"",E39/C39/E31))) -> 0.004 | E39: =110.48941037037/D30 -> 110.4894104 | F39: =IFERROR(IF(D39<D46,D46/D39,D39/D46),"") -> 10.41666667 | G39: =IFERROR(D39/IF((C39*E31)<1500,1500,C39*E31)^0.25*62.2333,"") -> 0.01930935005 | H39: 7.24051289e-05 | I39: 4 | J39: =IF(OR(L39<=0,AND(L39>1000000000,L39<>"Freispiel")),"",1/(HYPGEOMDIST(4,5,5,50)*HYPGEOMDIST(0,2,2,12))/L30) -> 13811.1763 | K39: =IF(OR(L39<=0,M32>1),"",IF(L39="Freispiel",N32/(1-(1/J39))/J39,IF(L39>1000000000,"",L39/J39/L31))) -> 0.0009533333333 | L39: =39.4999642074074/K30 -> 39.49996421 | M39: =IFERROR(IF(K39<K47,K47/K39,K39/K47),"") -> 29.58579882 | N39: =IFERROR(K39/IF((J39*L31)<1500,1500,J39*L31)^0.25*62.2333,"") -> 0.004158432229 | O39: 0.00591232259 | P39: 5 | Q39: =IF(OR(S39<=0,AND(S39>1000000000,S39<>"Freispiel")),"",1/HYPGEOMDIST(P39,6,20,70)/S35) -> 169.1382675 | R39: =IF(OR(S39<=0,T37>1),"",IF(S39="Freispiel",U37/(1-(1/Q39))/Q39,IF(S39>1000000000,"",S39/Q39/S36))) -> 0.08868483885 | S39: =15*P35 -> 15 | T39: =IFERROR(IF(R39<R43,R43/R39,R39/R43),"") -> 1.402267157 | U39: =IFERROR(R39/IF((Q39*S36)<1500,1500,Q39*S36)^0.25*62.2333,"") -> 0.8868484208 | W39: =CONCATENATE("Sommerlotterie (1/",$P$161,") ¹⁰") -> Sommerlotterie (1/10) ¹⁰ | X39: =$S$162/$S$161 -> 34.99 | Y39: =$U$173 -> 2.677445488 | Z39: =$R$173 -> 0.3435267219 | AA39: =IFERROR($O$173/$S$161,"") -> 0.363 | AB39: =$T$173 -> 29.98534189 | AC39: 2.677445488
A40: 0.001014744473 | B40: 2 + 2 | C40: =IF(OR(E40<=0,AND(E40>1000000000,E40<>"Freispiel")),"",1/(HYPGEOMDIST(2,5,5,50)*HYPGEOMDIST(2,2,2,12))/E30) -> 985.4697674 | D40: =IF(OR(E40<=0,F32>1),"",IF(E40="Freispiel",G32/(1-(1/C40))/C40,IF(E40>1000000000,"",E40/C40/E31))) -> 0.01275 | E40: =25.1294790697674/D30 -> 25.12947907 | F40: =IFERROR(IF(D40<D46,D46/D40,D40/D46),"") -> 3.267973856 | G40: =IFERROR(D40/IF((C40*E31)<1500,1500,C40*E31)^0.25*62.2333,"") -> 0.1190870919 | H40: 0.001014744473 | I40: 2 + 2 | J40: =IF(OR(L40<=0,AND(L40>1000000000,L40<>"Freispiel")),"",1/(HYPGEOMDIST(2,5,5,50)*HYPGEOMDIST(2,2,2,12))/L30) -> 985.4697674 | K40: =IF(OR(L40<=0,M32>1),"",IF(L40="Freispiel",N32/(1-(1/J40))/J40,IF(L40>1000000000,"",L40/J40/L31))) -> 0.004766666667 | L40: =14.0922176744186/K30 -> 14.09221767 | M40: =IFERROR(IF(K40<K47,K47/K40,K40/K47),"") -> 5.917159763 | N40: =IFERROR(K40/IF((J40*L31)<1500,1500,J40*L31)^0.25*62.2333,"") -> 0.0402296703 | O40: 0.04526621983 | P40: 4 | Q40: =IF(OR(S40<=0,AND(S40>1000000000,S40<>"Freispiel")),"",1/HYPGEOMDIST(P40,6,20,70)/S35) -> 22.09152882 | R40: =IF(OR(S40<=0,T37>1),"",IF(S40="Freispiel",U37/(1-(1/Q40))/Q40,IF(S40>1000000000,"",S40/Q40/S36))) -> 0.09053243966 | S40: =2*P35 -> 2 | T40: =IFERROR(IF(R40<R43,R43/R40,R40/R43),"") -> 1.37364946 | U40: =IFERROR(R40/IF((Q40*S36)<1500,1500,Q40*S36)^0.25*62.2333,"") -> 0.9053244296 | W40: =CONCATENATE("Septemberlotterie (1/",$P$176,") ¹⁰") -> Septemberlotterie (1/10) ¹⁰ | X40: =$S$177/$S$176 -> 29.99 | Y40: =$U$190 -> 2.652739921 | Z40: =$R$190 -> 0.3501167056 | AA40: =IFERROR($O$190/$S$176,"") -> 0.37555 | AB40: =$T$190 -> 15.04421821 | AC40: 2.652739921
A41: 0.001415922521 | B41: 3 + 1 | C41: =IF(OR(E41<=0,AND(E41>1000000000,E41<>"Freispiel")),"",1/(HYPGEOMDIST(3,5,5,50)*HYPGEOMDIST(1,2,2,12))/E30) -> 706.2533333 | D41: =IF(OR(E41<=0,F32>1),"",IF(E41="Freispiel",G32/(1-(1/C41))/C41,IF(E41>1000000000,"",E41/C41/E31))) -> 0.01425 | E41: =20.12822/D30 -> 20.12822 | F41: =IFERROR(IF(D41<D46,D46/D41,D41/D46),"") -> 2.923976608 | G41: =IFERROR(D41/IF((C41*E31)<1500,1500,C41*E31)^0.25*62.2333,"") -> 0.1425000052 | H41: 0.001415922521 | I41: 3 + 1 | J41: =IF(OR(L41<=0,AND(L41>1000000000,L41<>"Freispiel")),"",1/(HYPGEOMDIST(3,5,5,50)*HYPGEOMDIST(1,2,2,12))/L30) -> 706.2533333 | K41: =IF(OR(L41<=0,M32>1),"",IF(L41="Freispiel",N32/(1-(1/J41))/J41,IF(L41>1000000000,"",L41/J41/L31))) -> 0.005316666667 | L41: =11.2647406666667/K30 -> 11.26474067 | M41: =IFERROR(IF(K41<K47,K47/K41,K41/K47),"") -> 5.305039788 | N41: =IFERROR(K41/IF((J41*L31)<1500,1500,J41*L31)^0.25*62.2333,"") -> 0.0487687722 | O41: 0.1704140041 | P41: 3 | Q41: =IF(OR(S41<=0,AND(S41>1000000000,S41<>"Freispiel")),"",1/HYPGEOMDIST(P41,6,20,70)/S35) -> 5.868062343 | R41: =IF(OR(S41<=0,T37>1),"",IF(S41="Freispiel",U37/(1-(1/Q41))/Q41,IF(S41>1000000000,"",S41/Q41/S36))) -> 0.1704140041 | S41: =1*P35 -> 1 | T41: =IFERROR(IF(R41<R43,R43/R41,R41/R43),"") -> 1.37032991 | U41: =IFERROR(R41/IF((Q41*S36)<1500,1500,Q41*S36)^0.25*62.2333,"") -> 1.704140103 | W41: =$B$74 -> LOTTO 6aus45 ⁶ | X41: =$E$75/$E$74 -> 1.3 | Y41: =$G$85 -> 2.633624671 | Z41: =$D$85 -> 0.4638247429 | AA41: =IFERROR($A$85/$E$74,"") -> 0.0854594073 | AB41: =$F$85 -> 2.544234345 | AC41: 2.633624671
A42: 0.003185825672 | B42: 3 | C42: =IF(OR(E42<=0,AND(E42>1000000000,E42<>"Freispiel")),"",1/(HYPGEOMDIST(3,5,5,50)*HYPGEOMDIST(0,2,2,12))/E30) -> 313.8903704 | D42: =IF(OR(E42<=0,F32>1),"",IF(E42="Freispiel",G32/(1-(1/C42))/C42,IF(E42>1000000000,"",E42/C42/E31))) -> 0.027 | E42: =16.95008/D30 -> 16.95008 | F42: =IFERROR(IF(D42<D46,D46/D42,D42/D46),"") -> 1.543209877 | G42: =IFERROR(D42/IF((C42*E31)<1500,1500,C42*E31)^0.25*62.2333,"") -> 0.2700000099 | H42: 0.003185825672 | I42: 3 | J42: =IF(OR(L42<=0,AND(L42>1000000000,L42<>"Freispiel")),"",1/(HYPGEOMDIST(3,5,5,50)*HYPGEOMDIST(0,2,2,12))/L30) -> 313.8903704 | K42: =IF(OR(L42<=0,M32>1),"",IF(L42="Freispiel",N32/(1-(1/J42))/J42,IF(L42>1000000000,"",L42/J42/L31))) -> 0.0099 | L42: =9.322544/K30 -> 9.322544 | M42: =IFERROR(IF(K42<K47,K47/K42,K42/K47),"") -> 2.849002849 | N42: =IFERROR(K42/IF((J42*L31)<1500,1500,J42*L31)^0.25*62.2333,"") -> 0.09900000361 | O42: =IF(SUM(O38:O41)=0,"",SUM(O38:O41)) -> 0.2218881626 | P42: Gesamt | Q42: =IFERROR(1/O42,"") -> 4.506774892 | R42: =IF(SUM(R38:R41)=0,"",SUM(R38:R41)) -> 0.4974393473 | S42: =IFERROR(S36*R42,"") -> 0.4974393473 | T42: =IFERROR(AVERAGE(T38:T41),"") -> 1.333699495 | U42: =IF(SUM(U38:U41)=0,"",SUM(U38:U41)) -> 4.702467596 | W42: =$P$128 -> SonntagsLotto | X42: =$S$129/$S$128 -> 1.5 | Y42: =$U$140 -> 2.591299332 | Z42: =$R$140 -> 0.5102965366 | AA42: =IFERROR($O$140/$S$128,"") -> 0.1223504115 | AB42: =$T$140 -> 3.540290634 | AC42: 2.591299332
A43: 0.005327408484 | B43: 1 + 2 | C43: =IF(OR(E43<=0,AND(E43>1000000000,E43<>"Freispiel")),"",1/(HYPGEOMDIST(1,5,5,50)*HYPGEOMDIST(2,2,2,12))/E30) -> 187.7085271 | D43: =IF(OR(E43<=0,F32>1),"",IF(E43="Freispiel",G32/(1-(1/C43))/C43,IF(E43>1000000000,"",E43/C43/E31))) -> 0.03375 | E43: =12.6703255813953/D30 -> 12.67032558 | F43: =IFERROR(IF(D43<D46,D46/D43,D43/D46),"") -> 1.234567901 | G43: =IFERROR(D43/IF((C43*E31)<1500,1500,C43*E31)^0.25*62.2333,"") -> 0.3375000123 | H43: 0.005327408484 | I43: 1 + 2 | J43: =IF(OR(L43<=0,AND(L43>1000000000,L43<>"Freispiel")),"",1/(HYPGEOMDIST(1,5,5,50)*HYPGEOMDIST(2,2,2,12))/L30) -> 187.7085271 | K43: =IF(OR(L43<=0,M32>1),"",IF(L43="Freispiel",N32/(1-(1/J43))/J43,IF(L43>1000000000,"",L43/J43/L31))) -> 0.01199 | L43: =6.75187572093023/K30 -> 6.751875721 | M43: =IFERROR(IF(K43<K47,K47/K43,K43/K47),"") -> 2.352387673 | N43: =IFERROR(K43/IF((J43*L31)<1500,1500,J43*L31)^0.25*62.2333,"") -> 0.1199000044 | R43: =AVERAGE(R38:R41) -> 0.1243598368 | W43: =$B$17 -> Daily Million | X43: =$E$18/$E$17 -> 1 | Y43: =$G$27 -> 2.538470248 | Z43: =$D$27 -> 0.5476575136 | AA43: =IFERROR($A$27/$E$17,"") -> 0.03593397092 | AB43: =$F$27 -> 3.037154225 | AC43: 2.538470248
A44: 0.02029488946 | B44: 2 + 1 | C44: =IF(OR(E44<=0,AND(E44>1000000000,E44<>"Freispiel")),"",1/(HYPGEOMDIST(2,5,5,50)*HYPGEOMDIST(1,2,2,12))/E30) -> 49.27348837 | D44: =IF(OR(E44<=0,F32>1),"",IF(E44="Freispiel",G32/(1-(1/C44))/C44,IF(E44>1000000000,"",E44/C44/E31))) -> 0.1015 | E44: =10.0025181395349/D30 -> 10.00251814 | F44: =IFERROR(IF(D44<D46,D46/D44,D44/D46),"") -> 2.436 | G44: =IFERROR(D44/IF((C44*E31)<1500,1500,C44*E31)^0.25*62.2333,"") -> 1.015000037 | H44: 0.02029488946 | I44: 2 + 1 | J44: =IF(OR(L44<=0,AND(L44>1000000000,L44<>"Freispiel")),"",1/(HYPGEOMDIST(2,5,5,50)*HYPGEOMDIST(1,2,2,12))/L30) -> 49.27348837 | K44: =IF(OR(L44<=0,M32>1),"",IF(L44="Freispiel",N32/(1-(1/J44))/J44,IF(L44>1000000000,"",L44/J44/L31))) -> 0.03776666667 | L44: =5.58268623255814/K30 -> 5.582686233 | M44: =IFERROR(IF(K44<K47,K47/K44,K44/K47),"") -> 1.339 | N44: =IFERROR(K44/IF((J44*L31)<1500,1500,J44*L31)^0.25*62.2333,"") -> 0.3776666804 | W44: =$P$116 -> Zusatzlotterie JOKER (Schweiz) | X44: =$S$117/$S$116 -> 2 | Y44: =$U$125 -> 2.44721661 | Z44: =$R$125 -> 0.47 | AA44: =IFERROR($O$125/$S$116,"") -> 0.1 | AB44: =$T$125 -> 1.777515104 | AC44: 2.44721661
A45: =IF(SUM(A33:A44)=0,"",SUM(A33:A44)) -> 0.0314162529 | B45: Gesamt | C45: =IFERROR(1/A45,"") -> 31.83065794 | D45: =IF(SUM(D33:D44)=0,"",SUM(D33:D44)) -> 0.5 | E45: =IFERROR(E31*D45,"") -> 1 | F45: =IFERROR(AVERAGE(F33:F44),"") -> 4.691530462 | G45: =IF(SUM(G33:G44)=0,"",SUM(G33:G44)) -> 2.139225507 | H45: 0.04566350129 | I45: 2 | J45: =IF(OR(L45<=0,AND(L45>1000000000,L45<>"Freispiel")),"",1/(HYPGEOMDIST(2,5,5,50)*HYPGEOMDIST(0,2,2,12))/L30) -> 21.89932817 | K45: =IF(OR(L45<=0,M32>1),"",IF(L45="Freispiel",N32/(1-(1/J45))/J45,IF(L45>1000000000,"",L45/J45/L31))) -> 0.06083 | L45: =3.99640839689923/K30 -> 3.996408397 | M45: =IFERROR(IF(K45<K47,K47/K45,K45/K47),"") -> 2.1567 | N45: =IFERROR(K45/IF((J45*L31)<1500,1500,J45*L31)^0.25*62.2333,"") -> 0.6083000222 | P45: 1 | S45: 1 | W45: =$I$198 -> 25 Fette Jahre (mit Extrarente) ¹³ | X45: =$L$199/$L$198 -> 3 | Y45: =$N$209 -> 2.436740447 | Z45: =$K$209 -> 0.3700132675 | AA45: =IFERROR($H$209/$L$198,"") -> 0.19 | AB45: =$M$209 -> 2.49120267 | AC45: 2.436740447
D46: =AVERAGE(D33:D44) -> 0.04166666667 | H46: =IF(SUM(H33:H45)=0,"",SUM(H33:H45)) -> 0.0770797542 | I46: Gesamt | J46: =IFERROR(1/H46,"") -> 12.97357536 | K46: =IF(SUM(K33:K45)=0,"",SUM(K33:K45)) -> 0.3666666667 | L46: =IFERROR(L31*K46,"") -> 1.1 | M46: =IFERROR(AVERAGE(M33:M45),"") -> 12.00896511 | N46: =IF(SUM(N33:N45)=0,"",SUM(N33:N45)) -> 1.416637941 | P46: 7 aus 20 aus 70 | S46: =S45*1*P45 -> 1 | W46: =CONCATENATE("Weihnachtslotterie (1/",$B$161,") ¹⁰") -> Weihnachtslotterie (1/10) ¹⁰ | X46: =$E$162/$E$161 -> 34.99 | Y46: =$G$174 -> 2.375591056 | Z46: =$D$174 -> 0.4001143184 | AA46: =IFERROR($A$174/$E$161,"") -> 0.15304 | AB46: =$F$174 -> 18.2314619 | AC46: 2.375591056
K47: =AVERAGE(K33:K45) -> 0.02820512821 | P47: Richtige | Q47: =IF(S45=1,"Chancen 1:","Ø Gewinne 1:") -> Chancen 1: | R47: Ø AQ | S47: (Ø) Gewinn | T47: =IFERROR(COUNTIF(S48:S51,"Freispiel"),"") -> 0 | U47: =IFERROR(SUMIF(S48:S51,"<>Freispiel",R48:R51),"") -> 0.4956651071 | W47: =$P$98 -> ExtraCash ⁷ | X47: =$S$99/$S$98 -> 1 | Y47: =$U$104 -> 2.316736486 | Z47: =$R$104 -> 0.3768788876 | AA47: =IFERROR($O$104/$S$98,"") -> 0.008047793029 | AB47: =$T$104 -> 1.625946053 | AC47: 2.316736486
B48: 1 | E48: 1 | F48: vs. | O48: =IF(Q48="",0,1/Q48) -> 6.466602833e-05 | P48: 7 | Q48: =IF(OR(S48<=0,AND(S48>1000000000,S48<>"Freispiel")),"",1/HYPGEOMDIST(P48,7,20,70)/S45) -> 15464.07018 | R48: =IF(OR(S48<=0,T47>1),"",IF(S48="Freispiel",U47/(1-(1/Q48))/Q48,IF(S48>1000000000,"",S48/Q48/S46))) -> 0.06466602833 | S48: =1000*P45 -> 1000 | T48: =IFERROR(IF(R48<R53,R53/R48,R48/R53),"") -> 1.91625 | U48: =IFERROR(R48/IF((Q48*S46)<1500,1500,Q48*S46)^0.25*62.2333,"") -> 0.360884364 | W48: =$B$30 -> EuroJackpot | X48: =$E$31/$E$30 -> 2 | Y48: =$G$45 -> 2.139225507 | Z48: =$D$45 -> 0.5 | AA48: =IFERROR($A$45/$E$30,"") -> 0.0314162529 | AB48: =$F$45 -> 4.691530462 | AC48: 2.139225507
B49: 8 x 1 aus 10 | E49: =E48*10/B48 -> 10 | I49: Zusatzlotterie Spiel 77 | L49: 1 | O49: 0.001616650708 | P49: 6 | Q49: =IF(OR(S49<=0,AND(S49>1000000000,S49<>"Freispiel")),"",1/HYPGEOMDIST(P49,7,20,70)/S45) -> 618.562807 | R49: =IF(OR(S49<=0,T47>1),"",IF(S49="Freispiel",U47/(1-(1/Q49))/Q49,IF(S49>1000000000,"",S49/Q49/S46))) -> 0.1616650708 | S49: =100*P45 -> 100 | T49: =IFERROR(IF(R49<R53,R53/R49,R49/R53),"") -> 1.304631442 | U49: =IFERROR(R49/IF((Q49*S46)<1500,1500,Q49*S46)^0.25*62.2333,"") -> 1.616650767 | W49: =$B$64 -> Silvester-/SommerMillionen ⁵ | X49: =$E$65/$E$64 -> 10 | Y49: =$G$71 -> 1.831110649 | Z49: =$D$71 -> 0.6 | AA49: =IFERROR($A$71/$E$64,"") -> 0.051009 | AB49: =$F$71 -> 2.541666667 | AC49: 1.831110649
B50: GK | C50: =IF(E48=1,"Chancen 1:","Ø Gewinne 1:") -> Chancen 1: | D50: Ø AQ | E50: (Ø) Gewinn | F50: =IFERROR(COUNTIF(E51:E60,"Freispiel"),"") -> 0 | G50: =IFERROR(SUMIF(E51:E60,"<>Freispiel",D51:D60),"") -> 0.4670714286 | I50: 7 x 1 aus 10 | L50: =L49*2.5 -> 2.5 | O50: 0.01584317694 | P50: 5 | Q50: =IF(OR(S50<=0,AND(S50>1000000000,S50<>"Freispiel")),"",1/HYPGEOMDIST(P50,7,20,70)/S45) -> 63.11865378 | R50: =IF(OR(S50<=0,T47>1),"",IF(S50="Freispiel",U47/(1-(1/Q50))/Q50,IF(S50>1000000000,"",S50/Q50/S46))) -> 0.1901181233 | S50: =12*P45 -> 12 | T50: =IFERROR(IF(R50<R53,R53/R50,R50/R53),"") -> 1.534246575 | U50: =IFERROR(R50/IF((Q50*S46)<1500,1500,Q50*S46)^0.25*62.2333,"") -> 1.901181302 | W50: =$P$218 -> EuroMillions (mit 2. Chance) | X50: =$S$219/$S$218 -> 3.5 | Y50: =$U$237 -> 1.561449837 | Z50: =$R$237 -> 0.4254019197 | AA50: =IFERROR($O$237/$S$218,"") -> 0.08185896468 | AB50: =$T$237 -> 10.95050072 | AC50: 1.561449837
A51: =IF(C51="",0,1/C51) -> 1e-08 | B51: 1 | C51: =IF(OR(E51<=0,AND(E51>1000000000,E51<>"Freispiel")),"",10^8/E48) -> 100000000 | D51: =IF(OR(E51<=0,F50>1),"",IF(E51="Freispiel",G50/(1-(1/C51))/C51,IF(E51>1000000000,"",E51/C51/E49))) -> 0.08007142857 | E51: =(50+54+60+63+70+73+77+83+87+94+97+100+103+110)/14*1000000/B48 -> 80071428.57 | F51: =IFERROR(IF(D51<D62,D62/D51,D51/D62),"") -> 1.714329408 | G51: =IFERROR(D51/IF((C51*E49)<1500,1500,C51*E49)^0.25*62.2333,"") -> 0.02802208251 | I51: Richtige | J51: =IF(L49=1,"Chancen 1:","Ø Gewinne 1:") -> Chancen 1: | K51: (Ø) AQ | L51: (Ø) Gewinn | M51: =IFERROR(COUNTIF(L52:L58,"Freispiel"),"") -> 0 | N51: =IFERROR(SUMIF(L52:L58,"<>Freispiel",K52:K58),"") -> 0.42398892 | O51: 0.0792158847 | P51: 4 | Q51: =IF(OR(S51<=0,AND(S51>1000000000,S51<>"Freispiel")),"",1/HYPGEOMDIST(P51,7,20,70)/S45) -> 12.62373076 | R51: =IF(OR(S51<=0,T47>1),"",IF(S51="Freispiel",U47/(1-(1/Q51))/Q51,IF(S51>1000000000,"",S51/Q51/S46))) -> 0.0792158847 | S51: =1*P45 -> 1 | T51: =IFERROR(IF(R51<R53,R53/R51,R51/R53),"") -> 1.564285714 | U51: =IFERROR(R51/IF((Q51*S46)<1500,1500,Q51*S46)^0.25*62.2333,"") -> 0.7921588759 | W51: =$I$30 -> EuroMillions | X51: =$L$31/$L$30 -> 3 | Y51: =$N$46 -> 1.416637941 | Z51: =$K$46 -> 0.3666666667 | AA51: =IFERROR($H$46/$L$30,"") -> 0.0770797542 | AB51: =$M$46 -> 12.00896511 | AC51: 1.416637941
A52: 9e-08 | B52: 2 | C52: =IF(OR(E52<=0,AND(E52>1000000000,E52<>"Freispiel")),"",1/(0.0000001*0.9)/E48) -> 11111111.11 | D52: =IF(OR(E52<=0,F50>1),"",IF(E52="Freispiel",G50/(1-(1/C52))/C52,IF(E52>1000000000,"",E52/C52/E49))) -> 0.009 | E52: =1000000/B48 -> 1000000 | F52: =IFERROR(IF(D52<D62,D62/D52,D52/D62),"") -> 5.18968254 | G52: =IFERROR(D52/IF((C52*E49)<1500,1500,C52*E49)^0.25*62.2333,"") -> 0.005455392062 | H52: =IF(J52="",0,1/J52) -> 1e-07 | I52: 7 | J52: =IF(OR(L52<=0,AND(L52>1000000000,L52<>"Freispiel")),"",10^7/L49) -> 10000000 | K52: =IF(OR(L52<=0,M51>1),"",IF(L52="Freispiel",N51/(1-(1/J52))/J52,IF(L52>1000000000,"",L52/J52/L50))) -> 0.0711 | L52: 1777500 | M52: =IFERROR(IF(K52<K60,K60/K52,K52/K60),"") -> 1.17385143 | N52: =IFERROR(K52/IF((J52*L50)<1500,1500,J52*L50)^0.25*62.2333,"") -> 0.06257594677 | O52: =IF(SUM(O48:O51)=0,"",SUM(O48:O51)) -> 0.09674037838 | P52: Gesamt | Q52: =IFERROR(1/O52,"") -> 10.3369453 | R52: =IF(SUM(R48:R51)=0,"",SUM(R48:R51)) -> 0.4956651071 | S52: =IFERROR(S46*R52,"") -> 0.4956651071 | T52: =IFERROR(AVERAGE(T48:T51),"") -> 1.579853433 | U52: =IF(SUM(U48:U51)=0,"",SUM(U48:U51)) -> 4.670875309 | W52: =$B$107 -> Millionenkracher ⁷ | X52: =$E$108/$E$107 -> 2.5 | Y52: =$G$113 -> 1.346270431 | Z52: =$D$113 -> 0.3655222663 | AA52: =IFERROR($A$113/$E$107,"") -> 0.008047793029 | AB52: =$F$113 -> 3.112557057 | AC52: 1.346270431
A53: 9e-07 | B53: 3 | C53: =IF(OR(E53<=0,AND(E53>1000000000,E53<>"Freispiel")),"",1/(0.000001*0.9)/E48) -> 1111111.111 | D53: =IF(OR(E53<=0,F50>1),"",IF(E53="Freispiel",G50/(1-(1/C53))/C53,IF(E53>1000000000,"",E53/C53/E49))) -> 0.009 | E53: =100000/B48 -> 100000 | F53: =IFERROR(IF(D53<D62,D62/D53,D53/D62),"") -> 5.18968254 | G53: =IFERROR(D53/IF((C53*E49)<1500,1500,C53*E49)^0.25*62.2333,"") -> 0.009701211377 | H53: 9e-07 | I53: 6 | J53: =IF(OR(L53<=0,AND(L53>1000000000,L53<>"Freispiel")),"",1/(0.000001*0.9)/L49) -> 1111111.111 | K53: =IF(OR(L53<=0,M51>1),"",IF(L53="Freispiel",N51/(1-(1/J53))/J53,IF(L53>1000000000,"",L53/J53/L50))) -> 0.02799972 | L53: 77777 | M53: =IFERROR(IF(K53<K60,K60/K53,K53/K60),"") -> 2.163230408 | N53: =IFERROR(K53/IF((J53*L50)<1500,1500,J53*L50)^0.25*62.2333,"") -> 0.04268272557 | R53: =AVERAGE(R48:R51) -> 0.1239162768 | W53: =$I$212 -> PowerBall (mit PowerPlay) ¹⁴⁺¹⁵ | X53: =$L$213/$L$212 -> 4 | Y53: =$N$224 -> 1.251579014 | Z53: =$K$224 -> 0.2219004655 | AA53: =IFERROR($H$224/$L$212,"") -> 0.0402138405 | AB53: =$M$224 -> 3.656811775 | AC53: 1.251579014
A54: 9e-06 | B54: 4 | C54: =IF(OR(E54<=0,AND(E54>1000000000,E54<>"Freispiel")),"",1/(0.00001*0.9)/E48) -> 111111.1111 | D54: =IF(OR(E54<=0,F50>1),"",IF(E54="Freispiel",G50/(1-(1/C54))/C54,IF(E54>1000000000,"",E54/C54/E49))) -> 0.009 | E54: =10000/B48 -> 10000 | F54: =IFERROR(IF(D54<D62,D62/D54,D54/D62),"") -> 5.18968254 | G54: =IFERROR(D54/IF((C54*E49)<1500,1500,C54*E49)^0.25*62.2333,"") -> 0.01725146444 | H54: 9e-06 | I54: 5 | J54: =IF(OR(L54<=0,AND(L54>1000000000,L54<>"Freispiel")),"",1/(0.00001*0.9)/L49) -> 111111.1111 | K54: =IF(OR(L54<=0,M51>1),"",IF(L54="Freispiel",N51/(1-(1/J54))/J54,IF(L54>1000000000,"",L54/J54/L50))) -> 0.0279972 | L54: 7777 | M54: =IFERROR(IF(K54<K60,K60/K54,K54/K60),"") -> 2.163425118 | N54: =IFERROR(K54/IF((J54*L50)<1500,1500,J54*L50)^0.25*62.2333,"") -> 0.07589498082 | W54: =$P$240 -> Millionärs Tombola ⁵ | X54: =$S$241/$S$240 -> 15 | Y54: =$U$244 -> 1.18551965 | Z54: =$R$244 -> 0.6666666667 | AA54: =IFERROR($O$244/$S$240,"") -> 1e-05 | AB54: =$T$244 -> 1 | AC54: 1.18551965
A55: 9e-05 | B55: 5 | C55: =IF(OR(E55<=0,AND(E55>1000000000,E55<>"Freispiel")),"",1/(0.0001*0.9)/E48) -> 11111.11111 | D55: =IF(OR(E55<=0,F50>1),"",IF(E55="Freispiel",G50/(1-(1/C55))/C55,IF(E55>1000000000,"",E55/C55/E49))) -> 0.009 | E55: =1000/B48 -> 1000 | F55: =IFERROR(IF(D55<D62,D62/D55,D55/D62),"") -> 5.18968254 | G55: =IFERROR(D55/IF((C55*E49)<1500,1500,C55*E49)^0.25*62.2333,"") -> 0.03067792401 | H55: 9e-05 | I55: 4 | J55: =IF(OR(L55<=0,AND(L55>1000000000,L55<>"Freispiel")),"",1/(0.0001*0.9)/L49) -> 11111.11111 | K55: =IF(OR(L55<=0,M51>1),"",IF(L55="Freispiel",N51/(1-(1/J55))/J55,IF(L55>1000000000,"",L55/J55/L50))) -> 0.027972 | L55: 777 | M55: =IFERROR(IF(K55<K60,K60/K55,K55/K60),"") -> 2.16537415 | N55: =IFERROR(K55/IF((J55*L50)<1500,1500,J55*L50)^0.25*62.2333,"") -> 0.1348410033 | P55: 1 | S55: 1 | W55: =$I$227 -> MegaMillions (mit MegaPlier) ¹⁴ | X55: =$L$228/$L$227 -> 4 | Y55: =$N$239 -> 1.069673875 | Z55: =$K$239 -> 0.2075209987 | AA55: =IFERROR($H$239/$L$227,"") -> 0.041675695 | AB55: =$M$239 -> 2.237970429 | AC55: 1.069673875
A56: 0.0009 | B56: 6 | C56: =IF(OR(E56<=0,AND(E56>1000000000,E56<>"Freispiel")),"",1/(0.001*0.9)/E48) -> 1111.111111 | D56: =IF(OR(E56<=0,F50>1),"",IF(E56="Freispiel",G50/(1-(1/C56))/C56,IF(E56>1000000000,"",E56/C56/E49))) -> 0.009 | E56: =100/B48 -> 100 | F56: =IFERROR(IF(D56<D62,D62/D56,D56/D62),"") -> 5.18968254 | G56: =IFERROR(D56/IF((C56*E49)<1500,1500,C56*E49)^0.25*62.2333,"") -> 0.05455392062 | H56: 0.0009 | I56: 3 | J56: =IF(OR(L56<=0,AND(L56>1000000000,L56<>"Freispiel")),"",1/(0.001*0.9)/L49) -> 1111.111111 | K56: =IF(OR(L56<=0,M51>1),"",IF(L56="Freispiel",N51/(1-(1/J56))/J56,IF(L56>1000000000,"",L56/J56/L50))) -> 0.02772 | L56: 77 | M56: =IFERROR(IF(K56<K60,K60/K56,K56/K60),"") -> 2.185059369 | N56: =IFERROR(K56/IF((J56*L50)<1500,1500,J56*L50)^0.25*62.2333,"") -> 0.2376247548 | P56: 8 aus 20 aus 70 | S56: =S55*1*P55 -> 1 | W56: =$I$107 -> Weihnachtsgeld ⁷ | X56: =$L$108/$L$107 -> 2 | Y56: =$N$113 -> 1.032397784 | Z56: =$K$113 -> 0.3818735618 | AA56: =IFERROR($H$113/$L$107,"") -> 0.008047793029 | AB56: =$M$113 -> 5.854998317 | AC56: 1.032397784
A57: 0.009 | B57: 7 | C57: =IF(OR(E57<=0,AND(E57>1000000000,E57<>"Freispiel")),"",1/(0.01*0.9)/E48) -> 111.1111111 | D57: =IF(OR(E57<=0,F50>1),"",IF(E57="Freispiel",G50/(1-(1/C57))/C57,IF(E57>1000000000,"",E57/C57/E49))) -> 0.027 | E57: =30/B48 -> 30 | F57: =IFERROR(IF(D57<D62,D62/D57,D57/D62),"") -> 1.72989418 | G57: =IFERROR(D57/IF((C57*E49)<1500,1500,C57*E49)^0.25*62.2333,"") -> 0.2700000099 | H57: 0.009 | I57: 2 | J57: =IF(OR(L57<=0,AND(L57>1000000000,L57<>"Freispiel")),"",1/(0.01*0.9)/L49) -> 111.1111111 | K57: =IF(OR(L57<=0,M51>1),"",IF(L57="Freispiel",N51/(1-(1/J57))/J57,IF(L57>1000000000,"",L57/J57/L50))) -> 0.0612 | L57: 17 | M57: =IFERROR(IF(K57<K60,K60/K57,K57/K60),"") -> 1.010403762 | N57: =IFERROR(K57/IF((J57*L50)<1500,1500,J57*L50)^0.25*62.2333,"") -> 0.6120000223 | P57: Richtige | Q57: =IF(S55=1,"Chancen 1:","Ø Gewinne 1:") -> Chancen 1: | R57: Ø AQ | S57: (Ø) Gewinn | T57: =IFERROR(COUNTIF(S58:S62,"Freispiel"),"") -> 0 | U57: =IFERROR(SUMIF(S58:S62,"<>Freispiel",R58:R62),"") -> 0.4893837093 | W57: =$B$212 -> PowerBall ¹⁴ | X57: =$E$213/$E$212 -> 3 | Y57: =$G$224 -> 0.6298587657 | Z57: =$D$224 -> 0.1524003276 | AA57: =IFERROR($A$224/$E$212,"") -> 0.0402138405 | AB57: =$F$224 -> 4.970131968 | AC57: 0.6298587657
A58: 0.09 | B58: 8 | C58: =IF(OR(E58<=0,AND(E58>1000000000,E58<>"Freispiel")),"",1/(0.1*0.9)/E48) -> 11.11111111 | D58: =IF(OR(E58<=0,F50>1),"",IF(E58="Freispiel",G50/(1-(1/C58))/C58,IF(E58>1000000000,"",E58/C58/E49))) -> 0.135 | E58: =15/B48 -> 15 | F58: =IFERROR(IF(D58<D62,D62/D58,D58/D62),"") -> 2.890350206 | G58: =IFERROR(D58/IF((C58*E49)<1500,1500,C58*E49)^0.25*62.2333,"") -> 1.350000049 | H58: 0.09 | I58: 1 | J58: =IF(OR(L58<=0,AND(L58>1000000000,L58<>"Freispiel")),"",1/(0.1*0.9)/L49) -> 11.11111111 | K58: =IF(OR(L58<=0,M51>1),"",IF(L58="Freispiel",N51/(1-(1/J58))/J58,IF(L58>1000000000,"",L58/J58/L50))) -> 0.18 | L58: 5 | M58: =IFERROR(IF(K58<K60,K60/K58,K58/K60),"") -> 2.971775772 | N58: =IFERROR(K58/IF((J58*L50)<1500,1500,J58*L50)^0.25*62.2333,"") -> 1.800000066 | O58: =IF(Q58="",0,1/Q58) -> 1.334378362e-05 | P58: 8 | Q58: =IF(OR(S58<=0,AND(S58>1000000000,S58<>"Freispiel")),"",1/HYPGEOMDIST(P58,8,20,70)/S55) -> 74941.26316 | R58: =IF(OR(S58<=0,T57>1),"",IF(S58="Freispiel",U57/(1-(1/Q58))/Q58,IF(S58>1000000000,"",S58/Q58/S56))) -> 0.1334378362 | S58: =10000*P55 -> 10000 | T58: =IFERROR(IF(R58<R64,R64/R58,R58/R64),"") -> 1.363325277 | U58: =IFERROR(R58/IF((Q58*S56)<1500,1500,Q58*S56)^0.25*62.2333,"") -> 0.5019050546 | W58: =$I$189 -> Zusatzlotterie Sieger-Chance | X58: =$L$190/$L$189 -> 3 | Y58: =$N$195 -> 0.6205560268 | Z58: =$K$195 -> 0.36666652 | AA58: =IFERROR($H$195/$L$189,"") -> 2.12999737e-05 | AB58: =$M$195 -> 1.563973506 | AC58: 0.6205560268
A59: 0.09 | B59: 9 | C59: =IF(OR(E59<=0,AND(E59>1000000000,E59<>"Freispiel")),"",1/(0.1*0.9)/E48) -> 11.11111111 | D59: =IF(OR(E59<=0,F50>1),"",IF(E59="Freispiel",G50/(1-(1/C59))/C59,IF(E59>1000000000,"",E59/C59/E49))) -> 0.09 | E59: =10/B48 -> 10 | F59: =IFERROR(IF(D59<D62,D62/D59,D59/D62),"") -> 1.926900138 | G59: =IFERROR(D59/IF((C59*E49)<1500,1500,C59*E49)^0.25*62.2333,"") -> 0.9000000328 | H59: =IF(SUM(H52:H58)=0,"",SUM(H52:H58)) -> 0.1 | I59: Gesamt | J59: =IFERROR(1/H59,"") -> 10 | K59: =IF(SUM(K52:K58)=0,"",SUM(K52:K58)) -> 0.42398892 | L59: =IFERROR(L50*K59,"") -> 1.0599723 | M59: =IFERROR(AVERAGE(M52:M58),"") -> 1.976160001 | N59: =IF(SUM(N52:N58)=0,"",SUM(N52:N58)) -> 2.965619499 | O59: 0.0004105779576 | P59: 7 | Q59: =IF(OR(S59<=0,AND(S59>1000000000,S59<>"Freispiel")),"",1/HYPGEOMDIST(P59,8,20,70)/S55) -> 2435.591053 | R59: =IF(OR(S59<=0,T57>1),"",IF(S59="Freispiel",U57/(1-(1/Q59))/Q59,IF(S59>1000000000,"",S59/Q59/S56))) -> 0.04105779576 | S59: =100*P55 -> 100 | T59: =IFERROR(IF(R59<R64,R64/R59,R59/R64),"") -> 2.383877167 | U59: =IFERROR(R59/IF((Q59*S56)<1500,1500,Q59*S56)^0.25*62.2333,"") -> 0.3637201556 | W59: =$B$227 -> MegaMillions ¹⁴ | X59: =$E$228/$E$227 -> 3 | Y59: =$G$239 -> 0.5014493533 | Z59: =$D$239 -> 0.1348554482 | AA59: =IFERROR($A$239/$E$227,"") -> 0.041675695 | AB59: =$F$239 -> 2.991730977 | AC59: 0.5014493533
A60: 0.18 | B60: 10+11 | C60: =IF(OR(E60<=0,AND(E60>1000000000,E60<>"Freispiel")),"",1/(0.1*0.9+0.1*0.9)/E48) -> 5.555555556 | D60: =IF(OR(E60<=0,F50>1),"",IF(E60="Freispiel",G50/(1-(1/C60))/C60,IF(E60>1000000000,"",E60/C60/E49))) -> 0.09 | E60: =5/B48 -> 5 | F60: =IFERROR(IF(D60<D62,D62/D60,D60/D62),"") -> 1.926900138 | G60: =IFERROR(D60/IF((C60*E49)<1500,1500,C60*E49)^0.25*62.2333,"") -> 0.9000000328 | K60: =AVERAGE(K52:K58) -> 0.06056984571 | O60: 0.005029579981 | P60: 6 | Q60: =IF(OR(S60<=0,AND(S60>1000000000,S60<>"Freispiel")),"",1/HYPGEOMDIST(P60,8,20,70)/S55) -> 198.8237594 | R60: =IF(OR(S60<=0,T57>1),"",IF(S60="Freispiel",U57/(1-(1/Q60))/Q60,IF(S60>1000000000,"",S60/Q60/S56))) -> 0.07544369971 | S60: =15*P55 -> 15 | T60: =IFERROR(IF(R60<R64,R64/R60,R60/R64),"") -> 1.297348118 | U60: =IFERROR(R60/IF((Q60*S56)<1500,1500,Q60*S56)^0.25*62.2333,"") -> 0.7544370247
A61: =IF(SUM(A51:A60)=0,"",SUM(A51:A60)) -> 0.37 | B61: Gesamt | C61: =IFERROR(1/A61,"") -> 2.702702703 | D61: =IF(SUM(D51:D60)=0,"",SUM(D51:D60)) -> 0.4670714286 | E61: =IFERROR(E49*D61,"") -> 4.670714286 | F61: =IFERROR(AVERAGE(F51:F60),"") -> 3.613678677 | G61: =IF(SUM(G51:G60)=0,"",SUM(G51:G60)) -> 3.56566212 | O61: 0.03218931188 | P61: 5 | Q61: =IF(OR(S61<=0,AND(S61>1000000000,S61<>"Freispiel")),"",1/HYPGEOMDIST(P61,8,20,70)/S55) -> 31.06621241 | R61: =IF(OR(S61<=0,T57>1),"",IF(S61="Freispiel",U57/(1-(1/Q61))/Q61,IF(S61>1000000000,"",S61/Q61/S56))) -> 0.06437862376 | S61: =2*P55 -> 2 | T61: =IFERROR(IF(R61<R64,R64/R61,R61/R64),"") -> 1.520329826 | U61: =IFERROR(R61/IF((Q61*S56)<1500,1500,Q61*S56)^0.25*62.2333,"") -> 0.6437862611
D62: =AVERAGE(D51:D60) -> 0.04670714286 | I62: Zusatzlotterie plus 5 | L62: 1 | O62: 0.1750657538 | P62: 4 / 0 | Q62: =IF(OR(S62<=0,AND(S62>1000000000,S62<>"Freispiel")),"",1/(HYPGEOMDIST(4,8,20,70)+HYPGEOMDIST(0,8,20,70))/S55) -> 5.712139458 | R62: =IF(OR(S62<=0,T57>1),"",IF(S62="Freispiel",U57/(1-(1/Q62))/Q62,IF(S62>1000000000,"",S62/Q62/S56))) -> 0.1750657538 | S62: =1*P55 -> 1 | T62: =IFERROR(IF(R62<R64,R64/R62,R62/R64),"") -> 1.788634874 | U62: =IFERROR(R62/IF((Q62*S56)<1500,1500,Q62*S56)^0.25*62.2333,"") -> 1.750657602
I63: 5 x 1 aus 10 | L63: =L62*0.75 -> 0.75 | O63: =IF(SUM(O58:O62)=0,"",SUM(O58:O62)) -> 0.2127085674 | P63: Gesamt | Q63: =IFERROR(1/O63,"") -> 4.701268088 | R63: =IF(SUM(R58:R62)=0,"",SUM(R58:R62)) -> 0.4893837093 | S63: =IFERROR(S56*R63,"") -> 0.4893837093 | T63: =IFERROR(AVERAGE(T58:T62),"") -> 1.670703052 | U63: =IF(SUM(U58:U62)=0,"",SUM(U58:U62)) -> 4.014506098
B64: Silvester-/SommerMillionen ⁵ | E64: 1 | I64: Richtige | J64: =IF(L62=1,"Chancen 1:","Ø Gewinne 1:") -> Chancen 1: | K64: Ø AQ | L64: (Ø) Gewinn | M64: =IFERROR(COUNTIF(L65:L69,"Freispiel"),"") -> 0 | N64: =IFERROR(SUMIF(L65:L69,"<>Freispiel",K65:K69),"") -> 0.4866666667 | R64: =AVERAGE(R58:R62) -> 0.09787674185
B65: 51.009 aus 1.000.000 | E65: =E64*10 -> 10 | H65: =IF(J65="",0,1/J65) -> 1e-05 | I65: 5 | J65: =IF(OR(L65<=0,AND(L65>1000000000,L65<>"Freispiel")),"",10^5/L62) -> 100000 | K65: =IF(OR(L65<=0,M64>1),"",IF(L65="Freispiel",N64/(1-(1/J65))/J65,IF(L65>1000000000,"",L65/J65/L63))) -> 0.06666666667 | L65: 5000 | M65: =IFERROR(IF(K65<K71,K71/K65,K65/K71),"") -> 1.46 | N65: =IFERROR(K65/IF((J65*L63)<1500,1500,J65*L63)^0.25*62.2333,"") -> 0.250706882
B66: GK | C66: =IF(E64=1,"Chancen 1:","Ø Gewinne 1:") -> Chancen 1: | D66: Ø AQ | E66: (Ø) Gewinn | F66: =IFERROR(COUNTIF(E67:E70,"Freispiel"),"") -> 0 | G66: =IFERROR(SUMIF(E67:E70,"<>Freispiel",D67:D70),"") -> 0.6 | H66: 9e-05 | I66: 4 | J66: =IF(OR(L66<=0,AND(L66>1000000000,L66<>"Freispiel")),"",1/(0.0001*0.9)/L62) -> 11111.11111 | K66: =IF(OR(L66<=0,M64>1),"",IF(L66="Freispiel",N64/(1-(1/J66))/J66,IF(L66>1000000000,"",L66/J66/L63))) -> 0.06 | L66: 500 | M66: =IFERROR(IF(K66<K71,K71/K66,K66/K71),"") -> 1.622222222 | N66: =IFERROR(K66/IF((J66*L63)<1500,1500,J66*L63)^0.25*62.2333,"") -> 0.3908133517 | P66: 1 | S66: 1
A67: =IF(C67="",0,1/C67) -> 4e-06 | B67: 1 | C67: =IF(OR(E67<=0,AND(E67>1000000000,E67<>"Freispiel")),"",1000000/4/E64) -> 250000 | D67: =IF(OR(E67<=0,F66>1),"",IF(E67="Freispiel",G66/(1-(1/C67))/C67,IF(E67>1000000000,"",E67/C67/E65))) -> 0.4 | E67: 1000000 | F67: =IFERROR(IF(D67<D72,D72/D67,D67/D72),"") -> 2.666666667 | G67: =IFERROR(D67/IF((C67*E65)<1500,1500,C67*E65)^0.25*62.2333,"") -> 0.6260338549 | H67: 0.0009 | I67: 3 | J67: =IF(OR(L67<=0,AND(L67>1000000000,L67<>"Freispiel")),"",1/(0.001*0.9)/L62) -> 1111.111111 | K67: =IF(OR(L67<=0,M64>1),"",IF(L67="Freispiel",N64/(1-(1/J67))/J67,IF(L67>1000000000,"",L67/J67/L63))) -> 0.06 | L67: 50 | M67: =IFERROR(IF(K67<K71,K71/K67,K67/K71),"") -> 1.622222222 | N67: =IFERROR(K67/IF((J67*L63)<1500,1500,J67*L63)^0.25*62.2333,"") -> 0.6000000219 | P67: 9 aus 20 aus 70 | S67: =S66*1*P66 -> 1
A68: 5e-06 | B68: 2 | C68: =IF(OR(E68<=0,AND(E68>1000000000,E68<>"Freispiel")),"",1000000/5/E64) -> 200000 | D68: =IF(OR(E68<=0,F66>1),"",IF(E68="Freispiel",G66/(1-(1/C68))/C68,IF(E68>1000000000,"",E68/C68/E65))) -> 0.05 | E68: 100000 | F68: =IFERROR(IF(D68<D72,D72/D68,D68/D72),"") -> 3 | G68: =IFERROR(D68/IF((C68*E65)<1500,1500,C68*E65)^0.25*62.2333,"") -> 0.08274377601 | H68: 0.009 | I68: 2 | J68: =IF(OR(L68<=0,AND(L68>1000000000,L68<>"Freispiel")),"",1/(0.01*0.9)/L62) -> 111.1111111 | K68: =IF(OR(L68<=0,M64>1),"",IF(L68="Freispiel",N64/(1-(1/J68))/J68,IF(L68>1000000000,"",L68/J68/L63))) -> 0.06 | L68: 5 | M68: =IFERROR(IF(K68<K71,K71/K68,K68/K71),"") -> 1.622222222 | N68: =IFERROR(K68/IF((J68*L63)<1500,1500,J68*L63)^0.25*62.2333,"") -> 0.6000000219 | P68: Richtige | Q68: =IF(S66=1,"Chancen 1:","Ø Gewinne 1:") -> Chancen 1: | R68: Ø AQ | S68: (Ø) Gewinn | T68: =IFERROR(COUNTIF(S69:S73,"Freispiel"),"") -> 0 | U68: =IFERROR(SUMIF(S69:S73,"<>Freispiel",R69:R73),"") -> 0.500453082
A69: 0.001 | B69: 3 | C69: =IF(OR(E69<=0,AND(E69>1000000000,E69<>"Freispiel")),"",1000000/1000/E64) -> 1000 | D69: =IF(OR(E69<=0,F66>1),"",IF(E69="Freispiel",G66/(1-(1/C69))/C69,IF(E69>1000000000,"",E69/C69/E65))) -> 0.1 | E69: 1000 | F69: =IFERROR(IF(D69<D72,D72/D69,D69/D72),"") -> 1.5 | G69: =IFERROR(D69/IF((C69*E65)<1500,1500,C69*E65)^0.25*62.2333,"") -> 0.622333 | H69: 0.09 | I69: 1 | J69: =IF(OR(L69<=0,AND(L69>1000000000,L69<>"Freispiel")),"",1/(0.1*0.9)/L62) -> 11.11111111 | K69: =IF(OR(L69<=0,M64>1),"",IF(L69="Freispiel",N64/(1-(1/J69))/J69,IF(L69>1000000000,"",L69/J69/L63))) -> 0.24 | L69: 2 | M69: =IFERROR(IF(K69<K71,K71/K69,K69/K71),"") -> 2.465753425 | N69: =IFERROR(K69/IF((J69*L63)<1500,1500,J69*L63)^0.25*62.2333,"") -> 2.400000088 | O69: =IF(Q69="",0,1/Q69) -> 2.582667798e-06 | P69: 9 | Q69: =IF(OR(S69<=0,AND(S69>1000000000,S69<>"Freispiel")),"",1/HYPGEOMDIST(P69,9,20,70)/S66) -> 387196.5263 | R69: =IF(OR(S69<=0,T68>1),"",IF(S69="Freispiel",U68/(1-(1/Q69))/Q69,IF(S69>1000000000,"",S69/Q69/S67))) -> 0.1291333899 | S69: =50000*P66 -> 50000 | T69: =IFERROR(IF(R69<R75,R75/R69,R69/R75),"") -> 1.290164798 | U69: =IFERROR(R69/IF((Q69*S67)<1500,1500,Q69*S67)^0.25*62.2333,"") -> 0.3221651205
A70: 0.05 | B70: 4 | C70: =IF(OR(E70<=0,AND(E70>1000000000,E70<>"Freispiel")),"",1000000/50000/E64) -> 20 | D70: =IF(OR(E70<=0,F66>1),"",IF(E70="Freispiel",G66/(1-(1/C70))/C70,IF(E70>1000000000,"",E70/C70/E65))) -> 0.05 | E70: 10 | F70: =IFERROR(IF(D70<D72,D72/D70,D70/D72),"") -> 3 | G70: =IFERROR(D70/IF((C70*E65)<1500,1500,C70*E65)^0.25*62.2333,"") -> 0.5000000182 | H70: =IF(SUM(H65:H69)=0,"",SUM(H65:H69)) -> 0.1 | I70: Gesamt | J70: =IFERROR(1/H70,"") -> 10 | K70: =IF(SUM(K65:K69)=0,"",SUM(K65:K69)) -> 0.4866666667 | L70: =IFERROR(L63*K70,"") -> 0.365 | M70: =IFERROR(AVERAGE(M65:M69),"") -> 1.758484018 | N70: =IF(SUM(N65:N69)=0,"",SUM(N65:N69)) -> 4.241520365 | O70: 9.685004242e-05 | P70: 8 | Q70: =IF(OR(S70<=0,AND(S70>1000000000,S70<>"Freispiel")),"",1/HYPGEOMDIST(P70,9,20,70)/S66) -> 10325.2407 | R70: =IF(OR(S70<=0,T68>1),"",IF(S70="Freispiel",U68/(1-(1/Q70))/Q70,IF(S70>1000000000,"",S70/Q70/S67))) -> 0.09685004242 | S70: =1000*P66 -> 1000 | T70: =IFERROR(IF(R70<R75,R75/R70,R70/R75),"") -> 1.033459706 | U70: =IFERROR(R70/IF((Q70*S67)<1500,1500,Q70*S67)^0.25*62.2333,"") -> 0.5979262219
A71: =IF(SUM(A67:A70)=0,"",SUM(A67:A70)) -> 0.051009 | B71: Gesamt | C71: =IFERROR(1/A71,"") -> 19.60438354 | D71: =IF(SUM(D67:D70)=0,"",SUM(D67:D70)) -> 0.6 | E71: =IFERROR(E65*D71,"") -> 6 | F71: =IFERROR(AVERAGE(F67:F70),"") -> 2.541666667 | G71: =IF(SUM(G67:G70)=0,"",SUM(G67:G70)) -> 1.831110649 | K71: =AVERAGE(K65:K69) -> 0.09733333333 | O71: 0.00146020064 | P71: 7 | Q71: =IF(OR(S71<=0,AND(S71>1000000000,S71<>"Freispiel")),"",1/HYPGEOMDIST(P71,9,20,70)/S66) -> 684.8373935 | R71: =IF(OR(S71<=0,T68>1),"",IF(S71="Freispiel",U68/(1-(1/Q71))/Q71,IF(S71>1000000000,"",S71/Q71/S67))) -> 0.02920401279 | S71: =20*P66 -> 20 | T71: =IFERROR(IF(R71<R75,R75/R71,R71/R75),"") -> 3.427289842 | U71: =IFERROR(R71/IF((Q71*S67)<1500,1500,Q71*S67)^0.25*62.2333,"") -> 0.2920401386
D72: =AVERAGE(D67:D70) -> 0.15 | O72: 0.01168160512 | P72: 6 | Q72: =IF(OR(S72<=0,AND(S72>1000000000,S72<>"Freispiel")),"",1/HYPGEOMDIST(P72,9,20,70)/S66) -> 85.60467419 | R72: =IF(OR(S72<=0,T68>1),"",IF(S72="Freispiel",U68/(1-(1/Q72))/Q72,IF(S72>1000000000,"",S72/Q72/S67))) -> 0.05840802558 | S72: =5*P66 -> 5 | T72: =IFERROR(IF(R72<R75,R75/R72,R72/R75),"") -> 1.713644921 | U72: =IFERROR(R72/IF((Q72*S67)<1500,1500,Q72*S67)^0.25*62.2333,"") -> 0.5840802772
F73: vs. | I73: LOTTO 6aus49 | K73: 1 | L73: 1 | O73: 0.09342880564 | P73: 5 / 0 | Q73: =IF(OR(S73<=0,AND(S73>1000000000,S73<>"Freispiel")),"",1/(HYPGEOMDIST(5,9,20,70)+HYPGEOMDIST(0,9,20,70))/S66) -> 10.70333708 | R73: =IF(OR(S73<=0,T68>1),"",IF(S73="Freispiel",U68/(1-(1/Q73))/Q73,IF(S73>1000000000,"",S73/Q73/S67))) -> 0.1868576113 | S73: =2*P66 -> 2 | T73: =IFERROR(IF(R73<R75,R75/R73,R73/R75),"") -> 1.866884409 | U73: =IFERROR(R73/IF((Q73*S67)<1500,1500,Q73*S67)^0.25*62.2333,"") -> 1.868576181
B74: LOTTO 6aus45 ⁶ | D74: 1 | E74: 1 | I74: 6 aus 49 + 1 aus 10 | K74: =IF(K73=1,"Anteil","Anteile") -> Anteil | L74: =L73*1.2/K73 -> 1.2 | O74: =IF(SUM(O69:O73)=0,"",SUM(O69:O73)) -> 0.1066700441 | P74: Gesamt | Q74: =IFERROR(1/O74,"") -> 9.374703164 | R74: =IF(SUM(R69:R73)=0,"",SUM(R69:R73)) -> 0.500453082 | S74: =IFERROR(S67*R74,"") -> 0.500453082 | T74: =IFERROR(AVERAGE(T69:T73),"") -> 1.866288735 | U74: =IF(SUM(U69:U73)=0,"",SUM(U69:U73)) -> 3.664787939
B75: 6+1 aus 45 | D75: =IF(D74=1,"Anteil","Anteile") -> Anteil | E75: =E74*1.3/D74 -> 1.3 | I75: Richtige | J75: =IF(L73=1,"Chancen 1:","Ø Gewinne 1:") -> Chancen 1: | K75: (Ø) AQ | L75: (Ø) Gewinn | M75: =IFERROR(COUNTIF(L76:L84,"Freispiel"),"") -> 0 | N75: =IFERROR(SUMIF(L76:L84,"<>Freispiel",K76:K84),"") -> 0.5 | R75: =AVERAGE(R69:R73) -> 0.1000906164
B76: Richtige | C76: =IF(E74=1,"Chancen 1:","Ø Gewinne 1:") -> Chancen 1: | D76: (Ø) AQ | E76: (Ø) Gewinn | F76: =IFERROR(COUNTIF(E77:E84,"Freispiel"),"") -> 0 | G76: =IFERROR(SUMIF(E77:E84,"<>Freispiel",D77:D84),"") -> 0.4638247429 | H76: =IF(J76="",0,1/J76) -> 7.151123842e-09 | I76: 6 + SZ | J76: =IF(OR(L76<=0,AND(L76>1000000000,L76<>"Freispiel")),"",1/(HYPGEOMDIST(6,6,6,49)*HYPGEOMDIST(1,1,1,10))/L73) -> 139838160 | K76: =IF(OR(L76<=0,M75>1),"",IF(L76="Freispiel",N75/(1-(1/J76))/J76,IF(L76>1000000000,"",L76/J76/L74))) -> 0.075 | L76: =12585434.4/K73 -> 12585434.4 | M76: =IFERROR(IF(K76<K86,K86/K76,K76/K86),"") -> 1.35 | N76: =IFERROR(K76/IF((J76*L74)<1500,1500,J76*L74)^0.25*62.2333,"") -> 0.0410093001
A77: =IF(C77="",0,1/C77) -> 1.22773804e-07 | B77: 6 | C77: =IF(OR(E77<=0,AND(E77>1000000000,E77<>"Freispiel")),"",1/HYPGEOMDIST(6,6,6,45)/E74) -> 8145060 | D77: =IF(OR(E77<=0,F76>1),"",IF(E77="Freispiel",G76/(1-(1/C77))/C77,IF(E77>1000000000,"",E77/C77/E75))) -> 0.1782074142 | E77: =1741812.09741667/1.2*1.3/D74 -> 1886963.106 | F77: =IFERROR(IF(D77<D86,D86/D77,D77/D86),"") -> 3.07370259 | G77: =IFERROR(D77/IF((C77*E75)<1500,1500,C77*E75)^0.25*62.2333,"") -> 0.1944192168 | H77: 6.436011458e-08 | I77: 6 | J77: =IF(OR(L77<=0,AND(L77>1000000000,L77<>"Freispiel")),"",1/(HYPGEOMDIST(6,6,6,49)*HYPGEOMDIST(0,1,1,10))/L73) -> 15537573.33 | K77: =IF(OR(L77<=0,M75>1),"",IF(L77="Freispiel",N75/(1-(1/J77))/J77,IF(L77>1000000000,"",L77/J77/L74))) -> 0.05382164782 | L77: =1003509.36/K73 -> 1003509.36 | M77: =IFERROR(IF(K77<K86,K86/K77,K77/K86),"") -> 1.032215805 | N77: =IFERROR(K77/IF((J77*L74)<1500,1500,J77*L74)^0.25*62.2333,"") -> 0.05097282592 | P77: 1 | S77: 1
A78: 7.36642824e-07 | B78: 5 + ZZ | C78: =IF(OR(E78<=0,AND(E78>1000000000,E78<>"Freispiel")),"",1/(HYPGEOMDIST(5,6,6,45)*HYPGEOMDIST(1,1,1,39))/E74) -> 1357510 | D78: =IF(OR(E78<=0,F76>1),"",IF(E78="Freispiel",G76/(1-(1/C78))/C78,IF(E78>1000000000,"",E78/C78/E75))) -> 0.026352 | E78: =46505.034576/D74 -> 46505.03458 | F78: =IFERROR(IF(D78<D86,D86/D78,D78/D86),"") -> 2.200140136 | G78: =IFERROR(D78/IF((C78*E75)<1500,1500,C78*E75)^0.25*62.2333,"") -> 0.0449950579 | H78: 1.844989951e-06 | I78: 5 + SZ | J78: =IF(OR(L78<=0,AND(L78>1000000000,L78<>"Freispiel")),"",1/(HYPGEOMDIST(5,6,6,49)*HYPGEOMDIST(1,1,1,10))/L73) -> 542008.3721 | K78: =IF(OR(L78<=0,M75>1),"",IF(L78="Freispiel",N75/(1-(1/J78))/J78,IF(L78>1000000000,"",L78/J78/L74))) -> 0.01865817125 | L78: =12135.462027907/K73 -> 12135.46203 | M78: =IFERROR(IF(K78<K86,K86/K78,K78/K86),"") -> 2.977545592 | N78: =IFERROR(K78/IF((J78*L74)<1500,1500,J78*L74)^0.25*62.2333,"") -> 0.04088792724 | P78: 10 aus 20 aus 70 | S78: =S77*1*P77 -> 1
A79: 2.799242731e-05 | B79: 5 | C79: =IF(OR(E79<=0,AND(E79>1000000000,E79<>"Freispiel")),"",1/(HYPGEOMDIST(5,6,6,45)*HYPGEOMDIST(0,1,1,39))/E74) -> 35723.94737 | D79: =IF(OR(E79<=0,F76>1),"",IF(E79="Freispiel",G76/(1-(1/C79))/C79,IF(E79>1000000000,"",E79/C79/E75))) -> 0.027328 | E79: =1269.14324378947/D74 -> 1269.143244 | F79: =IFERROR(IF(D79<D86,D86/D79,D79/D86),"") -> 2.121563703 | G79: =IFERROR(D79/IF((C79*E75)<1500,1500,C79*E75)^0.25*62.2333,"") -> 0.1158523857 | H79: 1.660490956e-05 | I79: 5 | J79: =IF(OR(L79<=0,AND(L79>1000000000,L79<>"Freispiel")),"",1/(HYPGEOMDIST(5,6,6,49)*HYPGEOMDIST(0,1,1,10))/L73) -> 60223.15245 | K79: =IF(OR(L79<=0,M75>1),"",IF(L79="Freispiel",N75/(1-(1/J79))/J79,IF(L79>1000000000,"",L79/J79/L74))) -> 0.05561570275 | L79: =4019.22353488372/K73 -> 4019.223535 | M79: =IFERROR(IF(K79<K86,K86/K79,K79/K86),"") -> 1.00108265 | N79: =IFERROR(K79/IF((J79*L74)<1500,1500,J79*L74)^0.25*62.2333,"") -> 0.2110979797 | P79: Richtige | Q79: =IF(S77=1,"Chancen 1:","Ø Gewinne 1:") -> Chancen 1: | R79: Ø AQ | S79: (Ø) Gewinn | T79: =IFERROR(COUNTIF(S80:S85,"Freispiel"),"") -> 0 | U79: =IFERROR(SUMIF(S80:S85,"<>Freispiel",R80:R85),"") -> 0.4939974199
A80: 6.998106828e-05 | B80: 4 + ZZ | C80: =IF(OR(E80<=0,AND(E80>1000000000,E80<>"Freispiel")),"",1/(HYPGEOMDIST(4,6,6,45)*HYPGEOMDIST(1,2,1,39))/E74) -> 14289.57895 | D80: =IF(OR(E80<=0,F76>1),"",IF(E80="Freispiel",G76/(1-(1/C80))/C80,IF(E80>1000000000,"",E80/C80/E75))) -> 0.008784 | E80: =163.175559915789/D74 -> 163.1755599 | F80: =IFERROR(IF(D80<D86,D86/D80,D80/D86),"") -> 6.600420408 | G80: =IFERROR(D80/IF((C80*E75)<1500,1500,C80*E75)^0.25*62.2333,"") -> 0.04682464156 | H80: 9.686197244e-05 | I80: 4 + SZ | J80: =IF(OR(L80<=0,AND(L80>1000000000,L80<>"Freispiel")),"",1/(HYPGEOMDIST(4,6,6,49)*HYPGEOMDIST(1,1,1,10))/L73) -> 10323.96899 | K80: =IF(OR(L80<=0,M75>1),"",IF(L80="Freispiel",N75/(1-(1/J80))/J80,IF(L80>1000000000,"",L80/J80/L74))) -> 0.01542887238 | L80: =191.14464/K73 -> 191.14464 | M80: =IFERROR(IF(K80<K86,K86/K80,K80/K86),"") -> 3.600752809 | N80: =IFERROR(K80/IF((J80*L74)<1500,1500,J80*L74)^0.25*62.2333,"") -> 0.0910122881 | O80: =IF(Q80="",0,1/Q80) -> 4.6572698e-07 | P80: 10 | Q80: =IF(OR(S80<=0,AND(S80>1000000000,S80<>"Freispiel")),"",1/HYPGEOMDIST(P80,10,20,70)/S77) -> 2147180.737 | R80: =IF(OR(S80<=0,T79>1),"",IF(S80="Freispiel",U79/(1-(1/Q80))/Q80,IF(S80>1000000000,"",S80/Q80/S78))) -> 0.046572698 | S80: =100000*P77 -> 100000 | T80: =IFERROR(IF(R80<R87,R87/R80,R80/R87),"") -> 1.76783624 | U80: =IFERROR(R80/IF((Q80*S78)<1500,1500,Q80*S78)^0.25*62.2333,"") -> 0.07571589804
A81: 0.001294649763 | B81: 4 | C81: =IF(OR(E81<=0,AND(E81>1000000000,E81<>"Freispiel")),"",1/(HYPGEOMDIST(4,6,6,45)*HYPGEOMDIST(0,2,1,39))/E74) -> 772.4096728 | D81: =IF(OR(E81<=0,F76>1),"",IF(E81="Freispiel",G76/(1-(1/C81))/C81,IF(E81>1000000000,"",E81/C81/E75))) -> 0.05124 | E81: =51.4517531266002/D74 -> 51.45175313 | F81: =IFERROR(IF(D81<D86,D86/D81,D81/D86),"") -> 1.131500641 | G81: =IFERROR(D81/IF((C81*E75)<1500,1500,C81*E75)^0.25*62.2333,"") -> 0.5124000187 | H81: 0.000871757752 | I81: 4 | J81: =IF(OR(L81<=0,AND(L81>1000000000,L81<>"Freispiel")),"",1/(HYPGEOMDIST(4,6,6,49)*HYPGEOMDIST(0,1,1,10))/L73) -> 1147.107666 | K81: =IF(OR(L81<=0,M75>1),"",IF(L81="Freispiel",N75/(1-(1/J81))/J81,IF(L81>1000000000,"",L81/J81/L74))) -> 0.03659872052 | L81: =50.3792074418605/K73 -> 50.37920744 | M81: =IFERROR(IF(K81<K86,K86/K81,K81/K86),"") -> 1.51796442 | N81: =IFERROR(K81/IF((J81*L74)<1500,1500,J81*L74)^0.25*62.2333,"") -> 0.3659872186 | O81: 2.116940818e-05 | P81: 9 | Q81: =IF(OR(S81<=0,AND(S81>1000000000,S81<>"Freispiel")),"",1/HYPGEOMDIST(P81,10,20,70)/S77) -> 47237.97621 | R81: =IF(OR(S81<=0,T79>1),"",IF(S81="Freispiel",U79/(1-(1/Q81))/Q81,IF(S81>1000000000,"",S81/Q81/S78))) -> 0.02116940818 | S81: =1000*P77 -> 1000 | T81: =IFERROR(IF(R81<R87,R87/R81,R81/R87),"") -> 3.889239728 | U81: =IFERROR(R81/IF((Q81*S78)<1500,1500,Q81*S78)^0.25*62.2333,"") -> 0.08936320303
A82: 0.001726199684 | B82: 3 + ZZ | C82: =IF(OR(E82<=0,AND(E82>1000000000,E82<>"Freispiel")),"",1/(HYPGEOMDIST(3,6,6,45)*HYPGEOMDIST(1,3,1,39))/E74) -> 579.3072546 | D82: =IF(OR(E82<=0,F76>1),"",IF(E82="Freispiel",G76/(1-(1/C82))/C82,IF(E82>1000000000,"",E82/C82/E75))) -> 0.02196 | E82: =16.5380635049786/D74 -> 16.5380635 | F82: =IFERROR(IF(D82<D86,D86/D82,D82/D86),"") -> 2.640168163 | G82: =IFERROR(D82/IF((C82*E75)<1500,1500,C82*E75)^0.25*62.2333,"") -> 0.219600008 | H82: 0.001765040387 | I82: 3 + SZ | J82: =IF(OR(L82<=0,AND(L82>1000000000,L82<>"Freispiel")),"",1/(HYPGEOMDIST(3,6,6,49)*HYPGEOMDIST(1,1,1,10))/L73) -> 566.559274 | K82: =IF(OR(L82<=0,M75>1),"",IF(L82="Freispiel",N75/(1-(1/J82))/J82,IF(L82>1000000000,"",L82/J82/L74))) -> 0.03121655574 | L82: =21.2232349858196/K73 -> 21.22323499 | M82: =IFERROR(IF(K82<K86,K86/K82,K82/K86),"") -> 1.779682423 | N82: =IFERROR(K82/IF((J82*L74)<1500,1500,J82*L74)^0.25*62.2333,"") -> 0.3121655688 | O82: 0.0003889878753 | P82: 8 | Q82: =IF(OR(S82<=0,AND(S82>1000000000,S82<>"Freispiel")),"",1/HYPGEOMDIST(P82,10,20,70)/S77) -> 2570.774216 | R82: =IF(OR(S82<=0,T79>1),"",IF(S82="Freispiel",U79/(1-(1/Q82))/Q82,IF(S82>1000000000,"",S82/Q82/S78))) -> 0.03889878753 | S82: =100*P77 -> 100 | T82: =IFERROR(IF(R82<R87,R87/R82,R82/R87),"") -> 2.116593049 | U82: =IFERROR(R82/IF((Q82*S78)<1500,1500,Q82*S78)^0.25*62.2333,"") -> 0.3399718131
A83: 0.02071439621 | B83: 3 | C83: =IF(OR(E83<=0,AND(E83>1000000000,E83<>"Freispiel")),"",1/(HYPGEOMDIST(3,6,6,45)*HYPGEOMDIST(0,3,1,39))/E74) -> 48.27560455 | D83: =IF(OR(E83<=0,F76>1),"",IF(E83="Freispiel",G76/(1-(1/C83))/C83,IF(E83>1000000000,"",E83/C83/E75))) -> 0.088328 | E83: =5.54331387852061/D74 -> 5.543313879 | F83: =IFERROR(IF(D83<D86,D86/D83,D83/D86),"") -> 1.523471981 | G83: =IFERROR(D83/IF((C83*E75)<1500,1500,C83*E75)^0.25*62.2333,"") -> 0.8832800322 | H83: 0.01588536348 | I83: 3 | J83: =IF(OR(L83<=0,AND(L83>1000000000,L83<>"Freispiel")),"",1/(HYPGEOMDIST(3,6,6,49)*HYPGEOMDIST(0,1,1,10))/L73) -> 62.95103044 | K83: =IF(OR(L83<=0,M75>1),"",IF(L83="Freispiel",N75/(1-(1/J83))/J83,IF(L83>1000000000,"",L83/J83/L74))) -> 0.147471315 | L83: =11.140165490641/K73 -> 11.14016549 | M83: =IFERROR(IF(K83<K86,K86/K83,K83/K86),"") -> 2.654483671 | N83: =IFERROR(K83/IF((J83*L74)<1500,1500,J83*L74)^0.25*62.2333,"") -> 1.474713204 | O83: 0.003830034465 | P83: 7 | Q83: =IF(OR(S83<=0,AND(S83>1000000000,S83<>"Freispiel")),"",1/HYPGEOMDIST(P83,10,20,70)/S77) -> 261.0942563 | R83: =IF(OR(S83<=0,T79>1),"",IF(S83="Freispiel",U79/(1-(1/Q83))/Q83,IF(S83>1000000000,"",S83/Q83/S78))) -> 0.05745051697 | S83: =15*P77 -> 15 | T83: =IFERROR(IF(R83<R87,R87/R83,R83/R87),"") -> 1.433109877 | U83: =IFERROR(R83/IF((Q83*S78)<1500,1500,Q83*S78)^0.25*62.2333,"") -> 0.5745051907
A84: 0.06162532873 | B84: 0 + ZZ | C84: =IF(OR(E84<=0,AND(E84>1000000000,E84<>"Freispiel")),"",1/(HYPGEOMDIST(0,6,6,45)*HYPGEOMDIST(1,6,1,39))/E74) -> 16.22709397 | D84: =IF(OR(E84<=0,F76>1),"",IF(E84="Freispiel",G76/(1-(1/C84))/C84,IF(E84>1000000000,"",E84/C84/E75))) -> 0.06162532873 | E84: 1.3 | F84: =IFERROR(IF(D84<D86,D86/D84,D84/D86),"") -> 1.062907137 | G84: =IFERROR(D84/IF((C84*E75)<1500,1500,C84*E75)^0.25*62.2333,"") -> 0.6162533098 | H84: 0.0132378029 | I84: 2 + SZ | J84: =IF(OR(L84<=0,AND(L84>1000000000,L84<>"Freispiel")),"",1/(HYPGEOMDIST(2,6,6,49)*HYPGEOMDIST(1,1,1,10))/L73) -> 75.54123653 | K84: =IF(OR(L84<=0,M75>1),"",IF(L84="Freispiel",N75/(1-(1/J84))/J84,IF(L84>1000000000,"",L84/J84/L74))) -> 0.0661890145 | L84: =6/K73 -> 6 | M84: =IFERROR(IF(K84<K86,K86/K84,K84/K86),"") -> 1.191402261 | N84: =IFERROR(K84/IF((J84*L74)<1500,1500,J84*L74)^0.25*62.2333,"") -> 0.6618901692 | O84: 0.02250145248 | P84: 6 | Q84: =IF(OR(S84<=0,AND(S84>1000000000,S84<>"Freispiel")),"",1/HYPGEOMDIST(P84,10,20,70)/S77) -> 44.44157553 | R84: =IF(OR(S84<=0,T79>1),"",IF(S84="Freispiel",U79/(1-(1/Q84))/Q84,IF(S84>1000000000,"",S84/Q84/S78))) -> 0.1125072624 | S84: =5*P77 -> 5 | T84: =IFERROR(IF(R84<R87,R87/R84,R84/R87),"") -> 1.366492105 | U84: =IFERROR(R84/IF((Q84*S78)<1500,1500,Q84*S78)^0.25*62.2333,"") -> 1.125072665
A85: =IF(SUM(A77:A84)=0,"",SUM(A77:A84)) -> 0.0854594073 | B85: Gesamt | C85: =IFERROR(1/A85,"") -> 11.70146192 | D85: =IF(SUM(D77:D84)=0,"",SUM(D77:D84)) -> 0.4638247429 | E85: =IFERROR(E75*D85,"") -> 0.6029721658 | F85: =IFERROR(AVERAGE(F77:F84),"") -> 2.544234345 | G85: =IF(SUM(G77:G84)=0,"",SUM(G77:G84)) -> 2.633624671 | H85: =IF(SUM(H76:H84)=0,"",SUM(H76:H84)) -> 0.0318753479 | I85: Gesamt | J85: =IFERROR(1/H85,"") -> 31.37220661 | K85: =IF(SUM(K76:K84)=0,"",SUM(K76:K84)) -> 0.5 | L85: =IFERROR(L74*K85,"") -> 0.6 | M85: =IFERROR(AVERAGE(M76:M84),"") -> 1.900569959 | N85: =IF(SUM(N76:N84)=0,"",SUM(N76:N84)) -> 3.249736482 | O85: 0.1086993734 | P85: 5 / 0 | Q85: =IF(OR(S85<=0,AND(S85>1000000000,S85<>"Freispiel")),"",1/(HYPGEOMDIST(5,10,20,70)+HYPGEOMDIST(0,10,20,70))/S77) -> 9.199685046 | R85: =IF(OR(S85<=0,T79>1),"",IF(S85="Freispiel",U79/(1-(1/Q85))/Q85,IF(S85>1000000000,"",S85/Q85/S78))) -> 0.2173987468 | S85: =2*P77 -> 2 | T85: =IFERROR(IF(R85<R87,R87/R85,R85/R87),"") -> 2.6404844 | U85: =IFERROR(R85/IF((Q85*S78)<1500,1500,Q85*S78)^0.25*62.2333,"") -> 2.173987547
D86: =AVERAGE(D77:D84) -> 0.05797809287 | K86: =AVERAGE(K76:K84) -> 0.05555555556 | O86: =IF(SUM(O80:O85)=0,"",SUM(O80:O85)) -> 0.1354414834 | P86: Gesamt | Q86: =IFERROR(1/O86,"") -> 7.383262315 | R86: =IF(SUM(R80:R85)=0,"",SUM(R80:R85)) -> 0.4939974199 | S86: =IFERROR(S78*R86,"") -> 0.4939974199 | T86: =IFERROR(AVERAGE(T80:T85),"") -> 2.202292567 | U86: =IF(SUM(U80:U85)=0,"",SUM(U80:U85)) -> 4.378616317
R87: =AVERAGE(R80:R85) -> 0.08233290331
B88: Zusatzlotterie LOTTO Plus | E88: 1 | F88: vs. | I88: MiniLotto ⁷ | L88: 1 | M88: vs.
B89: 6 aus 45 | E89: =E88*0.5 -> 0.5 | I89: 5 aus 42 | L89: =L88*0.5 -> 0.5 | P89: Extragehalt ⁷ | S89: 1
B90: Richtige | C90: =IF(E88=1,"Chancen 1:","Ø Gewinne 1:") -> Chancen 1: | D90: Ø AQ | E90: (Ø) Gewinn | F90: =IFERROR(COUNTIF(E91:E94,"Freispiel"),"") -> 0 | G90: =IFERROR(SUMIF(E91:E94,"<>Freispiel",D91:D94),"") -> 0.5590566552 | I90: Richtige | J90: =IF(L88=1,"Chancen 1:","Ø Gewinne 1:") -> Chancen 1: | K90: Ø AQ | L90: (Ø) Gewinn | M90: =IFERROR(COUNTIF(L91:L94,"Freispiel"),"") -> 0 | N90: =IFERROR(SUMIF(L91:L94,"<>Freispiel",K91:K94),"") -> 0.5154996398 | P90: 5 aus 42 | S90: =S89*0.5 -> 0.5
A91: =IF(C91="",0,1/C91) -> 1.22773804e-07 | B91: 6 | C91: =IF(OR(E91<=0,AND(E91>1000000000,E91<>"Freispiel")),"",1/HYPGEOMDIST(6,6,6,45)/E88) -> 8145060 | D91: =IF(OR(E91<=0,F90>1),"",IF(E91="Freispiel",G90/(1-(1/C91))/C91,IF(E91>1000000000,"",E91/C91/E89))) -> 0.122773804 | E91: 500000 | F91: =IFERROR(IF(D91<D96,D96/D91,D91/D96),"") -> 1.1383875 | G91: =IFERROR(D91/IF((C91*E89)<1500,1500,C91*E89)^0.25*62.2333,"") -> 0.1700836118 | H91: =IF(J91="",0,1/J91) -> 1.175546747e-06 | I91: 5 | J91: =IF(OR(L91<=0,AND(L91>1000000000,L91<>"Freispiel")),"",1/HYPGEOMDIST(5,5,5,42)/L88) -> 850668 | K91: =IF(OR(L91<=0,M90>1),"",IF(L91="Freispiel",N90/(1-(1/J91))/J91,IF(L91>1000000000,"",L91/J91/L89))) -> 0.1327416191 | L91: 56459.52381 | M91: =IFERROR(IF(K91<K96,K96/K91,K91/K96),"") -> 1.030003583 | N91: =IFERROR(K91/IF((J91*L89)<1500,1500,J91*L89)^0.25*62.2333,"") -> 0.3234799863 | O91: =IFERROR(IF(R91="",0,1/Q91),"") ->  | P91: Richtige | Q91: =IF(S89=1,"Chancen 1:","Ø Gewinne 1:") -> Chancen 1: | R91: Ø AQ | S91: (Ø) Gewinn | T91: =IFERROR(COUNTIF(S92:S94,"Freispiel"),"") -> 0 | U91: =IFERROR(SUMIF(S92:S94,"<>Freispiel",R92:R94),"") -> 0.4971991759
A92: 2.872907014e-05 | B92: 5 | C92: =IF(OR(E92<=0,AND(E92>1000000000,E92<>"Freispiel")),"",1/HYPGEOMDIST(5,6,6,45)/E88) -> 34807.94872 | D92: =IF(OR(E92<=0,F90>1),"",IF(E92="Freispiel",G90/(1-(1/C92))/C92,IF(E92>1000000000,"",E92/C92/E89))) -> 0.1436453507 | E92: 2500 | F92: =IFERROR(IF(D92<D96,D96/D92,D92/D96),"") -> 1.027769542 | G92: =IFERROR(D92/IF((C92*E89)<1500,1500,C92*E89)^0.25*62.2333,"") -> 0.7783094361 | H92: 0.0002174761482 | I92: 4 | J92: =IF(OR(L92<=0,AND(L92>1000000000,L92<>"Freispiel")),"",1/HYPGEOMDIST(4,5,5,42)/L88) -> 4598.205405 | K92: =IF(OR(L92<=0,M90>1),"",IF(L92="Freispiel",N90/(1-(1/J92))/J92,IF(L92>1000000000,"",L92/J92/L89))) -> 0.04349522963 | L92: 100 | M92: =IFERROR(IF(K92<K96,K96/K92,K92/K96),"") -> 2.962966538 | N92: =IFERROR(K92/IF((J92*L89)<1500,1500,J92*L89)^0.25*62.2333,"") -> 0.3909082765 | O92: =IF(Q92="",0,1/Q92) -> 1.175546747e-06 | P92: 5 | Q92: =IF(OR(S92<=0,AND(S92>1000000000,S92<>"Freispiel")),"",1/HYPGEOMDIST(5,5,5,42)/S89) -> 850668 | R92: =IF(OR(S92<=0,T91>1),"",IF(S92="Freispiel",U91/(1-(1/Q92))/Q92,IF(S92>1000000000,"",S92/Q92/S90))) -> 0.07964497145 | S92: =$L$91*0.6 -> 33875.71429 | T92: =IFERROR(IF(R92<R96,R96/R92,R92/R96),"") -> 2.08089796 | U92: =IFERROR(R92/IF((Q92*S90)<1500,1500,Q92*S90)^0.25*62.2333,"") -> 0.1940879918
A93: 0.001364630831 | B93: 4 | C93: =IF(OR(E93<=0,AND(E93>1000000000,E93<>"Freispiel")),"",1/HYPGEOMDIST(4,6,6,45)/E88) -> 732.7989204 | D93: =IF(OR(E93<=0,F90>1),"",IF(E93="Freispiel",G90/(1-(1/C93))/C93,IF(E93>1000000000,"",E93/C93/E89))) -> 0.06823154157 | E93: 25 | F93: =IFERROR(IF(D93<D96,D96/D93,D93/D96),"") -> 2.048380567 | G93: =IFERROR(D93/IF((C93*E89)<1500,1500,C93*E89)^0.25*62.2333,"") -> 0.6823154406 | H93: 0.007829141334 | I93: 3 | J93: =IF(OR(L93<=0,AND(L93>1000000000,L93<>"Freispiel")),"",1/HYPGEOMDIST(3,5,5,42)/L88) -> 127.7279279 | K93: =IF(OR(L93<=0,M90>1),"",IF(L93="Freispiel",N90/(1-(1/J93))/J93,IF(L93>1000000000,"",L93/J93/L89))) -> 0.1565828267 | L93: 10 | M93: =IFERROR(IF(K93<K96,K96/K93,K93/K96),"") -> 1.214998534 | N93: =IFERROR(K93/IF((J93*L89)<1500,1500,J93*L89)^0.25*62.2333,"") -> 1.565828324 | O93: 0.0002174761482 | P93: 4 | Q93: =IF(OR(S93<=0,AND(S93>1000000000,S93<>"Freispiel")),"",1/HYPGEOMDIST(4,5,5,42)/S89) -> 4598.205405 | R93: =IF(OR(S93<=0,T91>1),"",IF(S93="Freispiel",U91/(1-(1/Q93))/Q93,IF(S93>1000000000,"",S93/Q93/S90))) -> 0.2609713778 | S93: 600 | T93: =IFERROR(IF(R93<R96,R96/R93,R93/R96),"") -> 1.574648896 | U93: =IFERROR(R93/IF((Q93*S90)<1500,1500,Q93*S90)^0.25*62.2333,"") -> 2.345449659
A94: 0.02244059589 | B94: 3 | C94: =IF(OR(E94<=0,AND(E94>1000000000,E94<>"Freispiel")),"",1/HYPGEOMDIST(3,6,6,45)/E88) -> 44.56209651 | D94: =IF(OR(E94<=0,F90>1),"",IF(E94="Freispiel",G90/(1-(1/C94))/C94,IF(E94>1000000000,"",E94/C94/E89))) -> 0.2244059589 | E94: 5 | F94: =IFERROR(IF(D94<D96,D96/D94,D94/D96),"") -> 1.605604419 | G94: =IFERROR(D94/IF((C94*E89)<1500,1500,C94*E89)^0.25*62.2333,"") -> 2.244059671 | H94: 0.09133998223 | I94: 2 | J94: =IF(OR(L94<=0,AND(L94>1000000000,L94<>"Freispiel")),"",1/HYPGEOMDIST(2,5,5,42)/L88) -> 10.94810811 | K94: =IF(OR(L94<=0,M90>1),"",IF(L94="Freispiel",N90/(1-(1/J94))/J94,IF(L94>1000000000,"",L94/J94/L89))) -> 0.1826799645 | L94: 1 | M94: =IFERROR(IF(K94<K96,K96/K94,K94/K96),"") -> 1.41749829 | N94: =IFERROR(K94/IF((J94*L89)<1500,1500,J94*L89)^0.25*62.2333,"") -> 1.826799711 | O94: 0.007829141334 | P94: 3 | Q94: =IF(OR(S94<=0,AND(S94>1000000000,S94<>"Freispiel")),"",1/HYPGEOMDIST(3,5,5,42)/S89) -> 127.7279279 | R94: =IF(OR(S94<=0,T91>1),"",IF(S94="Freispiel",U91/(1-(1/Q94))/Q94,IF(S94>1000000000,"",S94/Q94/S90))) -> 0.1565828267 | S94: 10 | T94: =IFERROR(IF(R94<R96,R96/R94,R94/R96),"") -> 1.058437008 | U94: =IFERROR(R94/IF((Q94*S90)<1500,1500,Q94*S90)^0.25*62.2333,"") -> 1.565828324
A95: =IF(SUM(A91:A94)=0,"",SUM(A91:A94)) -> 0.02383407857 | B95: Gesamt | C95: =IFERROR(1/A95,"") -> 41.95673003 | D95: =IF(SUM(D91:D94)=0,"",SUM(D91:D94)) -> 0.5590566552 | E95: =IFERROR(E89*D95,"") -> 0.2795283276 | F95: =IFERROR(AVERAGE(F91:F94),"") -> 1.455035507 | G95: =IF(SUM(G91:G94)=0,"",SUM(G91:G94)) -> 3.87476816 | H95: =IF(SUM(H91:H94)=0,"",SUM(H91:H94)) -> 0.09938777525 | I95: Gesamt | J95: =IFERROR(1/H95,"") -> 10.0615996 | K95: =IF(SUM(K91:K94)=0,"",SUM(K91:K94)) -> 0.5154996398 | L95: =IFERROR(L89*K95,"") -> 0.2577498199 | M95: =IFERROR(AVERAGE(M91:M94),"") -> 1.656366736 | N95: =IF(SUM(N91:N94)=0,"",SUM(N91:N94)) -> 4.107016298 | O95: =IF(SUM(O92:O94)=0,"",SUM(O92:O94)) -> 0.008047793029 | P95: Gesamt | Q95: =IFERROR(1/O95,"") -> 124.2576687 | R95: =IF(SUM(R92:R94)=0,"",SUM(R92:R94)) -> 0.4971991759 | S95: =IFERROR(S90*R95,"") -> 0.248599588 | T95: =IFERROR(AVERAGE(T92:T94),"") -> 1.571327955 | U95: =IF(SUM(U92:U94)=0,"",SUM(U92:U94)) -> 4.105365975
D96: =AVERAGE(D91:D94) -> 0.1397641638 | K96: =AVERAGE(K91:K94) -> 0.12887491 | R96: =AVERAGE(R92:R94) -> 0.1657330586
B98: TeleLotto | E98: 1 | F98: vs. | I98: Urlaubsgeld + Geldregen ⁷ | L98: 1 | M98: vs. | P98: ExtraCash ⁷ | S98: 1
B99: 5 aus 35 | E99: =E98*0.5 -> 0.5 | I99: 5 aus 42 | L99: =L98*1 -> 1 | P99: 5 aus 42 | S99: =S98*1 -> 1
B100: Richtige | C100: =IF(E98=1,"Chancen 1:","Ø Gewinne 1:") -> Chancen 1: | D100: Ø AQ | E100: (Ø) Gewinn | F100: =IFERROR(COUNTIF(E101:E103,"Freispiel"),"") -> 0 | G100: =IFERROR(SUMIF(E101:E103,"<>Freispiel",D101:D103),"") -> 0.6148500456 | I100: Richtige | J100: =IF(L98=1,"Chancen 1:","Ø Gewinne 1:") -> Chancen 1: | K100: Ø AQ | L100: (Ø) Gewinn | M100: =IFERROR(COUNTIF(L101:L103,"Freispiel"),"") -> 0 | N100: =IFERROR(SUMIF(L101:L103,"<>Freispiel",K101:K103),"") -> 0.5333805455 | P100: Richtige | Q100: =IF(S98=1,"Chancen 1:","Ø Gewinne 1:") -> Chancen 1: | R100: Ø AQ | S100: (Ø) Gewinn | T100: =IFERROR(COUNTIF(S101:S103,"Freispiel"),"") -> 0 | U100: =IFERROR(SUMIF(S101:S103,"<>Freispiel",R101:R103),"") -> 0.3768788876
A101: =IF(C101="",0,1/C101) -> 3.08041105e-06 | B101: 5 | C101: =IF(OR(E101<=0,AND(E101>1000000000,E101<>"Freispiel")),"",1/HYPGEOMDIST(5,5,5,35)/E98) -> 324632 | D101: =IF(OR(E101<=0,F100>1),"",IF(E101="Freispiel",G100/(1-(1/C101))/C101,IF(E101>1000000000,"",E101/C101/E99))) -> 0.308041105 | E101: 50000 | F101: =IFERROR(IF(D101<D105,D105/D101,D101/D105),"") -> 1.503006012 | G101: =IFERROR(D101/IF((C101*E99)<1500,1500,C101*E99)^0.25*62.2333,"") -> 0.9550831218 | H101: =IF(J101="",0,1/J101) -> 1.175546747e-06 | I101: 5 | J101: =IF(OR(L101<=0,AND(L101>1000000000,L101<>"Freispiel")),"",1/HYPGEOMDIST(5,5,5,42)/L98) -> 850668 | K101: =IF(OR(L101<=0,M100>1),"",IF(L101="Freispiel",N100/(1-(1/J101))/J101,IF(L101>1000000000,"",L101/J101/L99))) -> 0.03318540477 | L101: =$L$91*0.5 -> 28229.7619 | M101: =IFERROR(IF(K101<K105,K105/K101,K101/K105),"") -> 5.357581636 | N101: =IFERROR(K101/IF((J101*L99)<1500,1500,J101*L99)^0.25*62.2333,"") -> 0.06800329022 | O101: =IF(Q101="",0,1/Q101) -> 1.175546747e-06 | P101: 5 | Q101: =IF(OR(S101<=0,AND(S101>1000000000,S101<>"Freispiel")),"",1/HYPGEOMDIST(5,5,5,42)/S98) -> 850668 | R101: =IF(OR(S101<=0,T100>1),"",IF(S101="Freispiel",U100/(1-(1/Q101))/Q101,IF(S101>1000000000,"",S101/Q101/S99))) -> 0.1659270238 | S101: =$L$91*2.5 -> 141148.8095 | T101: =IFERROR(IF(R101<R105,R105/R101,R101/R105),"") -> 1.320798506 | U101: =IFERROR(R101/IF((Q101*S99)<1500,1500,Q101*S99)^0.25*62.2333,"") -> 0.3400164511
A102: 0.0004620616575 | B102: 4 | C102: =IF(OR(E102<=0,AND(E102>1000000000,E102<>"Freispiel")),"",1/HYPGEOMDIST(4,5,5,35)/E98) -> 2164.213333 | D102: =IF(OR(E102<=0,F100>1),"",IF(E102="Freispiel",G100/(1-(1/C102))/C102,IF(E102>1000000000,"",E102/C102/E99))) -> 0.0924123315 | E102: 100 | F102: =IFERROR(IF(D102<D105,D105/D102,D102/D105),"") -> 2.217777778 | G102: =IFERROR(D102/IF((C102*E99)<1500,1500,C102*E99)^0.25*62.2333,"") -> 0.9241233487 | H102: 0.0002174761482 | I102: 4 | J102: =IF(OR(L102<=0,AND(L102>1000000000,L102<>"Freispiel")),"",1/HYPGEOMDIST(4,5,5,42)/L98) -> 4598.205405 | K102: =IF(OR(L102<=0,M100>1),"",IF(L102="Freispiel",N100/(1-(1/J102))/J102,IF(L102>1000000000,"",L102/J102/L99))) -> 0.1087380741 | L102: 500 | M102: =IFERROR(IF(K102<K105,K105/K102,K102/K105),"") -> 1.635062205 | N102: =IFERROR(K102/IF((J102*L99)<1500,1500,J102*L99)^0.25*62.2333,"") -> 0.821783421 | O102: 0.0002174761482 | P102: 4 | Q102: =IF(OR(S102<=0,AND(S102>1000000000,S102<>"Freispiel")),"",1/HYPGEOMDIST(4,5,5,42)/S98) -> 4598.205405 | R102: =IF(OR(S102<=0,T100>1),"",IF(S102="Freispiel",U100/(1-(1/Q102))/Q102,IF(S102>1000000000,"",S102/Q102/S99))) -> 0.05436903704 | S102: 250 | T102: =IFERROR(IF(R102<R105,R105/R102,R102/R105),"") -> 2.310622051 | U102: =IFERROR(R102/IF((Q102*S99)<1500,1500,Q102*S99)^0.25*62.2333,"") -> 0.4108917105
A103: 0.01339978807 | B103: 3 | C103: =IF(OR(E103<=0,AND(E103>1000000000,E103<>"Freispiel")),"",1/HYPGEOMDIST(3,5,5,35)/E98) -> 74.62804598 | D103: =IF(OR(E103<=0,F100>1),"",IF(E103="Freispiel",G100/(1-(1/C103))/C103,IF(E103>1000000000,"",E103/C103/E99))) -> 0.2143966091 | E103: 8 | F103: =IFERROR(IF(D103<D105,D105/D103,D103/D105),"") -> 1.046092184 | G103: =IFERROR(D103/IF((C103*E99)<1500,1500,C103*E99)^0.25*62.2333,"") -> 2.143966169 | H103: 0.007829141334 | I103: 3 | J103: =IF(OR(L103<=0,AND(L103>1000000000,L103<>"Freispiel")),"",1/HYPGEOMDIST(3,5,5,42)/L98) -> 127.7279279 | K103: =IF(OR(L103<=0,M100>1),"",IF(L103="Freispiel",N100/(1-(1/J103))/J103,IF(L103>1000000000,"",L103/J103/L99))) -> 0.3914570667 | L103: 50 | M103: =IFERROR(IF(K103<K105,K105/K103,K103/K105),"") -> 2.201751095 | N103: =IFERROR(K103/IF((J103*L99)<1500,1500,J103*L99)^0.25*62.2333,"") -> 3.91457081 | O103: 0.007829141334 | P103: 3 | Q103: =IF(OR(S103<=0,AND(S103>1000000000,S103<>"Freispiel")),"",1/HYPGEOMDIST(3,5,5,42)/S98) -> 127.7279279 | R103: =IF(OR(S103<=0,T100>1),"",IF(S103="Freispiel",U100/(1-(1/Q103))/Q103,IF(S103>1000000000,"",S103/Q103/S99))) -> 0.1565828267 | S103: 20 | T103: =IFERROR(IF(R103<R105,R105/R103,R103/R105),"") -> 1.246417604 | U103: =IFERROR(R103/IF((Q103*S99)<1500,1500,Q103*S99)^0.25*62.2333,"") -> 1.565828324
A104: =IF(SUM(A101:A103)=0,"",SUM(A101:A103)) -> 0.01386493014 | B104: Gesamt | C104: =IFERROR(1/A104,"") -> 72.1244168 | D104: =IF(SUM(D101:D103)=0,"",SUM(D101:D103)) -> 0.6148500456 | E104: =IFERROR(E99*D104,"") -> 0.3074250228 | F104: =IFERROR(AVERAGE(F101:F103),"") -> 1.588958658 | G104: =IF(SUM(G101:G103)=0,"",SUM(G101:G103)) -> 4.02317264 | H104: =IF(SUM(H101:H103)=0,"",SUM(H101:H103)) -> 0.008047793029 | I104: Gesamt | J104: =IFERROR(1/H104,"") -> 124.2576687 | K104: =IF(SUM(K101:K103)=0,"",SUM(K101:K103)) -> 0.5333805455 | L104: =IFERROR(L99*K104,"") -> 0.5333805455 | M104: =IFERROR(AVERAGE(M101:M103),"") -> 3.064798312 | N104: =IF(SUM(N101:N103)=0,"",SUM(N101:N103)) -> 4.804357521 | O104: =IF(SUM(O101:O103)=0,"",SUM(O101:O103)) -> 0.008047793029 | P104: Gesamt | Q104: =IFERROR(1/O104,"") -> 124.2576687 | R104: =IF(SUM(R101:R103)=0,"",SUM(R101:R103)) -> 0.3768788876 | S104: =IFERROR(S99*R104,"") -> 0.3768788876 | T104: =IFERROR(AVERAGE(T101:T103),"") -> 1.625946053 | U104: =IF(SUM(U101:U103)=0,"",SUM(U101:U103)) -> 2.316736486
D105: =AVERAGE(D101:D103) -> 0.2049500152 | K105: =AVERAGE(K101:K103) -> 0.1777935152 | R105: =AVERAGE(R101:R103) -> 0.1256262959
B107: Millionenkracher ⁷ | E107: 1 | F107: vs. | I107: Weihnachtsgeld ⁷ | L107: 1 | M107: vs. | P107: BlitzCash ⁷ | S107: 1
B108: 5 aus 42 | E108: =E107*2.5 -> 2.5 | I108: 5 aus 42 | L108: =L107*2 -> 2 | P108: 5 aus 42 | S108: =S107*2 -> 2
B109: Richtige | C109: =IF(E107=1,"Chancen 1:","Ø Gewinne 1:") -> Chancen 1: | D109: Ø AQ | E109: (Ø) Gewinn | F109: =IFERROR(COUNTIF(E110:E112,"Freispiel"),"") -> 0 | G109: =IFERROR(SUMIF(E110:E112,"<>Freispiel",D110:D112),"") -> 0.3655222663 | I109: Richtige | J109: =IF(L107=1,"Chancen 1:","Ø Gewinne 1:") -> Chancen 1: | K109: Ø AQ | L109: (Ø) Gewinn | M109: =IFERROR(COUNTIF(L110:L112,"Freispiel"),"") -> 0 | N109: =IFERROR(SUMIF(L110:L112,"<>Freispiel",K110:K112),"") -> 0.3818735618 | P109: Richtige | Q109: =IF(S107=1,"Chancen 1:","Ø Gewinne 1:") -> Chancen 1: | R109: Ø AQ | S109: (Ø) Gewinn | T109: =IFERROR(COUNTIF(S110:S112,"Freispiel"),"") -> 0 | U109: =IFERROR(SUMIF(S110:S112,"<>Freispiel",R110:R112),"") -> 0.4526729638
A110: =IF(C110="",0,1/C110) -> 1.175546747e-06 | B110: 5 | C110: =IF(OR(E110<=0,AND(E110>1000000000,E110<>"Freispiel")),"",1/HYPGEOMDIST(5,5,5,42)/E107) -> 850668 | D110: =IF(OR(E110<=0,F109>1),"",IF(E110="Freispiel",G109/(1-(1/C110))/C110,IF(E110>1000000000,"",E110/C110/E108))) -> 0.2654832382 | E110: =$L$91*10 -> 564595.2381 | F110: =IFERROR(IF(D110<D114,D114/D110,D110/D114),"") -> 2.178936245 | G110: =IFERROR(D110/IF((C110*E108)<1500,1500,C110*E108)^0.25*62.2333,"") -> 0.4326482094 | H110: =IF(J110="",0,1/J110) -> 1.175546747e-06 | I110: 5 | J110: =IF(OR(L110<=0,AND(L110>1000000000,L110<>"Freispiel")),"",1/HYPGEOMDIST(5,5,5,42)/L107) -> 850668 | K110: =IF(OR(L110<=0,M109>1),"",IF(L110="Freispiel",N109/(1-(1/J110))/J110,IF(L110>1000000000,"",L110/J110/L108))) -> 0.3318540477 | L110: =$L$91*10 -> 564595.2381 | M110: =IFERROR(IF(K110<K114,K114/K110,K110/K114),"") -> 2.607046527 | N110: =IFERROR(K110/IF((J110*L108)<1500,1500,J110*L108)^0.25*62.2333,"") -> 0.5718372297 | O110: =IF(Q110="",0,1/Q110) -> 1.175546747e-06 | P110: 5 | Q110: =IF(OR(S110<=0,AND(S110>1000000000,S110<>"Freispiel")),"",1/HYPGEOMDIST(5,5,5,42)/S107) -> 850668 | R110: =IF(OR(S110<=0,T109>1),"",IF(S110="Freispiel",U109/(1-(1/Q110))/Q110,IF(S110>1000000000,"",S110/Q110/S108))) -> 0.08296351192 | S110: =$L$91*2.5 -> 141148.8095 | T110: =IFERROR(IF(R110<R114,R114/R110,R110/R114),"") -> 1.818763266 | U110: =IFERROR(R110/IF((Q110*S108)<1500,1500,Q110*S108)^0.25*62.2333,"") -> 0.1429593074
A111: 0.0002174761482 | B111: 4 | C111: =IF(OR(E111<=0,AND(E111>1000000000,E111<>"Freispiel")),"",1/HYPGEOMDIST(4,5,5,42)/E107) -> 4598.205405 | D111: =IF(OR(E111<=0,F109>1),"",IF(E111="Freispiel",G109/(1-(1/C111))/C111,IF(E111>1000000000,"",E111/C111/E108))) -> 0.02174761482 | E111: 250 | F111: =IFERROR(IF(D111<D114,D114/D111,D111/D114),"") -> 5.602488202 | G111: =IFERROR(D111/IF((C111*E108)<1500,1500,C111*E108)^0.25*62.2333,"") -> 0.13070806 | H111: 0.0002174761482 | I111: 4 | J111: =IF(OR(L111<=0,AND(L111>1000000000,L111<>"Freispiel")),"",1/HYPGEOMDIST(4,5,5,42)/L107) -> 4598.205405 | K111: =IF(OR(L111<=0,M109>1),"",IF(L111="Freispiel",N109/(1-(1/J111))/J111,IF(L111>1000000000,"",L111/J111/L108))) -> 0.01087380741 | L111: 100 | M111: =IFERROR(IF(K111<K114,K114/K111,K111/K114),"") -> 11.70622051 | N111: =IFERROR(K111/IF((J111*L108)<1500,1500,J111*L108)^0.25*62.2333,"") -> 0.06910347329 | O111: 0.0002174761482 | P111: 4 | Q111: =IF(OR(S111<=0,AND(S111>1000000000,S111<>"Freispiel")),"",1/HYPGEOMDIST(4,5,5,42)/S107) -> 4598.205405 | R111: =IF(OR(S111<=0,T109>1),"",IF(S111="Freispiel",U109/(1-(1/Q111))/Q111,IF(S111>1000000000,"",S111/Q111/S108))) -> 0.2718451852 | S111: 2500 | T111: =IFERROR(IF(R111<R114,R114/R111,R111/R114),"") -> 1.801599876 | U111: =IFERROR(R111/IF((Q111*S108)<1500,1500,Q111*S108)^0.25*62.2333,"") -> 1.727586832
A112: 0.007829141334 | B112: 3 | C112: =IF(OR(E112<=0,AND(E112>1000000000,E112<>"Freispiel")),"",1/HYPGEOMDIST(3,5,5,42)/E107) -> 127.7279279 | D112: =IF(OR(E112<=0,F109>1),"",IF(E112="Freispiel",G109/(1-(1/C112))/C112,IF(E112>1000000000,"",E112/C112/E108))) -> 0.07829141334 | E112: 25 | F112: =IFERROR(IF(D112<D114,D114/D112,D112/D114),"") -> 1.556246723 | G112: =IFERROR(D112/IF((C112*E108)<1500,1500,C112*E108)^0.25*62.2333,"") -> 0.7829141619 | H112: 0.007829141334 | I112: 3 | J112: =IF(OR(L112<=0,AND(L112>1000000000,L112<>"Freispiel")),"",1/HYPGEOMDIST(3,5,5,42)/L107) -> 127.7279279 | K112: =IF(OR(L112<=0,M109>1),"",IF(L112="Freispiel",N109/(1-(1/J112))/J112,IF(L112>1000000000,"",L112/J112/L108))) -> 0.03914570667 | L112: 10 | M112: =IFERROR(IF(K112<K114,K114/K112,K112/K114),"") -> 3.251727918 | N112: =IFERROR(K112/IF((J112*L108)<1500,1500,J112*L108)^0.25*62.2333,"") -> 0.391457081 | O112: 0.007829141334 | P112: 3 | Q112: =IF(OR(S112<=0,AND(S112>1000000000,S112<>"Freispiel")),"",1/HYPGEOMDIST(3,5,5,42)/S107) -> 127.7279279 | R112: =IF(OR(S112<=0,T109>1),"",IF(S112="Freispiel",U109/(1-(1/Q112))/Q112,IF(S112>1000000000,"",S112/Q112/S108))) -> 0.09786426667 | S112: 25 | T112: =IFERROR(IF(R112<R114,R114/R112,R112/R114),"") -> 1.541839459 | U112: =IFERROR(R112/IF((Q112*S108)<1500,1500,Q112*S108)^0.25*62.2333,"") -> 0.9786427024
A113: =IF(SUM(A110:A112)=0,"",SUM(A110:A112)) -> 0.008047793029 | B113: Gesamt | C113: =IFERROR(1/A113,"") -> 124.2576687 | D113: =IF(SUM(D110:D112)=0,"",SUM(D110:D112)) -> 0.3655222663 | E113: =IFERROR(E108*D113,"") -> 0.9138056658 | F113: =IFERROR(AVERAGE(F110:F112),"") -> 3.112557057 | G113: =IF(SUM(G110:G112)=0,"",SUM(G110:G112)) -> 1.346270431 | H113: =IF(SUM(H110:H112)=0,"",SUM(H110:H112)) -> 0.008047793029 | I113: Gesamt | J113: =IFERROR(1/H113,"") -> 124.2576687 | K113: =IF(SUM(K110:K112)=0,"",SUM(K110:K112)) -> 0.3818735618 | L113: =IFERROR(L108*K113,"") -> 0.7637471235 | M113: =IFERROR(AVERAGE(M110:M112),"") -> 5.854998317 | N113: =IF(SUM(N110:N112)=0,"",SUM(N110:N112)) -> 1.032397784 | O113: =IF(SUM(O110:O112)=0,"",SUM(O110:O112)) -> 0.008047793029 | P113: Gesamt | Q113: =IFERROR(1/O113,"") -> 124.2576687 | R113: =IF(SUM(R110:R112)=0,"",SUM(R110:R112)) -> 0.4526729638 | S113: =IFERROR(S108*R113,"") -> 0.9053459276 | T113: =IFERROR(AVERAGE(T110:T112),"") -> 1.7207342 | U113: =IF(SUM(U110:U112)=0,"",SUM(U110:U112)) -> 2.849188842
D114: =AVERAGE(D110:D112) -> 0.1218407554 | K114: =AVERAGE(K110:K112) -> 0.1272911873 | R114: =AVERAGE(R110:R112) -> 0.1508909879
B116: Zusatzlotterie SUPER 6 | E116: 1 | F116: vs. | I116: Zusatzlotterie JOKER (Österreich) | L116: 1 | M116: vs. | P116: Zusatzlotterie JOKER (Schweiz) | S116: 1
B117: 6 x 1 aus 10 | E117: =E116*1.25 -> 1.25 | I117: 6 x 1 aus 10 | L117: =L116*1.5 -> 1.5 | P117: 6 x 1 aus 10 | S117: =S116*2 -> 2
B118: Richtige | C118: =IF(E116=1,"Chancen 1:","Ø Gewinne 1:") -> Chancen 1: | D118: Ø AQ | E118: (Ø) Gewinn | F118: =IFERROR(COUNTIF(E119:E124,"Freispiel"),"") -> 0 | G118: =IFERROR(SUMIF(E119:E124,"<>Freispiel",D119:D124),"") -> 0.4466672 | I118: Richtige | J118: =IF(L116=1,"Chancen 1:","Ø Gewinne 1:") -> Chancen 1: | K118: Ø AQ | L118: (Ø) Gewinn | M118: =IFERROR(COUNTIF(L119:L124,"Freispiel"),"") -> 0 | N118: =IFERROR(SUMIF(L119:L124,"<>Freispiel",K119:K124),"") -> 0.497408 | P118: Richtige | Q118: =IF(S116=1,"Chancen 1:","Ø Gewinne 1:") -> Chancen 1: | R118: Ø AQ | S118: (Ø) Gewinn | T118: =IFERROR(COUNTIF(S119:S124,"Freispiel"),"") -> 0 | U118: =IFERROR(SUMIF(S119:S124,"<>Freispiel",R119:R124),"") -> 0.47
A119: =IF(C119="",0,1/C119) -> 1e-06 | B119: 6 | C119: =IF(OR(E119<=0,AND(E119>1000000000,E119<>"Freispiel")),"",10^6/E116) -> 1000000 | D119: =IF(OR(E119<=0,F118>1),"",IF(E119="Freispiel",G118/(1-(1/C119))/C119,IF(E119>1000000000,"",E119/C119/E117))) -> 0.08 | E119: 100000 | F119: =IFERROR(IF(D119<D126,D126/D119,D119/D126),"") -> 1.074625583 | G119: =IFERROR(D119/IF((C119*E117)<1500,1500,C119*E117)^0.25*62.2333,"") -> 0.1488967829 | H119: =IF(J119="",0,1/J119) -> 1e-06 | I119: 6 | J119: =IF(OR(L119<=0,AND(L119>1000000000,L119<>"Freispiel")),"",10^6/L116) -> 1000000 | K119: =IF(OR(L119<=0,M118>1),"",IF(L119="Freispiel",N118/(1-(1/J119))/J119,IF(L119>1000000000,"",L119/J119/L117))) -> 0.2 | L119: 300000 | M119: =IFERROR(IF(K119<K126,K126/K119,K119/K126),"") -> 2.412506433 | N119: =IFERROR(K119/IF((J119*L117)<1500,1500,J119*L117)^0.25*62.2333,"") -> 0.355655895 | O119: =IF(Q119="",0,1/Q119) -> 1e-06 | P119: 6 | Q119: =IF(OR(S119<=0,AND(S119>1000000000,S119<>"Freispiel")),"",10^6/S116) -> 1000000 | R119: =IF(OR(S119<=0,T118>1),"",IF(S119="Freispiel",U118/(1-(1/Q119))/Q119,IF(S119>1000000000,"",S119/Q119/S117))) -> 0.2 | S119: 400000 | T119: =IFERROR(IF(R119<R126,R126/R119,R119/R126),"") -> 2.553191489 | U119: =IFERROR(R119/IF((Q119*S117)<1500,1500,Q119*S117)^0.25*62.2333,"") -> 0.330975104
A120: 9e-06 | B120: 5 | C120: =IF(OR(E120<=0,AND(E120>1000000000,E120<>"Freispiel")),"",1/(0.00001*0.9)/E116) -> 111111.1111 | D120: =IF(OR(E120<=0,F118>1),"",IF(E120="Freispiel",G118/(1-(1/C120))/C120,IF(E120>1000000000,"",E120/C120/E117))) -> 0.0479952 | E120: 6666 | F120: =IFERROR(IF(D120<D126,D126/D120,D120/D126),"") -> 1.551082886 | G120: =IFERROR(D120/IF((C120*E117)<1500,1500,C120*E117)^0.25*62.2333,"") -> 0.154722602 | H120: 9e-06 | I120: 5 | J120: =IF(OR(L120<=0,AND(L120>1000000000,L120<>"Freispiel")),"",1/(0.00001*0.9)/L116) -> 111111.1111 | K120: =IF(OR(L120<=0,M118>1),"",IF(L120="Freispiel",N118/(1-(1/J120))/J120,IF(L120>1000000000,"",L120/J120/L117))) -> 0.053328 | L120: 8888 | M120: =IFERROR(IF(K120<K126,K126/K120,K120/K126),"") -> 1.554555456 | N120: =IFERROR(K120/IF((J120*L117)<1500,1500,J120*L117)^0.25*62.2333,"") -> 0.1642539943 | O120: 9e-06 | P120: 5 | Q120: =IF(OR(S120<=0,AND(S120>1000000000,S120<>"Freispiel")),"",1/(0.00001*0.9)/S116) -> 111111.1111 | R120: =IF(OR(S120<=0,T118>1),"",IF(S120="Freispiel",U118/(1-(1/Q120))/Q120,IF(S120>1000000000,"",S120/Q120/S117))) -> 0.045 | S120: 10000 | T120: =IFERROR(IF(R120<R126,R126/R120,R120/R126),"") -> 1.740740741 | U120: =IFERROR(R120/IF((Q120*S117)<1500,1500,Q120*S117)^0.25*62.2333,"") -> 0.1289847817
A121: 9e-05 | B121: 4 | C121: =IF(OR(E121<=0,AND(E121>1000000000,E121<>"Freispiel")),"",1/(0.0001*0.9)/E116) -> 11111.11111 | D121: =IF(OR(E121<=0,F118>1),"",IF(E121="Freispiel",G118/(1-(1/C121))/C121,IF(E121>1000000000,"",E121/C121/E117))) -> 0.047952 | E121: 666 | F121: =IFERROR(IF(D121<D126,D126/D121,D121/D126),"") -> 1.552480258 | G121: =IFERROR(D121/IF((C121*E117)<1500,1500,C121*E117)^0.25*62.2333,"") -> 0.2748923667 | H121: 9e-05 | I121: 4 | J121: =IF(OR(L121<=0,AND(L121>1000000000,L121<>"Freispiel")),"",1/(0.0001*0.9)/L116) -> 11111.11111 | K121: =IF(OR(L121<=0,M118>1),"",IF(L121="Freispiel",N118/(1-(1/J121))/J121,IF(L121>1000000000,"",L121/J121/L117))) -> 0.05328 | L121: 888 | M121: =IFERROR(IF(K121<K126,K126/K121,K121/K126),"") -> 1.555955956 | N121: =IFERROR(K121/IF((J121*L117)<1500,1500,J121*L117)^0.25*62.2333,"") -> 0.2918265893 | O121: 9e-05 | P121: 4 | Q121: =IF(OR(S121<=0,AND(S121>1000000000,S121<>"Freispiel")),"",1/(0.0001*0.9)/S116) -> 11111.11111 | R121: =IF(OR(S121<=0,T118>1),"",IF(S121="Freispiel",U118/(1-(1/Q121))/Q121,IF(S121>1000000000,"",S121/Q121/S117))) -> 0.045 | S121: 1000 | T121: =IFERROR(IF(R121<R126,R126/R121,R121/R126),"") -> 1.740740741 | U121: =IFERROR(R121/IF((Q121*S117)<1500,1500,Q121*S117)^0.25*62.2333,"") -> 0.2293709814
A122: 0.0009 | B122: 3 | C122: =IF(OR(E122<=0,AND(E122>1000000000,E122<>"Freispiel")),"",1/(0.001*0.9)/E116) -> 1111.111111 | D122: =IF(OR(E122<=0,F118>1),"",IF(E122="Freispiel",G118/(1-(1/C122))/C122,IF(E122>1000000000,"",E122/C122/E117))) -> 0.04752 | E122: 66 | F122: =IFERROR(IF(D122<D126,D126/D122,D122/D126),"") -> 1.566593715 | G122: =IFERROR(D122/IF((C122*E117)<1500,1500,C122*E117)^0.25*62.2333,"") -> 0.4752000173 | H122: 0.0009 | I122: 3 | J122: =IF(OR(L122<=0,AND(L122>1000000000,L122<>"Freispiel")),"",1/(0.001*0.9)/L116) -> 1111.111111 | K122: =IF(OR(L122<=0,M118>1),"",IF(L122="Freispiel",N118/(1-(1/J122))/J122,IF(L122>1000000000,"",L122/J122/L117))) -> 0.0528 | L122: 88 | M122: =IFERROR(IF(K122<K126,K126/K122,K122/K126),"") -> 1.57010101 | N122: =IFERROR(K122/IF((J122*L117)<1500,1500,J122*L117)^0.25*62.2333,"") -> 0.5142739969 | O122: 0.0009 | P122: 3 | Q122: =IF(OR(S122<=0,AND(S122>1000000000,S122<>"Freispiel")),"",1/(0.001*0.9)/S116) -> 1111.111111 | R122: =IF(OR(S122<=0,T118>1),"",IF(S122="Freispiel",U118/(1-(1/Q122))/Q122,IF(S122>1000000000,"",S122/Q122/S117))) -> 0.045 | S122: 100 | T122: =IFERROR(IF(R122<R126,R126/R122,R122/R126),"") -> 1.740740741 | U122: =IFERROR(R122/IF((Q122*S117)<1500,1500,Q122*S117)^0.25*62.2333,"") -> 0.4078856935
A123: 0.009 | B123: 2 | C123: =IF(OR(E123<=0,AND(E123>1000000000,E123<>"Freispiel")),"",1/(0.01*0.9)/E116) -> 111.1111111 | D123: =IF(OR(E123<=0,F118>1),"",IF(E123="Freispiel",G118/(1-(1/C123))/C123,IF(E123>1000000000,"",E123/C123/E117))) -> 0.0432 | E123: 6 | F123: =IFERROR(IF(D123<D126,D126/D123,D123/D126),"") -> 1.723253086 | G123: =IFERROR(D123/IF((C123*E117)<1500,1500,C123*E117)^0.25*62.2333,"") -> 0.4320000158 | H123: 0.009 | I123: 2 | J123: =IF(OR(L123<=0,AND(L123>1000000000,L123<>"Freispiel")),"",1/(0.01*0.9)/L116) -> 111.1111111 | K123: =IF(OR(L123<=0,M118>1),"",IF(L123="Freispiel",N118/(1-(1/J123))/J123,IF(L123>1000000000,"",L123/J123/L117))) -> 0.048 | L123: 8 | M123: =IFERROR(IF(K123<K126,K126/K123,K123/K126),"") -> 1.727111111 | N123: =IFERROR(K123/IF((J123*L117)<1500,1500,J123*L117)^0.25*62.2333,"") -> 0.4800000175 | O123: 0.009 | P123: 2 | Q123: =IF(OR(S123<=0,AND(S123>1000000000,S123<>"Freispiel")),"",1/(0.01*0.9)/S116) -> 111.1111111 | R123: =IF(OR(S123<=0,T118>1),"",IF(S123="Freispiel",U118/(1-(1/Q123))/Q123,IF(S123>1000000000,"",S123/Q123/S117))) -> 0.045 | S123: 10 | T123: =IFERROR(IF(R123<R126,R126/R123,R123/R126),"") -> 1.740740741 | U123: =IFERROR(R123/IF((Q123*S117)<1500,1500,Q123*S117)^0.25*62.2333,"") -> 0.4500000164
A124: 0.09 | B124: 1 | C124: =IF(OR(E124<=0,AND(E124>1000000000,E124<>"Freispiel")),"",1/(0.1*0.9)/E116) -> 11.11111111 | D124: =IF(OR(E124<=0,F118>1),"",IF(E124="Freispiel",G118/(1-(1/C124))/C124,IF(E124>1000000000,"",E124/C124/E117))) -> 0.18 | E124: 2.5 | F124: =IFERROR(IF(D124<D126,D126/D124,D124/D126),"") -> 2.417907561 | G124: =IFERROR(D124/IF((C124*E117)<1500,1500,C124*E117)^0.25*62.2333,"") -> 1.800000066 | H124: 0.09 | I124: 1 | J124: =IF(OR(L124<=0,AND(L124>1000000000,L124<>"Freispiel")),"",1/(0.1*0.9)/L116) -> 11.11111111 | K124: =IF(OR(L124<=0,M118>1),"",IF(L124="Freispiel",N118/(1-(1/J124))/J124,IF(L124>1000000000,"",L124/J124/L117))) -> 0.09 | L124: 1.5 | M124: =IFERROR(IF(K124<K126,K126/K124,K124/K126),"") -> 1.085627895 | N124: =IFERROR(K124/IF((J124*L117)<1500,1500,J124*L117)^0.25*62.2333,"") -> 0.9000000328 | O124: 0.09 | P124: 1 | Q124: =IF(OR(S124<=0,AND(S124>1000000000,S124<>"Freispiel")),"",1/(0.1*0.9)/S116) -> 11.11111111 | R124: =IF(OR(S124<=0,T118>1),"",IF(S124="Freispiel",U118/(1-(1/Q124))/Q124,IF(S124>1000000000,"",S124/Q124/S117))) -> 0.09 | S124: 2 | T124: =IFERROR(IF(R124<R126,R126/R124,R124/R126),"") -> 1.14893617 | U124: =IFERROR(R124/IF((Q124*S117)<1500,1500,Q124*S117)^0.25*62.2333,"") -> 0.9000000328
A125: =IF(SUM(A119:A124)=0,"",SUM(A119:A124)) -> 0.1 | B125: Gesamt | C125: =IFERROR(1/A125,"") -> 10 | D125: =IF(SUM(D119:D124)=0,"",SUM(D119:D124)) -> 0.4466672 | E125: =IFERROR(E117*D125,"") -> 0.558334 | F125: =IFERROR(AVERAGE(F119:F124),"") -> 1.647657181 | G125: =IF(SUM(G119:G124)=0,"",SUM(G119:G124)) -> 3.28571185 | H125: =IF(SUM(H119:H124)=0,"",SUM(H119:H124)) -> 0.1 | I125: Gesamt | J125: =IFERROR(1/H125,"") -> 10 | K125: =IF(SUM(K119:K124)=0,"",SUM(K119:K124)) -> 0.497408 | L125: =IFERROR(L117*K125,"") -> 0.746112 | M125: =IFERROR(AVERAGE(M119:M124),"") -> 1.65097631 | N125: =IF(SUM(N119:N124)=0,"",SUM(N119:N124)) -> 2.706010526 | O125: =IF(SUM(O119:O124)=0,"",SUM(O119:O124)) -> 0.1 | P125: Gesamt | Q125: =IFERROR(1/O125,"") -> 10 | R125: =IF(SUM(R119:R124)=0,"",SUM(R119:R124)) -> 0.47 | S125: =IFERROR(S117*R125,"") -> 0.94 | T125: =IFERROR(AVERAGE(T119:T124),"") -> 1.777515104 | U125: =IF(SUM(U119:U124)=0,"",SUM(U119:U124)) -> 2.44721661
D126: =AVERAGE(D119:D124) -> 0.07444453333 | K126: =AVERAGE(K119:K124) -> 0.08290133333 | R126: =AVERAGE(R119:R124) -> 0.07833333333
B128: Hello Monday ⁸ | E128: 1 | F128: vs. | I128: Vive la France ⁹ | L128: 1 | M128: vs. | P128: SonntagsLotto | S128: 1
B129: 5 aus 49 + 1 aus 10 | E129: =E128*2 -> 2 | I129: 5 aus 49 + 1 aus 10 | L129: =L128*2.2 -> 2.2 | P129: 5 aus 54 + 1 aus 10 | S129: =S128*1.5 -> 1.5
B130: Richtige | C130: =IF(E128=1,"Chancen 1:","Ø Gewinne 1:") -> Chancen 1: | D130: Ø AQ | E130: (Ø) Gewinn | F130: =IFERROR(COUNTIF(E131:E140,"Freispiel"),"") -> 0 | G130: =IFERROR(SUMIF(E131:E140,"<>Freispiel",D131:D140),"") -> 0.493683609 | I130: Richtige | J130: =IF(L128=1,"Chancen 1:","Ø Gewinne 1:") -> Chancen 1: | K130: Ø AQ | L130: (Ø) Gewinn | M130: =IFERROR(COUNTIF(L131:L139,"Freispiel"),"") -> 0 | N130: =IFERROR(SUMIF(L131:L139,"<>Freispiel",K131:K139),"") -> 0.4216348745 | P130: Richtige | Q130: =IF(S128=1,"Chancen 1:","Ø Gewinne 1:") -> Chancen 1: | R130: (Ø) AQ | S130: (Ø) Gewinn | T130: =IFERROR(COUNTIF(S131:S139,"Freispiel"),"") -> 0 | U130: =IFERROR(SUMIF(S131:S139,"<>Freispiel",R131:R139),"") -> 0.5102965366
A131: =IF(C131="",0,1/C131) -> 5.244157484e-08 | B131: 5 + ZZ | C131: =IF(OR(E131<=0,AND(E131>1000000000,E131<>"Freispiel")),"",1/(HYPGEOMDIST(5,5,5,49)*HYPGEOMDIST(1,1,1,10))/E128) -> 19068840 | D131: =IF(OR(E131<=0,F130>1),"",IF(E131="Freispiel",G130/(1-(1/C131))/C131,IF(E131>1000000000,"",E131/C131/E129))) -> 0.04719741736 | E131: 1800000 | F131: =IFERROR(IF(D131<D142,D142/D131,D131/D142),"") -> 1.045997083 | G131: =IFERROR(D131/IF((C131*E129)<1500,1500,C131*E129)^0.25*62.2333,"") -> 0.03737683279 | H131: =IF(J131="",0,1/J131) -> 5.244157484e-08 | I131: 5 + ZZ | J131: =IF(OR(L131<=0,AND(L131>1000000000,L131<>"Freispiel")),"",1/(HYPGEOMDIST(5,5,5,49)*HYPGEOMDIST(1,1,1,10))/L128) -> 19068840 | K131: =IF(OR(L131<=0,M130>1),"",IF(L131="Freispiel",N130/(1-(1/J131))/J131,IF(L131>1000000000,"",L131/J131/L129))) -> 0.1107298556 | L131: 4645277.779 | M131: =IFERROR(IF(K131<K141,K141/K131,K131/K141),"") -> 2.363582238 | N131: =IFERROR(K131/IF((J131*L129)<1500,1500,J131*L129)^0.25*62.2333,"") -> 0.08562504746 | O131: =IF(Q131="",0,1/Q131) -> 3.162045337e-08 | P131: 5 + SZ | Q131: =IF(OR(S131<=0,AND(S131>1000000000,S131<>"Freispiel")),"",1/(HYPGEOMDIST(5,5,5,54)*HYPGEOMDIST(1,1,1,10))/S128) -> 31625100 | R131: =IF(OR(S131<=0,T130>1),"",IF(S131="Freispiel",U130/(1-(1/Q131))/Q131,IF(S131>1000000000,"",S131/Q131/S129))) -> 0.22 | S131: 10436283 | T131: =IFERROR(IF(R131<R141,R141/R131,R131/R141),"") -> 3.880096881 | U131: =IFERROR(R131/IF((Q131*S129)<1500,1500,Q131*S129)^0.25*62.2333,"") -> 0.1649737019
A132: 4.719741736e-07 | B132: 5 | C132: =IF(OR(E132<=0,AND(E132>1000000000,E132<>"Freispiel")),"",1/(HYPGEOMDIST(5,5,5,49)*HYPGEOMDIST(0,1,1,10))/E128) -> 2118760 | D132: =IF(OR(E132<=0,F130>1),"",IF(E132="Freispiel",G130/(1-(1/C132))/C132,IF(E132>1000000000,"",E132/C132/E129))) -> 0.02511427019 | E132: 106422.2222 | F132: =IFERROR(IF(D132<D142,D142/D132,D132/D142),"") -> 1.965749374 | G132: =IFERROR(D132/IF((C132*E129)<1500,1500,C132*E129)^0.25*62.2333,"") -> 0.03444811423 | H132: 4.719741736e-07 | I132: 5 | J132: =IF(OR(L132<=0,AND(L132>1000000000,L132<>"Freispiel")),"",1/(HYPGEOMDIST(5,5,5,49)*HYPGEOMDIST(0,1,1,10))/L128) -> 2118760 | K132: =IF(OR(L132<=0,M130>1),"",IF(L132="Freispiel",N130/(1-(1/J132))/J132,IF(L132>1000000000,"",L132/J132/L129))) -> 0.02143363734 | L132: 99908.01359 | M132: =IFERROR(IF(K132<K141,K141/K132,K132/K141),"") -> 2.185738176 | N132: =IFERROR(K132/IF((J132*L129)<1500,1500,J132*L129)^0.25*62.2333,"") -> 0.02870731648 | O132: 2.845840804e-07 | P132: 5 | Q132: =IF(OR(S132<=0,AND(S132>1000000000,S132<>"Freispiel")),"",1/(HYPGEOMDIST(5,5,5,54)*HYPGEOMDIST(0,1,1,10))/S128) -> 3513900 | R132: =IF(OR(S132<=0,T130>1),"",IF(S132="Freispiel",U130/(1-(1/Q132))/Q132,IF(S132>1000000000,"",S132/Q132/S129))) -> 0.04129503116 | S132: 217659.915 | T132: =IFERROR(IF(R132<R141,R141/R132,R132/R141),"") -> 1.37303723 | U132: =IFERROR(R132/IF((Q132*S129)<1500,1500,Q132*S129)^0.25*62.2333,"") -> 0.05363526918
A133: 1.153714647e-05 | B133: 4 + ZZ | C133: =IF(OR(E133<=0,AND(E133>1000000000,E133<>"Freispiel")),"",1/(HYPGEOMDIST(4,5,5,49)*HYPGEOMDIST(1,1,1,10))/E128) -> 86676.54545 | D133: =IF(OR(E133<=0,F130>1),"",IF(E133="Freispiel",G130/(1-(1/C133))/C133,IF(E133>1000000000,"",E133/C133/E129))) -> 0.01153714647 | E133: 2000 | F133: =IFERROR(IF(D133<D142,D142/D133,D133/D142),"") -> 4.279078977 | G133: =IFERROR(D133/IF((C133*E129)<1500,1500,C133*E129)^0.25*62.2333,"") -> 0.03518749409 | H133: 1.153714647e-05 | I133: 4 + ZZ | J133: =IF(OR(L133<=0,AND(L133>1000000000,L133<>"Freispiel")),"",1/(HYPGEOMDIST(4,5,5,49)*HYPGEOMDIST(1,1,1,10))/L128) -> 86676.54545 | K133: =IF(OR(L133<=0,M130>1),"",IF(L133="Freispiel",N130/(1-(1/J133))/J133,IF(L133>1000000000,"",L133/J133/L129))) -> 0.005231432811 | L133: 997.5735524 | M133: =IFERROR(IF(K133<K141,K141/K133,K133/K141),"") -> 8.955160294 | N133: =IFERROR(K133/IF((J133*L129)<1500,1500,J133*L129)^0.25*62.2333,"") -> 0.01557981921 | O133: 7.747011077e-06 | P133: 4 + SZ | Q133: =IF(OR(S133<=0,AND(S133>1000000000,S133<>"Freispiel")),"",1/(HYPGEOMDIST(4,5,5,54)*HYPGEOMDIST(1,1,1,10))/S128) -> 129082.0408 | R133: =IF(OR(S133<=0,T130>1),"",IF(S133="Freispiel",U130/(1-(1/Q133))/Q133,IF(S133>1000000000,"",S133/Q133/S129))) -> 0.007508187484 | S133: 1453.758245 | T133: =IFERROR(IF(R133<R141,R141/R133,R133/R141),"") -> 7.551704762 | U133: =IFERROR(R133/IF((Q133*S129)<1500,1500,Q133*S129)^0.25*62.2333,"") -> 0.02227504904
A134: 0.0001038343182 | B134: 4 | C134: =IF(OR(E134<=0,AND(E134>1000000000,E134<>"Freispiel")),"",1/(HYPGEOMDIST(4,5,5,49)*HYPGEOMDIST(0,1,1,10))/E128) -> 9630.727273 | D134: =IF(OR(E134<=0,F130>1),"",IF(E134="Freispiel",G130/(1-(1/C134))/C134,IF(E134>1000000000,"",E134/C134/E129))) -> 0.01038343182 | E134: 200 | F134: =IFERROR(IF(D134<D142,D142/D134,D134/D142),"") -> 4.754532197 | G134: =IFERROR(D134/IF((C134*E129)<1500,1500,C134*E129)^0.25*62.2333,"") -> 0.0548518748 | H134: 0.0001038343182 | I134: 4 | J134: =IF(OR(L134<=0,AND(L134>1000000000,L134<>"Freispiel")),"",1/(HYPGEOMDIST(4,5,5,49)*HYPGEOMDIST(0,1,1,10))/L128) -> 9630.727273 | K134: =IF(OR(L134<=0,M130>1),"",IF(L134="Freispiel",N130/(1-(1/J134))/J134,IF(L134>1000000000,"",L134/J134/L129))) -> 0.01886871155 | L134: 399.7827127 | M134: =IFERROR(IF(K134<K141,K141/K134,K134/K141),"") -> 2.482857363 | N134: =IFERROR(K134/IF((J134*L129)<1500,1500,J134*L129)^0.25*62.2333,"") -> 0.09732953187 | O134: 6.972309969e-05 | P134: 4 | Q134: =IF(OR(S134<=0,AND(S134>1000000000,S134<>"Freispiel")),"",1/(HYPGEOMDIST(4,5,5,54)*HYPGEOMDIST(0,1,1,10))/S128) -> 14342.44898 | R134: =IF(OR(S134<=0,T130>1),"",IF(S134="Freispiel",U130/(1-(1/Q134))/Q134,IF(S134>1000000000,"",S134/Q134/S129))) -> 0.008759552065 | S134: 188.4501429 | T134: =IFERROR(IF(R134<R141,R141/R134,R134/R141),"") -> 6.472889796 | U134: =IFERROR(R134/IF((Q134*S129)<1500,1500,Q134*S129)^0.25*62.2333,"") -> 0.04501176945
A135: 0.000496097298 | B135: 3 + ZZ | C135: =IF(OR(E135<=0,AND(E135>1000000000,E135<>"Freispiel")),"",1/(HYPGEOMDIST(3,5,5,49)*HYPGEOMDIST(1,1,1,10))/E128) -> 2015.733615 | D135: =IF(OR(E135<=0,F130>1),"",IF(E135="Freispiel",G130/(1-(1/C135))/C135,IF(E135>1000000000,"",E135/C135/E129))) -> 0.00992194596 | E135: 40 | F135: =IFERROR(IF(D135<D142,D142/D135,D135/D142),"") -> 4.975673229 | G135: =IFERROR(D135/IF((C135*E129)<1500,1500,C135*E129)^0.25*62.2333,"") -> 0.07749147089 | H135: 0.000496097298 | I135: 3 + ZZ | J135: =IF(OR(L135<=0,AND(L135>1000000000,L135<>"Freispiel")),"",1/(HYPGEOMDIST(3,5,5,49)*HYPGEOMDIST(1,1,1,10))/L128) -> 2015.733615 | K135: =IF(OR(L135<=0,M130>1),"",IF(L135="Freispiel",N130/(1-(1/J135))/J135,IF(L135>1000000000,"",L135/J135/L129))) -> 0.01127551538 | L135: 50.00255783 | M135: =IFERROR(IF(K135<K141,K141/K135,K135/K141),"") -> 4.154871668 | N135: =IFERROR(K135/IF((J135*L129)<1500,1500,J135*L129)^0.25*62.2333,"") -> 0.08598947104 | O135: 0.0003718565317 | P135: 3 + SZ | Q135: =IF(OR(S135<=0,AND(S135>1000000000,S135<>"Freispiel")),"",1/(HYPGEOMDIST(3,5,5,54)*HYPGEOMDIST(1,1,1,10))/S128) -> 2689.209184 | R135: =IF(OR(S135<=0,T130>1),"",IF(S135="Freispiel",U130/(1-(1/Q135))/Q135,IF(S135>1000000000,"",S135/Q135/S129))) -> 0.01001091665 | S135: 40.38217347 | T135: =IFERROR(IF(R135<R141,R141/R135,R135/R141),"") -> 5.663778572 | U135: =IFERROR(R135/IF((Q135*S129)<1500,1500,Q135*S129)^0.25*62.2333,"") -> 0.07817496846
A136: 0.004464875682 | B136: 3 | C136: =IF(OR(E136<=0,AND(E136>1000000000,E136<>"Freispiel")),"",1/(HYPGEOMDIST(3,5,5,49)*HYPGEOMDIST(0,1,1,10))/E128) -> 223.9704017 | D136: =IF(OR(E136<=0,F130>1),"",IF(E136="Freispiel",G130/(1-(1/C136))/C136,IF(E136>1000000000,"",E136/C136/E129))) -> 0.04464875682 | E136: 20 | F136: =IFERROR(IF(D136<D142,D142/D136,D136/D142),"") -> 1.105705162 | G136: =IFERROR(D136/IF((C136*E129)<1500,1500,C136*E129)^0.25*62.2333,"") -> 0.4464875845 | H136: 0.004464875682 | I136: 3 | J136: =IF(OR(L136<=0,AND(L136>1000000000,L136<>"Freispiel")),"",1/(HYPGEOMDIST(3,5,5,49)*HYPGEOMDIST(0,1,1,10))/L128) -> 223.9704017 | K136: =IF(OR(L136<=0,M130>1),"",IF(L136="Freispiel",N130/(1-(1/J136))/J136,IF(L136>1000000000,"",L136/J136/L129))) -> 0.04058169724 | L136: 19.99601787 | M136: =IFERROR(IF(K136<K141,K141/K136,K136/K141),"") -> 1.154419913 | N136: =IFERROR(K136/IF((J136*L129)<1500,1500,J136*L129)^0.25*62.2333,"") -> 0.4058169872 | O136: 0.003346708785 | P136: 3 | Q136: =IF(OR(S136<=0,AND(S136>1000000000,S136<>"Freispiel")),"",1/(HYPGEOMDIST(3,5,5,54)*HYPGEOMDIST(0,1,1,10))/S128) -> 298.8010204 | R136: =IF(OR(S136<=0,T130>1),"",IF(S136="Freispiel",U130/(1-(1/Q136))/Q136,IF(S136>1000000000,"",S136/Q136/S129))) -> 0.0325354791 | S136: 14.58245153 | T136: =IFERROR(IF(R136<R141,R141/R136,R136/R141),"") -> 1.742701099 | U136: =IFERROR(R136/IF((Q136*S129)<1500,1500,Q136*S129)^0.25*62.2333,"") -> 0.3253548028
A137: 0.006945362172 | B137: 2 + ZZ | C137: =IF(OR(E137<=0,AND(E137>1000000000,E137<>"Freispiel")),"",1/(HYPGEOMDIST(2,5,5,49)*HYPGEOMDIST(1,1,1,10))/E128) -> 143.9809725 | D137: =IF(OR(E137<=0,F130>1),"",IF(E137="Freispiel",G130/(1-(1/C137))/C137,IF(E137>1000000000,"",E137/C137/E129))) -> 0.04167217303 | E137: 12 | F137: =IFERROR(IF(D137<D142,D142/D137,D137/D142),"") -> 1.184684102 | G137: =IFERROR(D137/IF((C137*E129)<1500,1500,C137*E129)^0.25*62.2333,"") -> 0.4167217455 | H137: 0.006945362172 | I137: 2 + ZZ | J137: =IF(OR(L137<=0,AND(L137>1000000000,L137<>"Freispiel")),"",1/(HYPGEOMDIST(2,5,5,49)*HYPGEOMDIST(1,1,1,10))/L128) -> 143.9809725 | K137: =IF(OR(L137<=0,M130>1),"",IF(L137="Freispiel",N130/(1-(1/J137))/J137,IF(L137>1000000000,"",L137/J137/L129))) -> 0.031566364 | L137: 9.998902732 | M137: =IFERROR(IF(K137<K141,K141/K137,K137/K141),"") -> 1.484121497 | N137: =IFERROR(K137/IF((J137*L129)<1500,1500,J137*L129)^0.25*62.2333,"") -> 0.3156636515 | O137: 0.00582575233 | P137: 2 + SZ | Q137: =IF(OR(S137<=0,AND(S137>1000000000,S137<>"Freispiel")),"",1/(HYPGEOMDIST(2,5,5,54)*HYPGEOMDIST(1,1,1,10))/S128) -> 171.65165 | R137: =IF(OR(S137<=0,T130>1),"",IF(S137="Freispiel",U130/(1-(1/Q137))/Q137,IF(S137>1000000000,"",S137/Q137/S129))) -> 0.02502729161 | S137: 6.443963851 | T137: =IFERROR(IF(R137<R141,R141/R137,R137/R141),"") -> 2.265511429 | U137: =IFERROR(R137/IF((Q137*S129)<1500,1500,Q137*S129)^0.25*62.2333,"") -> 0.2502729253
A138: 0.06250825955 | B138: 2 | C138: =IF(OR(E138<=0,AND(E138>1000000000,E138<>"Freispiel")),"",1/(HYPGEOMDIST(2,5,5,49)*HYPGEOMDIST(0,1,1,10))/E128) -> 15.99788584 | D138: =IF(OR(E138<=0,F130>1),"",IF(E138="Freispiel",G130/(1-(1/C138))/C138,IF(E138>1000000000,"",E138/C138/E129))) -> 0.1875247786 | E138: 6 | F138: =IFERROR(IF(D138<D142,D142/D138,D138/D142),"") -> 3.798480955 | G138: =IFERROR(D138/IF((C138*E129)<1500,1500,C138*E129)^0.25*62.2333,"") -> 1.875247855 | H138: 0.06250825955 | I138: 2 | J138: =IF(OR(L138<=0,AND(L138>1000000000,L138<>"Freispiel")),"",1/(HYPGEOMDIST(2,5,5,49)*HYPGEOMDIST(0,1,1,10))/L128) -> 15.99788584 | K138: =IF(OR(L138<=0,M130>1),"",IF(L138="Freispiel",N130/(1-(1/J138))/J138,IF(L138>1000000000,"",L138/J138/L129))) -> 0.1249956907 | L138: 4.399266939 | M138: =IFERROR(IF(K138<K141,K141/K138,K138/K141),"") -> 2.668093379 | N138: =IFERROR(K138/IF((J138*L129)<1500,1500,J138*L129)^0.25*62.2333,"") -> 1.249956953 | O138: 0.05243177097 | P138: 2 | Q138: =IF(OR(S138<=0,AND(S138>1000000000,S138<>"Freispiel")),"",1/(HYPGEOMDIST(2,5,5,54)*HYPGEOMDIST(0,1,1,10))/S128) -> 19.07240556 | R138: =IF(OR(S138<=0,T130>1),"",IF(S138="Freispiel",U130/(1-(1/Q138))/Q138,IF(S138>1000000000,"",S138/Q138/S129))) -> 0.1048635419 | S138: 3 | T138: =IFERROR(IF(R138<R141,R141/R138,R138/R141),"") -> 1.849457736 | U138: =IFERROR(R138/IF((Q138*S129)<1500,1500,Q138*S129)^0.25*62.2333,"") -> 1.048635458
A139: 0.03559498113 | B139: 1 + ZZ | C139: =IF(OR(E139<=0,AND(E139>1000000000,E139<>"Freispiel")),"",1/(HYPGEOMDIST(1,5,5,49)*HYPGEOMDIST(1,1,1,10))/E128) -> 28.0938483 | D139: =IF(OR(E139<=0,F130>1),"",IF(E139="Freispiel",G130/(1-(1/C139))/C139,IF(E139>1000000000,"",E139/C139/E129))) -> 0.03559498113 | E139: 2 | F139: =IFERROR(IF(D139<D142,D142/D139,D139/D142),"") -> 1.386947242 | G139: =IFERROR(D139/IF((C139*E129)<1500,1500,C139*E129)^0.25*62.2333,"") -> 0.3559498243 | H139: 0.05695196981 | I139: 0 + ZZ | J139: =IF(OR(L139<=0,AND(L139>1000000000,L139<>"Freispiel")),"",1/(HYPGEOMDIST(0,5,5,49)*HYPGEOMDIST(1,1,1,10))/L128) -> 17.55865518 | K139: =IF(OR(L139<=0,M130>1),"",IF(L139="Freispiel",N130/(1-(1/J139))/J139,IF(L139>1000000000,"",L139/J139/L129))) -> 0.05695196981 | L139: 2.2 | M139: =IFERROR(IF(K139<K141,K141/K139,K139/K141),"") -> 1.215667297 | N139: =IFERROR(K139/IF((J139*L129)<1500,1500,J139*L129)^0.25*62.2333,"") -> 0.5695197189 | O139: 0.06029653661 | P139: 0 + SZ | Q139: =IF(OR(S139<=0,AND(S139>1000000000,S139<>"Freispiel")),"",1/(HYPGEOMDIST(0,5,5,54)*HYPGEOMDIST(1,1,1,10))/S128) -> 16.58470049 | R139: =IF(OR(S139<=0,T130>1),"",IF(S139="Freispiel",U130/(1-(1/Q139))/Q139,IF(S139>1000000000,"",S139/Q139/S129))) -> 0.06029653661 | S139: 1.5 | T139: =IFERROR(IF(R139<R141,R141/R139,R139/R141),"") -> 1.063438198 | U139: =IFERROR(R139/IF((Q139*S129)<1500,1500,Q139*S129)^0.25*62.2333,"") -> 0.6029653881
A140: 0.3203548302 | B140: 1 | C140: =IF(OR(E140<=0,AND(E140>1000000000,E140<>"Freispiel")),"",1/(HYPGEOMDIST(1,5,5,49)*HYPGEOMDIST(0,1,1,10))/E128) -> 3.1215387 | D140: =IF(OR(E140<=0,F130>1),"",IF(E140="Freispiel",G130/(1-(1/C140))/C140,IF(E140>1000000000,"",E140/C140/E129))) -> 0.08008870755 | E140: 0.5 | F140: =IFERROR(IF(D140<D142,D142/D140,D140/D142),"") -> 1.622267908 | G140: =IFERROR(D140/IF((C140*E129)<1500,1500,C140*E129)^0.25*62.2333,"") -> 0.8008871047 | H140: =IF(SUM(H131:H139)=0,"",SUM(H131:H139)) -> 0.1314824604 | I140: Gesamt | J140: =IFERROR(1/H140,"") -> 7.605577178 | K140: =IF(SUM(K131:K139)=0,"",SUM(K131:K139)) -> 0.4216348745 | L140: =IFERROR(L129*K140,"") -> 0.9275967238 | M140: =IFERROR(AVERAGE(M131:M139),"") -> 2.962723536 | N140: =IF(SUM(N131:N139)=0,"",SUM(N131:N139)) -> 2.854188497 | O140: =IF(SUM(O131:O139)=0,"",SUM(O131:O139)) -> 0.1223504115 | P140: Gesamt | Q140: =IFERROR(1/O140,"") -> 8.173245904 | R140: =IF(SUM(R131:R139)=0,"",SUM(R131:R139)) -> 0.5102965366 | S140: =IFERROR(S129*R140,"") -> 0.7654448049 | T140: =IFERROR(AVERAGE(T131:T139),"") -> 3.540290634 | U140: =IF(SUM(U131:U139)=0,"",SUM(U131:U139)) -> 2.591299332
A141: =IF(SUM(A131:A140)=0,"",SUM(A131:A140)) -> 0.4304803019 | B141: Gesamt | C141: =IFERROR(1/A141,"") -> 2.322986663 | D141: =IF(SUM(D131:D140)=0,"",SUM(D131:D140)) -> 0.493683609 | E141: =IFERROR(E129*D141,"") -> 0.9873672179 | F141: =IFERROR(AVERAGE(F131:F140),"") -> 2.611911623 | G141: =IF(SUM(G131:G140)=0,"",SUM(G131:G140)) -> 4.134649901 | K141: =AVERAGE(K131:K139) -> 0.04684831938 | R141: =AVERAGE(R131:R139) -> 0.05669961518
D142: =AVERAGE(D131:D140) -> 0.0493683609
F143: vs. | I143: 10 | L143: 1 | P143: 10 | S143: 1
B144: Deutsche Weihnachtslotterie ⁵ | E144: 1 | I144: 322.999 aus 1.000.000 | L144: =L143*120/I143 -> 12 | P144: 34.851 aus 100.000 | S144: =S143*IF(P143=50,5,200/P143) -> 20
B145: 31.179 aus 100.000 | E145: =E144*20 -> 20 | I145: GK | J145: =IF(L143=1,"Chancen 1:","Ø Gewinne 1:") -> Chancen 1: | K145: Ø AQ | L145: (Ø) Gewinn | M145: =IFERROR(COUNTIF(L146:L157,"Freispiel"),"") -> 0 | N145: =IFERROR(SUMIF(L146:L157,"<>Freispiel",K146:K157),"") -> 0.5472979167 | P145: GK | Q145: Chancen 1: | R145: Ø AQ | S145: (Ø) Gewinn | T145: =IFERROR(COUNTIF(S146:S153,"Freispiel"),"") -> 0 | U145: =IFERROR(SUMIF(S146:S153,"<>Freispiel",R146:R153),"") -> 0.48565
B146: GK | C146: =IF(E144=1,"Chancen 1:","Ø Gewinne 1:") -> Chancen 1: | D146: Ø AQ | E146: (Ø) Gewinn | F146: =IFERROR(COUNTIF(E147:E157,"Freispiel"),"") -> 0 | G146: =IFERROR(SUMIF(E147:E157,"<>Freispiel",D147:D157),"") -> 0.542205 | H146: =IF(J146="",0,1/J146) -> 1e-06 | I146: 1 | J146: =IF(OR(L146<=0,AND(L146>1000000000,L146<>"Freispiel")),"",1000000/1/L143) -> 1000000 | K146: =IF(OR(L146<=0,M145>1),"",IF(L146="Freispiel",N145/(1-(1/J146))/J146,IF(L146>1000000000,"",L146/J146/L144))) -> 0.08333333333 | L146: =10000000/I143 -> 1000000 | M146: =IFERROR(IF(K146<K159,K159/K146,K146/K159),"") -> 1.827158426 | N146: =IFERROR(K146/IF((J146*L144)<1500,1500,J146*L144)^0.25*62.2333,"") -> 0.08811427517 | O146: =IF(Q146="",0,1/Q146) -> 1e-05 | P146: 1 | Q146: =IF(OR(S146<=0,AND(S146>1000000000,S146<>"Freispiel")),"",100000/1/S143) -> 100000 | R146: =IF(OR(S146<=0,T145>1),"",IF(S146="Freispiel",U145/(1-(1/Q146))/Q146,IF(S146>1000000000,"",S146/Q146/S144))) -> 0.1 | S146: =2000000/P143 -> 200000 | T146: =IFERROR(IF(R146<R155,R155/R146,R146/R155),"") -> 1.647276845 | U146: =IFERROR(R146/IF((Q146*S144)<1500,1500,Q146*S144)^0.25*62.2333,"") -> 0.165487552
A147: =IF(C147="",0,1/C147) -> 1e-05 | B147: 1 | C147: =IF(OR(E147<=0,AND(E147>1000000000,E147<>"Freispiel")),"",100000/1/E144) -> 100000 | D147: =IF(OR(E147<=0,F146>1),"",IF(E147="Freispiel",G146/(1-(1/C147))/C147,IF(E147>1000000000,"",E147/C147/E145))) -> 0.2 | E147: 400000 | F147: =IFERROR(IF(D147<D159,D159/D147,D147/D159),"") -> 4.057505925 | G147: =IFERROR(D147/IF((C147*E145)<1500,1500,C147*E145)^0.25*62.2333,"") -> 0.330975104 | H147: 1e-06 | I147: 2 | J147: =IF(OR(L147<=0,AND(L147>1000000000,L147<>"Freispiel")),"",1000000/1/L143) -> 1000000 | K147: =IF(OR(L147<=0,M145>1),"",IF(L147="Freispiel",N145/(1-(1/J147))/J147,IF(L147>1000000000,"",L147/J147/L144))) -> 0.0008333333333 | L147: =100000/I143 -> 10000 | M147: =IFERROR(IF(K147<K159,K159/K147,K147/K159),"") -> 54.72979167 | N147: =IFERROR(K147/IF((J147*L144)<1500,1500,J147*L144)^0.25*62.2333,"") -> 0.0008811427517 | O147: 1e-05 | P147: 2 | Q147: =IF(OR(S147<=0,AND(S147>1000000000,S147<>"Freispiel")),"",100000/1/S143) -> 100000 | R147: =IF(OR(S147<=0,T145>1),"",IF(S147="Freispiel",U145/(1-(1/Q147))/Q147,IF(S147>1000000000,"",S147/Q147/S144))) -> 0.0125 | S147: =250000/P143 -> 25000 | T147: =IFERROR(IF(R147<R155,R155/R147,R147/R155),"") -> 4.8565 | U147: =IFERROR(R147/IF((Q147*S144)<1500,1500,Q147*S144)^0.25*62.2333,"") -> 0.020685944
A148: 1e-05 | B148: 2 | C148: =IF(OR(E148<=0,AND(E148>1000000000,E148<>"Freispiel")),"",100000/1/E144) -> 100000 | D148: =IF(OR(E148<=0,F146>1),"",IF(E148="Freispiel",G146/(1-(1/C148))/C148,IF(E148>1000000000,"",E148/C148/E145))) -> 0.025 | E148: 50000 | F148: =IFERROR(IF(D148<D159,D159/D148,D148/D159),"") -> 1.971654545 | G148: =IFERROR(D148/IF((C148*E145)<1500,1500,C148*E145)^0.25*62.2333,"") -> 0.04137188801 | H148: 2e-06 | I148: 3 | J148: =IF(OR(L148<=0,AND(L148>1000000000,L148<>"Freispiel")),"",1000000/2/L143) -> 500000 | K148: =IF(OR(L148<=0,M145>1),"",IF(L148="Freispiel",N145/(1-(1/J148))/J148,IF(L148>1000000000,"",L148/J148/L144))) -> 0.0008333333333 | L148: =50000/I143 -> 5000 | M148: =IFERROR(IF(K148<K159,K159/K148,K148/K159),"") -> 54.72979167 | N148: =IFERROR(K148/IF((J148*L144)<1500,1500,J148*L144)^0.25*62.2333,"") -> 0.00104786123 | O148: 2e-05 | P148: 3 | Q148: =IF(OR(S148<=0,AND(S148>1000000000,S148<>"Freispiel")),"",100000/2/S143) -> 50000 | R148: =IF(OR(S148<=0,T145>1),"",IF(S148="Freispiel",U145/(1-(1/Q148))/Q148,IF(S148>1000000000,"",S148/Q148/S144))) -> 0.0024 | S148: =24000/P143 -> 2400 | T148: =IFERROR(IF(R148<R155,R155/R148,R148/R155),"") -> 25.29427083 | U148: =IFERROR(R148/IF((Q148*S144)<1500,1500,Q148*S144)^0.25*62.2333,"") -> 0.004723175383
A149: 1e-05 | B149: 3 | C149: =IF(OR(E149<=0,AND(E149>1000000000,E149<>"Freispiel")),"",100000/1/E144) -> 100000 | D149: =IF(OR(E149<=0,F146>1),"",IF(E149="Freispiel",G146/(1-(1/C149))/C149,IF(E149>1000000000,"",E149/C149/E145))) -> 0.0125 | E149: 25000 | F149: =IFERROR(IF(D149<D159,D159/D149,D149/D159),"") -> 3.943309091 | G149: =IFERROR(D149/IF((C149*E145)<1500,1500,C149*E145)^0.25*62.2333,"") -> 0.020685944 | H149: 4e-06 | I149: 4 | J149: =IF(OR(L149<=0,AND(L149>1000000000,L149<>"Freispiel")),"",1000000/4/L143) -> 250000 | K149: =IF(OR(L149<=0,M145>1),"",IF(L149="Freispiel",N145/(1-(1/J149))/J149,IF(L149>1000000000,"",L149/J149/L144))) -> 0.0008333333333 | L149: =25000/I143 -> 2500 | M149: =IFERROR(IF(K149<K159,K159/K149,K149/K159),"") -> 54.72979167 | N149: =IFERROR(K149/IF((J149*L144)<1500,1500,J149*L144)^0.25*62.2333,"") -> 0.00124612403 | O149: 2e-05 | P149: 4 | Q149: =IF(OR(S149<=0,AND(S149>1000000000,S149<>"Freispiel")),"",100000/2/S143) -> 50000 | R149: =IF(OR(S149<=0,T145>1),"",IF(S149="Freispiel",U145/(1-(1/Q149))/Q149,IF(S149>1000000000,"",S149/Q149/S144))) -> 0.0015325 | S149: =15325/P143 -> 1532.5 | T149: =IFERROR(IF(R149<R155,R155/R149,R149/R155),"") -> 39.61256117 | U149: =IFERROR(R149/IF((Q149*S144)<1500,1500,Q149*S144)^0.25*62.2333,"") -> 0.003015944281
A150: 2e-05 | B150: 4 | C150: =IF(OR(E150<=0,AND(E150>1000000000,E150<>"Freispiel")),"",100000/2/E144) -> 50000 | D150: =IF(OR(E150<=0,F146>1),"",IF(E150="Freispiel",G146/(1-(1/C150))/C150,IF(E150>1000000000,"",E150/C150/E145))) -> 0.01 | E150: 10000 | F150: =IFERROR(IF(D150<D159,D159/D150,D150/D159),"") -> 4.929136364 | G150: =IFERROR(D150/IF((C150*E145)<1500,1500,C150*E145)^0.25*62.2333,"") -> 0.01967989743 | H150: 9.9e-05 | I150: 6 | J150: =IF(OR(L150<=0,AND(L150>1000000000,L150<>"Freispiel")),"",1000000/99/L143) -> 10101.0101 | K150: =IF(OR(L150<=0,M145>1),"",IF(L150="Freispiel",N145/(1-(1/J150))/J150,IF(L150>1000000000,"",L150/J150/L144))) -> 0.00825 | L150: =10000/I143 -> 1000 | M150: =IFERROR(IF(K150<K159,K159/K150,K150/K159),"") -> 5.528261785 | N150: =IFERROR(K150/IF((J150*L144)<1500,1500,J150*L144)^0.25*62.2333,"") -> 0.02751631461 | O150: 0.0005 | P150: 5 | Q150: =IF(OR(S150<=0,AND(S150>1000000000,S150<>"Freispiel")),"",100000/50/S143) -> 2000 | R150: =IF(OR(S150<=0,T145>1),"",IF(S150="Freispiel",U145/(1-(1/Q150))/Q150,IF(S150>1000000000,"",S150/Q150/S144))) -> 0.009375 | S150: =3750/P143 -> 375 | T150: =IFERROR(IF(R150<R155,R155/R150,R150/R155),"") -> 6.475333333 | U150: =IFERROR(R150/IF((Q150*S144)<1500,1500,Q150*S144)^0.25*62.2333,"") -> 0.04125523917
A151: 2e-05 | B151: 5 | C151: =IF(OR(E151<=0,AND(E151>1000000000,E151<>"Freispiel")),"",100000/2/E144) -> 50000 | D151: =IF(OR(E151<=0,F146>1),"",IF(E151="Freispiel",G146/(1-(1/C151))/C151,IF(E151>1000000000,"",E151/C151/E145))) -> 0.005 | E151: 5000 | F151: =IFERROR(IF(D151<D159,D159/D151,D151/D159),"") -> 9.858272727 | G151: =IFERROR(D151/IF((C151*E145)<1500,1500,C151*E145)^0.25*62.2333,"") -> 0.009839948715 | H151: 0.0008 | I151: 5 | J151: =IF(OR(L151<=0,AND(L151>1000000000,L151<>"Freispiel")),"",1000000/800/L143) -> 1250 | K151: =IF(OR(L151<=0,M145>1),"",IF(L151="Freispiel",N145/(1-(1/J151))/J151,IF(L151>1000000000,"",L151/J151/L144))) -> 0.05333333333 | L151: =8000/I143 -> 800 | M151: =IFERROR(IF(K151<K159,K159/K151,K151/K159),"") -> 1.169381393 | N151: =IFERROR(K151/IF((J151*L144)<1500,1500,J151*L144)^0.25*62.2333,"") -> 0.2999153844 | O151: 0.02 | P151: 7 | Q151: =IF(OR(S151<=0,AND(S151>1000000000,S151<>"Freispiel")),"",100000/2000/S143) -> 50 | R151: =IF(OR(S151<=0,T145>1),"",IF(S151="Freispiel",U145/(1-(1/Q151))/Q151,IF(S151>1000000000,"",S151/Q151/S144))) -> 0.03 | S151: =300/P143 -> 30 | T151: =IFERROR(IF(R151<R155,R155/R151,R151/R155),"") -> 2.023541667 | U151: =IFERROR(R151/IF((Q151*S144)<1500,1500,Q151*S144)^0.25*62.2333,"") -> 0.3000000109
A152: 2e-05 | B152: 6 | C152: =IF(OR(E152<=0,AND(E152>1000000000,E152<>"Freispiel")),"",100000/2/E144) -> 50000 | D152: =IF(OR(E152<=0,F146>1),"",IF(E152="Freispiel",G146/(1-(1/C152))/C152,IF(E152>1000000000,"",E152/C152/E145))) -> 0.0025 | E152: 2500 | F152: =IFERROR(IF(D152<D159,D159/D152,D152/D159),"") -> 19.71654545 | G152: =IFERROR(D152/IF((C152*E145)<1500,1500,C152*E145)^0.25*62.2333,"") -> 0.004919974358 | H152: 0.000999 | I152: 11 | J152: =IF(OR(L152<=0,AND(L152>1000000000,L152<>"Freispiel")),"",1000000/999/L143) -> 1001.001001 | K152: =IF(OR(L152<=0,M145>1),"",IF(L152="Freispiel",N145/(1-(1/J152))/J152,IF(L152>1000000000,"",L152/J152/L144))) -> 0.0208125 | L152: =2500/I143 -> 250 | M152: =IFERROR(IF(K152<K159,K159/K152,K152/K159),"") -> 2.19138305 | N152: =IFERROR(K152/IF((J152*L144)<1500,1500,J152*L144)^0.25*62.2333,"") -> 0.1237209203 | O152: 0.02796 | P152: 6+9-12 | Q152: =IF(OR(S152<=0,AND(S152>1000000000,S152<>"Freispiel")),"",100000/(1500+999+3*99)/S143) -> 35.76537911 | R152: =IF(OR(S152<=0,T145>1),"",IF(S152="Freispiel",U145/(1-(1/Q152))/Q152,IF(S152>1000000000,"",S152/Q152/S144))) -> 0.10485 | S152: =750/P143 -> 75 | T152: =IFERROR(IF(R152<R155,R155/R152,R152/R155),"") -> 1.727169772 | U152: =IFERROR(R152/IF((Q152*S144)<1500,1500,Q152*S144)^0.25*62.2333,"") -> 1.048500038
A153: 0.00075 | B153: 7+8 | C153: =IF(OR(E153<=0,AND(E153>1000000000,E153<>"Freispiel")),"",100000/(66+9)/E144) -> 1333.333333 | D153: =IF(OR(E153<=0,F146>1),"",IF(E153="Freispiel",G146/(1-(1/C153))/C153,IF(E153>1000000000,"",E153/C153/E145))) -> 0.0375 | E153: 1000 | F153: =IFERROR(IF(D153<D159,D159/D153,D153/D159),"") -> 1.314436364 | G153: =IFERROR(D153/IF((C153*E145)<1500,1500,C153*E145)^0.25*62.2333,"") -> 0.1826257091 | H153: 0.001098 | I153: 7+10 | J153: =IF(OR(L153<=0,AND(L153>1000000000,L153<>"Freispiel")),"",1000000/(999+99)/L143) -> 910.7468124 | K153: =IF(OR(L153<=0,M145>1),"",IF(L153="Freispiel",N145/(1-(1/J153))/J153,IF(L153>1000000000,"",L153/J153/L144))) -> 0.04575 | L153: =5000/I143 -> 500 | M153: =IFERROR(IF(K153<K159,K159/K153,K153/K159),"") -> 1.003109976 | N153: =IFERROR(K153/IF((J153*L144)<1500,1500,J153*L144)^0.25*62.2333,"") -> 0.2784640931 | O153: 0.29999 | P153: 8+13 | Q153: =IF(OR(S153<=0,AND(S153>1000000000,S153<>"Freispiel")),"",100000/(2*10000+9999)/S143) -> 3.333444448 | R153: =IF(OR(S153<=0,T145>1),"",IF(S153="Freispiel",U145/(1-(1/Q153))/Q153,IF(S153>1000000000,"",S153/Q153/S144))) -> 0.2249925 | S153: =150/P143 -> 15 | T153: =IFERROR(IF(R153<R155,R155/R153,R153/R155),"") -> 3.706249357 | U153: =IFERROR(R153/IF((Q153*S144)<1500,1500,Q153*S144)^0.25*62.2333,"") -> 2.249925082
A154: 0.00099 | B154: 9 | C154: =IF(OR(E154<=0,AND(E154>1000000000,E154<>"Freispiel")),"",100000/99/E144) -> 1010.10101 | D154: =IF(OR(E154<=0,F146>1),"",IF(E154="Freispiel",G146/(1-(1/C154))/C154,IF(E154>1000000000,"",E154/C154/E145))) -> 0.02475 | E154: 500 | F154: =IFERROR(IF(D154<D159,D159/D154,D154/D159),"") -> 1.991570248 | G154: =IFERROR(D154/IF((C154*E145)<1500,1500,C154*E145)^0.25*62.2333,"") -> 0.1291960791 | H154: 0.009999 | I154: 8 | J154: =IF(OR(L154<=0,AND(L154>1000000000,L154<>"Freispiel")),"",1000000/9999/L143) -> 100.010001 | K154: =IF(OR(L154<=0,M145>1),"",IF(L154="Freispiel",N145/(1-(1/J154))/J154,IF(L154>1000000000,"",L154/J154/L144))) -> 0.083325 | L154: =1000/I143 -> 100 | M154: =IFERROR(IF(K154<K159,K159/K154,K154/K159),"") -> 1.82697571 | N154: =IFERROR(K154/IF((J154*L144)<1500,1500,J154*L144)^0.25*62.2333,"") -> 0.8332500304 | O154: =IF(SUM(O146:O153)=0,"",SUM(O146:O153)) -> 0.34851 | P154: Gesamt | Q154: =IFERROR(1/O154,"") -> 2.869358125 | R154: =IF(SUM(R146:R153)=0,"",SUM(R146:R153)) -> 0.48565 | S154: =IFERROR(S144*R154,"") -> 9.713 | T154: =IFERROR(AVERAGE(T146:T153),"") -> 10.66786287 | U154: =IF(SUM(U146:U153)=0,"",SUM(U146:U153)) -> 3.833592986
A155: 0.00999 | B155: 10 | C155: =IF(OR(E155<=0,AND(E155>1000000000,E155<>"Freispiel")),"",100000/999/E144) -> 100.1001001 | D155: =IF(OR(E155<=0,F146>1),"",IF(E155="Freispiel",G146/(1-(1/C155))/C155,IF(E155>1000000000,"",E155/C155/E145))) -> 0.024975 | E155: 50 | F155: =IFERROR(IF(D155<D159,D159/D155,D155/D159),"") -> 1.973628174 | G155: =IFERROR(D155/IF((C155*E145)<1500,1500,C155*E145)^0.25*62.2333,"") -> 0.2323604456 | H155: 0.009999 | I155: 12 | J155: =IF(OR(L155<=0,AND(L155>1000000000,L155<>"Freispiel")),"",1000000/9999/L143) -> 100.010001 | K155: =IF(OR(L155<=0,M145>1),"",IF(L155="Freispiel",N145/(1-(1/J155))/J155,IF(L155>1000000000,"",L155/J155/L144))) -> 0.0416625 | L155: =500/I143 -> 50 | M155: =IFERROR(IF(K155<K159,K159/K155,K155/K159),"") -> 1.094705304 | N155: =IFERROR(K155/IF((J155*L144)<1500,1500,J155*L144)^0.25*62.2333,"") -> 0.4166250152 | R155: =AVERAGE(R146:R153) -> 0.06070625
A156: 0.09999 | B156: 11 | C156: =IF(OR(E156<=0,AND(E156>1000000000,E156<>"Freispiel")),"",100000/9999/E144) -> 10.0010001 | D156: =IF(OR(E156<=0,F146>1),"",IF(E156="Freispiel",G146/(1-(1/C156))/C156,IF(E156>1000000000,"",E156/C156/E145))) -> 0.09999 | E156: 20 | F156: =IFERROR(IF(D156<D159,D159/D156,D156/D159),"") -> 2.028550087 | G156: =IFERROR(D156/IF((C156*E145)<1500,1500,C156*E145)^0.25*62.2333,"") -> 0.9999000365 | H156: 0.099999 | I156: 14 | J156: =IF(OR(L156<=0,AND(L156>1000000000,L156<>"Freispiel")),"",1000000/99999/L143) -> 10.0001 | K156: =IF(OR(L156<=0,M145>1),"",IF(L156="Freispiel",N145/(1-(1/J156))/J156,IF(L156>1000000000,"",L156/J156/L144))) -> 0.04166625 | L156: =50/I143 -> 5 | M156: =IFERROR(IF(K156<K159,K159/K156,K156/K159),"") -> 1.094606779 | N156: =IFERROR(K156/IF((J156*L144)<1500,1500,J156*L144)^0.25*62.2333,"") -> 0.4166625152
A157: 0.19998 | B157: 12+13 | C157: =IF(OR(E157<=0,AND(E157>1000000000,E157<>"Freispiel")),"",100000/(9999+9999)/E144) -> 5.00050005 | D157: =IF(OR(E157<=0,F146>1),"",IF(E157="Freispiel",G146/(1-(1/C157))/C157,IF(E157>1000000000,"",E157/C157/E145))) -> 0.09999 | E157: 10 | F157: =IFERROR(IF(D157<D159,D159/D157,D157/D159),"") -> 2.028550087 | G157: =IFERROR(D157/IF((C157*E145)<1500,1500,C157*E145)^0.25*62.2333,"") -> 0.9999000365 | H157: 0.199998 | I157: 9+13 | J157: =IF(OR(L157<=0,AND(L157>1000000000,L157<>"Freispiel")),"",1000000/(99999+99999)/L143) -> 5.000050001 | K157: =IF(OR(L157<=0,M145>1),"",IF(L157="Freispiel",N145/(1-(1/J157))/J157,IF(L157>1000000000,"",L157/J157/L144))) -> 0.166665 | L157: =100/I143 -> 10 | M157: =IFERROR(IF(K157<K159,K159/K157,K157/K159),"") -> 3.654280309 | N157: =IFERROR(K157/IF((J157*L144)<1500,1500,J157*L144)^0.25*62.2333,"") -> 1.666650061 | P157: © Copyright 2023 by Lottoexperte (www.lotteriecheck.de) - Alle Rechte vorbehalten!
A158: =IF(SUM(A147:A157)=0,"",SUM(A147:A157)) -> 0.31179 | B158: Gesamt | C158: =IFERROR(1/A158,"") -> 3.207286956 | D158: =IF(SUM(D147:D157)=0,"",SUM(D147:D157)) -> 0.542205 | E158: =IFERROR(E145*D158,"") -> 10.8441 | F158: =IFERROR(AVERAGE(F147:F157),"") -> 4.89210537 | G158: =IF(SUM(G147:G157)=0,"",SUM(G147:G157)) -> 2.971455063 | H158: =IF(SUM(H146:H157)=0,"",SUM(H146:H157)) -> 0.322999 | I158: Gesamt | J158: =IFERROR(1/H158,"") -> 3.095984817 | K158: =IF(SUM(K146:K157)=0,"",SUM(K146:K157)) -> 0.5472979167 | L158: =IFERROR(L144*K158,"") -> 6.567575 | M158: =IFERROR(AVERAGE(M146:M157),"") -> 15.29826981 | N158: =IF(SUM(N146:N157)=0,"",SUM(N146:N157)) -> 4.154093737
D159: =AVERAGE(D147:D157) -> 0.04929136364 | K159: =AVERAGE(K146:K157) -> 0.04560815972
B161: 10 | E161: 1 | F161: vs. | I161: 10 | L161: 1 | M161: vs. | P161: 10 | S161: 1
B162: 15.304 aus 100.000 | E162: =E161*IF(B161=1,249.99,IF(B161=2,149.99,IF(B161=5,64.99,IF(B161=10,34.99,IF(B161=20,19.99,IF(B161=50,8.99,4.99)))))) -> 34.99 | I162: 37.920 aus 100.000 | L162: =L161*IF(I161=1,249.99,IF(I161=2,149.99,IF(I161=5,64.99,IF(I161=10,34.99,IF(I161=20,19.99,IF(I161=50,8.99,4.99)))))) -> 34.99 | P162: 36.300 aus 100.000 | S162: =S161*IF(P161=1,249.99,IF(P161=2,149.99,IF(P161=5,64.99,IF(P161=10,34.99,IF(P161=20,19.99,IF(P161=50,8.99,4.99)))))) -> 34.99
B163: GK | C163: =IF(E161=1,"Chancen 1:","Ø Gewinne 1:") -> Chancen 1: | D163: Ø AQ | E163: (Ø) Gewinn | F163: =IFERROR(COUNTIF(E164:E173,"Freispiel"),"") -> 0 | G163: =IFERROR(SUMIF(E164:E173,"<>Freispiel",D164:D173),"") -> 0.4001143184 | I163: GK | J163: =IF(L161=1,"Chancen 1:","Ø Gewinne 1:") -> Chancen 1: | K163: Ø AQ | L163: (Ø) Gewinn | M163: =IFERROR(COUNTIF(L164:L172,"Freispiel"),"") -> 0 | N163: =IFERROR(SUMIF(L164:L172,"<>Freispiel",K164:K172),"") -> 0.4001143184 | P163: GK | Q163: =IF(S161=1,"Chancen 1:","Ø Gewinne 1:") -> Chancen 1: | R163: Ø AQ | S163: (Ø) Gewinn | T163: =IFERROR(COUNTIF(S164:S172,"Freispiel"),"") -> 0 | U163: =IFERROR(SUMIF(S164:S172,"<>Freispiel",R164:R172),"") -> 0.3435267219
A164: =IF(C164="",0,1/C164) -> 1e-05 | B164: 1 | C164: =IF(OR(E164<=0,AND(E164>1000000000,E164<>"Freispiel")),"",100000/1/E161) -> 100000 | D164: =IF(OR(E164<=0,F163>1),"",IF(E164="Freispiel",G163/(1-(1/C164))/C164,IF(E164>1000000000,"",E164/C164/E162))) -> 0.1143183767 | E164: =4000000/B161 -> 400000 | F164: =IFERROR(IF(D164<D175,D175/D164,D164/D175),"") -> 2.857142857 | G164: =IFERROR(D164/IF((C164*E162)<1500,1500,C164*E162)^0.25*62.2333,"") -> 0.1644950728 | H164: =IF(J164="",0,1/J164) -> 1e-05 | I164: 1 | J164: =IF(OR(L164<=0,AND(L164>1000000000,L164<>"Freispiel")),"",100000/1/L161) -> 100000 | K164: =IF(OR(L164<=0,M163>1),"",IF(L164="Freispiel",N163/(1-(1/J164))/J164,IF(L164>1000000000,"",L164/J164/L162))) -> 0.05715918834 | L164: =2000000/I161 -> 200000 | M164: =IFERROR(IF(K164<K174,K174/K164,K164/K174),"") -> 1.285714286 | N164: =IFERROR(K164/IF((J164*L162)<1500,1500,J164*L162)^0.25*62.2333,"") -> 0.0822475364 | O164: =IF(Q164="",0,1/Q164) -> 1e-05 | P164: 1 | Q164: =IF(OR(S164<=0,AND(S164>1000000000,S164<>"Freispiel")),"",100000/1/S161) -> 100000 | R164: =IF(OR(S164<=0,T163>1),"",IF(S164="Freispiel",U163/(1-(1/Q164))/Q164,IF(S164>1000000000,"",S164/Q164/S162))) -> 0.05715918834 | S164: =2000000/P161 -> 200000 | T164: =IFERROR(IF(R164<R174,R174/R164,R164/R174),"") -> 1.49750416 | U164: =IFERROR(R164/IF((Q164*S162)<1500,1500,Q164*S162)^0.25*62.2333,"") -> 0.0822475364
A165: 1e-05 | B165: 2 | C165: =IF(OR(E165<=0,AND(E165>1000000000,E165<>"Freispiel")),"",100000/1/E161) -> 100000 | D165: =IF(OR(E165<=0,F163>1),"",IF(E165="Freispiel",G163/(1-(1/C165))/C165,IF(E165>1000000000,"",E165/C165/E162))) -> 0.03572449271 | E165: =1250000/B161 -> 125000 | F165: =IFERROR(IF(D165<D175,D175/D165,D165/D175),"") -> 1.12 | G165: =IFERROR(D165/IF((C165*E162)<1500,1500,C165*E162)^0.25*62.2333,"") -> 0.05140471025 | H165: 1e-05 | I165: 2 | J165: =IF(OR(L165<=0,AND(L165>1000000000,L165<>"Freispiel")),"",100000/1/L161) -> 100000 | K165: =IF(OR(L165<=0,M163>1),"",IF(L165="Freispiel",N163/(1-(1/J165))/J165,IF(L165>1000000000,"",L165/J165/L162))) -> 0.02143469563 | L165: =750000/I161 -> 75000 | M165: =IFERROR(IF(K165<K174,K174/K165,K165/K174),"") -> 2.074074074 | N165: =IFERROR(K165/IF((J165*L162)<1500,1500,J165*L162)^0.25*62.2333,"") -> 0.03084282615 | O165: 1e-05 | P165: 2 | Q165: =IF(OR(S165<=0,AND(S165>1000000000,S165<>"Freispiel")),"",100000/1/S161) -> 100000 | R165: =IF(OR(S165<=0,T163>1),"",IF(S165="Freispiel",U163/(1-(1/Q165))/Q165,IF(S165>1000000000,"",S165/Q165/S162))) -> 0.0171477565 | S165: =600000/P161 -> 60000 | T165: =IFERROR(IF(R165<R174,R174/R165,R165/R174),"") -> 2.225925926 | U165: =IFERROR(R165/IF((Q165*S162)<1500,1500,Q165*S162)^0.25*62.2333,"") -> 0.02467426092
A166: 1e-05 | B166: 3 | C166: =IF(OR(E166<=0,AND(E166>1000000000,E166<>"Freispiel")),"",100000/1/E161) -> 100000 | D166: =IF(OR(E166<=0,F163>1),"",IF(E166="Freispiel",G163/(1-(1/C166))/C166,IF(E166>1000000000,"",E166/C166/E162))) -> 0.01428979708 | E166: =500000/B161 -> 50000 | F166: =IFERROR(IF(D166<D175,D175/D166,D166/D175),"") -> 2.8 | G166: =IFERROR(D166/IF((C166*E162)<1500,1500,C166*E162)^0.25*62.2333,"") -> 0.0205618841 | H166: 1e-05 | I166: 3 | J166: =IF(OR(L166<=0,AND(L166>1000000000,L166<>"Freispiel")),"",100000/1/L161) -> 100000 | K166: =IF(OR(L166<=0,M163>1),"",IF(L166="Freispiel",N163/(1-(1/J166))/J166,IF(L166>1000000000,"",L166/J166/L162))) -> 0.007144898542 | L166: =250000/I161 -> 25000 | M166: =IFERROR(IF(K166<K174,K174/K166,K166/K174),"") -> 6.222222222 | N166: =IFERROR(K166/IF((J166*L162)<1500,1500,J166*L162)^0.25*62.2333,"") -> 0.01028094205 | O166: 1e-05 | P166: 3 | Q166: =IF(OR(S166<=0,AND(S166>1000000000,S166<>"Freispiel")),"",100000/1/S161) -> 100000 | R166: =IF(OR(S166<=0,T163>1),"",IF(S166="Freispiel",U163/(1-(1/Q166))/Q166,IF(S166>1000000000,"",S166/Q166/S162))) -> 0.005715918834 | S166: =200000/P161 -> 20000 | T166: =IFERROR(IF(R166<R174,R174/R166,R166/R174),"") -> 6.677777778 | U166: =IFERROR(R166/IF((Q166*S162)<1500,1500,Q166*S162)^0.25*62.2333,"") -> 0.00822475364
A167: 2e-05 | B167: 4 | C167: =IF(OR(E167<=0,AND(E167>1000000000,E167<>"Freispiel")),"",100000/2/E161) -> 50000 | D167: =IF(OR(E167<=0,F163>1),"",IF(E167="Freispiel",G163/(1-(1/C167))/C167,IF(E167>1000000000,"",E167/C167/E162))) -> 0.01143183767 | E167: =200000/B161 -> 20000 | F167: =IFERROR(IF(D167<D175,D175/D167,D167/D175),"") -> 3.5 | G167: =IFERROR(D167/IF((C167*E162)<1500,1500,C167*E162)^0.25*62.2333,"") -> 0.0195618711 | H167: 2e-05 | I167: 4 | J167: =IF(OR(L167<=0,AND(L167>1000000000,L167<>"Freispiel")),"",100000/2/L161) -> 50000 | K167: =IF(OR(L167<=0,M163>1),"",IF(L167="Freispiel",N163/(1-(1/J167))/J167,IF(L167>1000000000,"",L167/J167/L162))) -> 0.0006859102601 | L167: =12000/I161 -> 1200 | M167: =IFERROR(IF(K167<K174,K174/K167,K167/K174),"") -> 64.81481481 | N167: =IFERROR(K167/IF((J167*L162)<1500,1500,J167*L162)^0.25*62.2333,"") -> 0.001173712266 | O167: 2e-05 | P167: 4 | Q167: =IF(OR(S167<=0,AND(S167>1000000000,S167<>"Freispiel")),"",100000/2/S161) -> 50000 | R167: =IF(OR(S167<=0,T163>1),"",IF(S167="Freispiel",U163/(1-(1/Q167))/Q167,IF(S167>1000000000,"",S167/Q167/S162))) -> 0.0004572735067 | S167: =8000/P161 -> 800 | T167: =IFERROR(IF(R167<R174,R174/R167,R167/R174),"") -> 83.47222222 | U167: =IFERROR(R167/IF((Q167*S162)<1500,1500,Q167*S162)^0.25*62.2333,"") -> 0.0007824748438
A168: 2e-05 | B168: 7 | C168: =IF(OR(E168<=0,AND(E168>1000000000,E168<>"Freispiel")),"",100000/2/E161) -> 50000 | D168: =IF(OR(E168<=0,F163>1),"",IF(E168="Freispiel",G163/(1-(1/C168))/C168,IF(E168>1000000000,"",E168/C168/E162))) -> 0.001143183767 | E168: =20000/B161 -> 2000 | F168: =IFERROR(IF(D168<D175,D175/D168,D168/D175),"") -> 35 | G168: =IFERROR(D168/IF((C168*E162)<1500,1500,C168*E162)^0.25*62.2333,"") -> 0.00195618711 | H168: 2e-05 | I168: 5 | J168: =IF(OR(L168<=0,AND(L168>1000000000,L168<>"Freispiel")),"",100000/2/L161) -> 50000 | K168: =IF(OR(L168<=0,M163>1),"",IF(L168="Freispiel",N163/(1-(1/J168))/J168,IF(L168>1000000000,"",L168/J168/L162))) -> 0.0003486710489 | L168: =6100/I161 -> 610 | M168: =IFERROR(IF(K168<K174,K174/K168,K168/K174),"") -> 127.5045537 | N168: =IFERROR(K168/IF((J168*L162)<1500,1500,J168*L162)^0.25*62.2333,"") -> 0.0005966370684 | O168: 2e-05 | P168: 5 | Q168: =IF(OR(S168<=0,AND(S168>1000000000,S168<>"Freispiel")),"",100000/2/S161) -> 50000 | R168: =IF(OR(S168<=0,T163>1),"",IF(S168="Freispiel",U163/(1-(1/Q168))/Q168,IF(S168>1000000000,"",S168/Q168/S162))) -> 0.0002457845099 | S168: =4300/P161 -> 430 | T168: =IFERROR(IF(R168<R174,R174/R168,R168/R174),"") -> 155.2971576 | U168: =IFERROR(R168/IF((Q168*S162)<1500,1500,Q168*S162)^0.25*62.2333,"") -> 0.0004205802285
A169: 2e-05 | B169: 8 | C169: =IF(OR(E169<=0,AND(E169>1000000000,E169<>"Freispiel")),"",100000/2/E161) -> 50000 | D169: =IF(OR(E169<=0,F163>1),"",IF(E169="Freispiel",G163/(1-(1/C169))/C169,IF(E169>1000000000,"",E169/C169/E162))) -> 0.0007144898542 | E169: =12500/B161 -> 1250 | F169: =IFERROR(IF(D169<D175,D175/D169,D169/D175),"") -> 56 | G169: =IFERROR(D169/IF((C169*E162)<1500,1500,C169*E162)^0.25*62.2333,"") -> 0.001222616943 | H169: 0.0002 | I169: 6 | J169: =IF(OR(L169<=0,AND(L169>1000000000,L169<>"Freispiel")),"",100000/(2*10)/L161) -> 5000 | K169: =IF(OR(L169<=0,M163>1),"",IF(L169="Freispiel",N163/(1-(1/J169))/J169,IF(L169>1000000000,"",L169/J169/L162))) -> 0.002000571592 | L169: =3500/I161 -> 350 | M169: =IFERROR(IF(K169<K174,K174/K169,K169/K174),"") -> 22.22222222 | N169: =IFERROR(K169/IF((J169*L162)<1500,1500,J169*L162)^0.25*62.2333,"") -> 0.006087632703 | O169: 0.00198 | P169: 10+11 | Q169: =IF(OR(S169<=0,AND(S169>1000000000,S169<>"Freispiel")),"",100000/(2*99)/S161) -> 505.0505051 | R169: =IF(OR(S169<=0,T163>1),"",IF(S169="Freispiel",U163/(1-(1/Q169))/Q169,IF(S169>1000000000,"",S169/Q169/S162))) -> 0.002829379823 | S169: =500/P161 -> 50 | T169: =IFERROR(IF(R169<R174,R174/R169,R169/R174),"") -> 13.49046016 | U169: =IFERROR(R169/IF((Q169*S162)<1500,1500,Q169*S162)^0.25*62.2333,"") -> 0.01527194652
A170: 2e-05 | B170: 9 | C170: =IF(OR(E170<=0,AND(E170>1000000000,E170<>"Freispiel")),"",100000/2/E161) -> 50000 | D170: =IF(OR(E170<=0,F163>1),"",IF(E170="Freispiel",G163/(1-(1/C170))/C170,IF(E170>1000000000,"",E170/C170/E162))) -> 0.0005487282081 | E170: =9600/B161 -> 960 | F170: =IFERROR(IF(D170<D175,D175/D170,D170/D175),"") -> 72.91666667 | G170: =IFERROR(D170/IF((C170*E162)<1500,1500,C170*E162)^0.25*62.2333,"") -> 0.0009389698126 | H170: 0.02894 | I170: 7-12+14 | J170: =IF(OR(L170<=0,AND(L170>1000000000,L170<>"Freispiel")),"",100000/(14*100+5*99+999)/L161) -> 34.55425017 | K170: =IF(OR(L170<=0,M163>1),"",IF(L170="Freispiel",N163/(1-(1/J170))/J170,IF(L170>1000000000,"",L170/J170/L162))) -> 0.08270934553 | L170: =1000/I161 -> 100 | M170: =IFERROR(IF(K170<K174,K174/K170,K170/K174),"") -> 1.860428571 | N170: =IFERROR(K170/IF((J170*L162)<1500,1500,J170*L162)^0.25*62.2333,"") -> 0.8270934855 | O170: 0.01097 | P170: 6-9 | Q170: =IF(OR(S170<=0,AND(S170>1000000000,S170<>"Freispiel")),"",100000/(8*100+3*99)/S161) -> 91.15770283 | R170: =IF(OR(S170<=0,T163>1),"",IF(S170="Freispiel",U163/(1-(1/Q170))/Q170,IF(S170>1000000000,"",S170/Q170/S162))) -> 0.0313518148 | S170: =1000/P161 -> 100 | T170: =IFERROR(IF(R170<R174,R174/R170,R170/R174),"") -> 1.217461764 | U170: =IFERROR(R170/IF((Q170*S162)<1500,1500,Q170*S162)^0.25*62.2333,"") -> 0.2596277962
A171: 8e-05 | B171: 5 | C171: =IF(OR(E171<=0,AND(E171>1000000000,E171<>"Freispiel")),"",100000/8/E161) -> 12500 | D171: =IF(OR(E171<=0,F163>1),"",IF(E171="Freispiel",G163/(1-(1/C171))/C171,IF(E171>1000000000,"",E171/C171/E162))) -> 0.0137182052 | E171: =60000/B161 -> 6000 | F171: =IFERROR(IF(D171<D175,D175/D171,D171/D175),"") -> 2.916666667 | G171: =IFERROR(D171/IF((C171*E162)<1500,1500,C171*E162)^0.25*62.2333,"") -> 0.03319759609 | H171: 0.05 | I171: 13 | J171: =IF(OR(L171<=0,AND(L171>1000000000,L171<>"Freispiel")),"",100000/(5*1000)/L161) -> 20 | K171: =IF(OR(L171<=0,M163>1),"",IF(L171="Freispiel",N163/(1-(1/J171))/J171,IF(L171>1000000000,"",L171/J171/L162))) -> 0.05715918834 | L171: =400/I161 -> 40 | M171: =IFERROR(IF(K171<K174,K174/K171,K171/K174),"") -> 1.285714286 | N171: =IFERROR(K171/IF((J171*L162)<1500,1500,J171*L162)^0.25*62.2333,"") -> 0.5715919043 | O171: 0.04999 | P171: 12+13 | Q171: =IF(OR(S171<=0,AND(S171>1000000000,S171<>"Freispiel")),"",100000/(4*1000+999)/S161) -> 20.0040008 | R171: =IF(OR(S171<=0,T163>1),"",IF(S171="Freispiel",U163/(1-(1/Q171))/Q171,IF(S171>1000000000,"",S171/Q171/S162))) -> 0.0571477565 | S171: =400/P161 -> 40 | T171: =IFERROR(IF(R171<R174,R174/R171,R171/R174),"") -> 1.497204659 | U171: =IFERROR(R171/IF((Q171*S162)<1500,1500,Q171*S162)^0.25*62.2333,"") -> 0.5714775859
A172: 0.05286 | B172: 6+10-16 | C172: =IF(OR(E172<=0,AND(E172>1000000000,E172<>"Freispiel")),"",100000/(5*99+3*999+1794)/E161) -> 18.91789633 | D172: =IF(OR(E172<=0,F163>1),"",IF(E172="Freispiel",G163/(1-(1/C172))/C172,IF(E172>1000000000,"",E172/C172/E162))) -> 0.1510717348 | E172: =1000/B161 -> 100 | F172: =IFERROR(IF(D172<D175,D175/D172,D172/D175),"") -> 3.775714286 | G172: =IFERROR(D172/IF((C172*E162)<1500,1500,C172*E162)^0.25*62.2333,"") -> 1.510717403 | H172: 0.29999 | I172: 15+16 | J172: =IF(OR(L172<=0,AND(L172>1000000000,L172<>"Freispiel")),"",100000/(2*10000+9999)/L161) -> 3.333444448 | K172: =IF(OR(L172<=0,M163>1),"",IF(L172="Freispiel",N163/(1-(1/J172))/J172,IF(L172>1000000000,"",L172/J172/L162))) -> 0.1714718491 | L172: =200/I161 -> 20 | M172: =IFERROR(IF(K172<K174,K174/K172,K172/K174),"") -> 3.857014286 | N172: =IFERROR(K172/IF((J172*L162)<1500,1500,J172*L162)^0.25*62.2333,"") -> 1.714718554 | O172: 0.29999 | P172: 14+15 | Q172: =IF(OR(S172<=0,AND(S172>1000000000,S172<>"Freispiel")),"",100000/(2*10000+9999)/S161) -> 3.333444448 | R172: =IF(OR(S172<=0,T163>1),"",IF(S172="Freispiel",U163/(1-(1/Q172))/Q172,IF(S172>1000000000,"",S172/Q172/S162))) -> 0.1714718491 | S172: =200/P161 -> 20 | T172: =IFERROR(IF(R172<R174,R174/R172,R172/R174),"") -> 4.492362729 | U172: =IFERROR(R172/IF((Q172*S162)<1500,1500,Q172*S162)^0.25*62.2333,"") -> 1.714718554
A173: 0.09999 | B173: 17 | C173: =IF(OR(E173<=0,AND(E173>1000000000,E173<>"Freispiel")),"",100000/9999/E161) -> 10.0010001 | D173: =IF(OR(E173<=0,F163>1),"",IF(E173="Freispiel",G163/(1-(1/C173))/C173,IF(E173>1000000000,"",E173/C173/E162))) -> 0.05715347242 | E173: =200/B161 -> 20 | F173: =IFERROR(IF(D173<D175,D175/D173,D173/D175),"") -> 1.428428571 | G173: =IFERROR(D173/IF((C173*E162)<1500,1500,C173*E162)^0.25*62.2333,"") -> 0.5715347451 | H173: =IF(SUM(H164:H172)=0,"",SUM(H164:H172)) -> 0.3792 | I173: Gesamt | J173: =IFERROR(1/H173,"") -> 2.637130802 | K173: =IF(SUM(K164:K172)=0,"",SUM(K164:K172)) -> 0.4001143184 | L173: =IFERROR(L162*K173,"") -> 14 | M173: =IFERROR(AVERAGE(M164:M172),"") -> 25.68075094 | N173: =IF(SUM(N164:N172)=0,"",SUM(N164:N172)) -> 3.24463323 | O173: =IF(SUM(O164:O172)=0,"",SUM(O164:O172)) -> 0.363 | P173: Gesamt | Q173: =IFERROR(1/O173,"") -> 2.754820937 | R173: =IF(SUM(R164:R172)=0,"",SUM(R164:R172)) -> 0.3435267219 | S173: =IFERROR(S162*R173,"") -> 12.02 | T173: =IFERROR(AVERAGE(T164:T172),"") -> 29.98534189 | U173: =IF(SUM(U164:U172)=0,"",SUM(U164:U172)) -> 2.677445488
A174: =IF(SUM(A164:A173)=0,"",SUM(A164:A173)) -> 0.15304 | B174: Gesamt | C174: =IFERROR(1/A174,"") -> 6.534239415 | D174: =IF(SUM(D164:D173)=0,"",SUM(D164:D173)) -> 0.4001143184 | E174: =IFERROR(E162*D174,"") -> 14 | F174: =IFERROR(AVERAGE(F164:F173),"") -> 18.2314619 | G174: =IF(SUM(G164:G173)=0,"",SUM(G164:G173)) -> 2.375591056 | K174: =AVERAGE(K164:K172) -> 0.04445714649 | R174: =AVERAGE(R164:R172) -> 0.03816963577
D175: =AVERAGE(D164:D173) -> 0.04001143184
F176: vs. | I176: 5 | L176: 1 | P176: 10 | S176: 1
B177: MiniLos ⁵ | E177: 1 | I177: (1+2+3+4+5+6+6+7) x 1 aus 10 | L177: =L176*5/I176 -> 1 | P177: 37.555 aus 100.000 | S177: =S176*IF(P176=1,199.99,IF(P176=2,119.99,IF(P176=5,54.99,IF(P176=10,29.99,IF(P176=20,15.99,IF(P176=50,6.99,3.99)))))) -> 29.99
B178: 6 x 1 aus 10 | E178: =E177*1 -> 1 | I178: Richtige | J178: =IF(L176=1,"Chancen 1:","Ø Gewinne 1:") -> Chancen 1: | K178: Ø AQ | L178: (Ø) Gewinn | M178: =IFERROR(COUNTIF(L179:L185,"Freispiel"),"") -> 0 | N178: =IFERROR(SUMIF(L179:L185,"<>Freispiel",K179:K185),"") -> 0.3897216973 | P178: GK | Q178: =IF(S176=1,"Chancen 1:","Ø Gewinne 1:") -> Chancen 1: | R178: Ø AQ | S178: (Ø) Gewinn | T178: =IFERROR(COUNTIF(S179:S189,"Freispiel"),"") -> 0 | U178: =IFERROR(SUMIF(S179:S189,"<>Freispiel",R179:R189),"") -> 0.3501167056
B179: Richtige | C179: =IF(E177=1,"Chancen 1:","Ø Gewinne 1:") -> Chancen 1: | D179: Ø AQ | E179: (Ø) Gewinn | F179: =IFERROR(COUNTIF(E180:E185,"Freispiel"),"") -> 0 | G179: =IFERROR(SUMIF(E180:E185,"<>Freispiel",D180:D185),"") -> 0.6116491 | H179: =IF(J179="",0,1/J179) -> 1e-07 | I179: 7 | J179: =IF(OR(L179<=0,AND(L179>1000000000,L179<>"Freispiel")),"",10^7/L176) -> 10000000 | K179: =IF(OR(L179<=0,M178>1),"",IF(L179="Freispiel",N178/(1-(1/J179))/J179,IF(L179>1000000000,"",L179/J179/L177))) -> 0.042 | L179: =2100000/I176 -> 420000 | M179: =IFERROR(IF(K179<K187,K187/K179,K179/K187),"") -> 1.325584005 | N179: =IFERROR(K179/IF((J179*L177)<1500,1500,J179*L177)^0.25*62.2333,"") -> 0.04648064232 | O179: =IF(Q179="",0,1/Q179) -> 1e-05 | P179: 1 | Q179: =IF(OR(S179<=0,AND(S179>1000000000,S179<>"Freispiel")),"",100000/1/S176) -> 100000 | R179: =IF(OR(S179<=0,T178>1),"",IF(S179="Freispiel",U178/(1-(1/Q179))/Q179,IF(S179>1000000000,"",S179/Q179/S177))) -> 0.05001667222 | S179: =1500000/P176 -> 150000 | T179: =IFERROR(IF(R179<R191,R191/R179,R179/R191),"") -> 1.571428571 | U179: =IFERROR(R179/IF((Q179*S177)<1500,1500,Q179*S177)^0.25*62.2333,"") -> 0.07479860658
A180: =IF(C180="",0,1/C180) -> 1e-06 | B180: 6 | C180: =IF(OR(E180<=0,AND(E180>1000000000,E180<>"Freispiel")),"",10^6/E177) -> 1000000 | D180: =IF(OR(E180<=0,F179>1),"",IF(E180="Freispiel",G179/(1-(1/C180))/C180,IF(E180>1000000000,"",E180/C180/E178))) -> 0.1 | E180: 100000 | F180: =IFERROR(IF(D180<D187,D187/D180,D180/D187),"") -> 1.019415167 | G180: =IFERROR(D180/IF((C180*E178)<1500,1500,C180*E178)^0.25*62.2333,"") -> 0.1967989743 | H180: 1.9999998e-06 | I180: 6 | J180: =IF(OR(L180<=0,AND(L180>1000000000,L180<>"Freispiel")),"",1/(0.000002*0.9999999)/L176) -> 500000.05 | K180: =IF(OR(L180<=0,M178>1),"",IF(L180="Freispiel",N178/(1-(1/J180))/J180,IF(L180>1000000000,"",L180/J180/L177))) -> 0.039999996 | L180: =100000/I176 -> 20000 | M180: =IFERROR(IF(K180<K187,K187/K180,K180/K187),"") -> 1.391863344 | N180: =IFERROR(K180/IF((J180*L177)<1500,1500,J180*L177)^0.25*62.2333,"") -> 0.09361388449 | O180: 1e-05 | P180: 2 | Q180: =IF(OR(S180<=0,AND(S180>1000000000,S180<>"Freispiel")),"",100000/1/S176) -> 100000 | R180: =IF(OR(S180<=0,T178>1),"",IF(S180="Freispiel",U178/(1-(1/Q180))/Q180,IF(S180>1000000000,"",S180/Q180/S177))) -> 0.01000333444 | S180: =300000/P176 -> 30000 | T180: =IFERROR(IF(R180<R191,R191/R180,R180/R191),"") -> 3.181818182 | U180: =IFERROR(R180/IF((Q180*S177)<1500,1500,Q180*S177)^0.25*62.2333,"") -> 0.01495972132
A181: 1.799991e-05 | B181: 5 | C181: =IF(OR(E181<=0,AND(E181>1000000000,E181<>"Freispiel")),"",1/(0.00001*0.9*0.99999+0.00001*0.9)/E177) -> 55555.83333 | D181: =IF(OR(E181<=0,F179>1),"",IF(E181="Freispiel",G179/(1-(1/C181))/C181,IF(E181>1000000000,"",E181/C181/E178))) -> 0.08999955 | E181: 5000 | F181: =IFERROR(IF(D181<D187,D187/D181,D181/D187),"") -> 1.132689182 | G181: =IFERROR(D181/IF((C181*E178)<1500,1500,C181*E178)^0.25*62.2333,"") -> 0.364821775 | H181: 9.999979e-06 | I181: 5 | J181: =IF(OR(L181<=0,AND(L181>1000000000,L181<>"Freispiel")),"",1/(0.00001*0.999998*0.9999999)/L176) -> 100000.21 | K181: =IF(OR(L181<=0,M178>1),"",IF(L181="Freispiel",N178/(1-(1/J181))/J181,IF(L181>1000000000,"",L181/J181/L177))) -> 0.019999958 | L181: =10000/I176 -> 2000 | M181: =IFERROR(IF(K181<K187,K187/K181,K181/K187),"") -> 2.783732255 | N181: =IFERROR(K181/IF((J181*L177)<1500,1500,J181*L177)^0.25*62.2333,"") -> 0.06999252906 | O181: 1e-05 | P181: 3 | Q181: =IF(OR(S181<=0,AND(S181>1000000000,S181<>"Freispiel")),"",100000/1/S176) -> 100000 | R181: =IF(OR(S181<=0,T178>1),"",IF(S181="Freispiel",U178/(1-(1/Q181))/Q181,IF(S181>1000000000,"",S181/Q181/S177))) -> 0.005001667222 | S181: =150000/P176 -> 15000 | T181: =IFERROR(IF(R181<R191,R191/R181,R181/R191),"") -> 6.363636364 | U181: =IFERROR(R181/IF((Q181*S177)<1500,1500,Q181*S177)^0.25*62.2333,"") -> 0.007479860658
A182: 0.0001799901 | B182: 4 | C182: =IF(OR(E182<=0,AND(E182>1000000000,E182<>"Freispiel")),"",1/(0.0001*0.9*0.9999+0.0001*0.9*0.99999)/E177) -> 5555.861128 | D182: =IF(OR(E182<=0,F179>1),"",IF(E182="Freispiel",G179/(1-(1/C182))/C182,IF(E182>1000000000,"",E182/C182/E178))) -> 0.08999505 | E182: 500 | F182: =IFERROR(IF(D182<D187,D187/D182,D182/D187),"") -> 1.13274582 | G182: =IFERROR(D182/IF((C182*E178)<1500,1500,C182*E178)^0.25*62.2333,"") -> 0.6487145036 | H182: 9.999879e-05 | I182: 4 | J182: =IF(OR(L182<=0,AND(L182>1000000000,L182<>"Freispiel")),"",1/(0.0001*0.99999*0.999998*0.9999999)/L176) -> 10000.121 | K182: =IF(OR(L182<=0,M178>1),"",IF(L182="Freispiel",N178/(1-(1/J182))/J182,IF(L182>1000000000,"",L182/J182/L177))) -> 0.019999758 | L182: =1000/I176 -> 200 | M182: =IFERROR(IF(K182<K187,K187/K182,K182/K187),"") -> 2.783760093 | N182: =IFERROR(K182/IF((J182*L177)<1500,1500,J182*L177)^0.25*62.2333,"") -> 0.1244647174 | O182: 2e-05 | P182: 8 | Q182: =IF(OR(S182<=0,AND(S182>1000000000,S182<>"Freispiel")),"",100000/2/S176) -> 50000 | R182: =IF(OR(S182<=0,T178>1),"",IF(S182="Freispiel",U178/(1-(1/Q182))/Q182,IF(S182>1000000000,"",S182/Q182/S177))) -> 0.001400466822 | S182: =21000/P176 -> 2100 | T182: =IFERROR(IF(R182<R191,R191/R182,R182/R191),"") -> 22.72727273 | U182: =IFERROR(R182/IF((Q182*S177)<1500,1500,Q182*S177)^0.25*62.2333,"") -> 0.002490628984
A183: 0.00179901 | B183: 3 | C183: =IF(OR(E183<=0,AND(E183>1000000000,E183<>"Freispiel")),"",1/(0.001*0.9*0.999+0.001*0.9*0.9999)/E177) -> 555.8612793 | D183: =IF(OR(E183<=0,F179>1),"",IF(E183="Freispiel",G179/(1-(1/C183))/C183,IF(E183>1000000000,"",E183/C183/E178))) -> 0.0899505 | E183: 50 | F183: =IFERROR(IF(D183<D187,D187/D183,D183/D187),"") -> 1.133306837 | G183: =IFERROR(D183/IF((C183*E178)<1500,1500,C183*E178)^0.25*62.2333,"") -> 0.8995050328 | H183: 0.0009998879012 | I183: 3 | J183: =IF(OR(L183<=0,AND(L183>1000000000,L183<>"Freispiel")),"",1/(0.001*0.9999*0.99999*0.999998*0.9999999)/L176) -> 1000.112111 | K183: =IF(OR(L183<=0,M178>1),"",IF(L183="Freispiel",N178/(1-(1/J183))/J183,IF(L183>1000000000,"",L183/J183/L177))) -> 0.01999775802 | L183: =100/I176 -> 20 | M183: =IFERROR(IF(K183<K187,K187/K183,K183/K187),"") -> 2.784038497 | N183: =IFERROR(K183/IF((J183*L177)<1500,1500,J183*L177)^0.25*62.2333,"") -> 0.1999775875 | O183: 2e-05 | P183: 9 | Q183: =IF(OR(S183<=0,AND(S183>1000000000,S183<>"Freispiel")),"",100000/2/S176) -> 50000 | R183: =IF(OR(S183<=0,T178>1),"",IF(S183="Freispiel",U178/(1-(1/Q183))/Q183,IF(S183>1000000000,"",S183/Q183/S177))) -> 0.0008002667556 | S183: =12000/P176 -> 1200 | T183: =IFERROR(IF(R183<R191,R191/R183,R183/R191),"") -> 39.77272727 | U183: =IFERROR(R183/IF((Q183*S177)<1500,1500,Q183*S177)^0.25*62.2333,"") -> 0.001423216562
A184: 0.017901 | B184: 2 | C184: =IF(OR(E184<=0,AND(E184>1000000000,E184<>"Freispiel")),"",1/(0.01*0.9*0.99+0.01*0.9*0.999)/E177) -> 55.86280096 | D184: =IF(OR(E184<=0,F179>1),"",IF(E184="Freispiel",G179/(1-(1/C184))/C184,IF(E184>1000000000,"",E184/C184/E178))) -> 0.071604 | E184: 4 | F184: =IFERROR(IF(D184<D187,D187/D184,D184/D187),"") -> 1.423684664 | G184: =IFERROR(D184/IF((C184*E178)<1500,1500,C184*E178)^0.25*62.2333,"") -> 0.7160400261 | H184: 0.009988880133 | I184: 2 | J184: =IF(OR(L184<=0,AND(L184>1000000000,L184<>"Freispiel")),"",1/(0.01*0.999*0.9999*0.99999*0.999998*0.9999999)/L176) -> 100.1113225 | K184: =IF(OR(L184<=0,M178>1),"",IF(L184="Freispiel",N178/(1-(1/J184))/J184,IF(L184>1000000000,"",L184/J184/L177))) -> 0.04994440067 | L184: =25/I176 -> 5 | M184: =IFERROR(IF(K184<K187,K187/K184,K184/K187),"") -> 1.114730129 | N184: =IFERROR(K184/IF((J184*L177)<1500,1500,J184*L177)^0.25*62.2333,"") -> 0.4994440249 | O184: 2e-05 | P184: 10 | Q184: =IF(OR(S184<=0,AND(S184>1000000000,S184<>"Freispiel")),"",100000/2/S176) -> 50000 | R184: =IF(OR(S184<=0,T178>1),"",IF(S184="Freispiel",U178/(1-(1/Q184))/Q184,IF(S184>1000000000,"",S184/Q184/S177))) -> 0.0004151383795 | S184: =6225/P176 -> 622.5 | T184: =IFERROR(IF(R184<R191,R191/R184,R184/R191),"") -> 76.67031763 | U184: =IFERROR(R184/IF((Q184*S177)<1500,1500,Q184*S177)^0.25*62.2333,"") -> 0.0007382935916
A185: 0.1701 | B185: 1 | C185: =IF(OR(E185<=0,AND(E185>1000000000,E185<>"Freispiel")),"",1/(0.1*0.9*0.9+0.1*0.9*0.99)/E177) -> 5.878894768 | D185: =IF(OR(E185<=0,F179>1),"",IF(E185="Freispiel",G179/(1-(1/C185))/C185,IF(E185>1000000000,"",E185/C185/E178))) -> 0.1701 | E185: 1 | F185: =IFERROR(IF(D185<D187,D187/D185,D185/D187),"") -> 1.66860378 | G185: =IFERROR(D185/IF((C185*E178)<1500,1500,C185*E178)^0.25*62.2333,"") -> 1.701000062 | H185: 0.09888991332 | I185: 1 | J185: =IF(OR(L185<=0,AND(L185>1000000000,L185<>"Freispiel")),"",1/(0.1*0.99*0.999*0.9999*0.99999*0.999998*0.9999999)/L176) -> 10.11225479 | K185: =IF(OR(L185<=0,M178>1),"",IF(L185="Freispiel",N178/(1-(1/J185))/J185,IF(L185>1000000000,"",L185/J185/L177))) -> 0.1977798266 | L185: =10/I176 -> 2 | M185: =IFERROR(IF(K185<K187,K187/K185,K185/K187),"") -> 3.552429326 | N185: =IFERROR(K185/IF((J185*L177)<1500,1500,J185*L177)^0.25*62.2333,"") -> 1.977798339 | O185: 0.00012 | P185: 4 | Q185: =IF(OR(S185<=0,AND(S185>1000000000,S185<>"Freispiel")),"",100000/12/S176) -> 8333.333333 | R185: =IF(OR(S185<=0,T178>1),"",IF(S185="Freispiel",U178/(1-(1/Q185))/Q185,IF(S185>1000000000,"",S185/Q185/S177))) -> 0.03001000333 | S185: =75000/P176 -> 7500 | T185: =IFERROR(IF(R185<R191,R191/R185,R185/R191),"") -> 1.060606061 | U185: =IFERROR(R185/IF((Q185*S177)<1500,1500,Q185*S177)^0.25*62.2333,"") -> 0.08352953608
A186: =IF(SUM(A180:A185)=0,"",SUM(A180:A185)) -> 0.189999 | B186: Gesamt | C186: =IFERROR(1/A186,"") -> 5.263185595 | D186: =IF(SUM(D180:D185)=0,"",SUM(D180:D185)) -> 0.6116491 | E186: =IFERROR(E178*D186,"") -> 0.6116491 | F186: =IFERROR(AVERAGE(F180:F185),"") -> 1.251740908 | G186: =IF(SUM(G180:G185)=0,"",SUM(G180:G185)) -> 4.526880374 | H186: =IF(SUM(H179:H185)=0,"",SUM(H179:H185)) -> 0.1099907801 | I186: Gesamt | J186: =IFERROR(1/H186,"") -> 9.091671128 | K186: =IF(SUM(K179:K185)=0,"",SUM(K179:K185)) -> 0.3897216973 | L186: =IFERROR(L177*K186,"") -> 0.3897216973 | M186: =IFERROR(AVERAGE(M179:M185),"") -> 2.248019664 | N186: =IF(SUM(N179:N185)=0,"",SUM(N179:N185)) -> 3.011771724 | O186: 0.0004 | P186: 5 | Q186: =IF(OR(S186<=0,AND(S186>1000000000,S186<>"Freispiel")),"",100000/(4*10)/S176) -> 2500 | R186: =IF(OR(S186<=0,T178>1),"",IF(S186="Freispiel",U178/(1-(1/Q186))/Q186,IF(S186>1000000000,"",S186/Q186/S177))) -> 0.005001667222 | S186: =3750/P176 -> 375 | T186: =IFERROR(IF(R186<R191,R191/R186,R186/R191),"") -> 6.363636364 | U186: =IFERROR(R186/IF((Q186*S177)<1500,1500,Q186*S177)^0.25*62.2333,"") -> 0.01881085368
D187: =AVERAGE(D180:D185) -> 0.1019415167 | K187: =AVERAGE(K179:K185) -> 0.05567452819 | O187: 0.01496 | P187: 6+11-14 | Q187: =IF(OR(S187<=0,AND(S187>1000000000,S187<>"Freispiel")),"",100000/(11*100+4*99)/S176) -> 66.84491979 | R187: =IF(OR(S187<=0,T178>1),"",IF(S187="Freispiel",U178/(1-(1/Q187))/Q187,IF(S187>1000000000,"",S187/Q187/S177))) -> 0.03741247082 | S187: =750/P176 -> 75 | T187: =IFERROR(IF(R187<R191,R191/R187,R187/R191),"") -> 1.175428571 | U187: =IFERROR(R187/IF((Q187*S177)<1500,1500,Q187*S177)^0.25*62.2333,"") -> 0.3479589436
O188: 0.05999 | P188: 7+15 | Q188: =IF(OR(S188<=0,AND(S188>1000000000,S188<>"Freispiel")),"",100000/(5*1000+999)/S176) -> 16.66944491 | R188: =IF(OR(S188<=0,T178>1),"",IF(S188="Freispiel",U178/(1-(1/Q188))/Q188,IF(S188>1000000000,"",S188/Q188/S177))) -> 0.06001000333 | S188: =300/P176 -> 30 | T188: =IFERROR(IF(R188<R191,R191/R188,R188/R191),"") -> 1.8854 | U188: =IFERROR(R188/IF((Q188*S177)<1500,1500,Q188*S177)^0.25*62.2333,"") -> 0.6001000552
B189: Tipp: Bei den Lotterien SwissLotto, PowerBall und MegaMillions kann der aktuelle Wechselkurs über der Zelle mit der Tippanzahl eingetragen werden! | I189: Zusatzlotterie Sieger-Chance | L189: 1 | O189: 0.29999 | P189: 16-18 | Q189: =IF(OR(S189<=0,AND(S189>1000000000,S189<>"Freispiel")),"",100000/(2*10000+9999)/S176) -> 3.333444448 | R189: =IF(OR(S189<=0,T178>1),"",IF(S189="Freispiel",U178/(1-(1/Q189))/Q189,IF(S189>1000000000,"",S189/Q189/S177))) -> 0.150045015 | S189: =150/P176 -> 15 | T189: =IFERROR(IF(R189<R191,R191/R189,R189/R191),"") -> 4.714128571 | U189: =IFERROR(R189/IF((Q189*S177)<1500,1500,Q189*S177)^0.25*62.2333,"") -> 1.500450205
I190: (5+5+6+7+7+7) x 1 aus 10 | L190: =L189*3 -> 3 | O190: =IF(SUM(O179:O189)=0,"",SUM(O179:O189)) -> 0.37555 | P190: Gesamt | Q190: =IFERROR(1/O190,"") -> 2.662761283 | R190: =IF(SUM(R179:R189)=0,"",SUM(R179:R189)) -> 0.3501167056 | S190: =IFERROR(S177*R190,"") -> 10.5 | T190: =IFERROR(AVERAGE(T179:T189),"") -> 15.04421821 | U190: =IF(SUM(U179:U189)=0,"",SUM(U179:U189)) -> 2.652739921
I191: Richtige | J191: =IF(L189=1,"Chancen 1:","Ø Gewinne 1:") -> Chancen 1: | K191: Ø AQ | L191: (Ø) Gewinn | M191: =IFERROR(COUNTIF(L192:L194,"Freispiel"),"") -> 0 | N191: =IFERROR(SUMIF(L192:L194,"<>Freispiel",K192:K194),"") -> 0.36666652 | R191: =AVERAGE(R179:R189) -> 0.03182879142
H192: =IF(J192="",0,1/J192) -> 3e-07 | I192: 7 | J192: =IF(OR(L192<=0,AND(L192>1000000000,L192<>"Freispiel")),"",1/0.0000003) -> 3333333.333 | K192: =IF(OR(L192<=0,M191>1),"",IF(L192="Freispiel",N191/(1-(1/J192))/J192,IF(L192>1000000000,"",L192/J192/L190))) -> 0.1 | L192: 1000000 | M192: =IFERROR(IF(K192<K196,K196/K192,K192/K196),"") -> 1.222221733 | N192: =IFERROR(K192/IF((J192*L190)<1500,1500,J192*L190)^0.25*62.2333,"") -> 0.110668196
B193: Veraltete Gewinntabellen oder sonstige Fehler gefunden? Dann schreibe bitte eine E-Mail an: lottohelden@lotteriecheck.de | H193: 9.999997e-07 | I193: 6 | J193: =IF(OR(L193<=0,AND(L193>1000000000,L193<>"Freispiel")),"",1/(0.000001*0.9999997)) -> 1000000.3 | K193: =IF(OR(L193<=0,M191>1),"",IF(L193="Freispiel",N191/(1-(1/J193))/J193,IF(L193>1000000000,"",L193/J193/L190))) -> 0.19999994 | L193: 600000 | M193: =IFERROR(IF(K193<K196,K196/K193,K193/K196),"") -> 1.6363638 | N193: =IFERROR(K193/IF((J193*L190)<1500,1500,J193*L190)^0.25*62.2333,"") -> 0.299069655 | P193: EuroDreams ¹³ | R193: 1 | S193: 1
H194: 1.9999974e-05 | I194: 5 | J194: =IF(OR(L194<=0,AND(L194>1000000000,L194<>"Freispiel")),"",1/(0.00002*0.999999*0.9999997)) -> 50000.065 | K194: =IF(OR(L194<=0,M191>1),"",IF(L194="Freispiel",N191/(1-(1/J194))/J194,IF(L194>1000000000,"",L194/J194/L190))) -> 0.06666658 | L194: 10000 | M194: =IFERROR(IF(K194<K196,K196/K194,K194/K196),"") -> 1.833334983 | N194: =IFERROR(K194/IF((J194*L190)<1500,1500,J194*L190)^0.25*62.2333,"") -> 0.2108181758 | P194: 6 aus 40 + 1 aus 5 | R194: =IF(R193=1,"Anteil","Anteile") -> Anteil | S194: =S193*2.5/R193 -> 2.5
H195: =IF(SUM(H192:H194)=0,"",SUM(H192:H194)) -> 2.12999737e-05 | I195: Gesamt | J195: =IFERROR(1/H195,"") -> 46948.41478 | K195: =IF(SUM(K192:K194)=0,"",SUM(K192:K194)) -> 0.36666652 | L195: =IFERROR(L190*K195,"") -> 1.09999956 | M195: =IFERROR(AVERAGE(M192:M194),"") -> 1.563973506 | N195: =IF(SUM(N192:N194)=0,"",SUM(N192:N194)) -> 0.6205560268 | P195: Richtige | Q195: =IF(S193=1,"Chancen 1:","Ø Gewinne 1:") -> Chancen 1: | R195: (Ø) AQ | S195: (Ø) Gewinn | T195: =IFERROR(COUNTIF(S196:S201,"Freispiel"),"") -> 0 | U195: =IFERROR(SUMIF(S196:S201,"<>Freispiel",R196:R201),"") -> 0.4153223065
K196: =AVERAGE(K192:K194) -> 0.1222221733 | O196: =IF(Q196="",0,1/Q196) -> 5.210531526e-08 | P196: 6 + TZ | Q196: =IF(OR(S196<=0,AND(S196>1000000000,S196<>"Freispiel")),"",1/(HYPGEOMDIST(6,6,6,40)*HYPGEOMDIST(1,1,1,5))/S193) -> 19191900 | R196: =IF(OR(S196<=0,T195>1),"",IF(S196="Freispiel",U195/(1-(1/Q196))/Q196,IF(S196>1000000000,"",S196/Q196/S194))) -> 0.1207818347 | S196: =PV(0.00125,360,-20000)/R193 -> 5795082.233 | T196: =IFERROR(IF(R196<R203,R203/R196,R196/R203),"") -> 1.744888239 | U196: =IFERROR(R196/IF((Q196*S194)<1500,1500,Q196*S194)^0.25*62.2333,"") -> 0.09031501487
O197: 2.084212611e-07 | P197: 6 | Q197: =IF(OR(S197<=0,AND(S197>1000000000,S197<>"Freispiel")),"",1/(HYPGEOMDIST(6,6,6,40)*HYPGEOMDIST(0,1,1,5))/S193) -> 4797975 | R197: =IF(OR(S197<=0,T195>1),"",IF(S197="Freispiel",U195/(1-(1/Q197))/Q197,IF(S197>1000000000,"",S197/Q197/S194))) -> 0.009632471817 | S197: =PV(0.00125,60,-2000)/R193 -> 115540.8974 | T197: =IFERROR(IF(R197<R203,R203/R197,R197/R203),"") -> 7.186149696 | U197: =IFERROR(R197/IF((Q197*S194)<1500,1500,Q197*S194)^0.25*62.2333,"") -> 0.01018617376
B198: 25 Fette Jahre ¹³ | E198: 1 | F198: vs. | I198: 25 Fette Jahre (mit Extrarente) ¹³ | L198: 1 | O198: 5.314742157e-05 | P198: 5 | Q198: =IF(OR(S198<=0,AND(S198>1000000000,S198<>"Freispiel")),"",1/HYPGEOMDIST(5,6,6,40)/S193) -> 18815.58824 | R198: =IF(OR(S198<=0,T195>1),"",IF(S198="Freispiel",U195/(1-(1/Q198))/Q198,IF(S198>1000000000,"",S198/Q198/S194))) -> 0.002208283729 | S198: =103.875393389118/R193 -> 103.8753934 | T198: =IFERROR(IF(R198<R203,R203/R198,R198/R203),"") -> 31.34578383 | U198: =IFERROR(R198/IF((Q198*S194)<1500,1500,Q198*S194)^0.25*62.2333,"") -> 0.009331753341
B199: 7 x 1 aus 10 | E199: =E198*2 -> 2 | I199: 7 x 1 aus 10 | L199: =L198*3 -> 3 | O199: 0.00219233114 | P199: 4 | Q199: =IF(OR(S199<=0,AND(S199>1000000000,S199<>"Freispiel")),"",1/HYPGEOMDIST(4,6,6,40)/S193) -> 456.1354724 | R199: =IF(OR(S199<=0,T195>1),"",IF(S199="Freispiel",U195/(1-(1/Q199))/Q199,IF(S199>1000000000,"",S199/Q199/S194))) -> 0.03549842014 | S199: =40.4802215921854/R193 -> 40.48022159 | T199: =IFERROR(IF(R199<R203,R203/R199,R199/R203),"") -> 1.949956763 | U199: =IFERROR(R199/IF((Q199*S194)<1500,1500,Q199*S194)^0.25*62.2333,"") -> 0.3549842143
B200: GK | C200: =IF(E198=1,"Chancen 1:","Ø Gewinne 1:") -> Chancen 1: | D200: Ø AQ | E200: (Ø) Gewinn | F200: =IFERROR(COUNTIF(E201:E208,"Freispiel"),"") -> 0 | G200: =IFERROR(SUMIF(E201:E208,"<>Freispiel",D201:D208),"") -> 0.4800099506 | I200: GK | J200: =IF(L198=1,"Chancen 1:","Ø Gewinne 1:") -> Chancen 1: | K200: Ø AQ | L200: (Ø) Gewinn | M200: =IFERROR(COUNTIF(L201:L208,"Freispiel"),"") -> 0 | N200: =IFERROR(SUMIF(L201:L208,"<>Freispiel",K201:K208),"") -> 0.3700132675 | O200: 0.03117982065 | P200: 3 | Q200: =IF(OR(S200<=0,AND(S200>1000000000,S200<>"Freispiel")),"",1/HYPGEOMDIST(3,6,6,40)/S193) -> 32.0720254 | R200: =IF(OR(S200<=0,T195>1),"",IF(S200="Freispiel",U195/(1-(1/Q200))/Q200,IF(S200>1000000000,"",S200/Q200/S194))) -> 0.06596858859 | S200: =5.28936562207871/R193 -> 5.289365622 | T200: =IFERROR(IF(R200<R203,R203/R200,R200/R203),"") -> 1.049293094 | U200: =IFERROR(R200/IF((Q200*S194)<1500,1500,Q200*S194)^0.25*62.2333,"") -> 0.6596859099
A201: =IF(C201="",0,1/C201) -> 1e-07 | B201: 1 | C201: =IF(OR(E201<=0,AND(E201>1000000000,E201<>"Freispiel")),"",10^7/E198) -> 10000000 | D201: =IF(OR(E201<=0,F200>1),"",IF(E201="Freispiel",G200/(1-(1/C201))/C201,IF(E201>1000000000,"",E201/C201/E199))) -> 0.07500995061 | E201: =250000+PV(0.00125,300,-5000) -> 1500199.012 | F201: =IFERROR(IF(D201<D210,D210/D201,D201/D210),"") -> 1.250139928 | G201: =IFERROR(D201/IF((C201*E199)<1500,1500,C201*E199)^0.25*62.2333,"") -> 0.06980462707 | H201: =IF(J201="",0,1/J201) -> 1e-07 | I201: 1 | J201: =IF(OR(L201<=0,AND(L201>1000000000,L201<>"Freispiel")),"",10^7/L198) -> 10000000 | K201: =IF(OR(L201<=0,M200>1),"",IF(L201="Freispiel",N200/(1-(1/J201))/J201,IF(L201>1000000000,"",L201/J201/L199))) -> 0.1000132675 | L201: =500000+PV(0.00125,300,-10000) -> 3000398.024 | M201: =IFERROR(IF(K201<K210,K210/K201,K201/K210),"") -> 2.162371488 | N201: =IFERROR(K201/IF((J201*L199)<1500,1500,J201*L199)^0.25*62.2333,"") -> 0.08410080117 | O201: 0.1812327075 | P201: 2 | Q201: =IF(OR(S201<=0,AND(S201>1000000000,S201<>"Freispiel")),"",1/HYPGEOMDIST(2,6,6,40)/S193) -> 5.517767811 | R201: =IF(OR(S201<=0,T195>1),"",IF(S201="Freispiel",U195/(1-(1/Q201))/Q201,IF(S201>1000000000,"",S201/Q201/S194))) -> 0.1812327075 | S201: =2.5/R193 -> 2.5 | T201: =IFERROR(IF(R201<R203,R203/R201,R201/R203),"") -> 2.618198513 | U201: =IFERROR(R201/IF((Q201*S194)<1500,1500,Q201*S194)^0.25*62.2333,"") -> 1.812327142
A202: 9e-07 | B202: 2 | C202: =IF(OR(E202<=0,AND(E202>1000000000,E202<>"Freispiel")),"",1/(0.000001*0.9)/E198) -> 1111111.111 | D202: =IF(OR(E202<=0,F200>1),"",IF(E202="Freispiel",G200/(1-(1/C202))/C202,IF(E202>1000000000,"",E202/C202/E199))) -> 0.0225 | E202: 50000 | F202: =IFERROR(IF(D202<D210,D210/D202,D202/D210),"") -> 2.666721948 | G202: =IFERROR(D202/IF((C202*E199)<1500,1500,C202*E199)^0.25*62.2333,"") -> 0.03626673652 | H202: 9e-07 | I202: 2 | J202: =IF(OR(L202<=0,AND(L202>1000000000,L202<>"Freispiel")),"",1/(0.000001*0.9)/L198) -> 1111111.111 | K202: =IF(OR(L202<=0,M200>1),"",IF(L202="Freispiel",N200/(1-(1/J202))/J202,IF(L202>1000000000,"",L202/J202/L199))) -> 0.015 | L202: 50000 | M202: =IFERROR(IF(K202<K210,K210/K202,K202/K210),"") -> 3.083443896 | N202: =IFERROR(K202/IF((J202*L199)<1500,1500,J202*L199)^0.25*62.2333,"") -> 0.02184713052 | O202: =IF(SUM(O196:O201)=0,"",SUM(O196:O201)) -> 0.2146582673 | P202: Gesamt | Q202: =IFERROR(1/O202,"") -> 4.658567371 | R202: =IF(SUM(R196:R201)=0,"",SUM(R196:R201)) -> 0.4153223065 | S202: =IFERROR(S194*R202,"") -> 1.038305766 | T202: =IFERROR(AVERAGE(T196:T201),"") -> 7.649045023 | U202: =IF(SUM(U196:U201)=0,"",SUM(U196:U201)) -> 2.936830208
A203: 9e-06 | B203: 3 | C203: =IF(OR(E203<=0,AND(E203>1000000000,E203<>"Freispiel")),"",1/(0.00001*0.9)/E198) -> 111111.1111 | D203: =IF(OR(E203<=0,F200>1),"",IF(E203="Freispiel",G200/(1-(1/C203))/C203,IF(E203>1000000000,"",E203/C203/E199))) -> 0.0225 | E203: 5000 | F203: =IFERROR(IF(D203<D210,D210/D203,D203/D210),"") -> 2.666721948 | G203: =IFERROR(D203/IF((C203*E199)<1500,1500,C203*E199)^0.25*62.2333,"") -> 0.06449239083 | H203: 9e-06 | I203: 3 | J203: =IF(OR(L203<=0,AND(L203>1000000000,L203<>"Freispiel")),"",1/(0.00001*0.9)/L198) -> 111111.1111 | K203: =IF(OR(L203<=0,M200>1),"",IF(L203="Freispiel",N200/(1-(1/J203))/J203,IF(L203>1000000000,"",L203/J203/L199))) -> 0.015 | L203: 5000 | M203: =IFERROR(IF(K203<K210,K210/K203,K203/K210),"") -> 3.083443896 | N203: =IFERROR(K203/IF((J203*L199)<1500,1500,J203*L199)^0.25*62.2333,"") -> 0.03885030238 | R203: =AVERAGE(R196:R201) -> 0.06922038442
A204: 9e-05 | B204: 4 | C204: =IF(OR(E204<=0,AND(E204>1000000000,E204<>"Freispiel")),"",1/(0.0001*0.9)/E198) -> 11111.11111 | D204: =IF(OR(E204<=0,F200>1),"",IF(E204="Freispiel",G200/(1-(1/C204))/C204,IF(E204>1000000000,"",E204/C204/E199))) -> 0.0225 | E204: 500 | F204: =IFERROR(IF(D204<D210,D210/D204,D204/D210),"") -> 2.666721948 | G204: =IFERROR(D204/IF((C204*E199)<1500,1500,C204*E199)^0.25*62.2333,"") -> 0.1146854907 | H204: 9e-05 | I204: 4 | J204: =IF(OR(L204<=0,AND(L204>1000000000,L204<>"Freispiel")),"",1/(0.0001*0.9)/L198) -> 11111.11111 | K204: =IF(OR(L204<=0,M200>1),"",IF(L204="Freispiel",N200/(1-(1/J204))/J204,IF(L204>1000000000,"",L204/J204/L199))) -> 0.015 | L204: 500 | M204: =IFERROR(IF(K204<K210,K210/K204,K204/K210),"") -> 3.083443896 | N204: =IFERROR(K204/IF((J204*L199)<1500,1500,J204*L199)^0.25*62.2333,"") -> 0.0690866928
A205: 0.0009 | B205: 5 | C205: =IF(OR(E205<=0,AND(E205>1000000000,E205<>"Freispiel")),"",1/(0.001*0.9)/E198) -> 1111.111111 | D205: =IF(OR(E205<=0,F200>1),"",IF(E205="Freispiel",G200/(1-(1/C205))/C205,IF(E205>1000000000,"",E205/C205/E199))) -> 0.0225 | E205: 50 | F205: =IFERROR(IF(D205<D210,D210/D205,D205/D210),"") -> 2.666721948 | G205: =IFERROR(D205/IF((C205*E199)<1500,1500,C205*E199)^0.25*62.2333,"") -> 0.2039428468 | H205: 0.0009 | I205: 5 | J205: =IF(OR(L205<=0,AND(L205>1000000000,L205<>"Freispiel")),"",1/(0.001*0.9)/L198) -> 1111.111111 | K205: =IF(OR(L205<=0,M200>1),"",IF(L205="Freispiel",N200/(1-(1/J205))/J205,IF(L205>1000000000,"",L205/J205/L199))) -> 0.015 | L205: 50 | M205: =IFERROR(IF(K205<K210,K210/K205,K205/K210),"") -> 3.083443896 | N205: =IFERROR(K205/IF((J205*L199)<1500,1500,J205*L199)^0.25*62.2333,"") -> 0.1228554433 | P205: SuperLotto ¹¹ | R205: 1 | S205: 1
... 47 more rows

Sheet System-Chancen
B2: LOTTO 6aus49 L (210 Tipps) | E2: 1 | F2: vs. | I2: LOTTO 6aus49 XL (924 Tipps) | L2: 1 | M2: vs. | P2: LOTTO 6aus49 XXL (1.716 Tipps) | S2: 1 | W2: Bewertungsübersicht der System- Chancen von Lottohelden ¹ | X2: Preis je Spiel | Y2: Wer- tung ² | Z2: Ø AQ Gesamt | AA2: Chancen je Spiel | AB2: Vertei- lung ³
B3: Vollsystem 010 / 42 Anteile | E3: =E2*6 -> 6 | I3: Vollsystem 012 / 84 Anteile | L3: =L2*13.2 -> 13.2 | P3: Vollsystem 013 / 78 Anteile | S3: =S2*26.4 -> 26.4
B4: Richtige | C4: =IF(E2=1,"Chancen 1:","Ø Gewinne 1:") -> Chancen 1: | D4: Ø AQ | E4: (Ø) Gewinn | I4: Richtige | J4: =IF(L2=1,"Chancen 1:","Ø Gewinne 1:") -> Chancen 1: | K4: Ø AQ | L4: (Ø) Gewinn | P4: Richtige | Q4: =IF(S2=1,"Chancen 1:","Ø Gewinne 1:") -> Chancen 1: | R4: Ø AQ | S4: (Ø) Gewinn | W4: =$I$2 -> LOTTO 6aus49 XL (924 Tipps) | X4: =$L$3/$L$2 -> 13.2 | Y4: =$N$14 -> 3.494843593 | Z4: =IFERROR(ROUND($K$14,10),"") -> 0.5 | AA4: =IFERROR($H$14/$L$2,"") -> 0.1791495969 | AB4: =$M$14 -> 1.570419766 | AC4: 3.494843593
A5: =IFERROR(IF(OR(E5<=0,E5>1000000000),0,1/C5),"") -> 1.501736007e-06 | B5: 6 + SZ | C5: =IF(OR(E5<=0,E5>1000000000),"",1/(HYPGEOMDIST(6,10,6,49)*HYPGEOMDIST(1,1,1,10))/E2) -> 665896 | D5: =IF(OR(E5<=0,E5>1000000000),"",E5/C5/E3) -> 0.07684881559 | E5: 307039.9135 | F5: =IFERROR(IF(D5<D15,D15/D5,D5/D15),"") -> 1.383278681 | G5: =IFERROR(D5/IF((C5*E3)<1500,1500,C5*E3)^0.25*62.2333,"") -> 0.1069721181 | H5: =IFERROR(IF(OR(L5<=0,L5>1000000000),0,1/J5),"") -> 6.60763843e-06 | I5: 6 + SZ | J5: =IF(OR(L5<=0,L5>1000000000),"",1/(HYPGEOMDIST(6,12,6,49)*HYPGEOMDIST(1,1,1,10))/L2) -> 151340 | K5: =IF(OR(L5<=0,L5>1000000000),"",L5/J5/L3) -> 0.07791839432 | L5: 155656.6413 | M5: =IFERROR(IF(K5<K15,K15/K5,K5/K15),"") -> 1.402531098 | N5: =IFERROR(K5/IF((J5*L3)<1500,1500,J5*L3)^0.25*62.2333,"") -> 0.1289825355 | O5: =IFERROR(IF(OR(S5<=0,S5>1000000000),0,1/Q5),"") -> 1.227132851e-05 | P5: 6 + SZ | Q5: =IF(OR(S5<=0,S5>1000000000),"",1/(HYPGEOMDIST(6,13,6,49)*HYPGEOMDIST(1,1,1,10))/S2) -> 81490.76923 | R5: =IF(OR(S5<=0,S5>1000000000),"",S5/Q5/S3) -> 0.07850349189 | S5: 168888.9825 | T5: =IFERROR(IF(R5<R15,R15/R5,R5/R15),"") -> 1.413062854 | U5: =IFERROR(R5/IF((Q5*S3)<1500,1500,Q5*S3)^0.25*62.2333,"") -> 0.1275656421 | W5: =$B$2 -> LOTTO 6aus49 L (210 Tipps) | X5: =$E$3/$E$2 -> 6 | Y5: =$G$14 -> 3.477972122 | Z5: =IFERROR(ROUND($D$14,10),"") -> 0.5 | AA5: =IFERROR($A$14/$E$2,"") -> 0.1167390575 | AB5: =$F$14 -> 1.603579872 | AC5: 3.477972122
A6: 1.351562406e-05 | B6: 6 | C6: =IF(OR(E6<=0,E6>1000000000),"",1/(HYPGEOMDIST(6,10,6,49)*HYPGEOMDIST(0,1,1,10))/E2) -> 73988.44444 | D6: =IF(OR(E6<=0,E6>1000000000),"",E6/C6/E3) -> 0.05928618126 | E6: 26318.95397 | F6: =IFERROR(IF(D6<D15,D15/D6,D6/D15),"") -> 1.067151263 | G6: =IFERROR(D6/IF((C6*E3)<1500,1500,C6*E3)^0.25*62.2333,"") -> 0.1429379408 | H6: 5.946874587e-05 | I6: 6 | J6: =IF(OR(L6<=0,L6>1000000000),"",1/(HYPGEOMDIST(6,12,6,49)*HYPGEOMDIST(0,1,1,10))/L2) -> 16815.55556 | K6: =IF(OR(L6<=0,L6>1000000000),"",L6/J6/L3) -> 0.06242892472 | L6: 13857.05708 | M6: =IFERROR(IF(K6<K15,K15/K6,K6/K15),"") -> 1.123720645 | N6: =IFERROR(K6/IF((J6*L3)<1500,1500,J6*L3)^0.25*62.2333,"") -> 0.1789935566 | O6: 0.0001104419566 | P6: 6 | Q6: =IF(OR(S6<=0,S6>1000000000),"",1/(HYPGEOMDIST(6,13,6,49)*HYPGEOMDIST(0,1,1,10))/S2) -> 9054.529915 | R6: =IF(OR(S6<=0,S6>1000000000),"",S6/Q6/S3) -> 0.0641447396 | S6: 15333.13224 | T6: =IFERROR(IF(R6<R15,R15/R6,R6/R15),"") -> 1.154605313 | U6: =IFERROR(R6/IF((Q6*S3)<1500,1500,Q6*S3)^0.25*62.2333,"") -> 0.1805370819 | W6: =$P$2 -> LOTTO 6aus49 XXL (1.716 Tipps) | X6: =$S$3/$S$2 -> 26.4 | Y6: =$U$14 -> 3.383163409 | Z6: =IFERROR(ROUND($R$14,10),"") -> 0.5 | AA6: =IFERROR($O$14/$S$2,"") -> 0.2145335007 | AB6: =$T$14 -> 1.563907466 | AC6: 3.383163409
A7: 7.028124512e-05 | B7: 5 + SZ | C7: =IF(OR(E7<=0,E7>1000000000),"",1/(HYPGEOMDIST(5,10,6,49)*HYPGEOMDIST(1,1,1,10))/E2) -> 14228.54701 | D7: =IF(OR(E7<=0,E7>1000000000),"",E7/C7/E3) -> 0.02026355152 | E7: 1729.925372 | F7: =IFERROR(IF(D7<D15,D15/D7,D7/D15),"") -> 2.741649483 | G7: =IFERROR(D7/IF((C7*E3)<1500,1500,C7*E3)^0.25*62.2333,"") -> 0.07377520836 | H7: 0.0002095565331 | I7: 5 + SZ | J7: =IF(OR(L7<=0,L7>1000000000),"",1/(HYPGEOMDIST(5,12,6,49)*HYPGEOMDIST(1,1,1,10))/L2) -> 4771.981982 | K7: =IF(OR(L7<=0,L7>1000000000),"",L7/J7/L3) -> 0.0216486099 | L7: 1363.649448 | M7: =IFERROR(IF(K7<K15,K15/K7,K7/K15),"") -> 2.566241242 | N7: =IFERROR(K7/IF((J7*L3)<1500,1500,J7*L3)^0.25*62.2333,"") -> 0.08504223466 | O7: 0.0003313258698 | P7: 5 + SZ | Q7: =IF(OR(S7<=0,S7>1000000000),"",1/(HYPGEOMDIST(5,13,6,49)*HYPGEOMDIST(1,1,1,10))/S2) -> 3018.176638 | R7: =IF(OR(S7<=0,S7>1000000000),"",S7/Q7/S3) -> 0.02251460933 | S7: 1793.960993 | T7: =IFERROR(IF(R7<R15,R15/R7,R7/R15),"") -> 2.467533624 | U7: =IFERROR(R7/IF((Q7*S3)<1500,1500,Q7*S3)^0.25*62.2333,"") -> 0.08339693719 | W7: =$B$71 -> SuperLotto L (210 Tipps) ⁵ | X7: =$E$72/$E$71 -> 5 | Y7: =$G$82 -> 2.937825418 | Z7: =IFERROR(ROUND($D$82,10),"") -> 0.3588689988 | AA7: =IFERROR($A$82/$E$71,"") -> 0.517357631 | AB7: =$F$82 -> 6.837689509 | AC7: 2.937825418
A8: 0.0006325312061 | B8: 5 | C8: =IF(OR(E8<=0,E8>1000000000),"",1/(HYPGEOMDIST(5,10,6,49)*HYPGEOMDIST(0,1,1,10))/E2) -> 1580.949668 | D8: =IF(OR(E8<=0,E8>1000000000),"",E8/C8/E3) -> 0.05956108263 | E8: 564.9784428 | F8: =IFERROR(IF(D8<D15,D15/D8,D8/D15),"") -> 1.072099487 | G8: =IFERROR(D8/IF((C8*E3)<1500,1500,C8*E3)^0.25*62.2333,"") -> 0.3755935195 | H8: 0.001886008798 | I8: 5 | J8: =IF(OR(L8<=0,L8>1000000000),"",1/(HYPGEOMDIST(5,12,6,49)*HYPGEOMDIST(0,1,1,10))/L2) -> 530.2202202 | K8: =IF(OR(L8<=0,L8>1000000000),"",L8/J8/L3) -> 0.06348515075 | L8: 444.3266601 | M8: =IFERROR(IF(K8<K15,K15/K8,K8/K15),"") -> 1.142732714 | N8: =IFERROR(K8/IF((J8*L3)<1500,1500,J8*L3)^0.25*62.2333,"") -> 0.4319539319 | O8: 0.002981932829 | P8: 5 | Q8: =IF(OR(S8<=0,S8>1000000000),"",1/(HYPGEOMDIST(5,13,6,49)*HYPGEOMDIST(0,1,1,10))/S2) -> 335.3529598 | R8: =IF(OR(S8<=0,S8>1000000000),"",S8/Q8/S3) -> 0.06580955745 | S8: 582.6329487 | T8: =IFERROR(IF(R8<R15,R15/R8,R8/R15),"") -> 1.184572034 | U8: =IFERROR(R8/IF((Q8*S3)<1500,1500,Q8*S3)^0.25*62.2333,"") -> 0.4222165797 | W8: =$I$71 -> SuperLotto XL (924 Tipps) ⁵ | X8: =$L$72/$L$71 -> 11 | Y8: =$N$82 -> 2.93412663 | Z8: =IFERROR(ROUND($K$82,10),"") -> 0.3588689988 | AA8: =IFERROR($H$82/$L$71,"") -> 0.5874629624 | AB8: =$M$82 -> 5.606962552 | AC8: 2.93412663
A9: 0.001112786381 | B9: 4 + SZ | C9: =IF(OR(E9<=0,E9>1000000000),"",1/(HYPGEOMDIST(4,10,6,49)*HYPGEOMDIST(1,1,1,10))/E2) -> 898.6450742 | D9: =IF(OR(E9<=0,E9>1000000000),"",E9/C9/E3) -> 0.02254288126 | E9: 121.5482952 | F9: =IFERROR(IF(D9<D15,D15/D9,D9/D15),"") -> 2.464438992 | G9: =IFERROR(D9/IF((C9*E3)<1500,1500,C9*E3)^0.25*62.2333,"") -> 0.1637183624 | H9: 0.002357510997 | I9: 4 + SZ | J9: =IF(OR(L9<=0,L9>1000000000),"",1/(HYPGEOMDIST(4,12,6,49)*HYPGEOMDIST(1,1,1,10))/L2) -> 424.1761762 | K9: =IF(OR(L9<=0,L9>1000000000),"",L9/J9/L3) -> 0.02684529443 | L9: 150.3101733 | M9: =IFERROR(IF(K9<K15,K15/K9,K9/K15),"") -> 2.069470897 | N9: =IFERROR(K9/IF((J9*L3)<1500,1500,J9*L3)^0.25*62.2333,"") -> 0.1931349854 | O9: 0.003221223735 | P9: 4 + SZ | Q9: =IF(OR(S9<=0,S9>1000000000),"",1/(HYPGEOMDIST(4,13,6,49)*HYPGEOMDIST(1,1,1,10))/S2) -> 310.4410256 | R9: =IF(OR(S9<=0,S9>1000000000),"",S9/Q9/S3) -> 0.02901512585 | S9: 237.7976153 | T9: =IFERROR(IF(R9<R15,R15/R9,R9/R15),"") -> 1.914710136 | U9: =IFERROR(R9/IF((Q9*S3)<1500,1500,Q9*S3)^0.25*62.2333,"") -> 0.1897804754 | W9: =$P$71 -> SuperLotto XXL (1.716 Tipps) ⁵ | X9: =$S$72/$S$71 -> 22 | Y9: =$U$82 -> 2.90455725 | Z9: =IFERROR(ROUND($R$82,10),"") -> 0.3588689988 | AA9: =IFERROR($O$82/$S$71,"") -> 0.6191965807 | AB9: =$T$82 -> 5.167954913 | AC9: 2.90455725
A10: 0.007842494495 | B10: 3 + SZ | C10: =IF(OR(E10<=0,E10>1000000000),"",1/(HYPGEOMDIST(3,10,6,49)*HYPGEOMDIST(1,1,1,10))/E2) -> 127.5104497 | D10: =IF(OR(E10<=0,E10>1000000000),"",E10/C10/E3) -> 0.04272333395 | E10: 32.68602915 | F10: =IFERROR(IF(D10<D15,D15/D10,D10/D15),"") -> 1.300356279 | G10: =IFERROR(D10/IF((C10*E3)<1500,1500,C10*E3)^0.25*62.2333,"") -> 0.4272333551 | H10: 0.0122241311 | I10: 3 + SZ | J10: =IF(OR(L10<=0,L10>1000000000),"",1/(HYPGEOMDIST(3,12,6,49)*HYPGEOMDIST(1,1,1,10))/L2) -> 81.80540541 | K10: =IF(OR(L10<=0,L10>1000000000),"",L10/J10/L3) -> 0.04465811715 | L10: 48.22323499 | M10: =IFERROR(IF(K10<K15,K15/K10,K10/K15),"") -> 1.244019209 | N10: =IFERROR(K10/IF((J10*L3)<1500,1500,J10*L3)^0.25*62.2333,"") -> 0.4465811878 | O10: 0.01460288093 | P10: 3 + SZ | Q10: =IF(OR(S10<=0,S10>1000000000),"",1/(HYPGEOMDIST(3,13,6,49)*HYPGEOMDIST(1,1,1,10))/S2) -> 68.47963801 | R10: =IF(OR(S10<=0,S10>1000000000),"",S10/Q10/S3) -> 0.04486661555 | S10: 81.11266921 | T10: =IFERROR(IF(R10<R15,R15/R10,R10/R15),"") -> 1.238238162 | U10: =IFERROR(R10/IF((Q10*S3)<1500,1500,Q10*S3)^0.25*62.2333,"") -> 0.4282080182 | W10: =$I$54 -> LOTTO 6aus45 XL (462 Tipps) ⁴ | X10: =$L$55/$L$54 -> 10 | Y10: =$N$68 -> 2.437061427 | Z10: =IFERROR(ROUND($K$68,10),"") -> 0.37645019 | AA10: =IFERROR($H$68/$L$54,"") -> 0.361131161 | AB10: =$M$68 -> 2.029717087 | AC10: 2.437061427
A11: 0.01001507743 | B11: 4 | C11: =IF(OR(E11<=0,E11>1000000000),"",1/(HYPGEOMDIST(4,10,6,49)*HYPGEOMDIST(0,1,1,10))/E2) -> 99.84945269 | D11: =IF(OR(E11<=0,E11>1000000000),"",E11/C11/E3) -> 0.06545176408 | E11: 39.21193693 | F11: =IFERROR(IF(D11<D15,D15/D11,D11/D15),"") -> 1.178131753 | G11: =IFERROR(D11/IF((C11*E3)<1500,1500,C11*E3)^0.25*62.2333,"") -> 0.6545176647 | H11: 0.02121759897 | I11: 4 | J11: =IF(OR(L11<=0,L11>1000000000),"",1/(HYPGEOMDIST(4,12,6,49)*HYPGEOMDIST(0,1,1,10))/L2) -> 47.13068624 | K11: =IF(OR(L11<=0,L11>1000000000),"",L11/J11/L3) -> 0.07474409927 | L11: 46.50017712 | M11: =IFERROR(IF(K11<K15,K15/K11,K11/K15),"") -> 1.345393787 | N11: =IFERROR(K11/IF((J11*L3)<1500,1500,J11*L3)^0.25*62.2333,"") -> 0.74744102 | O11: 0.02899101361 | P11: 4 | Q11: =IF(OR(S11<=0,S11>1000000000),"",1/(HYPGEOMDIST(4,13,6,49)*HYPGEOMDIST(0,1,1,10))/S2) -> 34.49344729 | R11: =IF(OR(S11<=0,S11>1000000000),"",S11/Q11/S3) -> 0.07823219212 | S11: 71.24034709 | T11: =IFERROR(IF(R11<R15,R15/R11,R11/R15),"") -> 1.408179458 | U11: =IFERROR(R11/IF((Q11*S3)<1500,1500,Q11*S3)^0.25*62.2333,"") -> 0.7823219498 | W11: =$I$17 -> EuroJackpot XL (1.260 Tipps) | X11: =$L$18/$L$17 -> 18 | Y11: =$N$32 -> 2.426273678 | Z11: =IFERROR(ROUND($K$32,10),"") -> 0.5 | AA11: =IFERROR($H$32/$L$17,"") -> 0.2236789443 | AB11: =$M$32 -> 3.51155285 | AC11: 2.426273678
A12: 0.02646841892 | B12: 2 + SZ | C12: =IF(OR(E12<=0,E12>1000000000),"",1/(HYPGEOMDIST(2,10,6,49)*HYPGEOMDIST(1,1,1,10))/E2) -> 37.78087399 | D12: =IF(OR(E12<=0,E12>1000000000),"",E12/C12/E3) -> 0.04411403153 | E12: 10 | F12: =IFERROR(IF(D12<D15,D15/D12,D12/D15),"") -> 1.259362466 | G12: =IFERROR(D12/IF((C12*E3)<1500,1500,C12*E3)^0.25*62.2333,"") -> 0.4411403314 | H12: 0.03117153429 | I12: 2 + SZ | J12: =IF(OR(L12<=0,L12>1000000000),"",1/(HYPGEOMDIST(2,12,6,49)*HYPGEOMDIST(1,1,1,10))/L2) -> 32.08055114 | K12: =IF(OR(L12<=0,L12>1000000000),"",L12/J12/L3) -> 0.03542219806 | L12: 15 | M12: =IFERROR(IF(K12<K15,K15/K12,K12/K15),"") -> 1.5683825 | N12: =IFERROR(K12/IF((J12*L3)<1500,1500,J12*L3)^0.25*62.2333,"") -> 0.3542219935 | O12: 0.03285648209 | P12: 2 + SZ | Q12: =IF(OR(S12<=0,S12>1000000000),"",1/(HYPGEOMDIST(2,13,6,49)*HYPGEOMDIST(1,1,1,10))/S2) -> 30.43539467 | R12: =IF(OR(S12<=0,S12>1000000000),"",S12/Q12/S3) -> 0.03159277124 | S12: 25.38461538 | T12: =IFERROR(IF(R12<R15,R15/R12,R12/R15),"") -> 1.75848947 | U12: =IFERROR(R12/IF((Q12*S3)<1500,1500,Q12*S3)^0.25*62.2333,"") -> 0.315927724 | W12: =$P$54 -> LOTTO 6aus45 XXL (924 Tipps) ⁴ | X12: =$S$55/$S$54 -> 18 | Y12: =$U$68 -> 2.418608683 | Z12: =IFERROR(ROUND($R$68,10),"") -> 0.3774703802 | AA12: =IFERROR($O$68/$S$54,"") -> 0.4082613926 | AB12: =$T$68 -> 1.874139486 | AC12: 2.418608683
A13: 0.07058245046 | B13: 3 | C13: =IF(OR(E13<=0,E13>1000000000),"",1/(HYPGEOMDIST(3,10,6,49)*HYPGEOMDIST(0,1,1,10))/E2) -> 14.16782775 | D13: =IF(OR(E13<=0,E13>1000000000),"",E13/C13/E3) -> 0.1092083582 | E13: 9.283471242 | F13: =IFERROR(IF(D13<D15,D15/D13,D13/D15),"") -> 1.965750447 | G13: =IFERROR(D13/IF((C13*E3)<1500,1500,C13*E3)^0.25*62.2333,"") -> 1.092083622 | H13: 0.1100171799 | I13: 3 | J13: =IF(OR(L13<=0,L13>1000000000),"",1/(HYPGEOMDIST(3,12,6,49)*HYPGEOMDIST(0,1,1,10))/L2) -> 9.089489489 | K13: =IF(OR(L13<=0,L13>1000000000),"",L13/J13/L3) -> 0.0928492114 | L13: 11.14016549 | M13: =IFERROR(IF(K13<K15,K15/K13,K13/K15),"") -> 1.671285805 | N13: =IFERROR(K13/IF((J13*L3)<1500,1500,J13*L3)^0.25*62.2333,"") -> 0.9284921479 | O13: 0.1314259284 | P13: 3 | Q13: =IF(OR(S13<=0,S13>1000000000),"",1/(HYPGEOMDIST(3,13,6,49)*HYPGEOMDIST(0,1,1,10))/S2) -> 7.608848668 | R13: =IF(OR(S13<=0,S13>1000000000),"",S13/Q13/S3) -> 0.08532089696 | S13: 17.13871614 | T13: =IFERROR(IF(R13<R15,R15/R13,R13/R15),"") -> 1.535776145 | U13: =IFERROR(R13/IF((Q13*S3)<1500,1500,Q13*S3)^0.25*62.2333,"") -> 0.8532090007 | W13: =$B$54 -> LOTTO 6aus45 L (210 Tipps) ⁴ | X13: =$E$55/$E$54 -> 8 | Y13: =$G$68 -> 2.372562545 | Z13: =IFERROR(ROUND($D$68,10),"") -> 0.3768576036 | AA13: =IFERROR($A$68/$E$54,"") -> 0.31528911 | AB13: =$F$68 -> 2.317270051 | AC13: 2.372562545
A14: =IF(SUM(A5:A13)=0,"",SUM(A5:A13)) -> 0.1167390575 | B14: Gesamt | C14: =IFERROR(1/A14,"") -> 8.56611336 | D14: =IF(SUM(D5:D13)=0,"",SUM(D5:D13)) -> 0.5 | E14: =IFERROR(E3*D14,"") -> 3 | F14: =IFERROR(AVERAGE(F5:F13),"") -> 1.603579872 | G14: =IF(SUM(G5:G13)=0,"",SUM(G5:G13)) -> 3.477972122 | H14: =IF(SUM(H5:H13)=0,"",SUM(H5:H13)) -> 0.1791495969 | I14: Gesamt | J14: =IFERROR(1/H14,"") -> 5.581927155 | K14: =IF(SUM(K5:K13)=0,"",SUM(K5:K13)) -> 0.5 | L14: =IFERROR(L3*K14,"") -> 6.6 | M14: =IFERROR(AVERAGE(M5:M13),"") -> 1.570419766 | N14: =IF(SUM(N5:N13)=0,"",SUM(N5:N13)) -> 3.494843593 | O14: =IF(SUM(O5:O13)=0,"",SUM(O5:O13)) -> 0.2145335007 | P14: Gesamt | Q14: =IFERROR(1/O14,"") -> 4.661276661 | R14: =IF(SUM(R5:R13)=0,"",SUM(R5:R13)) -> 0.5 | S14: =IFERROR(S3*R14,"") -> 13.2 | T14: =IFERROR(AVERAGE(T5:T13),"") -> 1.563907466 | U14: =IF(SUM(U5:U13)=0,"",SUM(U5:U13)) -> 3.383163409 | W14: =$B$17 -> EuroJackpot L (210 Tipps) | X14: =$E$18/$E$17 -> 10 | Y14: =$G$32 -> 2.307152132 | Z14: =IFERROR(ROUND($D$32,10),"") -> 0.5 | AA14: =IFERROR($A$32/$E$17,"") -> 0.1608115481 | AB14: =$F$32 -> 4.038235035 | AC14: 2.307152132
D15: =AVERAGE(D5:D13) -> 0.05555555556 | K15: =AVERAGE(K5:K13) -> 0.05555555556 | R15: =AVERAGE(R5:R13) -> 0.05555555556 | W15: =$P$17 -> EuroJackpot XXL (2.520 Tipps) | X15: =$S$18/$S$17 -> 48 | Y15: =$U$32 -> 2.283112045 | Z15: =IFERROR(ROUND($R$32,10),"") -> 0.5 | AA15: =IFERROR($O$32/$S$17,"") -> 0.2566869587 | AB15: =$T$32 -> 3.337342321 | AC15: 2.283112045
W16: =$I$35 -> EuroMillions XL (1.176 Tipps) | X16: =$L$36/$L$35 -> 21 | Y16: =$N$51 -> 1.640410577 | Z16: =IFERROR(ROUND($K$51,10),"") -> 0.3666666667 | AA16: =IFERROR($H$51/$L$35,"") -> 0.3103535687 | AB16: =$M$51 -> 11.90511292 | AC16: 1.640410577
B17: EuroJackpot L (210 Tipps) | E17: 1 | F17: vs. | I17: EuroJackpot XL (1.260 Tipps) | L17: 1 | M17: vs. | P17: EuroJackpot XXL (2.520 Tipps) | S17: 1 | W17: =$P$35 -> EuroMillions XXL (2.520 Tipps) | X17: =$S$36/$S$35 -> 42 | Y17: =$U$51 -> 1.616417485 | Z17: =IFERROR(ROUND($R$51,10),"") -> 0.3666666667 | AA17: =IFERROR($O$51/$S$35,"") -> 0.3234541416 | AB17: =$T$51 -> 6.343516258 | AC17: 1.616417485
B18: Vollsystem 0705 / 42 Anteile | E18: =E17*10 -> 10 | I18: Vollsystem 0905 / 140 Anteile | L18: =L17*18 -> 18 | P18: Vollsystem 1005 / 105 Anteile | S18: =S17*48 -> 48 | W18: =$B$35 -> EuroMillions L (216 Tipps) | X18: =$E$36/$E$35 -> 9 | Y18: =$G$51 -> 1.59522082 | Z18: =IFERROR(ROUND($D$51,10),"") -> 0.3666666667 | AA18: =IFERROR($A$51/$E$35,"") -> 0.3126932734 | AB18: =$F$51 -> 46.04579624 | AC18: 1.59522082
B19: Richtige | C19: =IF(E17=1,"Chancen 1:","Ø Gewinne 1:") -> Chancen 1: | D19: AQ | E19: Ø Gewinn | I19: Richtige | J19: =IF(L17=1,"Chancen 1:","Ø Gewinne 1:") -> Chancen 1: | K19: AQ | L19: Ø Gewinn | P19: Richtige | Q19: =IF(S17=1,"Chancen 1:","Ø Gewinne 1:") -> Chancen 1: | R19: AQ | S19: Ø Gewinn | W19: =$B$85 -> PowerBall L (462 Tipps) ⁶ | X19: =$E$86/$E$85 -> 9 | Y19: =$G$97 -> 0.7424489059 | Z19: =IFERROR(ROUND($D$97,10),"") -> 0.1524003276 | AA19: =IFERROR($A$97/$E$85,"") -> 0.06347400093 | AB19: =$F$97 -> 3.567429562 | AC19: 0.7424489059
A20: =IFERROR(IF(OR(E20<=0,E20>1000000000),0,1/C20),"") -> 1.501736007e-06 | B20: 5 + 2 | C20: =IF(OR(E20<=0,E20>1000000000),"",1/(HYPGEOMDIST(5,7,5,50)*HYPGEOMDIST(2,5,2,12))/E17) -> 665896 | D20: =IF(OR(E20<=0,E20>1000000000),"",E20/C20/E18) -> 0.2397846549 | E20: 1596716.425 | F20: =IFERROR(IF(D20<D33,D33/D20,D20/D33),"") -> 5.754831717 | G20: =IFERROR(D20/IF((C20*E18)<1500,1500,C20*E18)^0.25*62.2333,"") -> 0.2937599705 | H20: =IFERROR(IF(OR(L20<=0,L20>1000000000),0,1/J20),"") -> 9.010416041e-06 | I20: 5 + 2 | J20: =IF(OR(L20<=0,L20>1000000000),"",1/(HYPGEOMDIST(5,9,5,50)*HYPGEOMDIST(2,5,2,12))/L17) -> 110982.6667 | K20: =IF(OR(L20<=0,L20>1000000000),"",L20/J20/L18) -> 0.2401118149 | L20: 479668.4912 | M20: =IFERROR(IF(K20<K33,K33/K20,K20/K33),"") -> 5.762683557 | N20: =IFERROR(K20/IF((J20*L18)<1500,1500,J20*L18)^0.25*62.2333,"") -> 0.3974700832 | O20: =IFERROR(IF(OR(S20<=0,S20>1000000000),0,1/Q20),"") -> 1.802083208e-05 | P20: 5 + 2 | Q20: =IF(OR(S20<=0,S20>1000000000),"",1/(HYPGEOMDIST(5,10,5,50)*HYPGEOMDIST(2,5,2,12))/S17) -> 55491.33333 | R20: =IF(OR(S20<=0,S20>1000000000),"",S20/Q20/S18) -> 0.2403059032 | S20: 640074.9588 | T20: =IFERROR(IF(R20<R33,R33/R20,R20/R33),"") -> 5.767341676 | U20: =IFERROR(R20/IF((Q20*S18)<1500,1500,Q20*S18)^0.25*62.2333,"") -> 0.37018658 | W20: =$I$85 -> PowerBall XL (792 Tipps) ⁶ | X20: =$L$86/$L$85 -> 18 | Y20: =$N$97 -> 0.7158474667 | Z20: =IFERROR(ROUND($K$97,10),"") -> 0.1524003276 | AA20: =IFERROR($H$97/$L$85,"") -> 0.07098423348 | AB20: =$M$97 -> 3.441101601 | AC20: 0.7158474667
A21: 3.153645614e-06 | B21: 5 | C21: =IF(OR(E21<=0,E21>1000000000),"",1/(HYPGEOMDIST(5,7,5,50)*HYPGEOMDIST(0,5,2,12))/E17) -> 317093.3333 | D21: =IF(OR(E21<=0,E21>1000000000),"",E21/C21/E18) -> 0.0114123569 | E21: 36187.82291 | F21: =IFERROR(IF(D21<D33,D33/D21,D21/D33),"") -> 3.651013285 | G21: =IFERROR(D21/IF((C21*E18)<1500,1500,C21*E18)^0.25*62.2333,"") -> 0.01683066973 | H21: 1.892187369e-05 | I21: 5 | J21: =IF(OR(L21<=0,L21>1000000000),"",1/(HYPGEOMDIST(5,9,5,50)*HYPGEOMDIST(0,5,2,12))/L17) -> 52848.88889 | K21: =IF(OR(L21<=0,L21>1000000000),"",L21/J21/L18) -> 0.01155895623 | L21: 10995.80388 | M21: =IFERROR(IF(K21<K33,K33/K21,K21/K33),"") -> 3.604708405 | N21: =IFERROR(K21/IF((J21*L18)<1500,1500,J21*L18)^0.25*62.2333,"") -> 0.02303373459 | O21: 3.784374737e-05 | P21: 5 | Q21: =IF(OR(S21<=0,S21>1000000000),"",1/(HYPGEOMDIST(5,10,5,50)*HYPGEOMDIST(0,5,2,12))/S17) -> 26424.44444 | R21: =IF(OR(S21<=0,S21>1000000000),"",S21/Q21/S18) -> 0.0116513468 | S21: 14778.25758 | T21: =IFERROR(IF(R21<R33,R33/R21,R21/R33),"") -> 3.576124492 | U21: =IFERROR(R21/IF((Q21*S18)<1500,1500,Q21*S18)^0.25*62.2333,"") -> 0.02160663742 | W21: =$P$85 -> PowerBall XXL (2.002 Tipps) ⁶ | X21: =$S$86/$S$85 -> 33 | Y21: =$U$97 -> 0.6685920272 | Z21: =IFERROR(ROUND($R$97,10),"") -> 0.1524003276 | AA21: =IFERROR($O$97/$S$85,"") -> 0.08959041112 | AB21: =$T$97 -> 3.253578776 | AC21: 0.6685920272
A22: 5.256076024e-06 | B22: 5 + 1 | C22: =IF(OR(E22<=0,E22>1000000000),"",1/(HYPGEOMDIST(5,7,5,50)*HYPGEOMDIST(1,5,2,12))/E17) -> 190256 | D22: =IF(OR(E22<=0,E22>1000000000),"",E22/C22/E18) -> 0.04167798822 | E22: 79294.87326 | F22: =IFERROR(IF(D22<D33,D33/D22,D22/D33),"") -> 1.000271717 | G22: =IFERROR(D22/IF((C22*E18)<1500,1500,C22*E18)^0.25*62.2333,"") -> 0.06983851363 | H22: 3.153645614e-05 | I22: 5 + 1 | J22: =IF(OR(L22<=0,L22>1000000000),"",1/(HYPGEOMDIST(5,9,5,50)*HYPGEOMDIST(1,5,2,12))/L17) -> 31709.33333 | K22: =IF(OR(L22<=0,L22>1000000000),"",L22/J22/L18) -> 0.04205055007 | L22: 24001.10836 | M22: =IFERROR(IF(K22<K33,K33/K22,K22/K33),"") -> 1.009213202 | N22: =IFERROR(K22/IF((J22*L18)<1500,1500,J22*L18)^0.25*62.2333,"") -> 0.09520935166 | O22: 6.307291229e-05 | P22: 5 + 1 | Q22: =IF(OR(S22<=0,S22>1000000000),"",1/(HYPGEOMDIST(5,10,5,50)*HYPGEOMDIST(1,5,2,12))/S17) -> 15854.66667 | R22: =IF(OR(S22<=0,S22>1000000000),"",S22/Q22/S18) -> 0.04229106374 | S22: 32184.51449 | T22: =IFERROR(IF(R22<R33,R33/R22,R22/R33),"") -> 1.01498553 | U22: =IFERROR(R22/IF((Q22*S18)<1500,1500,Q22*S18)^0.25*62.2333,"") -> 0.08910905774 | W22: =$B$100 -> MegaMillions L (462 Tipps) ⁶ | X22: =$E$101/$E$100 -> 9 | Y22: =$G$112 -> 0.6119283394 | Z22: =IFERROR(ROUND($D$112,10),"") -> 0.1348554482 | AA22: =IFERROR($A$112/$E$100,"") -> 0.06397395558 | AB22: =$F$112 -> 2.639372515 | AC22: 0.6119283394
A23: 0.0001076244138 | B23: 4 + 2 | C23: =IF(OR(E23<=0,E23>1000000000),"",1/(HYPGEOMDIST(4,7,5,50)*HYPGEOMDIST(2,5,2,12))/E17) -> 9291.572093 | D23: =IF(OR(E23<=0,E23>1000000000),"",E23/C23/E18) -> 0.006646784512 | E23: 617.5907748 | F23: =IFERROR(IF(D23<D33,D33/D23,D23/D33),"") -> 6.268695276 | G23: =IFERROR(D23/IF((C23*E18)<1500,1500,C23*E18)^0.25*62.2333,"") -> 0.02369256766 | H23: 0.0003694270577 | I23: 4 + 2 | J23: =IF(OR(L23<=0,L23>1000000000),"",1/(HYPGEOMDIST(4,9,5,50)*HYPGEOMDIST(2,5,2,12))/L17) -> 2706.894309 | K23: =IF(OR(L23<=0,L23>1000000000),"",L23/J23/L18) -> 0.007957619495 | L23: 387.7278286 | M23: =IFERROR(IF(K23<K33,K33/K23,K23/K33),"") -> 5.236071754 | N23: =IFERROR(K23/IF((J23*L18)<1500,1500,J23*L18)^0.25*62.2333,"") -> 0.03333266584 | O23: 0.0006006944027 | P23: 4 + 2 | Q23: =IF(OR(S23<=0,S23>1000000000),"",1/(HYPGEOMDIST(4,10,5,50)*HYPGEOMDIST(2,5,2,12))/S17) -> 1664.74 | R23: =IF(OR(S23<=0,S23>1000000000),"",S23/Q23/S18) -> 0.008772675817 | S23: 701.0027683 | T23: =IFERROR(IF(R23<R33,R33/R23,R23/R33),"") -> 4.74959608 | U23: =IFERROR(R23/IF((Q23*S18)<1500,1500,Q23*S18)^0.25*62.2333,"") -> 0.03247192225 | W23: =$I$100 -> MegaMillions XL (792 Tipps) ⁶ | X23: =$L$101/$L$100 -> 18 | Y23: =$N$112 -> 0.5842649211 | Z23: =IFERROR(ROUND($K$112,10),"") -> 0.1348554482 | AA23: =IFERROR($H$112/$L$100,"") -> 0.07118525022 | AB23: =$M$112 -> 2.609206527 | AC23: 0.5842649211
A24: 0.000226011269 | B24: 4 | C24: =IF(OR(E24<=0,E24>1000000000),"",1/(HYPGEOMDIST(4,7,5,50)*HYPGEOMDIST(0,5,2,12))/E17) -> 4424.55814 | D24: =IF(OR(E24<=0,E24>1000000000),"",E24/C24/E18) -> 0.002878249158 | E24: 127.3498074 | F24: =IFERROR(IF(D24<D33,D33/D24,D24/D33),"") -> 14.47639324 | G24: =IFERROR(D24/IF((C24*E18)<1500,1500,C24*E18)^0.25*62.2333,"") -> 0.01235047726 | H24: 0.0007757968211 | I24: 4 | J24: =IF(OR(L24<=0,L24>1000000000),"",1/(HYPGEOMDIST(4,9,5,50)*HYPGEOMDIST(0,5,2,12))/L17) -> 1288.99729 | K24: =IF(OR(L24<=0,L24>1000000000),"",L24/J24/L18) -> 0.003788013468 | L24: 87.8893037 | M24: =IFERROR(IF(K24<K33,K33/K24,K24/K33),"") -> 10.9996089 | N24: =IFERROR(K24/IF((J24*L18)<1500,1500,J24*L18)^0.25*62.2333,"") -> 0.01910087303 | O24: 0.001261458246 | P24: 4 | Q24: =IF(OR(S24<=0,S24>1000000000),"",1/(HYPGEOMDIST(4,10,5,50)*HYPGEOMDIST(0,5,2,12))/S17) -> 792.7333333 | R24: =IF(OR(S24<=0,S24>1000000000),"",S24/Q24/S18) -> 0.004204713805 | S24: 159.9944059 | T24: =IFERROR(IF(R24<R33,R33/R24,R24/R33),"") -> 9.909513133 | U24: =IFERROR(R24/IF((Q24*S18)<1500,1500,Q24*S18)^0.25*62.2333,"") -> 0.01873558172 | W24: =$P$100 -> MegaMillions XXL (2.002 Tipps) ⁶ | X24: =$S$101/$S$100 -> 33 | Y24: =$U$112 -> 0.5555329467 | Z24: =IFERROR(ROUND($R$112,10),"") -> 0.1348554482 | AA24: =IFERROR($O$112/$S$100,"") -> 0.08906821392 | AB24: =$T$112 -> 2.564009268 | AC24: 0.5555329467
A25: 0.0003766854484 | B25: 4 + 1 | C25: =IF(OR(E25<=0,E25>1000000000),"",1/(HYPGEOMDIST(4,7,5,50)*HYPGEOMDIST(1,5,2,12))/E17) -> 2654.734884 | D25: =IF(OR(E25<=0,E25>1000000000),"",E25/C25/E18) -> 0.007304511785 | E25: 193.9154224 | F25: =IFERROR(IF(D25<D33,D33/D25,D25/D33),"") -> 5.704237038 | G25: =IFERROR(D25/IF((C25*E18)<1500,1500,C25*E18)^0.25*62.2333,"") -> 0.03561301442 | H25: 0.001292994702 | I25: 4 + 1 | J25: =IF(OR(L25<=0,L25>1000000000),"",1/(HYPGEOMDIST(4,9,5,50)*HYPGEOMDIST(1,5,2,12))/L17) -> 773.398374 | K25: =IF(OR(L25<=0,L25>1000000000),"",L25/J25/L18) -> 0.009861060215 | L25: 137.2775028 | M25: =IFERROR(IF(K25<K33,K33/K25,K25/K33),"") -> 4.225373921 | N25: =IFERROR(K25/IF((J25*L18)<1500,1500,J25*L18)^0.25*62.2333,"") -> 0.05649727502 | O25: 0.00210243041 | P25: 4 + 1 | Q25: =IF(OR(S25<=0,S25>1000000000),"",1/(HYPGEOMDIST(4,10,5,50)*HYPGEOMDIST(1,5,2,12))/S17) -> 475.64 | R25: =IF(OR(S25<=0,S25>1000000000),"",S25/Q25/S18) -> 0.01133379532 | S25: 258.7587074 | T25: =IFERROR(IF(R25<R33,R33/R25,R25/R33),"") -> 3.676320729 | U25: =IFERROR(R25/IF((Q25*S18)<1500,1500,Q25*S18)^0.25*62.2333,"") -> 0.05738102396 | AC25: 3.28571185
A26: 0.00226011269 | B26: 3 + 2 | C26: =IF(OR(E26<=0,E26>1000000000),"",1/(HYPGEOMDIST(3,7,5,50)*HYPGEOMDIST(2,5,2,12))/E17) -> 442.455814 | D26: =IF(OR(E26<=0,E26>1000000000),"",E26/C26/E18) -> 0.0162605303 | E26: 71.94566171 | F26: =IFERROR(IF(D26<D33,D33/D26,D26/D33),"") -> 2.562442054 | G26: =IFERROR(D26/IF((C26*E18)<1500,1500,C26*E18)^0.25*62.2333,"") -> 0.12407665 | H26: 0.004925694102 | I26: 3 + 2 | J26: =IF(OR(L26<=0,L26>1000000000),"",1/(HYPGEOMDIST(3,9,5,50)*HYPGEOMDIST(2,5,2,12))/L17) -> 203.0170732 | K26: =IF(OR(L26<=0,L26>1000000000),"",L26/J26/L18) -> 0.02068746434 | L26: 75.59835233 | M26: =IFERROR(IF(K26<K33,K33/K26,K26/K33),"") -> 2.014102162 | N26: =IFERROR(K26/IF((J26*L18)<1500,1500,J26*L18)^0.25*62.2333,"") -> 0.1655879869 | O26: 0.006693451916 | P26: 3 + 2 | Q26: =IF(OR(S26<=0,S26>1000000000),"",1/(HYPGEOMDIST(3,10,5,50)*HYPGEOMDIST(2,5,2,12))/S17) -> 149.3997436 | R26: =IF(OR(S26<=0,S26>1000000000),"",S26/Q26/S18) -> 0.02275968489 | S26: 163.2139722 | T26: =IFERROR(IF(R26<R33,R33/R26,R26/R33),"") -> 1.830722476 | U26: =IFERROR(R26/IF((Q26*S18)<1500,1500,Q26*S18)^0.25*62.2333,"") -> 0.1539186704 | AC26: 3.249736482
A27: 0.00474623665 | B27: 3 | C27: =IF(OR(E27<=0,E27>1000000000),"",1/(HYPGEOMDIST(3,7,5,50)*HYPGEOMDIST(0,5,2,12))/E17) -> 210.6932447 | D27: =IF(OR(E27<=0,E27>1000000000),"",E27/C27/E18) -> 0.01149272727 | E27: 24.2144 | F27: =IFERROR(IF(D27<D33,D33/D27,D27/D33),"") -> 3.6254812 | G27: =IFERROR(D27/IF((C27*E18)<1500,1500,C27*E18)^0.25*62.2333,"") -> 0.1055682394 | H27: 0.01034395762 | I27: 3 | J27: =IF(OR(L27<=0,L27>1000000000),"",1/(HYPGEOMDIST(3,9,5,50)*HYPGEOMDIST(0,5,2,12))/L17) -> 96.67479675 | K27: =IF(OR(L27<=0,L27>1000000000),"",L27/J27/L18) -> 0.01043636364 | L27: 18.1608 | M27: =IFERROR(IF(K27<K33,K33/K27,K27/K33),"") -> 3.992450639 | N27: =IFERROR(K27/IF((J27*L18)<1500,1500,J27*L18)^0.25*62.2333,"") -> 0.1005600754 | O27: 0.01405624902 | P27: 3 | Q27: =IF(OR(S27<=0,S27>1000000000),"",1/(HYPGEOMDIST(3,10,5,50)*HYPGEOMDIST(0,5,2,12))/S17) -> 71.14273504 | R27: =IF(OR(S27<=0,S27>1000000000),"",S27/Q27/S18) -> 0.009927272727 | S27: 33.90016 | T27: =IFERROR(IF(R27<R33,R33/R27,R27/R33),"") -> 4.197191697 | U27: =IFERROR(R27/IF((Q27*S18)<1500,1500,Q27*S18)^0.25*62.2333,"") -> 0.08081832312 | AC27: 3.24463323
A28: 0.007910394416 | B28: 3 + 1 | C28: =IF(OR(E28<=0,E28>1000000000),"",1/(HYPGEOMDIST(3,7,5,50)*HYPGEOMDIST(1,5,2,12))/E17) -> 126.4159468 | D28: =IF(OR(E28<=0,E28>1000000000),"",E28/C28/E18) -> 0.02963386364 | E28: 37.4619293 | F28: =IFERROR(IF(D28<D33,D33/D28,D28/D33),"") -> 1.406049079 | G28: =IFERROR(D28/IF((C28*E18)<1500,1500,C28*E18)^0.25*62.2333,"") -> 0.2963386472 | H28: 0.01723992936 | I28: 3 + 1 | J28: =IF(OR(L28<=0,L28>1000000000),"",1/(HYPGEOMDIST(3,9,5,50)*HYPGEOMDIST(1,5,2,12))/L17) -> 58.00487805 | K28: =IF(OR(L28<=0,L28>1000000000),"",L28/J28/L18) -> 0.03512159972 | L28: 36.67003395 | M28: =IFERROR(IF(K28<K33,K33/K28,K28/K33),"") -> 1.186354466 | N28: =IFERROR(K28/IF((J28*L18)<1500,1500,J28*L18)^0.25*62.2333,"") -> 0.35121601 | O28: 0.02342708171 | P28: 3 + 1 | Q28: =IF(OR(S28<=0,S28>1000000000),"",1/(HYPGEOMDIST(3,10,5,50)*HYPGEOMDIST(1,5,2,12))/S17) -> 42.68564103 | R28: =IF(OR(S28<=0,S28>1000000000),"",S28/Q28/S18) -> 0.03731384778 | S28: 76.45274456 | T28: =IFERROR(IF(R28<R33,R33/R28,R28/R33),"") -> 1.116654249 | U28: =IFERROR(R28/IF((Q28*S18)<1500,1500,Q28*S18)^0.25*62.2333,"") -> 0.3451533595 | AC28: 3.098856104
A29: 0.01853292406 | B29: 2 + 2 | C29: =IF(OR(E29<=0,E29>1000000000),"",1/(HYPGEOMDIST(2,7,5,50)*HYPGEOMDIST(2,5,2,12))/E17) -> 53.95802609 | D29: =IF(OR(E29<=0,E29>1000000000),"",E29/C29/E18) -> 0.04316181818 | E29: 23.28926512 | F29: =IFERROR(IF(D29<D33,D33/D29,D29/D33),"") -> 1.035883636 | G29: =IFERROR(D29/IF((C29*E18)<1500,1500,C29*E18)^0.25*62.2333,"") -> 0.4316181976 | H29: 0.02744315286 | I29: 2 + 2 | J29: =IF(OR(L29<=0,L29>1000000000),"",1/(HYPGEOMDIST(2,9,5,50)*HYPGEOMDIST(2,5,2,12))/L17) -> 36.43896185 | K29: =IF(OR(L29<=0,L29>1000000000),"",L29/J29/L18) -> 0.04211199034 | L29: 27.62130977 | M29: =IFERROR(IF(K29<K33,K33/K29,K29/K33),"") -> 1.010687768 | N29: =IFERROR(K29/IF((J29*L18)<1500,1500,J29*L18)^0.25*62.2333,"") -> 0.4211199187 | O29: 0.0317938966 | P29: 2 + 2 | Q29: =IF(OR(S29<=0,S29>1000000000),"",1/(HYPGEOMDIST(2,10,5,50)*HYPGEOMDIST(2,5,2,12))/S17) -> 31.4525776 | R29: =IF(OR(S29<=0,S29>1000000000),"",S29/Q29/S18) -> 0.04126861975 | S29: 62.30421433 | T29: =IFERROR(IF(R29<R33,R33/R29,R29/R33),"") -> 1.009645268 | U29: =IFERROR(R29/IF((Q29*S18)<1500,1500,Q29*S18)^0.25*62.2333,"") -> 0.4120201013 | AC29: 3.011771724
A30: 0.06177641353 | B30: 1 + 2 | C30: =IF(OR(E30<=0,E30>1000000000),"",1/(HYPGEOMDIST(1,7,5,50)*HYPGEOMDIST(2,5,2,12))/E17) -> 16.18740783 | D30: =IF(OR(E30<=0,E30>1000000000),"",E30/C30/E18) -> 0.02795454545 | E30: 4.525116279 | F30: =IFERROR(IF(D30<D33,D33/D30,D30/D33),"") -> 1.490514905 | G30: =IFERROR(D30/IF((C30*E18)<1500,1500,C30*E18)^0.25*62.2333,"") -> 0.2795454647 | H30: 0.06517748803 | I30: 1 + 2 | J30: =IF(OR(L30<=0,L30>1000000000),"",1/(HYPGEOMDIST(1,9,5,50)*HYPGEOMDIST(2,5,2,12))/L17) -> 15.34272078 | K30: =IF(OR(L30<=0,L30>1000000000),"",L30/J30/L18) -> 0.02293944428 | L30: 6.335162791 | M30: =IFERROR(IF(K30<K33,K33/K30,K30/K33),"") -> 1.816376463 | N30: =IFERROR(K30/IF((J30*L18)<1500,1500,J30*L18)^0.25*62.2333,"") -> 0.2293944511 | O30: 0.06535412079 | P30: 1 + 2 | Q30: =IF(OR(S30<=0,S30>1000000000),"",1/(HYPGEOMDIST(1,10,5,50)*HYPGEOMDIST(2,5,2,12))/S17) -> 15.30125397 | R30: =IF(OR(S30<=0,S30>1000000000),"",S30/Q30/S18) -> 0.02070144971 | S30: 15.2043907 | T30: =IFERROR(IF(R30<R33,R33/R30,R30/R33),"") -> 2.012741486 | U30: =IFERROR(R30/IF((Q30*S18)<1500,1500,Q30*S18)^0.25*62.2333,"") -> 0.2070145047 | AC30: 2.971455063
A31: 0.06486523421 | B31: 2 + 1 | C31: =IF(OR(E31<=0,E31>1000000000),"",1/(HYPGEOMDIST(2,7,5,50)*HYPGEOMDIST(1,5,2,12))/E17) -> 15.41657888 | D31: =IF(OR(E31<=0,E31>1000000000),"",E31/C31/E18) -> 0.0617919697 | E31: 9.526207752 | F31: =IFERROR(IF(D31<D33,D33/D31,D31/D33),"") -> 1.483007273 | G31: =IFERROR(D31/IF((C31*E18)<1500,1500,C31*E18)^0.25*62.2333,"") -> 0.6179197195 | H31: 0.096051035 | I31: 2 + 1 | J31: =IF(OR(L31<=0,L31>1000000000),"",1/(HYPGEOMDIST(2,9,5,50)*HYPGEOMDIST(1,5,2,12))/L17) -> 10.41113196 | K31: =IF(OR(L31<=0,L31>1000000000),"",L31/J31/L18) -> 0.05337512333 | L31: 10.00251814 | M31: =IFERROR(IF(K31<K33,K33/K31,K31/K33),"") -> 1.28100296 | N31: =IFERROR(K31/IF((J31*L18)<1500,1500,J31*L18)^0.25*62.2333,"") -> 0.5337512527 | O31: 0.1112786381 | P31: 2 + 1 | Q31: =IF(OR(S31<=0,S31>1000000000),"",1/(HYPGEOMDIST(2,10,5,50)*HYPGEOMDIST(1,5,2,12))/S17) -> 8.986450742 | R31: =IF(OR(S31<=0,S31>1000000000),"",S31/Q31/S18) -> 0.0494696265 | S31: 21.33870536 | T31: =IFERROR(IF(R31<R33,R33/R31,R31/R33),"") -> 1.187271036 | U31: =IFERROR(R31/IF((Q31*S18)<1500,1500,Q31*S18)^0.25*62.2333,"") -> 0.494696283 | AC31: 2.965619499
A32: =IF(SUM(A20:A31)=0,"",SUM(A20:A31)) -> 0.1608115481 | B32: Gesamt | C32: =IFERROR(1/A32,"") -> 6.218458883 | D32: =IF(SUM(D20:D31)=0,"",SUM(D20:D31)) -> 0.5 | E32: =IFERROR(E18*D32,"") -> 5 | F32: =IFERROR(AVERAGE(F20:F31),"") -> 4.038235035 | G32: =IF(SUM(G20:G31)=0,"",SUM(G20:G31)) -> 2.307152132 | H32: =IF(SUM(H20:H31)=0,"",SUM(H20:H31)) -> 0.2236789443 | I32: Gesamt | J32: =IFERROR(1/H32,"") -> 4.47069349 | K32: =IF(SUM(K20:K31)=0,"",SUM(K20:K31)) -> 0.5 | L32: =IFERROR(L18*K32,"") -> 9 | M32: =IFERROR(AVERAGE(M20:M31),"") -> 3.51155285 | N32: =IF(SUM(N20:N31)=0,"",SUM(N20:N31)) -> 2.426273678 | O32: =IF(SUM(O20:O31)=0,"",SUM(O20:O31)) -> 0.2566869587 | P32: Gesamt | Q32: =IFERROR(1/O32,"") -> 3.895795895 | R32: =IF(SUM(R20:R31)=0,"",SUM(R20:R31)) -> 0.5 | S32: =IFERROR(S18*R32,"") -> 24 | T32: =IFERROR(AVERAGE(T20:T31),"") -> 3.337342321 | U32: =IF(SUM(U20:U31)=0,"",SUM(U20:U31)) -> 2.283112045 | AC32: 2.886245099
D33: =AVERAGE(D20:D31) -> 0.04166666667 | K33: =AVERAGE(K20:K31) -> 0.04166666667 | R33: =AVERAGE(R20:R31) -> 0.04166666667 | AC33: 2.880505345
AC34: 2.855292687
B35: EuroMillions L (216 Tipps) | E35: 1 | F35: vs. | I35: EuroMillions XL (1.176 Tipps) | L35: 1 | M35: vs. | P35: EuroMillions XXL (2.520 Tipps) | S35: 1 | AC35: 2.854188497
B36: Vollsystem 0609 / 72 Anteile | E36: =E35*9 -> 9 | I36: Vollsystem 0807 / 168 Anteile | L36: =L35*21 -> 21 | P36: Vollsystem 1005 / 180 Anteile | S36: =S35*42 -> 42 | AC36: 2.809218468
B37: Richtige | C37: =IF(E35=1,"Chancen 1:","Ø Gewinne 1:") -> Chancen 1: | D37: AQ | E37: Ø Gewinn | I37: Richtige | J37: =IF(L35=1,"Chancen 1:","Ø Gewinne 1:") -> Chancen 1: | K37: AQ | L37: Ø Gewinn | P37: Richtige | Q37: =IF(S35=1,"Chancen 1:","Ø Gewinne 1:") -> Chancen 1: | R37: AQ | S37: Ø Gewinn | AC37: 2.706010526
A38: =IFERROR(IF(OR(E38<=0,E38>1000000000),0,1/C38),"") -> 1.287202292e-07 | B38: 5 | C38: =IF(OR(E38<=0,E38>1000000000),"",1/(HYPGEOMDIST(5,6,5,50)*HYPGEOMDIST(0,9,2,12))/E35) -> 7768786.667 | D38: =IF(OR(E38<=0,E38>1000000000),"",E38/C38/E36) -> 0.0001505234568 | E38: 10524.46162 | F38: =IFERROR(IF(D38<D52,D52/D38,D38/D52),"") -> 187.3802848 | G38: =IFERROR(D38/IF((C38*E36)<1500,1500,C38*E36)^0.25*62.2333,"") -> 0.0001024420092 | H38: =IFERROR(IF(OR(L38<=0,L38>1000000000),0,1/J38),"") -> 4.004629352e-06 | I38: 5 | J38: =IF(OR(L38<=0,L38>1000000000),"",1/(HYPGEOMDIST(5,8,5,50)*HYPGEOMDIST(0,7,2,12))/L35) -> 249711 | K38: =IF(OR(L38<=0,L38>1000000000),"",L38/J38/L36) -> 0.0005187797875 | L38: 2720.44541 | M38: =IFERROR(IF(K38<K52,K52/K38,K38/K52),"") -> 54.36820956 | N38: =IFERROR(K38/IF((J38*L36)<1500,1500,J38*L36)^0.25*62.2333,"") -> 0.000674670367 | O38: =IFERROR(IF(OR(S38<=0,S38>1000000000),0,1/Q38),"") -> 1.802083208e-05 | P38: 5 + 2 | Q38: =IF(OR(S38<=0,S38>1000000000),"",1/(HYPGEOMDIST(5,10,5,50)*HYPGEOMDIST(2,5,2,12))/S35) -> 55491.33333 | R38: =IF(OR(S38<=0,S38>1000000000),"",S38/Q38/S36) -> 0.2231984434 | S38: 520194.3274 | T38: =IFERROR(IF(R38<R52,R52/R38,R38/R52),"") -> 7.913399358 | U38: =IFERROR(R38/IF((Q38*S36)<1500,1500,Q38*S36)^0.25*62.2333,"") -> 0.3555047268 | AC38: 2.677445488
A39: 1.158482062e-06 | B39: 5 + 1 | C39: =IF(OR(E39<=0,E39>1000000000),"",1/(HYPGEOMDIST(5,6,5,50)*HYPGEOMDIST(1,9,2,12))/E35) -> 863198.5185 | D39: =IF(OR(E39<=0,E39>1000000000),"",E39/C39/E36) -> 0.003933219753 | E39: 30556.34517 | F39: =IFERROR(IF(D39<D52,D52/D39,D39/D52),"") -> 7.171002379 | G39: =IFERROR(D39/IF((C39*E36)<1500,1500,C39*E36)^0.25*62.2333,"") -> 0.004636419708 | H39: 8.409721638e-06 | I39: 5 + 2 | J39: =IF(OR(L39<=0,L39>1000000000),"",1/(HYPGEOMDIST(5,8,5,50)*HYPGEOMDIST(2,7,2,12))/L35) -> 118910 | K39: =IF(OR(L39<=0,L39>1000000000),"",L39/J39/L36) -> 0.2254068353 | L39: 562865.6626 | M39: =IFERROR(IF(K39<K52,K52/K39,K39/K52),"") -> 7.991696889 | N39: =IFERROR(K39/IF((J39*L36)<1500,1500,J39*L36)^0.25*62.2333,"") -> 0.3528828025 | O39: 3.784374737e-05 | P39: 5 | Q39: =IF(OR(S39<=0,S39>1000000000),"",1/(HYPGEOMDIST(5,10,5,50)*HYPGEOMDIST(0,5,2,12))/S35) -> 26424.44444 | R39: =IF(OR(S39<=0,S39>1000000000),"",S39/Q39/S36) -> 0.001159881711 | S39: 1287.267653 | T39: =IFERROR(IF(R39<R52,R52/R39,R39/R52),"") -> 24.3172454 | U39: =IFERROR(R39/IF((Q39*S36)<1500,1500,Q39*S36)^0.25*62.2333,"") -> 0.002223938341 | AC39: 2.626644346
A40: 1.54464275e-06 | B40: 5 + 2 | C40: =IF(OR(E40<=0,E40>1000000000),"",1/(HYPGEOMDIST(5,6,5,50)*HYPGEOMDIST(2,9,2,12))/E35) -> 647398.8889 | D40: =IF(OR(E40<=0,E40>1000000000),"",E40/C40/E36) -> 0.2277881086 | E40: 1327227.916 | F40: =IFERROR(IF(D40<D52,D52/D40,D40/D52),"") -> 8.076123852 | G40: =IFERROR(D40/IF((C40*E36)<1500,1500,C40*E36)^0.25*62.2333,"") -> 0.2885361711 | H40: 1.401620273e-05 | I40: 5 + 1 | J40: =IF(OR(L40<=0,L40>1000000000),"",1/(HYPGEOMDIST(5,8,5,50)*HYPGEOMDIST(1,7,2,12))/L35) -> 71346 | K40: =IF(OR(L40<=0,L40>1000000000),"",L40/J40/L36) -> 0.006134113552 | L40: 9190.533774 | M40: =IFERROR(IF(K40<K52,K52/K40,K40/K52),"") -> 4.598077288 | N40: =IFERROR(K40/IF((J40*L36)<1500,1500,J40*L36)^0.25*62.2333,"") -> 0.01091132297 | O40: 6.307291229e-05 | P40: 5 + 1 | Q40: =IF(OR(S40<=0,S40>1000000000),"",1/(HYPGEOMDIST(5,10,5,50)*HYPGEOMDIST(1,5,2,12))/S35) -> 15854.66667 | R40: =IF(OR(S40<=0,S40>1000000000),"",S40/Q40/S36) -> 0.00801491961 | S40: 5337.102908 | T40: =IFERROR(IF(R40<R52,R52/R40,R40/R52),"") -> 3.519078117 | U40: =IFERROR(R40/IF((Q40*S36)<1500,1500,Q40*S36)^0.25*62.2333,"") -> 0.01746105176 | AC40: 2.591299332
A41: 1.415922521e-05 | B41: 4 | C41: =IF(OR(E41<=0,E41>1000000000),"",1/(HYPGEOMDIST(4,6,5,50)*HYPGEOMDIST(0,9,2,12))/E35) -> 70625.33333 | D41: =IF(OR(E41<=0,E41>1000000000),"",E41/C41/E36) -> 9.147654321e-05 | E41: 58.14505221 | F41: =IFERROR(IF(D41<D52,D52/D41,D41/D52),"") -> 308.3318107 | G41: =IFERROR(D41/IF((C41*E36)<1500,1500,C41*E36)^0.25*62.2333,"") -> 0.000201619169 | H41: 0.000210243041 | I41: 4 | J41: =IF(OR(L41<=0,L41>1000000000),"",1/(HYPGEOMDIST(4,8,5,50)*HYPGEOMDIST(0,7,2,12))/L35) -> 4756.4 | K41: =IF(OR(L41<=0,L41>1000000000),"",L41/J41/L36) -> 0.0005977594028 | L41: 59.70683929 | M41: =IFERROR(IF(K41<K52,K52/K41,K41/K52),"") -> 47.18475037 | N41: =IFERROR(K41/IF((J41*L36)<1500,1500,J41*L36)^0.25*62.2333,"") -> 0.002092545118 | O41: 0.0006006944027 | P41: 4 + 2 | Q41: =IF(OR(S41<=0,S41>1000000000),"",1/(HYPGEOMDIST(4,10,5,50)*HYPGEOMDIST(2,5,2,12))/S35) -> 1664.74 | R41: =IF(OR(S41<=0,S41>1000000000),"",S41/Q41/S36) -> 0.002347855953 | S41: 164.1599282 | T41: =IFERROR(IF(R41<R52,R52/R41,R41/R52),"") -> 12.01314253 | U41: =IFERROR(R41/IF((Q41*S36)<1500,1500,Q41*S36)^0.25*62.2333,"") -> 0.008985564225 | AC41: 2.538470248
A42: 0.0001274330269 | B42: 4 + 1 | C42: =IF(OR(E42<=0,E42>1000000000),"",1/(HYPGEOMDIST(4,6,5,50)*HYPGEOMDIST(1,9,2,12))/E35) -> 7847.259259 | D42: =IF(OR(E42<=0,E42>1000000000),"",E42/C42/E36) -> 0.001087669136 | E42: 76.81699527 | F42: =IFERROR(IF(D42<D52,D52/D42,D42/D52),"") -> 25.93171699 | G42: =IFERROR(D42/IF((C42*E36)<1500,1500,C42*E36)^0.25*62.2333,"") -> 0.004152211892 | H42: 0.000441510386 | I42: 4 + 2 | J42: =IF(OR(L42<=0,L42>1000000000),"",1/(HYPGEOMDIST(4,8,5,50)*HYPGEOMDIST(2,7,2,12))/L35) -> 2264.952381 | K42: =IF(OR(L42<=0,L42>1000000000),"",L42/J42/L36) -> 0.002571250359 | L42: 122.2989521 | M42: =IFERROR(IF(K42<K52,K52/K42,K42/K52),"") -> 10.9694212 | N42: =IFERROR(K42/IF((J42*L36)<1500,1500,J42*L36)^0.25*62.2333,"") -> 0.01083546624 | O42: 0.001261458246 | P42: 4 | Q42: =IF(OR(S42<=0,S42>1000000000),"",1/(HYPGEOMDIST(4,10,5,50)*HYPGEOMDIST(0,5,2,12))/S35) -> 792.7333333 | R42: =IF(OR(S42<=0,S42>1000000000),"",S42/Q42/S36) -> 0.002128996842 | S42: 70.88452405 | T42: =IFERROR(IF(R42<R52,R52/R42,R42/R52),"") -> 13.24808363 | U42: =IFERROR(R42/IF((Q42*S36)<1500,1500,Q42*S36)^0.25*62.2333,"") -> 0.009808525945 | AC42: 2.44721661
A43: 0.0001699107025 | B43: 4 + 2 | C43: =IF(OR(E43<=0,E43>1000000000),"",1/(HYPGEOMDIST(4,6,5,50)*HYPGEOMDIST(2,9,2,12))/E35) -> 5885.444444 | D43: =IF(OR(E43<=0,E43>1000000000),"",E43/C43/E36) -> 0.002425595062 | E43: 128.4813448 | F43: =IFERROR(IF(D43<D52,D52/D43,D43/D52),"") -> 11.62812732 | G43: =IFERROR(D43/IF((C43*E36)<1500,1500,C43*E36)^0.25*62.2333,"") -> 0.00995028882 | H43: 0.0007358506433 | I43: 4 + 1 | J43: =IF(OR(L43<=0,L43>1000000000),"",1/(HYPGEOMDIST(4,8,5,50)*HYPGEOMDIST(1,7,2,12))/L35) -> 1358.971429 | K43: =IF(OR(L43<=0,L43>1000000000),"",L43/J43/L36) -> 0.002599295148 | L43: 74.17972465 | M43: =IFERROR(IF(K43<K52,K52/K43,K43/K52),"") -> 10.85106792 | N43: =IFERROR(K43/IF((J43*L36)<1500,1500,J43*L36)^0.25*62.2333,"") -> 0.01244574852 | O43: 0.00210243041 | P43: 4 + 1 | Q43: =IF(OR(S43<=0,S43>1000000000),"",1/(HYPGEOMDIST(4,10,5,50)*HYPGEOMDIST(1,5,2,12))/S35) -> 475.64 | R43: =IF(OR(S43<=0,S43>1000000000),"",S43/Q43/S36) -> 0.00442458685 | S43: 88.38944056 | T43: =IFERROR(IF(R43<R52,R52/R43,R43/R52),"") -> 6.374635454 | U43: =IFERROR(R43/IF((Q43*S36)<1500,1500,Q43*S36)^0.25*62.2333,"") -> 0.02316133775 | AC43: 2.436740447
A44: 0.0004058977893 | B44: 3 | C44: =IF(OR(E44<=0,E44>1000000000),"",1/(HYPGEOMDIST(3,6,5,50)*HYPGEOMDIST(0,9,2,12))/E35) -> 2463.674419 | D44: =IF(OR(E44<=0,E44>1000000000),"",E44/C44/E36) -> 0.0009010222222 | E44: 19.9784286 | F44: =IFERROR(IF(D44<D52,D52/D44,D44/D52),"") -> 31.30347677 | G44: =IFERROR(D44/IF((C44*E36)<1500,1500,C44*E36)^0.25*62.2333,"") -> 0.004595173112 | H44: 0.003447985872 | I44: 3 | J44: =IF(OR(L44<=0,L44>1000000000),"",1/(HYPGEOMDIST(3,8,5,50)*HYPGEOMDIST(0,7,2,12))/L35) -> 290.0243902 | K44: =IF(OR(L44<=0,L44>1000000000),"",L44/J44/L36) -> 0.004373968992 | L44: 26.63971149 | M44: =IFERROR(IF(K44<K52,K52/K44,K44/K52),"") -> 6.448406071 | N44: =IFERROR(K44/IF((J44*L36)<1500,1500,J44*L36)^0.25*62.2333,"") -> 0.0308130775 | O44: 0.006693451916 | P44: 3 + 2 | Q44: =IF(OR(S44<=0,S44>1000000000),"",1/(HYPGEOMDIST(3,10,5,50)*HYPGEOMDIST(2,5,2,12))/S35) -> 149.3997436 | R44: =IF(OR(S44<=0,S44>1000000000),"",S44/Q44/S36) -> 0.0090118457 | S44: 56.54743234 | T44: =IFERROR(IF(R44<R52,R52/R44,R44/R52),"") -> 3.129783747 | U44: =IFERROR(R44/IF((Q44*S36)<1500,1500,Q44*S36)^0.25*62.2333,"") -> 0.06301396278 | AC44: 2.375591056
A45: 0.003653080103 | B45: 3 + 1 | C45: =IF(OR(E45<=0,E45>1000000000),"",1/(HYPGEOMDIST(3,6,5,50)*HYPGEOMDIST(1,9,2,12))/E35) -> 273.7416021 | D45: =IF(OR(E45<=0,E45>1000000000),"",E45/C45/E36) -> 0.0085866 | E45: 21.15458676 | F45: =IFERROR(IF(D45<D52,D52/D45,D45/D52),"") -> 3.284784223 | G45: =IFERROR(D45/IF((C45*E36)<1500,1500,C45*E36)^0.25*62.2333,"") -> 0.07584871616 | H45: 0.007240770331 | I45: 3 + 2 | J45: =IF(OR(L45<=0,L45>1000000000),"",1/(HYPGEOMDIST(3,8,5,50)*HYPGEOMDIST(2,7,2,12))/L35) -> 138.1068525 | K45: =IF(OR(L45<=0,L45>1000000000),"",L45/J45/L36) -> 0.01237866279 | L45: 35.90114128 | M45: =IFERROR(IF(K45<K52,K52/K45,K45/K52),"") -> 2.278527873 | N45: =IFERROR(K45/IF((J45*L36)<1500,1500,J45*L36)^0.25*62.2333,"") -> 0.1049754953 | O45: 0.01405624902 | P45: 3 | Q45: =IF(OR(S45<=0,S45>1000000000),"",1/(HYPGEOMDIST(3,10,5,50)*HYPGEOMDIST(0,5,2,12))/S35) -> 71.14273504 | R45: =IF(OR(S45<=0,S45>1000000000),"",S45/Q45/S36) -> 0.0114420155 | S45: 34.18868365 | T45: =IFERROR(IF(R45<R52,R52/R45,R45/R52),"") -> 2.465048941 | U45: =IFERROR(R45/IF((Q45*S36)<1500,1500,Q45*S36)^0.25*62.2333,"") -> 0.0963119998 | AC45: 2.139225507
A46: 0.004261926787 | B46: 2 | C46: =IF(OR(E46<=0,E46>1000000000),"",1/(HYPGEOMDIST(2,6,5,50)*HYPGEOMDIST(0,9,2,12))/E35) -> 234.6356589 | D46: =IF(OR(E46<=0,E46>1000000000),"",E46/C46/E36) -> 0.003784977778 | E46: 7.992816794 | F46: =IFERROR(IF(D46<D52,D52/D46,D46/D52),"") -> 7.451860978 | G46: =IFERROR(D46/IF((C46*E36)<1500,1500,C46*E36)^0.25*62.2333,"") -> 0.03474777763 | H46: 0.01206795055 | I46: 3 + 1 | J46: =IF(OR(L46<=0,L46>1000000000),"",1/(HYPGEOMDIST(3,8,5,50)*HYPGEOMDIST(1,7,2,12))/L35) -> 82.8641115 | K46: =IF(OR(L46<=0,L46>1000000000),"",L46/J46/L36) -> 0.01668419251 | L46: 29.03293655 | M46: =IFERROR(IF(K46<K52,K52/K46,K46/K52),"") -> 1.690530015 | N46: =IFERROR(K46/IF((J46*L36)<1500,1500,J46*L36)^0.25*62.2333,"") -> 0.160761326 | O46: 0.02342708171 | P46: 3 + 1 | Q46: =IF(OR(S46<=0,S46>1000000000),"",1/(HYPGEOMDIST(3,10,5,50)*HYPGEOMDIST(1,5,2,12))/S35) -> 42.68564103 | R46: =IF(OR(S46<=0,S46>1000000000),"",S46/Q46/S36) -> 0.0216401292 | S46: 38.79635704 | T46: =IFERROR(IF(R46<R52,R52/R46,R46/R52),"") -> 1.303371525 | U46: =IFERROR(R46/IF((Q46*S36)<1500,1500,Q46*S36)^0.25*62.2333,"") -> 0.2069664285 | AC46: 1.831110649
A47: 0.004870773471 | B47: 3 + 2 | C47: =IF(OR(E47<=0,E47>1000000000),"",1/(HYPGEOMDIST(3,6,5,50)*HYPGEOMDIST(2,9,2,12))/E35) -> 205.3062016 | D47: =IF(OR(E47<=0,E47>1000000000),"",E47/C47/E36) -> 0.01324000741 | E47: 24.46430066 | F47: =IFERROR(IF(D47<D52,D52/D47,D47/D52),"") -> 2.1302955 | G47: =IFERROR(D47/IF((C47*E36)<1500,1500,C47*E36)^0.25*62.2333,"") -> 0.1256752953 | H47: 0.02298657248 | I47: 2 | J47: =IF(OR(L47<=0,L47>1000000000),"",1/(HYPGEOMDIST(2,8,5,50)*HYPGEOMDIST(0,7,2,12))/L35) -> 43.50365854 | K47: =IF(OR(L47<=0,L47>1000000000),"",L47/J47/L36) -> 0.01093615848 | L47: 9.991020992 | M47: =IFERROR(IF(K47<K52,K52/K47,K47/K52),"") -> 2.579070909 | N47: =IFERROR(K47/IF((J47*L36)<1500,1500,J47*L36)^0.25*62.2333,"") -> 0.1093615888 | O47: 0.0317938966 | P47: 2 + 2 | Q47: =IF(OR(S47<=0,S47>1000000000),"",1/(HYPGEOMDIST(2,10,5,50)*HYPGEOMDIST(2,5,2,12))/S35) -> 31.4525776 | R47: =IF(OR(S47<=0,S47>1000000000),"",S47/Q47/S36) -> 0.01800647324 | S47: 23.78669986 | T47: =IFERROR(IF(R47<R52,R52/R47,R47/R52),"") -> 1.566388256 | U47: =IFERROR(R47/IF((Q47*S36)<1500,1500,Q47*S36)^0.25*62.2333,"") -> 0.1800647389 | AC47: 1.561449837
A48: 0.03835734109 | B48: 2 + 1 | C48: =IF(OR(E48<=0,E48>1000000000),"",1/(HYPGEOMDIST(2,6,5,50)*HYPGEOMDIST(1,9,2,12))/E35) -> 26.07062877 | D48: =IF(OR(E48<=0,E48>1000000000),"",E48/C48/E36) -> 0.03706951111 | E48: 8.697829165 | F48: =IFERROR(IF(D48<D52,D52/D48,D48/D52),"") -> 1.314282667 | G48: =IFERROR(D48/IF((C48*E36)<1500,1500,C48*E36)^0.25*62.2333,"") -> 0.3706951246 | H48: 0.0482718022 | I48: 2 + 2 | J48: =IF(OR(L48<=0,L48>1000000000),"",1/(HYPGEOMDIST(2,8,5,50)*HYPGEOMDIST(2,7,2,12))/L35) -> 20.71602787 | K48: =IF(OR(L48<=0,L48>1000000000),"",L48/J48/L36) -> 0.03284096469 | L48: 14.28702114 | M48: =IFERROR(IF(K48<K52,K52/K48,K48/K52),"") -> 1.164361475 | N48: =IFERROR(K48/IF((J48*L36)<1500,1500,J48*L36)^0.25*62.2333,"") -> 0.3284096588 | O48: 0.06535412079 | P48: 1 + 2 | Q48: =IF(OR(S48<=0,S48>1000000000),"",1/(HYPGEOMDIST(1,10,5,50)*HYPGEOMDIST(2,5,2,12))/S35) -> 15.30125397 | R48: =IF(OR(S48<=0,S48>1000000000),"",S48/Q48/S36) -> 0.007354381691 | S48: 4.726313005 | T48: =IFERROR(IF(R48<R52,R52/R48,R48/R52),"") -> 3.835146093 | U48: =IFERROR(R48/IF((Q48*S36)<1500,1500,Q48*S36)^0.25*62.2333,"") -> 0.07354381959 | AC48: 1.416637941
A49: 0.05114312145 | B49: 2 + 2 | C49: =IF(OR(E49<=0,E49>1000000000),"",1/(HYPGEOMDIST(2,6,5,50)*HYPGEOMDIST(2,9,2,12))/E35) -> 19.55297158 | D49: =IF(OR(E49<=0,E49>1000000000),"",E49/C49/E36) -> 0.05668373333 | E49: 9.97501884 | F49: =IFERROR(IF(D49<D52,D52/D49,D49/D52),"") -> 2.009696 | G49: =IFERROR(D49/IF((C49*E36)<1500,1500,C49*E36)^0.25*62.2333,"") -> 0.566837354 | H49: 0.08045300367 | I49: 2 + 1 | J49: =IF(OR(L49<=0,L49>1000000000),"",1/(HYPGEOMDIST(2,8,5,50)*HYPGEOMDIST(1,7,2,12))/L35) -> 12.42961672 | K49: =IF(OR(L49<=0,L49>1000000000),"",L49/J49/L36) -> 0.04261739879 | L49: 11.12407659 | M49: =IFERROR(IF(K49<K52,K52/K49,K49/K52),"") -> 1.510980503 | N49: =IFERROR(K49/IF((J49*L36)<1500,1500,J49*L36)^0.25*62.2333,"") -> 0.4261740035 | O49: 0.06676718286 | P49: 2 | Q49: =IF(OR(S49<=0,S49>1000000000),"",1/(HYPGEOMDIST(2,10,5,50)*HYPGEOMDIST(0,5,2,12))/S35) -> 14.9774179 | R49: =IF(OR(S49<=0,S49>1000000000),"",S49/Q49/S36) -> 0.01976510594 | S49: 12.43327057 | T49: =IFERROR(IF(R49<R52,R52/R49,R49/R52),"") -> 1.427016293 | U49: =IFERROR(R49/IF((Q49*S36)<1500,1500,Q49*S36)^0.25*62.2333,"") -> 0.1976510666
A50: 0.2096867979 | B50: 1 + 2 | C50: =IF(OR(E50<=0,E50>1000000000),"",1/(HYPGEOMDIST(1,6,5,50)*HYPGEOMDIST(2,9,2,12))/E35) -> 4.769017458 | D50: =IF(OR(E50<=0,E50>1000000000),"",E50/C50/E36) -> 0.01092422222 | E50: 0.4688802584 | F50: =IFERROR(IF(D50<D52,D52/D50,D50/D52),"") -> 2.58188891 | G50: =IFERROR(D50/IF((C50*E36)<1500,1500,C50*E36)^0.25*62.2333,"") -> 0.1092422262 | H50: 0.134471449 | I50: 1 + 2 | J50: =IF(OR(L50<=0,L50>1000000000),"",1/(HYPGEOMDIST(1,8,5,50)*HYPGEOMDIST(2,7,2,12))/L35) -> 7.436522827 | K50: =IF(OR(L50<=0,L50>1000000000),"",L50/J50/L36) -> 0.009007286822 | L50: 1.406640775 | M50: =IFERROR(IF(K50<K52,K52/K50,K50/K52),"") -> 3.131367832 | N50: =IFERROR(K50/IF((J50*L36)<1500,1500,J50*L36)^0.25*62.2333,"") -> 0.0900728715 | O50: 0.1112786381 | P50: 2 + 1 | Q50: =IF(OR(S50<=0,S50>1000000000),"",1/(HYPGEOMDIST(2,10,5,50)*HYPGEOMDIST(1,5,2,12))/S35) -> 8.986450742 | R50: =IF(OR(S50<=0,S50>1000000000),"",S50/Q50/S36) -> 0.03817203101 | S50: 14.40730521 | T50: =IFERROR(IF(R50<R52,R52/R50,R50/R52),"") -> 1.353372008 | U50: =IFERROR(R50/IF((Q50*S36)<1500,1500,Q50*S36)^0.25*62.2333,"") -> 0.381720324 | AC50: 1.252342936
A51: =IF(SUM(A38:A50)=0,"",SUM(A38:A50)) -> 0.3126932734 | B51: Gesamt | C51: =IFERROR(1/A51,"") -> 3.198022103 | D51: =IF(SUM(D38:D50)=0,"",SUM(D38:D50)) -> 0.3666666667 | E51: =IFERROR(E36*D51,"") -> 3.3 | F51: =IFERROR(AVERAGE(F38:F50),"") -> 46.04579624 | G51: =IF(SUM(G38:G50)=0,"",SUM(G38:G50)) -> 1.59522082 | H51: =IF(SUM(H38:H50)=0,"",SUM(H38:H50)) -> 0.3103535687 | I51: Gesamt | J51: =IFERROR(1/H51,"") -> 3.222131468 | K51: =IF(SUM(K38:K50)=0,"",SUM(K38:K50)) -> 0.3666666667 | L51: =IFERROR(L36*K51,"") -> 7.7 | M51: =IFERROR(AVERAGE(M38:M50),"") -> 11.90511292 | N51: =IF(SUM(N38:N50)=0,"",SUM(N38:N50)) -> 1.640410577 | O51: =IF(SUM(O38:O50)=0,"",SUM(O38:O50)) -> 0.3234541416 | P51: Gesamt | Q51: =IFERROR(1/O51,"") -> 3.091628369 | R51: =IFERROR(SUM(R38:R50),"") -> 0.3666666667 | S51: =IFERROR(S36*R51,"") -> 15.4 | T51: =IFERROR(AVERAGE(T38:T50),"") -> 6.343516258 | U51: =IF(SUM(U38:U50)=0,"",SUM(U38:U50)) -> 1.616417485 | AC51: 1.18551965
D52: =AVERAGE(D38:D50) -> 0.02820512821 | K52: =AVERAGE(K38:K50) -> 0.02820512821 | R52: =AVERAGE(R38:R50) -> 0.02820512821 | AC52: 1.070435753
AC53: 0.6309532818
B54: LOTTO 6aus45 L (210 Tipps) ⁴ | E54: 1 | F54: vs. | I54: LOTTO 6aus45 XL (462 Tipps) ⁴ | L54: 1 | M54: vs. | P54: LOTTO 6aus45 XXL (924 Tipps) ⁴ | S54: 1 | AC54: 0.6205560268
B55: Vollsystem 1000 / 42 Anteile | E55: =E54*8 -> 8 | I55: Vollsystem 1100 / 74 Anteile | L55: =L54*10 -> 10 | P55: Vollsystem 1200 / 82 Anteile | S55: =S54*18 -> 18 | AC55: 0.5025409425
B56: Richtige | C56: =IF(E54=1,"Chancen 1:","Ø Gewinne 1:") -> Chancen 1: | D56: Ø AQ | E56: (Ø) Gewinn | I56: Richtige | J56: =IF(L54=1,"Chancen 1:","Ø Gewinne 1:") -> Chancen 1: | K56: Ø AQ | L56: (Ø) Gewinn | P56: Richtige | Q56: =IF(S54=1,"Chancen 1:","Ø Gewinne 1:") -> Chancen 1: | R56: Ø AQ | S56: (Ø) Gewinn
A57: =IFERROR(IF(OR(E57<=0,E57>1000000000),0,1/C57),"") -> 2.644358855e-06 | B57: 6 + ZZ | C57: =IF(OR(E57<=0,E57>1000000000),"",1/(HYPGEOMDIST(6,10,6,45)*HYPGEOMDIST(1,4,1,39))/E54) -> 378163.5 | D57: =IF(OR(E57<=0,E57>1000000000),"",E57/C57/E55) -> 0.01731110062 | E57: 52371.4112 | F57: =IFERROR(IF(D57<D69,D69/D57,D57/D69),"") -> 1.979064353 | G57: =IFERROR(D57/IF((C57*E55)<1500,1500,C57*E55)^0.25*62.2333,"") -> 0.02583182634 | H57: =IFERROR(IF(OR(L57<=0,L57>1000000000),0,1/J57),"") -> 7.271986852e-06 | I57: 6 + ZZ | J57: =IF(OR(L57<=0,L57>1000000000),"",1/(HYPGEOMDIST(6,11,6,45)*HYPGEOMDIST(1,5,1,39))/L54) -> 137514 | K57: =IF(OR(L57<=0,L57>1000000000),"",L57/J57/L55) -> 0.021750139 | L57: 29909.48615 | M57: =IFERROR(IF(K57<K69,K69/K57,K57/K69),"") -> 1.573449464 | N57: =IFERROR(K57/IF((J57*L55)<1500,1500,J57*L55)^0.25*62.2333,"") -> 0.03952738999 | O57: =IFERROR(IF(OR(S57<=0,S57>1000000000),0,1/Q57),"") -> 1.745276845e-05 | P57: 6 + ZZ | Q57: =IF(OR(S57<=0,S57>1000000000),"",1/(HYPGEOMDIST(6,12,6,45)*HYPGEOMDIST(1,6,1,39))/S54) -> 57297.5 | R57: =IF(OR(S57<=0,S57>1000000000),"",S57/Q57/S55) -> 0.02634990975 | S57: 27176.11117 | T57: =IFERROR(IF(R57<R69,R69/R57,R57/R69),"") -> 1.302300063 | U57: =IFERROR(R57/IF((Q57*S55)<1500,1500,Q57*S55)^0.25*62.2333,"") -> 0.05145764637
A58: 2.313813998e-05 | B58: 6 | C58: =IF(OR(E58<=0,E58>1000000000),"",1/(HYPGEOMDIST(6,10,6,45)*HYPGEOMDIST(0,4,1,39))/E54) -> 43218.68571 | D58: =IF(OR(E58<=0,E58>1000000000),"",E58/C58/E55) -> 0.132389872 | E58: 45773.73015 | F58: =IFERROR(IF(D58<D69,D69/D58,D58/D69),"") -> 3.86429404 | G58: =IFERROR(D58/IF((C58*E55)<1500,1500,C58*E55)^0.25*62.2333,"") -> 0.3397717031 | H58: 4.94495106e-05 | I58: 6 | J58: =IF(OR(L58<=0,L58>1000000000),"",1/(HYPGEOMDIST(6,11,6,45)*HYPGEOMDIST(0,5,1,39))/L54) -> 20222.64706 | K58: =IF(OR(L58<=0,L58>1000000000),"",L58/J58/L55) -> 0.1292278647 | L58: 26133.29498 | M58: =IFERROR(IF(K58<K69,K69/K58,K58/K69),"") -> 3.77608127 | N58: =IFERROR(K58/IF((J58*L55)<1500,1500,J58*L55)^0.25*62.2333,"") -> 0.379244681 | O58: 9.599022645e-05 | P58: 6 | Q58: =IF(OR(S58<=0,S58>1000000000),"",1/(HYPGEOMDIST(6,12,6,45)*HYPGEOMDIST(0,6,1,39))/S54) -> 10417.72727 | R58: =IF(OR(S58<=0,S58>1000000000),"",S58/Q58/S55) -> 0.1265852403 | S58: 23737.14917 | T58: =IFERROR(IF(R58<R69,R69/R58,R58/R69),"") -> 3.688865977 | U58: =IFERROR(R58/IF((Q58*S55)<1500,1500,Q58*S55)^0.25*62.2333,"") -> 0.3785685474
A59: 0.0001388288399 | B59: 5 + ZZ | C59: =IF(OR(E59<=0,E59>1000000000),"",1/(HYPGEOMDIST(5,10,6,45)*HYPGEOMDIST(1,5,1,39))/E54) -> 7203.114286 | D59: =IF(OR(E59<=0,E59>1000000000),"",E59/C59/E55) -> 0.02380034021 | E59: 1371.492564 | F59: =IFERROR(IF(D59<D69,D69/D59,D59/D69),"") -> 1.439466068 | G59: =IFERROR(D59/IF((C59*E55)<1500,1500,C59*E55)^0.25*62.2333,"") -> 0.09559901609 | H59: 0.0002966970636 | I59: 5 + ZZ | J59: =IF(OR(L59<=0,L59>1000000000),"",1/(HYPGEOMDIST(5,11,6,45)*HYPGEOMDIST(1,6,1,39))/L54) -> 3370.441176 | K59: =IF(OR(L59<=0,L59>1000000000),"",L59/J59/L55) -> 0.02474299756 | L59: 833.9481782 | M59: =IFERROR(IF(K59<K69,K69/K59,K59/K69),"") -> 1.383128477 | N59: =IFERROR(K59/IF((J59*L55)<1500,1500,J59*L55)^0.25*62.2333,"") -> 0.113645817 | O59: 0.0005759413587 | P59: 5 + ZZ | Q59: =IF(OR(S59<=0,S59>1000000000),"",1/(HYPGEOMDIST(5,12,6,45)*HYPGEOMDIST(1,7,1,39))/S54) -> 1736.287879 | R59: =IF(OR(S59<=0,S59>1000000000),"",S59/Q59/S55) -> 0.0259373453 | S59: 810.6245686 | T59: =IFERROR(IF(R59<R69,R69/R59,R59/R69),"") -> 1.3230147 | U59: =IFERROR(R59/IF((Q59*S55)<1500,1500,Q59*S55)^0.25*62.2333,"") -> 0.1214017074
A60: 0.0009440361114 | B60: 5 | C60: =IF(OR(E60<=0,E60>1000000000),"",1/(HYPGEOMDIST(5,10,6,45)*HYPGEOMDIST(0,5,1,39))/E54) -> 1059.281513 | D60: =IF(OR(E60<=0,E60>1000000000),"",E60/C60/E55) -> 0.02661461238 | E60: 225.5389348 | F60: =IFERROR(IF(D60<D69,D69/D60,D60/D69),"") -> 1.287254598 | G60: =IFERROR(D60/IF((C60*E55)<1500,1500,C60*E55)^0.25*62.2333,"") -> 0.1726305408 | H60: 0.00163183385 | I60: 5 | J60: =IF(OR(L60<=0,L60>1000000000),"",1/(HYPGEOMDIST(5,11,6,45)*HYPGEOMDIST(0,6,1,39))/L54) -> 612.8074866 | K60: =IF(OR(L60<=0,L60>1000000000),"",L60/J60/L55) -> 0.02774647609 | L60: 170.0324827 | M60: =IFERROR(IF(K60<K69,K69/K60,K60/K69),"") -> 1.233408684 | N60: =IFERROR(K60/IF((J60*L55)<1500,1500,J60*L55)^0.25*62.2333,"") -> 0.1951639722 | O60: 0.002632874783 | P60: 5 | Q60: =IF(OR(S60<=0,S60>1000000000),"",1/(HYPGEOMDIST(5,12,6,45)*HYPGEOMDIST(0,7,1,39))/S54) -> 379.8129735 | R60: =IF(OR(S60<=0,S60>1000000000),"",S60/Q60/S55) -> 0.02894484899 | S60: 197.8853249 | T60: =IFERROR(IF(R60<R69,R69/R60,R60/R69),"") -> 1.185547353 | U60: =IFERROR(R60/IF((Q60*S55)<1500,1500,Q60*S55)^0.25*62.2333,"") -> 0.1980995749
A61: 0.002360090278 | B61: 4 + ZZ | C61: =IF(OR(E61<=0,E61>1000000000),"",1/(HYPGEOMDIST(4,10,6,45)*HYPGEOMDIST(1,6,1,39))/E54) -> 423.712605 | D61: =IF(OR(E61<=0,E61>1000000000),"",E61/C61/E55) -> 0.01555798502 | E61: 52.73691491 | F61: =IFERROR(IF(D61<D69,D69/D61,D61/D69),"") -> 2.202070647 | G61: =IFERROR(D61/IF((C61*E55)<1500,1500,C61*E55)^0.25*62.2333,"") -> 0.1268924659 | H61: 0.004079584624 | I61: 4 + ZZ | J61: =IF(OR(L61<=0,L61>1000000000),"",1/(HYPGEOMDIST(4,11,6,45)*HYPGEOMDIST(1,7,1,39))/L54) -> 245.1229947 | K61: =IF(OR(L61<=0,L61>1000000000),"",L61/J61/L55) -> 0.01761045639 | L61: 43.16727807 | M61: =IFERROR(IF(K61<K69,K69/K61,K61/K69),"") -> 1.943319571 | N61: =IFERROR(K61/IF((J61*L55)<1500,1500,J61*L55)^0.25*62.2333,"") -> 0.1557569478 | O61: 0.006582186957 | P61: 4 + ZZ | Q61: =IF(OR(S61<=0,S61>1000000000),"",1/(HYPGEOMDIST(4,12,6,45)*HYPGEOMDIST(1,8,1,39))/S54) -> 151.9251894 | R61: =IF(OR(S61<=0,S61>1000000000),"",S61/Q61/S55) -> 0.01968982301 | S61: 53.84484162 | T61: =IFERROR(IF(R61<R69,R69/R61,R61/R69),"") -> 1.74280333 | U61: =IFERROR(R61/IF((Q61*S55)<1500,1500,Q61*S55)^0.25*62.2333,"") -> 0.1694490233
A62: 0.01298049653 | B62: 4 | C62: =IF(OR(E62<=0,E62>1000000000),"",1/(HYPGEOMDIST(4,10,6,45)*HYPGEOMDIST(0,6,1,39))/E54) -> 77.03865546 | D62: =IF(OR(E62<=0,E62>1000000000),"",E62/C62/E55) -> 0.04694772878 | E62: 28.93431922 | F62: =IFERROR(IF(D62<D69,D69/D62,D62/D69),"") -> 1.370345222 | G62: =IFERROR(D62/IF((C62*E55)<1500,1500,C62*E55)^0.25*62.2333,"") -> 0.4694773049 | H62: 0.01864952971 | I62: 4 | J62: =IF(OR(L62<=0,L62>1000000000),"",1/(HYPGEOMDIST(4,11,6,45)*HYPGEOMDIST(0,7,1,39))/L54) -> 53.62065508 | K62: =IF(OR(L62<=0,L62>1000000000),"",L62/J62/L55) -> 0.04678891694 | L62: 25.08852377 | M62: =IFERROR(IF(K62<K69,K69/K62,K62/K69),"") -> 1.367187745 | N62: =IFERROR(K62/IF((J62*L55)<1500,1500,J62*L55)^0.25*62.2333,"") -> 0.4678891864 | O62: 0.02550597446 | P62: 4 | Q62: =IF(OR(S62<=0,S62>1000000000),"",1/(HYPGEOMDIST(4,12,6,45)*HYPGEOMDIST(0,8,1,39))/S54) -> 39.20650049 | R62: =IF(OR(S62<=0,S62>1000000000),"",S62/Q62/S55) -> 0.04635229417 | S62: 32.71160239 | T62: =IFERROR(IF(R62<R69,R69/R62,R62/R69),"") -> 1.350768862 | U62: =IFERROR(R62/IF((Q62*S55)<1500,1500,Q62*S55)^0.25*62.2333,"") -> 0.4635229586
A63: 0.01730732871 | B63: 3 + ZZ | C63: =IF(OR(E63<=0,E63>1000000000),"",1/(HYPGEOMDIST(3,10,6,45)*HYPGEOMDIST(1,7,1,39))/E54) -> 57.7789916 | D63: =IF(OR(E63<=0,E63>1000000000),"",E63/C63/E55) -> 0.01889060057 | E63: 8.731838813 | F63: =IFERROR(IF(D63<D69,D69/D63,D63/D69),"") -> 1.813588828 | G63: =IFERROR(D63/IF((C63*E55)<1500,1500,C63*E55)^0.25*62.2333,"") -> 0.1889060126 | H63: 0.02486603961 | I63: 3 + ZZ | J63: =IF(OR(L63<=0,L63>1000000000),"",1/(HYPGEOMDIST(3,11,6,45)*HYPGEOMDIST(1,8,1,39))/L54) -> 40.21549131 | K63: =IF(OR(L63<=0,L63>1000000000),"",L63/J63/L55) -> 0.01910704197 | L63: 7.683990802 | M63: =IFERROR(IF(K63<K69,K69/K63,K63/K69),"") -> 1.791106368 | N63: =IFERROR(K63/IF((J63*L55)<1500,1500,J63*L55)^0.25*62.2333,"") -> 0.1910704266 | O63: 0.03400796594 | P63: 3 + ZZ | Q63: =IF(OR(S63<=0,S63>1000000000),"",1/(HYPGEOMDIST(3,12,6,45)*HYPGEOMDIST(1,9,1,39))/S54) -> 29.40487537 | R63: =IF(OR(S63<=0,S63>1000000000),"",S63/Q63/S55) -> 0.01949908373 | S63: 10.32062628 | T63: =IFERROR(IF(R63<R69,R69/R63,R63/R69),"") -> 1.759851364 | U63: =IFERROR(R63/IF((Q63*S55)<1500,1500,Q63*S55)^0.25*62.2333,"") -> 0.1949908444
A64: 0.05109782762 | B64: 0 + ZZ | C64: =IF(OR(E64<=0,E64>1000000000),"",1/(HYPGEOMDIST(0,10,6,45)*HYPGEOMDIST(1,10,1,39))/E54) -> 19.57030361 | D64: =IF(OR(E64<=0,E64>1000000000),"",E64/C64/E55) -> 0.02491019096 | E64: 3.9 | F64: =IFERROR(IF(D64<D69,D69/D64,D64/D69),"") -> 1.375331976 | G64: =IFERROR(D64/IF((C64*E55)<1500,1500,C64*E55)^0.25*62.2333,"") -> 0.2491019187 | H64: 0.04657202003 | I64: 0 + ZZ | J64: =IF(OR(L64<=0,L64>1000000000),"",1/(HYPGEOMDIST(0,11,6,45)*HYPGEOMDIST(1,11,1,39))/L54) -> 21.47211994 | K64: =IF(OR(L64<=0,L64>1000000000),"",L64/J64/L55) -> 0.02061755914 | L64: 4.427027027 | M64: =IFERROR(IF(K64<K69,K69/K64,K64/K69),"") -> 1.659883419 | N64: =IFERROR(K64/IF((J64*L55)<1500,1500,J64*L55)^0.25*62.2333,"") -> 0.2061755989 | O64: 0.04184010355 | P64: 0 + ZZ | Q64: =IF(OR(S64<=0,S64>1000000000),"",1/(HYPGEOMDIST(0,12,6,45)*HYPGEOMDIST(1,12,1,39))/S54) -> 23.90051446 | R64: =IF(OR(S64<=0,S64>1000000000),"",S64/Q64/S55) -> 0.01702518035 | S64: 7.324390244 | T64: =IFERROR(IF(R64<R69,R69/R64,R64/R69),"") -> 2.015572723 | U64: =IFERROR(R64/IF((Q64*S55)<1500,1500,Q64*S55)^0.25*62.2333,"") -> 0.1702518097
A65: 0.05933941271 | B65: 2 + ZZ | C65: =IF(OR(E65<=0,E65>1000000000),"",1/(HYPGEOMDIST(2,10,6,45)*HYPGEOMDIST(1,8,1,39))/E54) -> 16.85220588 | D65: =IF(OR(E65<=0,E65>1000000000),"",E65/C65/E55) -> 0.004821327283 | E65: 0.65 | F65: =IFERROR(IF(D65<D69,D69/D65,D65/D69),"") -> 7.105881874 | G65: =IFERROR(D65/IF((C65*E55)<1500,1500,C65*E55)^0.25*62.2333,"") -> 0.04821327459 | H65: 0.07226692763 | I65: 2 + ZZ | J65: =IF(OR(L65<=0,L65>1000000000),"",1/(HYPGEOMDIST(2,11,6,45)*HYPGEOMDIST(1,9,1,39))/L54) -> 13.83758841 | K65: =IF(OR(L65<=0,L65>1000000000),"",L65/J65/L55) -> 0.00710950315 | L65: 0.9837837838 | M65: =IFERROR(IF(K65<K69,K69/K65,K65/K69),"") -> 4.813661915 | N65: =IFERROR(K65/IF((J65*L55)<1500,1500,J65*L55)^0.25*62.2333,"") -> 0.0710950341 | O65: 0.08501991486 | P65: 2 + ZZ | Q65: =IF(OR(S65<=0,S65>1000000000),"",1/(HYPGEOMDIST(2,12,6,45)*HYPGEOMDIST(1,10,1,39))/S54) -> 11.76195015 | R65: =IF(OR(S65<=0,S65>1000000000),"",S65/Q65/S55) -> 0.009435136892 | S65: 1.997560976 | T65: =IFERROR(IF(R65<R69,R69/R65,R65/R69),"") -> 3.636989002 | U65: =IFERROR(R65/IF((Q65*S55)<1500,1500,Q65*S55)^0.25*62.2333,"") -> 0.09435137237
A66: 0.07911921695 | B66: 3 | C66: =IF(OR(E66<=0,E66>1000000000),"",1/(HYPGEOMDIST(3,10,6,45)*HYPGEOMDIST(0,7,1,39))/E54) -> 12.63915441 | D66: =IF(OR(E66<=0,E66>1000000000),"",E66/C66/E55) -> 0.04568569306 | E66: 4.619428232 | F66: =IFERROR(IF(D66<D69,D69/D66,D66/D69),"") -> 1.333507985 | G66: =IFERROR(D66/IF((C66*E55)<1500,1500,C66*E55)^0.25*62.2333,"") -> 0.4568569473 | H66: 0.0963559035 | I66: 3 | J66: =IF(OR(L66<=0,L66>1000000000),"",1/(HYPGEOMDIST(3,11,6,45)*HYPGEOMDIST(0,8,1,39))/L54) -> 10.37819131 | K66: =IF(OR(L66<=0,L66>1000000000),"",L66/J66/L55) -> 0.04042072562 | L66: 4.194940232 | M66: =IFERROR(IF(K66<K69,K69/K66,K66/K69),"") -> 1.181107072 | N66: =IFERROR(K66/IF((J66*L55)<1500,1500,J66*L55)^0.25*62.2333,"") -> 0.404207271 | O66: 0.09862310123 | P66: 1 + ZZ | Q66: =IF(OR(S66<=0,S66>1000000000),"",1/(HYPGEOMDIST(1,12,6,45)*HYPGEOMDIST(1,11,1,39))/S54) -> 10.1396122 | R66: =IF(OR(S66<=0,S66>1000000000),"",S66/Q66/S55) -> 0.02188951759 | S66: 3.995121951 | T66: =IFERROR(IF(R66<R69,R69/R66,R66/R69),"") -> 1.567667673 | U66: =IFERROR(R66/IF((Q66*S55)<1500,1500,Q66*S55)^0.25*62.2333,"") -> 0.2188951839
A67: 0.09197608971 | B67: 1 + ZZ | C67: =IF(OR(E67<=0,E67>1000000000),"",1/(HYPGEOMDIST(1,10,6,45)*HYPGEOMDIST(1,9,1,39))/E54) -> 10.87239089 | D67: =IF(OR(E67<=0,E67>1000000000),"",E67/C67/E55) -> 0.01992815277 | E67: 1.733333333 | F67: =IFERROR(IF(D67<D69,D69/D67,D67/D69),"") -> 1.719164969 | G67: =IFERROR(D67/IF((C67*E55)<1500,1500,C67*E55)^0.25*62.2333,"") -> 0.199281535 | H67: 0.0963559035 | I67: 1 + ZZ | J67: =IF(OR(L67<=0,L67>1000000000),"",1/(HYPGEOMDIST(1,11,6,45)*HYPGEOMDIST(1,10,1,39))/L54) -> 10.37819131 | K67: =IF(OR(L67<=0,L67>1000000000),"",L67/J67/L55) -> 0.02132850945 | L67: 2.213513514 | M67: =IFERROR(IF(K67<K69,K69/K67,K67/K69),"") -> 1.604553972 | N67: =IFERROR(K67/IF((J67*L55)<1500,1500,J67*L55)^0.25*62.2333,"") -> 0.2132851023 | O67: 0.1133598865 | P67: 3 | Q67: =IF(OR(S67<=0,S67>1000000000),"",1/(HYPGEOMDIST(3,12,6,45)*HYPGEOMDIST(0,9,1,39))/S54) -> 8.82146261 | R67: =IF(OR(S67<=0,S67>1000000000),"",S67/Q67/S55) -> 0.03576200019 | S67: 5.678516656 | T67: =IFERROR(IF(R67<R69,R69/R67,R67/R69),"") -> 1.042153299 | U67: =IFERROR(R67/IF((Q67*S55)<1500,1500,Q67*S55)^0.25*62.2333,"") -> 0.357620015
A68: =IF(SUM(A57:A67)=0,"",SUM(A57:A67)) -> 0.31528911 | B68: Gesamt | C68: =IFERROR(1/A68,"") -> 3.171692166 | D68: =IF(SUM(D57:D67)=0,"",SUM(D57:D67)) -> 0.3768576036 | E68: =IFERROR(E55*D68,"") -> 3.014860829 | F68: =IFERROR(AVERAGE(F57:F67),"") -> 2.317270051 | G68: =IF(SUM(G57:G67)=0,"",SUM(G57:G67)) -> 2.372562545 | H68: =IF(SUM(H57:H67)=0,"",SUM(H57:H67)) -> 0.361131161 | I68: Gesamt | J68: =IFERROR(1/H68,"") -> 2.769077022 | K68: =IF(SUM(K57:K67)=0,"",SUM(K57:K67)) -> 0.37645019 | L68: =IFERROR(L55*K68,"") -> 3.7645019 | M68: =IFERROR(AVERAGE(M57:M67),"") -> 2.029717087 | N68: =IF(SUM(N57:N67)=0,"",SUM(N57:N67)) -> 2.437061427 | O68: =IF(SUM(O57:O67)=0,"",SUM(O57:O67)) -> 0.4082613926 | P68: Gesamt | Q68: =IFERROR(1/O68,"") -> 2.449411132 | R68: =IF(SUM(R57:R67)=0,"",SUM(R57:R67)) -> 0.3774703802 | S68: =IFERROR(S55*R68,"") -> 6.794466844 | T68: =IFERROR(AVERAGE(T57:T67),"") -> 1.874139486 | U68: =IF(SUM(U57:U67)=0,"",SUM(U57:U67)) -> 2.418608683
D69: =AVERAGE(D57:D67) -> 0.03425978215 | K69: =AVERAGE(K57:K67) -> 0.03422274455 | R69: =AVERAGE(R57:R67) -> 0.03431548911
B71: SuperLotto L (210 Tipps) ⁵ | E71: 1 | F71: vs. | I71: SuperLotto XL (924 Tipps) ⁵ | L71: 1 | M71: vs. | P71: SuperLotto XXL (1.716 Tipps) ⁵ | S71: 1
B72: Vollsystem 1000 / 63 Anteile | E72: =E71*5 -> 5 | I72: Vollsystem 1200 / 126 Anteile | L72: =L71*11 -> 11 | P72: Vollsystem 1300 / 117 Anteile | S72: =S71*22 -> 22
B73: Richtige | C73: =IF(E71=1,"Chancen 1:","Ø Gewinne 1:") -> Chancen 1: | D73: Ø AQ | E73: (Ø) Gewinn | I73: Richtige | J73: =IF(L71=1,"Chancen 1:","Ø Gewinne 1:") -> Chancen 1: | K73: Ø AQ | L73: (Ø) Gewinn | P73: Richtige | Q73: =IF(S71=1,"Chancen 1:","Ø Gewinne 1:") -> Chancen 1: | R73: Ø AQ | S73: (Ø) Gewinn
A74: =IFERROR(IF(OR(E74<=0,E74>1000000000),0,1/C74),"") -> 1.606129943e-08 | B74: 6 + GZ | C74: =IF(OR(E74<=0,E74>1000000000),"",1/(HYPGEOMDIST(6,10,6,90)*HYPGEOMDIST(1,4,1,84))/E71) -> 62261463 | D74: =IF(OR(E74<=0,E74>1000000000),"",E74/C74/E72) -> 0.002732221369 | E74: 850560.4984 | F74: =IFERROR(IF(D74<D83,D83/D74,D74/D83),"") -> 16.41837128 | G74: =IFERROR(D74/IF((C74*E72)<1500,1500,C74*E72)^0.25*62.2333,"") -> 0.001280092588 | H74: =IFERROR(IF(OR(L74<=0,L74>1000000000),0,1/J74),"") -> 1.060045762e-07 | I74: 6 + GZ | J74: =IF(OR(L74<=0,L74>1000000000),"",1/(HYPGEOMDIST(6,12,6,90)*HYPGEOMDIST(1,6,1,84))/L71) -> 9433555 | K74: =IF(OR(L74<=0,L74>1000000000),"",L74/J74/L72) -> 0.004119923182 | L74: 427520.7413 | M74: =IFERROR(IF(K74<K83,K83/K74,K74/K83),"") -> 10.88821875 | N74: =IFERROR(K74/IF((J74*L72)<1500,1500,J74*L72)^0.25*62.2333,"") -> 0.002540358043 | O74: =IFERROR(IF(OR(S74<=0,S74>1000000000),0,1/Q74),"") -> 2.296765818e-07 | P74: 6 + GZ | Q74: =IF(OR(S74<=0,S74>1000000000),"",1/(HYPGEOMDIST(6,13,6,90)*HYPGEOMDIST(1,7,1,84))/S71) -> 4353948.462 | R74: =IF(OR(S74<=0,S74>1000000000),"",S74/Q74/S72) -> 0.004820034407 | S74: 461695.9906 | T74: =IFERROR(IF(R74<R83,R83/R74,R74/R83),"") -> 9.306702208 | U74: =IFERROR(R74/IF((Q74*S72)<1500,1500,Q74*S72)^0.25*62.2333,"") -> 0.003032120647
A75: 3.212259885e-07 | B75: 6 | C75: =IF(OR(E75<=0,E75>1000000000),"",1/(HYPGEOMDIST(6,10,6,90)*HYPGEOMDIST(0,4,1,84))/E71) -> 3113073.15 | D75: =IF(OR(E75<=0,E75>1000000000),"",E75/C75/E72) -> 0.05354308113 | E75: 833417.6412 | F75: =IFERROR(IF(D75<D83,D83/D75,D75/D83),"") -> 1.193596132 | G75: =IFERROR(D75/IF((C75*E72)<1500,1500,C75*E72)^0.25*62.2333,"") -> 0.05305011835 | H75: 1.378059491e-06 | I75: 6 | J75: =IF(OR(L75<=0,L75>1000000000),"",1/(HYPGEOMDIST(6,12,6,90)*HYPGEOMDIST(0,6,1,84))/L71) -> 725658.0769 | K75: =IF(OR(L75<=0,L75>1000000000),"",L75/J75/L72) -> 0.05248518877 | L75: 418949.3127 | M75: =IFERROR(IF(K75<K83,K83/K75,K75/K83),"") -> 1.170013324 | N75: =IFERROR(K75/IF((J75*L72)<1500,1500,J75*L72)^0.25*62.2333,"") -> 0.06145092358 | O75: 2.5264424e-06 | P75: 6 | Q75: =IF(OR(S75<=0,S75>1000000000),"",1/(HYPGEOMDIST(6,13,6,90)*HYPGEOMDIST(0,7,1,84))/S71) -> 395813.4965 | R75: =IF(OR(S75<=0,S75>1000000000),"",S75/Q75/S72) -> 0.05196033271 | S75: 452465.2213 | T75: =IFERROR(IF(R75<R83,R83/R75,R75/R83),"") -> 1.158313098 | U75: =IFERROR(R75/IF((Q75*S72)<1500,1500,Q75*S72)^0.25*62.2333,"") -> 0.05952733419
A76: 1.927355931e-06 | B76: 5 + GZ | C76: =IF(OR(E76<=0,E76>1000000000),"",1/(HYPGEOMDIST(5,10,6,90)*HYPGEOMDIST(1,5,1,84))/E71) -> 518845.525 | D76: =IF(OR(E76<=0,E76>1000000000),"",E76/C76/E72) -> 0.001805771895 | E76: 4684.583333 | F76: =IFERROR(IF(D76<D83,D83/D76,D76/D83),"") -> 24.84180033 | G76: =IFERROR(D76/IF((C76*E72)<1500,1500,C76*E72)^0.25*62.2333,"") -> 0.002800165497 | H76: 8.268356945e-06 | I76: 5 + GZ | J76: =IF(OR(L76<=0,L76>1000000000),"",1/(HYPGEOMDIST(5,12,6,90)*HYPGEOMDIST(1,7,1,84))/L71) -> 120943.0128 | K76: =IF(OR(L76<=0,L76>1000000000),"",L76/J76/L72) -> 0.002123486768 | L76: 2825.029762 | M76: =IFERROR(IF(K76<K83,K83/K76,K76/K83),"") -> 21.1249844 | N76: =IFERROR(K76/IF((J76*L72)<1500,1500,J76*L72)^0.25*62.2333,"") -> 0.003891159408 | O76: 1.51586544e-05 | P76: 5 + GZ | Q76: =IF(OR(S76<=0,S76>1000000000),"",1/(HYPGEOMDIST(5,13,6,90)*HYPGEOMDIST(1,8,1,84))/S71) -> 65968.91608 | R76: =IF(OR(S76<=0,S76>1000000000),"",S76/Q76/S72) -> 0.002302419395 | S76: 3341.538462 | T76: =IFERROR(IF(R76<R83,R83/R76,R76/R83),"") -> 19.48325529 | U76: =IFERROR(R76/IF((Q76*S72)<1500,1500,Q76*S72)^0.25*62.2333,"") -> 0.004128257308
A77: 3.045222371e-05 | B77: 5 | C77: =IF(OR(E77<=0,E77>1000000000),"",1/(HYPGEOMDIST(5,10,6,90)*HYPGEOMDIST(0,5,1,84))/E71) -> 32838.32437 | D77: =IF(OR(E77<=0,E77>1000000000),"",E77/C77/E72) -> 0.01112992524 | E77: 1827.440476 | F77: =IFERROR(IF(D77<D83,D83/D77,D77/D83),"") -> 4.030451587 | G77: =IFERROR(D77/IF((C77*E72)<1500,1500,C77*E72)^0.25*62.2333,"") -> 0.03440941821 | H77: 9.095192639e-05 | I77: 5 | J77: =IF(OR(L77<=0,L77>1000000000),"",1/(HYPGEOMDIST(5,12,6,90)*HYPGEOMDIST(0,7,1,84))/L71) -> 10994.81935 | K77: =IF(OR(L77<=0,L77>1000000000),"",L77/J77/L72) -> 0.01154641596 | L77: 1396.458333 | M77: =IFERROR(IF(K77<K83,K83/K77,K77/K83),"") -> 3.885069186 | N77: =IFERROR(K77/IF((J77*L72)<1500,1500,J77*L72)^0.25*62.2333,"") -> 0.0385322912 | O77: 0.0001440072168 | P77: 5 | Q77: =IF(OR(S77<=0,S77>1000000000),"",1/(HYPGEOMDIST(5,13,6,90)*HYPGEOMDIST(0,8,1,84))/S71) -> 6944.09643 | R77: =IF(OR(S77<=0,S77>1000000000),"",S77/Q77/S72) -> 0.01180254952 | S77: 1803.076923 | T77: =IFERROR(IF(R77<R83,R83/R77,R77/R83),"") -> 3.800757183 | U77: =IFERROR(R77/IF((Q77*S72)<1500,1500,Q77*S72)^0.25*62.2333,"") -> 0.03715258665
A78: 0.00106582783 | B78: 4 | C78: =IF(OR(E78<=0,E78>1000000000),"",1/HYPGEOMDIST(4,10,6,90)/E71) -> 938.2378391 | D78: =IF(OR(E78<=0,E78>1000000000),"",E78/C78/E72) -> 0.02027779741 | E78: 95.12698413 | F78: =IFERROR(IF(D78<D83,D83/D78,D78/D83),"") -> 2.212204015 | G78: =IFERROR(D78/IF((C78*E72)<1500,1500,C78*E72)^0.25*62.2333,"") -> 0.1524835075 | H78: 0.002387488068 | I78: 4 | J78: =IF(OR(L78<=0,L78>1000000000),"",1/HYPGEOMDIST(4,12,6,90)/L71) -> 418.8502609 | K78: =IF(OR(L78<=0,L78>1000000000),"",L78/J78/L72) -> 0.02380253256 | L78: 109.6666667 | M78: =IFERROR(IF(K78<K83,K83/K78,K78/K83),"") -> 1.884615629 | N78: =IFERROR(K78/IF((J78*L72)<1500,1500,J78*L72)^0.25*62.2333,"") -> 0.1797972851 | O78: 0.003360168392 | P78: 4 | Q78: =IF(OR(S78<=0,S78>1000000000),"",1/HYPGEOMDIST(4,13,6,90)/S71) -> 297.6041327 | R78: =IF(OR(S78<=0,S78>1000000000),"",S78/Q78/S72) -> 0.02567513284 | S78: 168.1025641 | T78: =IFERROR(IF(R78<R83,R83/R78,R78/R83),"") -> 1.747162328 | U78: =IFERROR(R78/IF((Q78*S72)<1500,1500,Q78*S72)^0.25*62.2333,"") -> 0.177631556
A79: 0.01583515633 | B79: 3 | C79: =IF(OR(E79<=0,E79>1000000000),"",1/HYPGEOMDIST(3,10,6,90)/E71) -> 63.15062378 | D79: =IF(OR(E79<=0,E79>1000000000),"",E79/C79/E72) -> 0.05955778242 | E79: 18.80555556 | F79: =IFERROR(IF(D79<D83,D83/D79,D79/D83),"") -> 1.3276774 | G79: =IFERROR(D79/IF((C79*E72)<1500,1500,C79*E72)^0.25*62.2333,"") -> 0.595577846 | H79: 0.02688134713 | I79: 3 | J79: =IF(OR(L79<=0,L79>1000000000),"",1/HYPGEOMDIST(3,12,6,90)/L71) -> 37.20051659 | K79: =IF(OR(L79<=0,L79>1000000000),"",L79/J79/L72) -> 0.06455596244 | L79: 26.41666667 | M79: =IFERROR(IF(K79<K83,K83/K79,K79/K83),"") -> 1.439098114 | N79: =IFERROR(K79/IF((J79*L72)<1500,1500,J79*L72)^0.25*62.2333,"") -> 0.6455596479 | O79: 0.03360168392 | P79: 3 | Q79: =IF(OR(S79<=0,S79>1000000000),"",1/HYPGEOMDIST(3,13,6,90)/S71) -> 29.76041327 | R79: =IF(OR(S79<=0,S79>1000000000),"",S79/Q79/S72) -> 0.06712504223 | S79: 43.94871795 | T79: =IFERROR(IF(R79<R83,R83/R79,R79/R83),"") -> 1.496368702 | U79: =IFERROR(R79/IF((Q79*S72)<1500,1500,Q79*S72)^0.25*62.2333,"") -> 0.6712504468
A80: 0.1143100348 | B80: 2 | C80: =IF(OR(E80<=0,E80>1000000000),"",1/HYPGEOMDIST(2,10,6,90)/E71) -> 8.74813836 | D80: =IF(OR(E80<=0,E80>1000000000),"",E80/C80/E72) -> 0.09398825081 | E80: 4.111111111 | F80: =IFERROR(IF(D80<D83,D83/D80,D80/D83),"") -> 2.095210255 | G80: =IFERROR(D80/IF((C80*E72)<1500,1500,C80*E72)^0.25*62.2333,"") -> 0.9398825424 | H80: 0.1512075776 | I80: 2 | J80: =IF(OR(L80<=0,L80>1000000000),"",1/HYPGEOMDIST(2,12,6,90)/L71) -> 6.613425171 | K80: =IF(OR(L80<=0,L80>1000000000),"",L80/J80/L72) -> 0.09851402785 | L80: 7.166666667 | M80: =IFERROR(IF(K80<K83,K83/K80,K80/K83),"") -> 2.19610004 | N80: =IFERROR(K80/IF((J80*L72)<1500,1500,J80*L72)^0.25*62.2333,"") -> 0.9851403145 | O80: 0.1695357689 | P80: 2 | Q80: =IF(OR(S80<=0,S80>1000000000),"",1/HYPGEOMDIST(2,13,6,90)/S71) -> 5.898460288 | R80: =IF(OR(S80<=0,S80>1000000000),"",S80/Q80/S72) -> 0.09998263292 | S80: 12.97435897 | T80: =IFERROR(IF(R80<R83,R83/R80,R80/R83),"") -> 2.228838562 | U80: =IFERROR(R80/IF((Q80*S72)<1500,1500,Q80*S72)^0.25*62.2333,"") -> 0.9998263657
A81: 0.3861138952 | B81: 1 | C81: =IF(OR(E81<=0,E81>1000000000),"",1/HYPGEOMDIST(1,10,6,90)/E71) -> 2.589909383 | D81: =IF(OR(E81<=0,E81>1000000000),"",E81/C81/E72) -> 0.1158341686 | E81: 1.5 | F81: =IFERROR(IF(D81<D83,D83/D81,D81/D83),"") -> 2.582205071 | G81: =IFERROR(D81/IF((C81*E72)<1500,1500,C81*E72)^0.25*62.2333,"") -> 1.158341728 | H81: 0.4068858453 | I81: 1 | J81: =IF(OR(L81<=0,L81>1000000000),"",1/HYPGEOMDIST(1,12,6,90)/L71) -> 2.457691787 | K81: =IF(OR(L81<=0,L81>1000000000),"",L81/J81/L72) -> 0.1017214613 | L81: 2.75 | M81: =IFERROR(IF(K81<K83,K83/K81,K81/K83),"") -> 2.267600972 | N81: =IFERROR(K81/IF((J81*L72)<1500,1500,J81*L72)^0.25*62.2333,"") -> 1.01721465 | O81: 0.4125370376 | P81: 1 | Q81: =IF(OR(S81<=0,S81>1000000000),"",1/HYPGEOMDIST(1,13,6,90)/S71) -> 2.424024776 | R81: =IF(OR(S81<=0,S81>1000000000),"",S81/Q81/S72) -> 0.09520085482 | S81: 5.076923077 | T81: =IFERROR(IF(R81<R83,R83/R81,R81/R83),"") -> 2.122241935 | U81: =IFERROR(R81/IF((Q81*S72)<1500,1500,Q81*S72)^0.25*62.2333,"") -> 0.952008583
A82: =IF(SUM(A74:A81)=0,"",SUM(A74:A81)) -> 0.517357631 | B82: Gesamt | C82: =IFERROR(1/A82,"") -> 1.932898908 | D82: =IF(SUM(D74:D81)=0,"",SUM(D74:D81)) -> 0.3588689988 | E82: =IFERROR(E72*D82,"") -> 1.794344994 | F82: =IFERROR(AVERAGE(F74:F81),"") -> 6.837689509 | G82: =IF(SUM(G74:G81)=0,"",SUM(G74:G81)) -> 2.937825418 | H82: =IF(SUM(H74:H81)=0,"",SUM(H74:H81)) -> 0.5874629624 | I82: Gesamt | J82: =IFERROR(1/H82,"") -> 1.702234973 | K82: =IF(SUM(K74:K81)=0,"",SUM(K74:K81)) -> 0.3588689988 | L82: =IFERROR(L72*K82,"") -> 3.947558987 | M82: =IFERROR(AVERAGE(M74:M81),"") -> 5.606962552 | N82: =IF(SUM(N74:N81)=0,"",SUM(N74:N81)) -> 2.93412663 | O82: =IF(SUM(O74:O81)=0,"",SUM(O74:O81)) -> 0.6191965807 | P82: Gesamt | Q82: =IFERROR(1/O82,"") -> 1.614995998 | R82: =IF(SUM(R74:R81)=0,"",SUM(R74:R81)) -> 0.3588689988 | S82: =IFERROR(S72*R82,"") -> 7.895117974 | T82: =IFERROR(AVERAGE(T74:T81),"") -> 5.167954913 | U82: =IF(SUM(U74:U81)=0,"",SUM(U74:U81)) -> 2.90455725
D83: =AVERAGE(D74:D81) -> 0.04485862486 | K83: =AVERAGE(K74:K81) -> 0.04485862486 | R83: =AVERAGE(R74:R81) -> 0.04485862486
B85: PowerBall L (462 Tipps) ⁶ | E85: 1 | F85: vs. | I85: PowerBall XL (792 Tipps) ⁶ | L85: 1 | M85: vs. | P85: PowerBall XXL (2.002 Tipps) ⁶ | S85: 1
B86: System 11-1 / 154 Anteile | E86: =E85*9 -> 9 | I86: System 12-1 / 132 Anteile | L86: =L85*18 -> 18 | P86: System 14-1 / 182 Anteile | S86: =S85*33 -> 33
B87: Richtige | C87: =IF(E85=1,"Chancen 1:","Ø Gewinne 1:") -> Chancen 1: | D87: Ø AQ | E87: (Ø) Gewinn | I87: Richtige | J87: =IF(L85=1,"Chancen 1:","Ø Gewinne 1:") -> Chancen 1: | K87: Ø AQ | L87: (Ø) Gewinn | P87: Richtige | Q87: =IF(S85=1,"Chancen 1:","Ø Gewinne 1:") -> Chancen 1: | R87: Ø AQ | S87: (Ø) Gewinn
A88: =IFERROR(IF(OR(E88<=0,E88>1000000000),0,1/C88),"") -> 1.58110159e-06 | B88: 5 + PB | C88: =IF(OR(E88<=0,E88>1000000000),"",1/(HYPGEOMDIST(5,11,5,69)*HYPGEOMDIST(1,1,1,26))/E85) -> 632470.4286 | D88: =IF(OR(E88<=0,E88>1000000000),"",E88/C88/E86) -> 0.06463056751 | E88: 367892.3046 | F88: =IFERROR(IF(D88<D98,D98/D88,D88/D98),"") -> 3.816757593 | G88: =IFERROR(D88/IF((C88*E86)<1500,1500,C88*E86)^0.25*62.2333,"") -> 0.08234554657 | H88: =IFERROR(IF(OR(L88<=0,L88>1000000000),0,1/J88),"") -> 2.710459868e-06 | I88: 5 + PB | J88: =IF(OR(L88<=0,L88>1000000000),"",1/(HYPGEOMDIST(5,12,5,69)*HYPGEOMDIST(1,1,1,26))/L85) -> 368941.0833 | K88: =IF(OR(L88<=0,L88>1000000000),"",L88/J88/L86) -> 0.06481595339 | L88: 430438.8251 | M88: =IFERROR(IF(K88<K98,K98/K88,K88/K98),"") -> 3.827705555 | N88: =IFERROR(K88/IF((J88*L86)<1500,1500,J88*L86)^0.25*62.2333,"") -> 0.07945978089 | O88: =IFERROR(IF(OR(S88<=0,S88>1000000000),0,1/Q88),"") -> 6.851440222e-06 | P88: 5 + PB | Q88: =IF(OR(S88<=0,S88>1000000000),"",1/(HYPGEOMDIST(5,14,5,69)*HYPGEOMDIST(1,1,1,26))/S85) -> 145954.7143 | R88: =IF(OR(S88<=0,S88>1000000000),"",S88/Q88/S86) -> 0.06519317046 | S88: 314003.2687 | T88: =IFERROR(IF(R88<R98,R98/R88,R88/R98),"") -> 3.849982105 | U88: =IFERROR(R88/IF((Q88*S86)<1500,1500,Q88*S86)^0.25*62.2333,"") -> 0.08660479059
A89: 3.952753974e-05 | B89: 5 | C89: =IF(OR(E89<=0,E89>1000000000),"",1/(HYPGEOMDIST(5,11,5,69)*HYPGEOMDIST(0,1,1,26))/E85) -> 25298.81714 | D89: =IF(OR(E89<=0,E89>1000000000),"",E89/C89/E86) -> 0.01779737459 | E89: 4052.272727 | F89: =IFERROR(IF(D89<D98,D98/D89,D89/D98),"") -> 1.051023799 | G89: =IFERROR(D89/IF((C89*E86)<1500,1500,C89*E86)^0.25*62.2333,"") -> 0.05070410141 | H89: 6.77614967e-05 | I89: 5 | J89: =IF(OR(L89<=0,L89>1000000000),"",1/(HYPGEOMDIST(5,12,5,69)*HYPGEOMDIST(0,1,1,26))/L85) -> 14757.64333 | K89: =IF(OR(L89<=0,L89>1000000000),"",L89/J89/L86) -> 0.0178236122 | L89: 4734.621212 | M89: =IFERROR(IF(K89<K98,K98/K89,K89/K98),"") -> 1.052573261 | N89: =IFERROR(K89/IF((J89*L86)<1500,1500,J89*L86)^0.25*62.2333,"") -> 0.04885918026 | O89: 0.0001712860055 | P89: 5 | Q89: =IF(OR(S89<=0,S89>1000000000),"",1/(HYPGEOMDIST(5,14,5,69)*HYPGEOMDIST(0,1,1,26))/S85) -> 5838.188571 | R89: =IF(OR(S89<=0,S89>1000000000),"",S89/Q89/S86) -> 0.01788207646 | S89: 3445.164835 | T89: =IFERROR(IF(R89<R98,R98/R89,R89/R98),"") -> 1.056025867 | U89: =IFERROR(R89/IF((Q89*S86)<1500,1500,Q89*S86)^0.25*62.2333,"") -> 0.05311812828
A90: 6.550278014e-05 | B90: 4 + PB | C90: =IF(OR(E90<=0,E90>1000000000),"",1/(HYPGEOMDIST(4,11,5,69)*HYPGEOMDIST(1,1,1,26))/E85) -> 15266.52759 | D90: =IF(OR(E90<=0,E90>1000000000),"",E90/C90/E86) -> 0.01075238061 | E90: 1477.363636 | F90: =IFERROR(IF(D90<D98,D98/D90,D90/D98),"") -> 1.574848431 | G90: =IFERROR(D90/IF((C90*E86)<1500,1500,C90*E86)^0.25*62.2333,"") -> 0.03475615821 | H90: 9.656013279e-05 | I90: 4 + PB | J90: =IF(OR(L90<=0,L90>1000000000),"",1/(HYPGEOMDIST(4,12,5,69)*HYPGEOMDIST(1,1,1,26))/L85) -> 10356.24094 | K90: =IF(OR(L90<=0,L90>1000000000),"",L90/J90/L86) -> 0.01068403732 | L90: 1991.636364 | M90: =IFERROR(IF(K90<K98,K98/K90,K90/K98),"") -> 1.584922368 | N90: =IFERROR(K90/IF((J90*L86)<1500,1500,J90*L86)^0.25*62.2333,"") -> 0.03199923267 | O90: 0.0001884146061 | P90: 4 + PB | Q90: =IF(OR(S90<=0,S90>1000000000),"",1/(HYPGEOMDIST(4,14,5,69)*HYPGEOMDIST(1,1,1,26))/S85) -> 5307.444156 | R90: =IF(OR(S90<=0,S90>1000000000),"",S90/Q90/S86) -> 0.01058484772 | S90: 1853.89011 | T90: =IFERROR(IF(R90<R98,R98/R90,R90/R98),"") -> 1.599774525 | U90: =IFERROR(R90/IF((Q90*S86)<1500,1500,Q90*S86)^0.25*62.2333,"") -> 0.03220012827
A91: 0.000933414617 | B91: 3 + PB | C91: =IF(OR(E91<=0,E91>1000000000),"",1/(HYPGEOMDIST(3,11,5,69)*HYPGEOMDIST(1,1,1,26))/E85) -> 1071.335269 | D91: =IF(OR(E91<=0,E91>1000000000),"",E91/C91/E86) -> 0.003394234971 | E91: 32.72727273 | F91: =IFERROR(IF(D91<D98,D98/D91,D91/D98),"") -> 4.988861961 | G91: =IFERROR(D91/IF((C91*E86)<1500,1500,C91*E86)^0.25*62.2333,"") -> 0.02131683661 | H91: 0.001201637208 | I91: 3 + PB | J91: =IF(OR(L91<=0,L91>1000000000),"",1/(HYPGEOMDIST(3,12,5,69)*HYPGEOMDIST(1,1,1,26))/L85) -> 832.1979323 | K91: =IF(OR(L91<=0,L91>1000000000),"",L91/J91/L86) -> 0.003732357995 | L91: 55.90909091 | M91: =IFERROR(IF(K91<K98,K98/K91,K91/K98),"") -> 4.536909309 | N91: =IFERROR(K91/IF((J91*L86)<1500,1500,J91*L86)^0.25*62.2333,"") -> 0.02099574741 | O91: 0.00184988886 | P91: 3 + PB | Q91: =IF(OR(S91<=0,S91>1000000000),"",1/(HYPGEOMDIST(3,14,5,69)*HYPGEOMDIST(1,1,1,26))/S85) -> 540.5730159 | R91: =IF(OR(S91<=0,S91>1000000000),"",S91/Q91/S86) -> 0.004550184503 | S91: 81.17032967 | T91: =IFERROR(IF(R91<R98,R98/R91,R91/R98),"") -> 3.721468815 | U91: =IFERROR(R91/IF((Q91*S86)<1500,1500,Q91*S86)^0.25*62.2333,"") -> 0.02450246412
A92: 0.001637569504 | B92: 4 | C92: =IF(OR(E92<=0,E92>1000000000),"",1/(HYPGEOMDIST(4,11,5,69)*HYPGEOMDIST(0,1,1,26))/E85) -> 610.6611034 | D92: =IF(OR(E92<=0,E92>1000000000),"",E92/C92/E86) -> 0.001521781761 | E92: 8.363636364 | F92: =IFERROR(IF(D92<D98,D98/D92,D92/D98),"") -> 11.12733124 | G92: =IFERROR(D92/IF((C92*E86)<1500,1500,C92*E86)^0.25*62.2333,"") -> 0.01099928647 | H92: 0.00241400332 | I92: 4 | J92: =IF(OR(L92<=0,L92>1000000000),"",1/(HYPGEOMDIST(4,12,5,69)*HYPGEOMDIST(0,1,1,26))/L85) -> 414.2496374 | K92: =IF(OR(L92<=0,L92>1000000000),"",L92/J92/L86) -> 0.001609335547 | L92: 12 | M92: =IFERROR(IF(K92<K98,K98/K92,K92/K98),"") -> 10.52196341 | N92: =IFERROR(K92/IF((J92*L86)<1500,1500,J92*L86)^0.25*62.2333,"") -> 0.01077794031 | O92: 0.004710365152 | P92: 4 | Q92: =IF(OR(S92<=0,S92>1000000000),"",1/(HYPGEOMDIST(4,14,5,69)*HYPGEOMDIST(0,1,1,26))/S85) -> 212.2977662 | R92: =IF(OR(S92<=0,S92>1000000000),"",S92/Q92/S86) -> 0.001772465076 | S92: 12.41758242 | T92: =IFERROR(IF(R92<R98,R98/R92,R92/R98),"") -> 9.553570316 | U92: =IFERROR(R92/IF((Q92*S86)<1500,1500,Q92*S86)^0.25*62.2333,"") -> 0.01205690048
A93: 0.005807913173 | B93: 2 + PB | C93: =IF(OR(E93<=0,E93>1000000000),"",1/(HYPGEOMDIST(2,11,5,69)*HYPGEOMDIST(1,1,1,26))/E85) -> 172.1788826 | D93: =IF(OR(E93<=0,E93>1000000000),"",E93/C93/E86) -> 0.008799868443 | E93: 13.63636364 | F93: =IFERROR(IF(D93<D98,D98/D93,D93/D98),"") -> 1.924275328 | G93: =IFERROR(D93/IF((C93*E86)<1500,1500,C93*E86)^0.25*62.2333,"") -> 0.08728576279 | H93: 0.006609004645 | I93: 2 + PB | J93: =IF(OR(L93<=0,L93>1000000000),"",1/(HYPGEOMDIST(2,12,5,69)*HYPGEOMDIST(1,1,1,26))/L85) -> 151.308715 | K93: =IF(OR(L93<=0,L93>1000000000),"",L93/J93/L86) -> 0.009813370533 | L93: 26.72727273 | M93: =IFERROR(IF(K93<K98,K98/K93,K93/K98),"") -> 1.725540646 | N93: =IFERROR(K93/IF((J93*L86)<1500,1500,J93*L86)^0.25*62.2333,"") -> 0.08453896292 | O93: 0.008170342464 | P93: 2 + PB | Q93: =IF(OR(S93<=0,S93>1000000000),"",1/(HYPGEOMDIST(2,14,5,69)*HYPGEOMDIST(1,1,1,26))/S85) -> 122.3938904 | R93: =IF(OR(S93<=0,S93>1000000000),"",S93/Q93/S86) -> 0.01179162978 | S93: 47.62637363 | T93: =IFERROR(IF(R93<R98,R98/R93,R93/R98),"") -> 1.436049982 | U93: =IFERROR(R93/IF((Q93*S86)<1500,1500,Q93*S86)^0.25*62.2333,"") -> 0.0920509439
A94: 0.01568136557 | B94: 0 + PB | C94: =IF(OR(E94<=0,E94>1000000000),"",1/(HYPGEOMDIST(0,11,5,69)*HYPGEOMDIST(1,1,1,26))/E85) -> 63.7699565 | D94: =IF(OR(E94<=0,E94>1000000000),"",E94/C94/E86) -> 0.02090848742 | E94: 12 | F94: =IFERROR(IF(D94<D98,D98/D94,D94/D98),"") -> 1.23475054 | G94: =IFERROR(D94/IF((C94*E86)<1500,1500,C94*E86)^0.25*62.2333,"") -> 0.2090848818 | H94: 0.01432952371 | I94: 0 + PB | J94: =IF(OR(L94<=0,L94>1000000000),"",1/(HYPGEOMDIST(0,12,5,69)*HYPGEOMDIST(1,1,1,26))/L85) -> 69.78599013 | K94: =IF(OR(L94<=0,L94>1000000000),"",L94/J94/L86) -> 0.01910603161 | L94: 24 | M94: =IFERROR(IF(K94<K98,K98/K94,K94/K98),"") -> 1.128306528 | N94: =IFERROR(K94/IF((J94*L86)<1500,1500,J94*L86)^0.25*62.2333,"") -> 0.1910603231 | O94: 0.01190535616 | P94: 0 + PB | Q94: =IF(OR(S94<=0,S94>1000000000),"",1/(HYPGEOMDIST(0,14,5,69)*HYPGEOMDIST(1,1,1,26))/S85) -> 83.99580713 | R94: =IF(OR(S94<=0,S94>1000000000),"",S94/Q94/S86) -> 0.01587380822 | S94: 44 | T94: =IFERROR(IF(R94<R98,R98/R94,R94/R98),"") -> 1.066749044 | U94: =IFERROR(R94/IF((Q94*S86)<1500,1500,Q94*S86)^0.25*62.2333,"") -> 0.1361479394
A95: 0.01597176122 | B95: 1 + PB | C95: =IF(OR(E95<=0,E95>1000000000),"",1/(HYPGEOMDIST(1,11,5,69)*HYPGEOMDIST(1,1,1,26))/E85) -> 62.61050275 | D95: =IF(OR(E95<=0,E95>1000000000),"",E95/C95/E86) -> 0.02129568163 | E95: 12 | F95: =IFERROR(IF(D95<D98,D98/D95,D95/D98),"") -> 1.257616291 | G95: =IFERROR(D95/IF((C95*E86)<1500,1500,C95*E86)^0.25*62.2333,"") -> 0.2129568241 | H95: 0.01622210231 | I95: 1 + PB | J95: =IF(OR(L95<=0,L95>1000000000),"",1/(HYPGEOMDIST(1,12,5,69)*HYPGEOMDIST(1,1,1,26))/L85) -> 61.64429128 | K95: =IF(OR(L95<=0,L95>1000000000),"",L95/J95/L86) -> 0.02162946975 | L95: 24 | M95: =IFERROR(IF(K95<K98,K98/K95,K95/K98),"") -> 1.277328145 | N95: =IFERROR(K95/IF((J95*L86)<1500,1500,J95*L86)^0.25*62.2333,"") -> 0.2162947054 | O95: 0.01634068493 | P95: 1 + PB | Q95: =IF(OR(S95<=0,S95>1000000000),"",1/(HYPGEOMDIST(1,14,5,69)*HYPGEOMDIST(1,1,1,26))/S85) -> 61.19694519 | R95: =IF(OR(S95<=0,S95>1000000000),"",S95/Q95/S86) -> 0.0217875799 | S95: 44 | T95: =IFERROR(IF(R95<R98,R98/R95,R95/R98),"") -> 1.286665339 | U95: =IFERROR(R95/IF((Q95*S86)<1500,1500,Q95*S86)^0.25*62.2333,"") -> 0.2022650763
A96: 0.02333536543 | B96: 3 | C96: =IF(OR(E96<=0,E96>1000000000),"",1/(HYPGEOMDIST(3,11,5,69)*HYPGEOMDIST(0,1,1,26))/E85) -> 42.85341077 | D96: =IF(OR(E96<=0,E96>1000000000),"",E96/C96/E86) -> 0.003299950666 | E96: 1.272727273 | F96: =IFERROR(IF(D96<D98,D98/D96,D96/D98),"") -> 5.131400874 | G96: =IFERROR(D96/IF((C96*E86)<1500,1500,C96*E86)^0.25*62.2333,"") -> 0.03299950787 | H96: 0.0300409302 | I96: 3 | J96: =IF(OR(L96<=0,L96>1000000000),"",1/(HYPGEOMDIST(3,12,5,69)*HYPGEOMDIST(0,1,1,26))/L85) -> 33.28791729 | K96: =IF(OR(L96<=0,L96>1000000000),"",L96/J96/L86) -> 0.003186159264 | L96: 1.909090909 | M96: =IFERROR(IF(K96<K98,K98/K96,K96/K98),"") -> 5.314665191 | N96: =IFERROR(K96/IF((J96*L86)<1500,1500,J96*L86)^0.25*62.2333,"") -> 0.0318615938 | O96: 0.0462472215 | P96: 3 | Q96: =IF(OR(S96<=0,S96>1000000000),"",1/(HYPGEOMDIST(3,14,5,69)*HYPGEOMDIST(0,1,1,26))/S85) -> 21.62292063 | R96: =IF(OR(S96<=0,S96>1000000000),"",S96/Q96/S86) -> 0.002964565481 | S96: 2.115384615 | T96: =IFERROR(IF(R96<R98,R98/R96,R96/R98),"") -> 5.711922993 | U96: =IFERROR(R96/IF((Q96*S86)<1500,1500,Q96*S86)^0.25*62.2333,"") -> 0.02964565589
A97: =IF(SUM(A88:A96)=0,"",SUM(A88:A96)) -> 0.06347400093 | B97: Gesamt | C97: =IFERROR(1/A97,"") -> 15.75448192 | D97: =IF(SUM(D88:D96)=0,"",SUM(D88:D96)) -> 0.1524003276 | E97: =IFERROR(E86*D97,"") -> 1.371602948 | F97: =IFERROR(AVERAGE(F88:F96),"") -> 3.567429562 | G97: =IF(SUM(G88:G96)=0,"",SUM(G88:G96)) -> 0.7424489059 | H97: =IF(SUM(H88:H96)=0,"",SUM(H88:H96)) -> 0.07098423348 | I97: Gesamt | J97: =IFERROR(1/H97,"") -> 14.08763539 | K97: =IF(SUM(K88:K96)=0,"",SUM(K88:K96)) -> 0.1524003276 | L97: =IFERROR(L86*K97,"") -> 2.743205897 | M97: =IFERROR(AVERAGE(M88:M96),"") -> 3.441101601 | N97: =IF(SUM(N88:N96)=0,"",SUM(N88:N96)) -> 0.7158474667 | O97: =IF(SUM(O88:O96)=0,"",SUM(O88:O96)) -> 0.08959041112 | P97: Gesamt | Q97: =IFERROR(1/O97,"") -> 11.16190882 | R97: =IF(SUM(R88:R96)=0,"",SUM(R88:R96)) -> 0.1524003276 | S97: =IFERROR(S86*R97,"") -> 5.029210811 | T97: =IFERROR(AVERAGE(T88:T96),"") -> 3.253578776 | U97: =IF(SUM(U88:U96)=0,"",SUM(U88:U96)) -> 0.6685920272
D98: =AVERAGE(D88:D96) -> 0.01693336973 | K98: =AVERAGE(K88:K96) -> 0.01693336973 | R98: =AVERAGE(R88:R96) -> 0.01693336973
B100: MegaMillions L (462 Tipps) ⁶ | E100: 1 | F100: vs. | I100: MegaMillions XL (792 Tipps) ⁶ | L100: 1 | M100: vs. | P100: MegaMillions XXL (2.002 Tipps) ⁶ | S100: 1
B101: System 11-1 / 154 Anteile | E101: =E100*9 -> 9 | I101: System 12-1 / 132 Anteile | L101: =L100*18 -> 18 | P101: System 14-1 / 182 Anteile | S101: =S100*33 -> 33
B102: Richtige | C102: =IF(E100=1,"Chancen 1:","Ø Gewinne 1:") -> Chancen 1: | D102: Ø AQ | E102: (Ø) Gewinn | I102: Richtige | J102: =IF(L100=1,"Chancen 1:","Ø Gewinne 1:") -> Chancen 1: | K102: Ø AQ | L102: (Ø) Gewinn | P102: Richtige | Q102: =IF(S100=1,"Chancen 1:","Ø Gewinne 1:") -> Chancen 1: | R102: Ø AQ | S102: (Ø) Gewinn
A103: =IFERROR(IF(OR(E103<=0,E103>1000000000),0,1/C103),"") -> 1.526892392e-06 | B103: 5 + MB | C103: =IF(OR(E103<=0,E103>1000000000),"",1/(HYPGEOMDIST(5,11,5,70)*HYPGEOMDIST(1,1,1,25))/E100) -> 654925 | D103: =IF(OR(E103<=0,E103>1000000000),"",E103/C103/E101) -> 0.06417634403 | E103: 378276.229 | F103: =IFERROR(IF(D103<D113,D113/D103,D103/D113),"") -> 4.283008986 | G103: =IFERROR(D103/IF((C103*E101)<1500,1500,C103*E101)^0.25*62.2333,"") -> 0.08105676816 | H103: =IFERROR(IF(OR(L103<=0,L103>1000000000),0,1/J103),"") -> 2.617529815e-06 | I103: 5 + MB | J103: =IF(OR(L103<=0,L103>1000000000),"",1/(HYPGEOMDIST(5,12,5,70)*HYPGEOMDIST(1,1,1,25))/L100) -> 382039.5833 | K103: =IF(OR(L103<=0,L103>1000000000),"",L103/J103/L101) -> 0.06422584135 | L103: 441662.646 | M103: =IFERROR(IF(K103<K113,K113/K103,K103/K113),"") -> 4.286312344 | N103: =IFERROR(K103/IF((J103*L101)<1500,1500,J103*L101)^0.25*62.2333,"") -> 0.07805260745 | O103: =IFERROR(IF(OR(S103<=0,S103>1000000000),0,1/Q103),"") -> 6.6165337e-06 | P103: 5 + MB | Q103: =IF(OR(S103<=0,S103>1000000000),"",1/(HYPGEOMDIST(5,14,5,70)*HYPGEOMDIST(1,1,1,25))/S100) -> 151136.5385 | R103: =IF(OR(S103<=0,S103>1000000000),"",S103/Q103/S101) -> 0.06433482797 | S103: 320870.3257 | T103: =IFERROR(IF(R103<R113,R113/R103,R103/R113),"") -> 4.293585908 | U103: =IFERROR(R103/IF((Q103*S101)<1500,1500,Q103*S101)^0.25*62.2333,"") -> 0.08472237503
A104: 3.664541741e-05 | B104: 5 | C104: =IF(OR(E104<=0,E104>1000000000),"",1/(HYPGEOMDIST(5,11,5,70)*HYPGEOMDIST(0,1,1,25))/E100) -> 27288.54167 | D104: =IF(OR(E104<=0,E104>1000000000),"",E104/C104/E101) -> 0.01682886593 | E104: 4133.116883 | F104: =IFERROR(IF(D104<D113,D113/D104,D104/D113),"") -> 1.123126989 | G104: =IFERROR(D104/IF((C104*E101)<1500,1500,C104*E101)^0.25*62.2333,"") -> 0.04704592069 | H104: 6.282071557e-05 | I104: 5 | J104: =IF(OR(L104<=0,L104>1000000000),"",1/(HYPGEOMDIST(5,12,5,70)*HYPGEOMDIST(0,1,1,25))/L100) -> 15918.31597 | K104: =IF(OR(L104<=0,L104>1000000000),"",L104/J104/L101) -> 0.01691082899 | L104: 4845.454545 | M104: =IFERROR(IF(K104<K113,K113/K104,K104/K113),"") -> 1.12859705 | N104: =IFERROR(K104/IF((J104*L101)<1500,1500,J104*L101)^0.25*62.2333,"") -> 0.04548784074 | O104: 0.0001587968088 | P104: 5 | Q104: =IF(OR(S104<=0,S104>1000000000),"",1/(HYPGEOMDIST(5,14,5,70)*HYPGEOMDIST(0,1,1,25))/S100) -> 6297.355769 | R104: =IF(OR(S104<=0,S104>1000000000),"",S104/Q104/S101) -> 0.01708268701 | S104: 3550 | T104: =IFERROR(IF(R104<R113,R113/R104,R104/R113),"") -> 1.140066532 | U104: =IFERROR(R104/IF((Q104*S101)<1500,1500,Q104*S101)^0.25*62.2333,"") -> 0.04979216063
A105: 6.434760796e-05 | B105: 4 + MB | C105: =IF(OR(E105<=0,E105>1000000000),"",1/(HYPGEOMDIST(4,11,5,70)*HYPGEOMDIST(1,1,1,25))/E100) -> 15540.59322 | D105: =IF(OR(E105<=0,E105>1000000000),"",E105/C105/E101) -> 0.00292034144 | E105: 408.4545455 | F105: =IFERROR(IF(D105<D113,D113/D105,D105/D113),"") -> 5.130885888 | G105: =IFERROR(D105/IF((C105*E101)<1500,1500,C105*E101)^0.25*62.2333,"") -> 0.009397859247 | H105: 9.48854558e-05 | I105: 4 + MB | J105: =IF(OR(L105<=0,L105>1000000000),"",1/(HYPGEOMDIST(4,12,5,70)*HYPGEOMDIST(1,1,1,25))/L100) -> 10539.02299 | K105: =IF(OR(L105<=0,L105>1000000000),"",L105/J105/L101) -> 0.003058698161 | L105: 580.2424242 | M105: =IFERROR(IF(K105<K113,K113/K105,K105/K113),"") -> 4.89879612 | N105: =IFERROR(K105/IF((J105*L101)<1500,1500,J105*L101)^0.25*62.2333,"") -> 0.009120974433 | O105: 0.0001852629436 | P105: 4 + MB | Q105: =IF(OR(S105<=0,S105>1000000000),"",1/(HYPGEOMDIST(4,14,5,70)*HYPGEOMDIST(1,1,1,25))/S100) -> 5397.733516 | R105: =IF(OR(S105<=0,S105>1000000000),"",S105/Q105/S101) -> 0.003364222058 | S105: 599.2527473 | T105: =IFERROR(IF(R105<R113,R113/R105,R105/R113),"") -> 4.453908935 | U105: =IFERROR(R105/IF((Q105*S101)<1500,1500,Q105*S101)^0.25*62.2333,"") -> 0.01019121913
A106: 0.0009330403154 | B106: 3 + MB | C106: =IF(OR(E106<=0,E106>1000000000),"",1/(HYPGEOMDIST(3,11,5,70)*HYPGEOMDIST(1,1,1,25))/E100) -> 1071.76505 | D106: =IF(OR(E106<=0,E106>1000000000),"",E106/C106/E101) -> 0.005541693995 | E106: 53.45454545 | F106: =IFERROR(IF(D106<D113,D113/D106,D106/D113),"") -> 2.703855301 | G106: =IFERROR(D106/IF((C106*E101)<1500,1500,C106*E101)^0.25*62.2333,"") -> 0.03480004828 | H106: 0.00120188244 | I106: 3 + MB | J106: =IF(OR(L106<=0,L106>1000000000),"",1/(HYPGEOMDIST(3,12,5,70)*HYPGEOMDIST(1,1,1,25))/L100) -> 832.0281307 | K106: =IF(OR(L106<=0,L106>1000000000),"",L106/J106/L101) -> 0.005809098461 | L106: 87 | M106: =IFERROR(IF(K106<K113,K113/K106,K106/K113),"") -> 2.579391412 | N106: =IFERROR(K106/IF((J106*L101)<1500,1500,J106*L101)^0.25*62.2333,"") -> 0.0326797661 | O106: 0.001852629436 | P106: 3 + MB | Q106: =IF(OR(S106<=0,S106>1000000000),"",1/(HYPGEOMDIST(3,14,5,70)*HYPGEOMDIST(1,1,1,25))/S100) -> 539.7733516 | R106: =IF(OR(S106<=0,S106>1000000000),"",S106/Q106/S101) -> 0.006426520424 | S106: 114.4725275 | T106: =IFERROR(IF(R106<R113,R113/R106,R106/R113),"") -> 2.331578785 | U106: =IFERROR(R106/IF((Q106*S101)<1500,1500,Q106*S101)^0.25*62.2333,"") -> 0.03461922791
A107: 0.001544342591 | B107: 4 | C107: =IF(OR(E107<=0,E107>1000000000),"",1/(HYPGEOMDIST(4,11,5,70)*HYPGEOMDIST(0,1,1,25))/E100) -> 647.5247175 | D107: =IF(OR(E107<=0,E107>1000000000),"",E107/C107/E101) -> 0.004835820235 | E107: 28.18181818 | F107: =IFERROR(IF(D107<D113,D113/D107,D107/D113),"") -> 3.098530954 | G107: =IFERROR(D107/IF((C107*E101)<1500,1500,C107*E101)^0.25*62.2333,"") -> 0.03444437142 | H107: 0.002277250939 | I107: 4 | J107: =IF(OR(L107<=0,L107>1000000000),"",1/(HYPGEOMDIST(4,12,5,70)*HYPGEOMDIST(0,1,1,25))/L100) -> 439.1259579 | K107: =IF(OR(L107<=0,L107>1000000000),"",L107/J107/L101) -> 0.004907207411 | L107: 38.78787879 | M107: =IFERROR(IF(K107<K113,K113/K107,K107/K113),"") -> 3.053455342 | N107: =IFERROR(K107/IF((J107*L101)<1500,1500,J107*L101)^0.25*62.2333,"") -> 0.03238857504 | O107: 0.004446310646 | P107: 4 | Q107: =IF(OR(S107<=0,S107>1000000000),"",1/(HYPGEOMDIST(4,14,5,70)*HYPGEOMDIST(0,1,1,25))/S100) -> 224.9055632 | R107: =IF(OR(S107<=0,S107>1000000000),"",S107/Q107/S101) -> 0.005034117948 | S107: 37.36263736 | T107: =IFERROR(IF(R107<R113,R113/R107,R107/R113),"") -> 2.976477476 | U107: =IFERROR(R107/IF((Q107*S101)<1500,1500,Q107*S101)^0.25*62.2333,"") -> 0.03375341218
A108: 0.005909255331 | B108: 2 + MB | C108: =IF(OR(E108<=0,E108>1000000000),"",1/(HYPGEOMDIST(2,11,5,70)*HYPGEOMDIST(1,1,1,25))/E100) -> 169.2260605 | D108: =IF(OR(E108<=0,E108>1000000000),"",E108/C108/E101) -> 0.008953417168 | E108: 13.63636364 | F108: =IFERROR(IF(D108<D113,D113/D108,D108/D113),"") -> 1.673544123 | G108: =IFERROR(D108/IF((C108*E101)<1500,1500,C108*E101)^0.25*62.2333,"") -> 0.08919370663 | H108: 0.006730541665 | I108: 2 + MB | J108: =IF(OR(L108<=0,L108>1000000000),"",1/(HYPGEOMDIST(2,12,5,70)*HYPGEOMDIST(1,1,1,25))/L100) -> 148.5764519 | K108: =IF(OR(L108<=0,L108>1000000000),"",L108/J108/L101) -> 0.009585922978 | L108: 25.63636364 | M108: =IFERROR(IF(K108<K113,K113/K108,K108/K113),"") -> 1.563119036 | N108: =IFERROR(K108/IF((J108*L101)<1500,1500,J108*L101)^0.25*62.2333,"") -> 0.08295663814 | O108: 0.008336832462 | P108: 2 + MB | Q108: =IF(OR(S108<=0,S108>1000000000),"",1/(HYPGEOMDIST(2,14,5,70)*HYPGEOMDIST(1,1,1,25))/S100) -> 119.9496337 | R108: =IF(OR(S108<=0,S108>1000000000),"",S108/Q108/S101) -> 0.01074932244 | S108: 42.54945055 | T108: =IFERROR(IF(R108<R113,R113/R108,R108/R113),"") -> 1.39394262 | U108: =IFERROR(R108/IF((Q108*S101)<1500,1500,Q108*S101)^0.25*62.2333,"") -> 0.08433846735
A109: 0.01654591493 | B109: 0 + MB | C109: =IF(OR(E109<=0,E109>1000000000),"",1/(HYPGEOMDIST(0,11,5,70)*HYPGEOMDIST(1,1,1,25))/E100) -> 60.43787874 | D109: =IF(OR(E109<=0,E109>1000000000),"",E109/C109/E101) -> 0.01103060995 | E109: 6 | F109: =IFERROR(IF(D109<D113,D113/D109,D109/D113),"") -> 1.358396204 | G109: =IFERROR(D109/IF((C109*E101)<1500,1500,C109*E101)^0.25*62.2333,"") -> 0.1103061035 | H109: 0.01514371875 | I109: 0 + MB | J109: =IF(OR(L109<=0,L109>1000000000),"",1/(HYPGEOMDIST(0,12,5,70)*HYPGEOMDIST(1,1,1,25))/L100) -> 66.03397862 | K109: =IF(OR(L109<=0,L109>1000000000),"",L109/J109/L101) -> 0.0100958125 | L109: 12 | M109: =IFERROR(IF(K109<K113,K113/K109,K109/K113),"") -> 1.48417363 | N109: =IFERROR(K109/IF((J109*L101)<1500,1500,J109*L101)^0.25*62.2333,"") -> 0.1009581287 | O109: 0.0126243463 | P109: 0 + MB | Q109: =IF(OR(S109<=0,S109>1000000000),"",1/(HYPGEOMDIST(0,14,5,70)*HYPGEOMDIST(1,1,1,25))/S100) -> 79.21202225 | R109: =IF(OR(S109<=0,S109>1000000000),"",S109/Q109/S101) -> 0.008416230866 | S109: 22 | T109: =IFERROR(IF(R109<R113,R113/R109,R109/R113),"") -> 1.780362127 | U109: =IFERROR(R109/IF((Q109*S101)<1500,1500,Q109*S101)^0.25*62.2333,"") -> 0.07325111008
A110: 0.01654591493 | B110: 1 + MB | C110: =IF(OR(E110<=0,E110>1000000000),"",1/(HYPGEOMDIST(1,11,5,70)*HYPGEOMDIST(1,1,1,25))/E100) -> 60.43787874 | D110: =IF(OR(E110<=0,E110>1000000000),"",E110/C110/E101) -> 0.01604452357 | E110: 8.727272727 | F110: =IFERROR(IF(D110<D113,D113/D110,D110/D113),"") -> 1.070781448 | G110: =IFERROR(D110/IF((C110*E101)<1500,1500,C110*E101)^0.25*62.2333,"") -> 0.1604452415 | H110: 0.01682635416 | I110: 1 + MB | J110: =IF(OR(L110<=0,L110>1000000000),"",1/(HYPGEOMDIST(1,12,5,70)*HYPGEOMDIST(1,1,1,25))/L100) -> 59.43058076 | K110: =IF(OR(L110<=0,L110>1000000000),"",L110/J110/L101) -> 0.01589155671 | L110: 17 | M110: =IFERROR(IF(K110<K113,K113/K110,K110/K113),"") -> 1.060572727 | N110: =IFERROR(K110/IF((J110*L101)<1500,1500,J110*L101)^0.25*62.2333,"") -> 0.1589155729 | O110: 0.01699431233 | P110: 1 + MB | Q110: =IF(OR(S110<=0,S110>1000000000),"",1/(HYPGEOMDIST(1,14,5,70)*HYPGEOMDIST(1,1,1,25))/S100) -> 58.84321653 | R110: =IF(OR(S110<=0,S110>1000000000),"",S110/Q110/S101) -> 0.01537580639 | S110: 29.85714286 | T110: =IFERROR(IF(R110<R113,R113/R110,R110/R113),"") -> 1.026152517 | U110: =IFERROR(R110/IF((Q110*S101)<1500,1500,Q110*S101)^0.25*62.2333,"") -> 0.1441478424
A111: 0.02239296757 | B111: 3 | C111: =IF(OR(E111<=0,E111>1000000000),"",1/(HYPGEOMDIST(3,11,5,70)*HYPGEOMDIST(0,1,1,25))/E100) -> 44.65687707 | D111: =IF(OR(E111<=0,E111>1000000000),"",E111/C111/E101) -> 0.004523831832 | E111: 1.818181818 | F111: =IFERROR(IF(D111<D113,D113/D111,D111/D113),"") -> 3.312222744 | G111: =IFERROR(D111/IF((C111*E101)<1500,1500,C111*E101)^0.25*62.2333,"") -> 0.04523831997 | H111: 0.02884517856 | I111: 3 | J111: =IF(OR(L111<=0,L111>1000000000),"",1/(HYPGEOMDIST(3,12,5,70)*HYPGEOMDIST(0,1,1,25))/L100) -> 34.66783878 | K111: =IF(OR(L111<=0,L111>1000000000),"",L111/J111/L101) -> 0.004370481601 | L111: 2.727272727 | M111: =IFERROR(IF(K111<K113,K113/K111,K111/K113),"") -> 3.428441086 | N111: =IFERROR(K111/IF((J111*L101)<1500,1500,J111*L101)^0.25*62.2333,"") -> 0.0437048176 | O111: 0.04446310646 | P111: 3 | Q111: =IF(OR(S111<=0,S111>1000000000),"",1/(HYPGEOMDIST(3,14,5,70)*HYPGEOMDIST(0,1,1,25))/S100) -> 22.49055632 | R111: =IF(OR(S111<=0,S111>1000000000),"",S111/Q111/S101) -> 0.004071713046 | S111: 3.021978022 | T111: =IFERROR(IF(R111<R113,R113/R111,R111/R113),"") -> 3.680008516 | U111: =IFERROR(R111/IF((Q111*S101)<1500,1500,Q111*S101)^0.25*62.2333,"") -> 0.04071713195
A112: =IF(SUM(A103:A111)=0,"",SUM(A103:A111)) -> 0.06397395558 | B112: Gesamt | C112: =IFERROR(1/A112,"") -> 15.63136109 | D112: =IF(SUM(D103:D111)=0,"",SUM(D103:D111)) -> 0.1348554482 | E112: =IFERROR(E101*D112,"") -> 1.213699033 | F112: =IFERROR(AVERAGE(F103:F111),"") -> 2.639372515 | G112: =IF(SUM(G103:G111)=0,"",SUM(G103:G111)) -> 0.6119283394 | H112: =IF(SUM(H103:H111)=0,"",SUM(H103:H111)) -> 0.07118525022 | I112: Gesamt | J112: =IFERROR(1/H112,"") -> 14.04785397 | K112: =IF(SUM(K103:K111)=0,"",SUM(K103:K111)) -> 0.1348554482 | L112: =IFERROR(L101*K112,"") -> 2.427398067 | M112: =IFERROR(AVERAGE(M103:M111),"") -> 2.609206527 | N112: =IF(SUM(N103:N111)=0,"",SUM(N103:N111)) -> 0.5842649211 | O112: =IF(SUM(O103:O111)=0,"",SUM(O103:O111)) -> 0.08906821392 | P112: Gesamt | Q112: =IFERROR(1/O112,"") -> 11.22734987 | R112: =IF(SUM(R103:R111)=0,"",SUM(R103:R111)) -> 0.1348554482 | S112: =IFERROR(S101*R112,"") -> 4.450229789 | T112: =IFERROR(AVERAGE(T103:T111),"") -> 2.564009268 | U112: =IF(SUM(U103:U111)=0,"",SUM(U103:U111)) -> 0.5555329467
D113: =AVERAGE(D103:D111) -> 0.01498393868 | K113: =AVERAGE(K103:K111) -> 0.01498393868 | R113: =AVERAGE(R103:R111) -> 0.01498393868
B115: Rechtliche Hinweise: Dieser Rechner darf nur für private Zwecke verwendet werden. Eine Weitergabe dieser Excel-Datei an andere Personen darf nur unverändert und kostenlos erfolgen!
B117: © Copyright 2023 by Lottoexperte (www.lotteriecheck.de) - Alle Rechte vorbehalten!
B119: ¹ Die Ø AQs wurden in den Gewinnklassen, die in den AGB in Abschnitt 11.1 als Typ A oder Typ B gekennzeichnet sind oder für die gemäß Abschnitt 10.12 maximale Auszahlungsbeträge ¹ festgelegt sind, ohne Berücksichtigung dieser Gewinnbeschränkungen berechnet. Die Ø Gesamt-AQs sind daher bei diesen Lotterien als Höchstwerte zu betrachten, deren tatsächlicher ¹ Wert umso geringer ausfällt, je mehr Tipps bei ELBL (Lottoland und Lottohelden) bei dieser Lotterie abgegeben werden. Die Bewertungsübersicht kann mit Strg+[1-6] sortiert werden. ¹ Hinweis: Alle angegebenen Gewinnbeträge in den oben aufgelisteten Gewinntabellen (und somit auch alle Angaben zur Ø AQ) beinhalten bereits sämtliche Mehrfachgewinne. ² Je geringer der Wert, desto höher ist das Verlustpotenzial in Relation zum Spieleinsatz. Berechnung: Summe aller berechneten Werte (X) in den einzelnen Gewinnklassen. Berechnung ² von X je Gewinnklasse: [Ø AQ dieser Gewinnklasse]/([1:Wahrscheinlichkeit dieser Gewinnklasse]*[Preis je Tipp in Euro])^0,25*62,2333 ² Für den in den runden Klammern berechneten Wert gilt jedoch eine Untergrenze von 1.500. Die Lotteriebewertungen wurden daher speziell für Gelegenheitsspieler kalkuliert und tref- ² fen somit am genauesten auf diejenigen Spieler zu, die in ihrem gesamten Leben lediglich 1.500 € für diese Lotterie ausgeben. ² Beispiel: Die 1:Wahrscheinlichkeit einer Gewinnklasse liegt bei 250 und der Spielpreis bei 5 €. Der Wert in den runden Klammern beläuft sich dadurch auf 1.500 (anstelle von 1.250). ³ Je höher der Wert, desto ungleichmäßiger ist die Ø Gesamt-AQ auf die Gewinnklassen verteilt. Berechnung: Mittelwert (Ø) aller berechneten Werte (X) in den einzelnen Gewinnklassen. ³ Berechnung von X je Gewinnklasse: Wenn der Ø der Ø AQs aller Gewinnklassen (Y) größer ist als die Ø Gewinnklassen-AQ (Z), dann wird Y durch Z geteilt, ansonsten wird Z durch Y geteilt. ⁴ Der Ø Gewinn in der ersten Gewinnklasse wurde auf Grundlage der Jackpothöhe und Anzahl der Jackpotgewinner bei 200 Ziehungen im Zeitraum vom 01.01.2017 bis 28.11.2018 bei der ⁴ Originallotterie berechnet und entspricht somit der Ø Gewinnauszahlung von Lottohelden, sofern es jeweils nur einen Gewinner bei ELBL (Lottoland und Lottohelden) gegeben hätte. ⁵ Entsprechend den AGB von Lottohelden (Abschnitt 11.9) wurden die Gewinnbeträge bereits nach Abzug der Einbehaltung von 20 % der Gewinne in den Gewinnklassen 1 bis 3 kalkuliert. ⁶ Der Ø Gewinn in der ersten Gewinnklasse wurde bei Auszahlung des Jackpots in einem Betrag zu einem Wechselkurs von 1,10 $ je Euro und auf Grundlage der Jackpothöhe und Anzahl ⁶ der Jackpotgewinner bei 200 Ziehungen im Zeitraum vom 29.10.2017 bis 26.09.2019 bei PowerBall bzw. vom 01.11.2017 bis 28.09.2019 bei MegaMillions berechnet und entspricht somit ⁶ der Ø Gewinnauszahlung von Lottohelden, sofern es jeweils nur einen Gewinner bei ELBL (Lottoland und Lottohelden) gegeben hätte. Entsprechend den AGB von Lottohelden (Abschnitt ⁶ 11.7 und 11.8) wurden die Gewinnbeträge bereits nach Abzug der Einbehaltung von 38 % der Gewinne in den Gewinnklassen 1 bis 3 sowie weiteren 40 % in Gewinnklasse 1 kalkuliert.

Sheet Spielgemeinschaften+XXL-Chancen
B2: LOTTO 6/45 XXL-Chance | D2: Tipp- felder | E2: An- teile | F2: Fairer Preis | G2: Gewinn- Chance | I2: LOTTO 6/45 XXL-Chance | K2: Tipp- felder | L2: An- teile | M2: Fairer Preis | N2: Gewinn- Chance | P2: LOTTO 6/45 XXL-Chance | R2: Tipp- felder | S2: An- teile | T2: Fairer Preis | U2: Gewinn- Chance | W2: Bewertungsübersicht der Spielge- meinschaften und XXL-Chancen * | X2: Preis je Spiel | Y2: Tipp- felder | Z2: Ø AQ Gesamt | AA2: Chancen je Spiel | AB2: Aufpreis je Spiel
B3: =IF(SUM(D4:D5)=0,"",SUM(D4:D5)) -> 211 | C3: 6 | I3: =IF(SUM(K4:K5)=0,"",SUM(K4:K5)) -> 463 | J3: 10 | P3: =IF(SUM(R4:R5)=0,"",SUM(R4:R5)) -> 925 | Q3: 18
B4: 1 | D4: =IFERROR(IF(B4<=0,"",B4*COMBIN(10,6)),"") -> 210 | E4: 78 | F4: =IFERROR(IF(D4="","",D4*R106/E4),"") -> 3.5 | G4: =IFERROR(IF(D4="","",1-(1-0.315289109957289)^B4),"") -> 0.31528911 | H4: =IFERROR(F4*T106,"") -> 1.6233866 | I4: 1 | K4: =IFERROR(IF(I4<=0,"",I4*COMBIN(11,6)),"") -> 462 | L4: 78 | M4: =IFERROR(IF(K4="","",K4*R106/L4),"") -> 7.7 | N4: =IFERROR(IF(K4="","",1-(1-0.361131161017718)^I4),"") -> 0.361131161 | O4: =IFERROR(M4*T106,"") -> 3.571450521 | P4: 1 | R4: =IFERROR(IF(P4<=0,"",P4*COMBIN(12,6)),"") -> 924 | S4: 78 | T4: =IFERROR(IF(R4="","",R4*R106/S4),"") -> 15.4 | U4: =IFERROR(IF(R4="","",1-(1-0.408261392606259)^P4),"") -> 0.4082613926 | V4: =IFERROR(T4*T106,"") -> 7.142901041 | W4: =$P$41 -> LOTTO 6/49 Super-Chance | X4: =$Q$42 -> 20 | Y4: =$P$42 -> 2500 | Z4: =IFERROR(ROUND($R$48,10),"") -> 0.6411 | AA4: =$U$48 -> 0.8425749503 | AB4: =IFERROR(ROUND($Q$48,10),"") -> -0.2200904695 | AC4: 0.6411
B5: 1 | D5: =IFERROR(IF(B5<=0,"",B5),"") -> 1 | E5: 1 | F5: =IFERROR(IF(D5="","",D5*R106/E5),"") -> 1.3 | G5: =IFERROR(IF(D5="","",1-(1-0.0854594072971839)^B5),"") -> 0.0854594073 | H5: =IFERROR(F5*T106,"") -> 0.6029721658 | I5: 1 | K5: =IFERROR(IF(I5<=0,"",I5),"") -> 1 | L5: 1 | M5: =IFERROR(IF(K5="","",K5*R106/L5),"") -> 1.3 | N5: =IFERROR(IF(K5="","",1-(1-0.0854594072971839)^I5),"") -> 0.0854594073 | O5: =IFERROR(M5*T106,"") -> 0.6029721658 | P5: 1 | R5: =IFERROR(IF(P5<=0,"",P5),"") -> 1 | S5: 1 | T5: =IFERROR(IF(R5="","",R5*R106/S5),"") -> 1.3 | U5: =IFERROR(IF(R5="","",1-(1-0.0854594072971839)^P5),"") -> 0.0854594073 | V5: =IFERROR(T5*T106,"") -> 0.6029721658 | W5: =$P$9 -> LOTTO 6/49 XXL-Chance | X5: =$Q$10 -> 20.2 | Y5: =$P$10 -> 2053 | Z5: =IFERROR(ROUND($R$14,10),"") -> 0.6392079208 | AA5: =$U$14 -> 0.4791558474 | AB5: =IFERROR(ROUND($Q$14,10),"") -> -0.2177819083 | AC5: 0.6392079208
B6: Aufpreis: | C6: =IFERROR(C3/F6-1,"") -> 0.25 | D6: =IFERROR(H6/C3,"") -> 0.3710597943 | F6: =IF(SUM(F4:F5)=0,"",SUM(F4:F5)) -> 4.8 | G6: =IF(SUM(G4:G5)=0,"",1-(1-IF(G4="",0,G4))*(1-IF(G5="",0,G5))) -> 0.3738040968 | H6: =IF(SUM(H4:H5)=0,"",SUM(H4:H5)) -> 2.226358766 | I6: Aufpreis: | J6: =IFERROR(J3/M6-1,"") -> 0.1111111111 | K6: =IFERROR(O6/J3,"") -> 0.4174422686 | M6: =IF(SUM(M4:M5)=0,"",SUM(M4:M5)) -> 9 | N6: =IF(SUM(N4:N5)=0,"",1-(1-IF(N4="",0,N4))*(1-IF(N5="",0,N5))) -> 0.4157285133 | O6: =IF(SUM(O4:O5)=0,"",SUM(O4:O5)) -> 4.174422686 | P6: Aufpreis: | Q6: =IFERROR(Q3/T6-1,"") -> 0.07784431138 | R6: =IFERROR(V6/Q3,"") -> 0.4303262893 | T6: =IF(SUM(T4:T5)=0,"",SUM(T4:T5)) -> 16.7 | U6: =IF(SUM(U4:U5)=0,"",1-(1-IF(U4="",0,U4))*(1-IF(U5="",0,U5))) -> 0.4588310233 | V6: =IF(SUM(V4:V5)=0,"",SUM(V4:V5)) -> 7.745873207 | W6: =$I$9 -> LOTTO 6/49 XXL-Chance | X6: =$J$10 -> 13.2 | Y6: =$I$10 -> 1261 | Z6: =IFERROR(ROUND($K$14,10),"") -> 0.6181818182 | AA6: =$N$14 -> 0.4556927214 | AB6: =IFERROR(ROUND($J$14,10),"") -> -0.1911764706 | AC6: 0.6181818182
W7: =$P$17 -> SuperLotto XXL-Chance | X7: =$Q$18 -> 19.5 | Y7: =$P$18 -> 2053 | Z7: =IFERROR(ROUND($R$22,10),"") -> 0.5940662196 | AA7: =$U$22 -> 0.9816464894 | AB7: =IFERROR(ROUND($Q$22,10),"") -> -0.3959107807 | AC7: 0.5940662196
W8: =$P$51 -> SuperLotto Super-Chance | X8: =$Q$52 -> 20 | Y8: =$P$52 -> 2500 | Z8: =IFERROR(ROUND($R$58,10),"") -> 0.5751772879 | AA8: =$U$58 -> 0.9999998806 | AB8: =IFERROR(ROUND($Q$58,10),"") -> -0.3760723756 | AC8: 0.5751772879
B9: LOTTO 6/49 XXL-Chance | D9: Tipp- felder | E9: An- teile | F9: Fairer Preis | G9: Gewinn- Chance | I9: LOTTO 6/49 XXL-Chance | K9: Tipp- felder | L9: An- teile | M9: Fairer Preis | N9: Gewinn- Chance | P9: LOTTO 6/49 XXL-Chance | R9: Tipp- felder | S9: An- teile | T9: Fairer Preis | U9: Gewinn- Chance | W9: =$P$25 -> EuroJackpot XXL-Chance | X9: =$Q$26 -> 27 | Y9: =$P$26 -> 2665 | Z9: =IFERROR(ROUND($R$30,10),"") -> 0.5303703704 | AA9: =$U$30 -> 0.5237932761 | AB9: =IFERROR(ROUND($Q$30,10),"") -> -0.0572625698 | AC9: 0.5303703704
B10: =IF(SUM(D11:D13)=0,"",SUM(D11:D13)) -> 547 | C10: 8.2 | I10: =IF(SUM(K11:K13)=0,"",SUM(K11:K13)) -> 1261 | J10: 13.2 | P10: =IF(SUM(R11:R13)=0,"",SUM(R11:R13)) -> 2053 | Q10: 20.2 | W10: =$P$61 -> EuroJackpot Super-Chance | X10: =$Q$62 -> 20 | Y10: =$P$62 -> 2500 | Z10: =IFERROR(ROUND($R$68,10),"") -> 0.5258333333 | AA10: =$U$68 -> 0.867154438 | AB10: =IFERROR(ROUND($Q$68,10),"") -> -0.0491283677 | AC10: 0.5258333333
B11: 4 | D11: =IFERROR(IF(B11<=0,"",B11*COMBIN(9,6)),"") -> 336 | E11: 100 | F11: =IFERROR(IF(D11="","",D11*R107/E11),"") -> 4.032 | G11: =IFERROR(IF(D11="","",1-(1-0.0902706385724755)^B11),"") -> 0.3150658077 | H11: =IFERROR(F11*T107,"") -> 2.016 | I11: 4 | K11: =IFERROR(IF(I11<=0,"",I11*COMBIN(9,6)),"") -> 336 | L11: 100 | M11: =IFERROR(IF(K11="","",K11*R107/L11),"") -> 4.032 | N11: =IFERROR(IF(K11="","",1-(1-0.0902706385724755)^I11),"") -> 0.3150658077 | O11: =IFERROR(M11*T107,"") -> 2.016 | P11: 4 | R11: =IFERROR(IF(P11<=0,"",P11*COMBIN(9,6)),"") -> 336 | S11: 100 | T11: =IFERROR(IF(R11="","",R11*R107/S11),"") -> 4.032 | U11: =IFERROR(IF(R11="","",1-(1-0.0902706385724755)^P11),"") -> 0.3150658077 | V11: =IFERROR(T11*T107,"") -> 2.016 | W11: =$I$17 -> SuperLotto XXL-Chance | X11: =$J$18 -> 14.5 | Y11: =$I$18 -> 1261 | Z11: =IFERROR(ROUND($K$22,10),"") -> 0.504891557 | AA11: =$N$22 -> 0.9801170302 | AB11: =IFERROR(ROUND($J$22,10),"") -> -0.2892156863 | AC11: 0.504891557
B12: 1 | D12: =IFERROR(IF(B12<=0,"",B12*COMBIN(10,6)),"") -> 210 | E12: 100 | F12: =IFERROR(IF(D12="","",D12*R107/E12),"") -> 2.52 | G12: =IFERROR(IF(D12="","",1-(1-0.116739057493319)^B12),"") -> 0.1167390575 | H12: =IFERROR(F12*T107,"") -> 1.26 | I12: 1 | K12: =IFERROR(IF(I12<=0,"",I12*COMBIN(12,6)),"") -> 924 | L12: 100 | M12: =IFERROR(IF(K12="","",K12*R107/L12),"") -> 11.088 | N12: =IFERROR(IF(K12="","",1-(1-0.179149596934056)^I12),"") -> 0.1791495969 | O12: =IFERROR(M12*T107,"") -> 5.544 | P12: 1 | R12: =IFERROR(IF(P12<=0,"",P12*COMBIN(13,6)),"") -> 1716 | S12: 100 | T12: =IFERROR(IF(R12="","",R12*R107/S12),"") -> 20.592 | U12: =IFERROR(IF(R12="","",1-(1-0.21453350072684)^P12),"") -> 0.2145335007 | V12: =IFERROR(T12*T107,"") -> 10.296 | W12: =$B$41 -> LOTTO 6/49 Super-Chance | X12: =$C$42 -> 5 | Y12: =$B$42 -> 500 | Z12: =IFERROR(ROUND($D$48,10),"") -> 0.498 | AA12: =$G$48 -> 0.7046775936 | AB12: =IFERROR(ROUND($C$48,10),"") -> 0.0040160643 | AC12: 0.498
B13: 1 | D13: =IFERROR(IF(B13<=0,"",B13),"") -> 1 | E13: 1 | F13: =IFERROR(IF(D13="","",D13*R107/E13),"") -> 1.2 | G13: =IFERROR(IF(D13="","",1-(1-0.0318753479021749)^B13),"") -> 0.0318753479 | H13: =IFERROR(F13*T107,"") -> 0.6 | I13: 1 | K13: =IFERROR(IF(I13<=0,"",I13),"") -> 1 | L13: 1 | M13: =IFERROR(IF(K13="","",K13*R107/L13),"") -> 1.2 | N13: =IFERROR(IF(K13="","",1-(1-0.0318753479021749)^I13),"") -> 0.0318753479 | O13: =IFERROR(M13*T107,"") -> 0.6 | P13: 1 | R13: =IFERROR(IF(P13<=0,"",P13),"") -> 1 | S13: 1 | T13: =IFERROR(IF(R13="","",R13*R107/S13),"") -> 1.2 | U13: =IFERROR(IF(R13="","",1-(1-0.0318753479021749)^P13),"") -> 0.0318753479 | V13: =IFERROR(T13*T107,"") -> 0.6 | W13: =$B$97 -> LOTTO 05 | X13: =$C$98 -> 5 | Y13: =$B$98 -> 200 | Z13: =IFERROR(ROUND($D$101,10),"") -> 0.48 | AA13: =$G$101 -> 0.706488344 | AB13: =IFERROR(ROUND($C$101,10),"") -> 0.0416666667 | AC13: 0.48
B14: Aufpreis: | C14: =IFERROR(C10/F14-1,"") -> 0.05779153767 | D14: =IFERROR(H14/C10,"") -> 0.4726829268 | F14: =IF(SUM(F11:F13)=0,"",SUM(F11:F13)) -> 7.752 | G14: =IF(SUM(G11:G13)=0,"",1-(1-IF(G11="",0,G11))*(1-IF(G12="",0,G12))*(1-IF(G13="",0,G13))) -> 0.4143081881 | H14: =IF(SUM(H11:H13)=0,"",SUM(H11:H13)) -> 3.876 | I14: Aufpreis: | J14: =IFERROR(J10/M14-1,"") -> -0.1911764706 | K14: =IFERROR(O14/J10,"") -> 0.6181818182 | M14: =IF(SUM(M11:M13)=0,"",SUM(M11:M13)) -> 16.32 | N14: =IF(SUM(N11:N13)=0,"",1-(1-IF(N11="",0,N11))*(1-IF(N12="",0,N12))*(1-IF(N13="",0,N13))) -> 0.4556927214 | O14: =IF(SUM(O11:O13)=0,"",SUM(O11:O13)) -> 8.16 | P14: Aufpreis: | Q14: =IFERROR(Q10/T14-1,"") -> -0.2177819083 | R14: =IFERROR(V14/Q10,"") -> 0.6392079208 | T14: =IF(SUM(T11:T13)=0,"",SUM(T11:T13)) -> 25.824 | U14: =IF(SUM(U11:U13)=0,"",1-(1-IF(U11="",0,U11))*(1-IF(U12="",0,U12))*(1-IF(U13="",0,U13))) -> 0.4791558474 | V14: =IF(SUM(V11:V13)=0,"",SUM(V11:V13)) -> 12.912 | W14: =$B$89 -> LOTTO 10 | X14: =$C$90 -> 10 | Y14: =$B$90 -> 400 | Z14: =IFERROR(ROUND($D$94,10),"") -> 0.48 | AA14: =$G$94 -> 0.6415722807 | AB14: =IFERROR(ROUND($C$94,10),"") -> 0.0416666667 | AC14: 0.48
W15: =$B$81 -> LOTTO 15 | X15: =$C$82 -> 15 | Y15: =$B$82 -> 600 | Z15: =IFERROR(ROUND($D$86,10),"") -> 0.48 | AA15: =$G$86 -> 0.5622987116 | AB15: =IFERROR(ROUND($C$86,10),"") -> 0.0416666667 | AC15: 0.48
W16: =$I$41 -> LOTTO 6/49 Super-Chance | X16: =$J$42 -> 10 | Y16: =$I$42 -> 1000 | Z16: =IFERROR(ROUND($K$48,10),"") -> 0.48 | AA16: =$N$48 -> 0.7416418715 | AB16: =IFERROR(ROUND($J$48,10),"") -> 0.0416666667 | AC16: 0.48
B17: SuperLotto XXL-Chance | D17: Tipp- felder | E17: An- teile | F17: Fairer Preis | G17: Gewinn- Chance | I17: SuperLotto XXL-Chance | K17: Tipp- felder | L17: An- teile | M17: Fairer Preis | N17: Gewinn- Chance | P17: SuperLotto XXL-Chance | R17: Tipp- felder | S17: An- teile | T17: Fairer Preis | U17: Gewinn- Chance | W17: =$B$9 -> LOTTO 6/49 XXL-Chance | X17: =$C$10 -> 8.2 | Y17: =$B$10 -> 547 | Z17: =IFERROR(ROUND($D$14,10),"") -> 0.4726829268 | AA17: =$G$14 -> 0.4143081881 | AB17: =IFERROR(ROUND($C$14,10),"") -> 0.0577915377 | AC17: 0.4726829268
B18: =IF(SUM(D19:D21)=0,"",SUM(D19:D21)) -> 547 | C18: 7.5 | I18: =IF(SUM(K19:K21)=0,"",SUM(K19:K21)) -> 1261 | J18: 14.5 | P18: =IF(SUM(R19:R21)=0,"",SUM(R19:R21)) -> 2053 | Q18: 19.5 | W18: =$I$25 -> EuroJackpot XXL-Chance | X18: =$J$26 -> 17 | Y18: =$I$26 -> 1405 | Z18: =IFERROR(ROUND($K$30,10),"") -> 0.4717647059 | AA18: =$N$30 -> 0.5026465485 | AB18: =IFERROR(ROUND($J$30,10),"") -> 0.0598503741 | AC18: 0.4717647059
